Workbook

Sheet ORCAMENTO_RESUMO
C1: Ministério do Desenvolvimento Regional - MDR | F1: 4367736.12
C2: Companhia de Desenvolvimento dos Vales do São Francisco e do Parnaíba | F2: =D22 -> 1686680
C3: Gerência de Operação do PISF - Centro de Controle e Operação (AD / GOI / CCO) | F3: =F1-F2 -> 2681056.12
A5: TERMO DE REFERÊNCIA PARA CONTRATAÇÃO DOS RECURSOS NECESSÁRIOS À OPERAÇÃO E MANUTENÇÃO DAS INFRAESTRUTURAS DO EIXO LESTE DO PISF - PROJETO DE INTEGRAÇÃO DO SÃO FRANCISCO COM AS BACIAS HIDROGRÁFICAS DO NORDESTE SETENTRIONAL | N5: =E8/12 -> 2091024.074
F7: =E8-F8 ->  | G7: =F8-G8 ->  | M7: 0.0007 | N7: =$E$8*M7 -> 17564.60222 | P7: =$N$5*M7 -> 1463.716852 | R7: =P7/$E$8 -> 5.833333333e-05
A8: ORÇAMENTO CONSOLIDADO | D8: TOTAL - (R$) | E8: =SUBTOTAL(9,D12:D55) -> 25092288.88 | F8: =#REF! ->  | G8: =H11 ->  | M8: 0.001 | N8: =$E$8*M8 -> 25092.28888 | P8: =$N$5*M8 -> 2091.024074 | R8: =P8/$E$8 -> 8.333333333e-05
F9: =#REF! ->  | G9: =F9-F8 ->  | M9: 0.002 | N9: =$E$8*M9 -> 50184.57777 | P9: =$N$5*M9 -> 4182.048147 | R9: =P9/$E$8 -> 0.0001666666667
F10: =#REF! ->  | G10: =F10-G8 ->  | M10: 0.004 | N10: =$E$8*M10 -> 100369.1555 | P10: =$N$5*M10 -> 8364.096295 | R10: =P10/$E$8 -> 0.0003333333333
A11: ITEM | B11: CÓDIGO | C11: DESCRIÇÃO | D11: R$ TOTAL | E11: % | H11: =SUM(H12:H56) ->  | M11: 0.02 | N11: =$E$8*M11 -> 501845.7777 | P11: =$N$5*M11 -> 41820.48147 | R11: =P11/$E$8 -> 0.001666666667
A12: 1. | C12: ='ORCAMENTO_CONSOLIDADO (2)'!C11 -> MOBILIZAÇÃO E DESMOBILIZAÇAO | D12: =SUBTOTAL(9,D13:D14) -> 175646.56 | E12: =ROUND(D12/E$8,4) -> 0.007 | G12: =C12 -> MOBILIZAÇÃO E DESMOBILIZAÇAO | H12: =SUMIF(#REF!,G12,#REF!) ->  | M12: =D16+D22+D33+D41 -> 15724388.51 | N12: =$E$8*M12 -> 3.945608989e+14 | P12: =$N$5*M12 -> 3.288007491e+13 | R12: =P12/$E$8 -> 1310365.709
A13: 1.1 | C13: =VLOOKUP(A13&".",'ORCAMENTO_CONSOLIDADO (2)'!A$10:C$800,3,FALSE) -> MOBILIZAÇÃO (Máquinas, Equipamentos, Ferramentas, Instrumentos, Materiais, Mobiliário) | D13: =SUMIF('ORCAMENTO_CONSOLIDADO (2)'!A$10:A$800,A13&".",'ORCAMENTO_CONSOLIDADO (2)'!G$10:G$800) -> 87823.28 | E13: 0.0035 | F13: =E8-63248004.44 -> -38155715.56 | H13: =SUMIF(#REF!,G13,#REF!) ->  | M13: =M12*1.2 -> 18869266.21 | N13: =$E$8*M13 -> 4.734730787e+14 | P13: =$N$5*M13 -> 3.945608989e+13 | R13: =P13/$E$8 -> 1572438.851
A14: 1.2 | C14: =VLOOKUP(A14&".",'ORCAMENTO_CONSOLIDADO (2)'!A$10:C$800,3,FALSE) -> DESMOBILIZAÇÃO (Máquinas, Equip., Ferramentas, Instrumentos, Materiais, Mobiliário) | D14: =SUMIF('ORCAMENTO_CONSOLIDADO (2)'!A$10:A$800,A14&".",'ORCAMENTO_CONSOLIDADO (2)'!G$10:G$800) -> 87823.28 | E14: 0.0035 | H14: =SUMIF(#REF!,G14,#REF!) ->  | M14: 0.1 | N14: =$E$8*M14 -> 2509228.888 | P14: =$N$5*M14 -> 209102.4074 | R14: =P14/$E$8 -> 0.008333333333
A15: 2. | C15: ='ORCAMENTO_CONSOLIDADO (2)'!C18 -> MOBILIÁRIO E EQUIPAMENTOS DE ESCRITÓRIO | D15: ='ORCAMENTO_CONSOLIDADO (2)'!G18 -> 184500.5 | E15: 0.0074 | G15: =C15 -> MOBILIÁRIO E EQUIPAMENTOS DE ESCRITÓRIO | H15: =SUMIF(#REF!,G15,#REF!) -> 
A16: 3. | C16: ='ORCAMENTO_CONSOLIDADO (2)'!C74 -> EQUIPE - MÃO DE OBRA | D16: =SUBTOTAL(9,D17:D18) -> 8861882.3 | E16: 0.3532 | G16: =C16 -> EQUIPE - MÃO DE OBRA | H16: =SUMIF(#REF!,G16,#REF!) -> 
A17: 3.1 | C17: =VLOOKUP(A17&".",'ORCAMENTO_CONSOLIDADO (2)'!A$10:C$800,3,FALSE) -> SALÁRIOS FIXOS | D17: =SUMIF('ORCAMENTO_CONSOLIDADO (2)'!A$10:A$800,A17&".",'ORCAMENTO_CONSOLIDADO (2)'!G$10:G$800) -> 8230842.7 | E17: 0.328
A18: 3.2 | C18: =VLOOKUP(A18&".",'ORCAMENTO_CONSOLIDADO (2)'!A$10:C$800,3,FALSE) -> VALORES ADICIONAIS | D18: =SUMIF('ORCAMENTO_CONSOLIDADO (2)'!A$10:A$800,A18&".",'ORCAMENTO_CONSOLIDADO (2)'!G$10:G$800) -> 631039.6 | E18: 0.0251
A19: 4. | C19: ='ORCAMENTO_CONSOLIDADO (2)'!C139 -> VIAGENS / DIÁRIAS | D19: =SUBTOTAL(109,D20:D21) -> 32217.36 | E19: 0.0013 | G19: =C19 -> VIAGENS / DIÁRIAS | H19: =SUMIF(#REF!,G19,#REF!) -> 
A20: 4.1 | C20: =VLOOKUP(A20&".",'ORCAMENTO_CONSOLIDADO (2)'!A$10:C$800,3,FALSE) -> DESPESAS COM VIAGENS COMERCIAIS | D20: =SUMIF('ORCAMENTO_CONSOLIDADO (2)'!A$10:A$800,A20&".",'ORCAMENTO_CONSOLIDADO (2)'!G$10:G$800) -> 13239.36 | E20: 0.0005 | H20: =SUMIF(#REF!,G20,#REF!) -> 
A21: 4.2 | C21: =VLOOKUP(A21&".",'ORCAMENTO_CONSOLIDADO (2)'!A$10:C$800,3,FALSE) -> DESPESAS COM DIÁRIAS | D21: =SUMIF('ORCAMENTO_CONSOLIDADO (2)'!A$10:A$800,A21&".",'ORCAMENTO_CONSOLIDADO (2)'!G$10:G$800) -> 18978 | E21: 0.0008 | H21: =SUMIF(#REF!,G21,#REF!) -> 
A22: 5. | C22: ='ORCAMENTO_CONSOLIDADO (2)'!C147 -> VEÍCULOS AUTOMOTORES | D22: ='ORCAMENTO_CONSOLIDADO (2)'!G147 -> 1686680 | E22: 0.0672 | G22: =C22 -> VEÍCULOS AUTOMOTORES | H22: =SUMIF(#REF!,G22,#REF!) -> 
A23: 6. | C23: ='ORCAMENTO_CONSOLIDADO (2)'!C154 -> FRENTES MÓVEIS DE LIMPEZA E CONSERVAÇÃO | D23: ='ORCAMENTO_CONSOLIDADO (2)'!G154 -> 80012.16 | E23: 0.0032 | G23: =C23 -> FRENTES MÓVEIS DE LIMPEZA E CONSERVAÇÃO | H23: =SUMIF(#REF!,G23,#REF!) -> 
A24: 7. | C24: ='ORCAMENTO_CONSOLIDADO (2)'!C159 -> MATERIAL DE CONSUMO - ALMOXARIFADOS | D24: =SUBTOTAL(109,D25:D28) -> 2757360.818 | E24: 0.1099 | G24: =C24 -> MATERIAL DE CONSUMO - ALMOXARIFADOS | H24: =SUMIF(#REF!,G24,#REF!) ->  | I24: =D24+D48 -> 3546657.798
A25: 7.1 | C25: =VLOOKUP(A25&".",'ORCAMENTO_CONSOLIDADO (2)'!A$10:C$800,3,FALSE) -> MATERIAL DE CONSUMO - MECÂNICA | D25: =SUMIF('ORCAMENTO_CONSOLIDADO (2)'!A$10:A$800,A25&".",'ORCAMENTO_CONSOLIDADO (2)'!G$10:G$800) -> 729720.95 | E25: 0.0291 | H25: =SUMIF(#REF!,G25,#REF!) -> 
A26: 7.2 | C26: =VLOOKUP(A26&".",'ORCAMENTO_CONSOLIDADO (2)'!A$10:C$800,3,FALSE) -> MATERIAL DE CONSUMO - ELÉTRICA | D26: =SUMIF('ORCAMENTO_CONSOLIDADO (2)'!A$10:A$800,A26&".",'ORCAMENTO_CONSOLIDADO (2)'!G$10:G$800) -> 294586.5 | E26: 0.0117 | H26: =SUMIF(#REF!,G26,#REF!) -> 
A27: 7.3 | C27: =VLOOKUP(A27&".",'ORCAMENTO_CONSOLIDADO (2)'!A$10:C$800,3,FALSE) -> MATERIAL DE CONSUMO - CIVIL | D27: =SUMIF('ORCAMENTO_CONSOLIDADO (2)'!A$10:A$800,A27&".",'ORCAMENTO_CONSOLIDADO (2)'!G$10:G$800) -> 1573603.308 | E27: 0.0627 | H27: =SUMIF(#REF!,G27,#REF!) -> 
A28: 7.4 | C28: =VLOOKUP(A28&".",'ORCAMENTO_CONSOLIDADO (2)'!A$10:C$800,3,FALSE) -> MANUTENÇÃO DE CANTEIRO - ESCRITÓRIO | D28: =SUMIF('ORCAMENTO_CONSOLIDADO (2)'!A$10:A$800,A28&".",'ORCAMENTO_CONSOLIDADO (2)'!G$10:G$800) -> 159450.06 | E28: 0.0064 | H28: =SUMIF(#REF!,G28,#REF!) -> 
A29: 8. | C29: ='ORCAMENTO_CONSOLIDADO (2)'!C325 -> FERRAMENTAS | D29: =SUBTOTAL(109,D30:D32) -> 434473.7 | E29: 0.0173 | G29: =C29 -> FERRAMENTAS | H29: =SUMIF(#REF!,G29,#REF!) -> 
A30: 8.1 | C30: =VLOOKUP(A30&".",'ORCAMENTO_CONSOLIDADO (2)'!A$10:C$800,3,FALSE) -> FERRAMENTAS - MECÂNICA | D30: =SUMIF('ORCAMENTO_CONSOLIDADO (2)'!A$10:A$800,A30&".",'ORCAMENTO_CONSOLIDADO (2)'!G$10:G$800) -> 68428.17 | E30: 0.0027 | H30: =SUMIF(#REF!,G30,#REF!) -> 
A31: 8.2 | C31: =VLOOKUP(A31&".",'ORCAMENTO_CONSOLIDADO (2)'!A$10:C$800,3,FALSE) -> FERRAMENTAS - ELÉTRICA | D31: =SUMIF('ORCAMENTO_CONSOLIDADO (2)'!A$10:A$800,A31&".",'ORCAMENTO_CONSOLIDADO (2)'!G$10:G$800) -> 242747.55 | E31: 0.0097 | H31: =SUMIF(#REF!,G31,#REF!) -> 
A32: 8.3 | C32: =VLOOKUP(A32&".",'ORCAMENTO_CONSOLIDADO (2)'!A$10:C$800,3,FALSE) -> FERRAMENTAS - CIVIL | D32: =SUMIF('ORCAMENTO_CONSOLIDADO (2)'!A$10:A$800,A32&".",'ORCAMENTO_CONSOLIDADO (2)'!G$10:G$800) -> 123297.98 | E32: 0.0049 | H32: =SUMIF(#REF!,G32,#REF!) -> 
A33: 9. | C33: ='ORCAMENTO_CONSOLIDADO (2)'!C536 -> EQUIPAMENTOS | D33: =SUBTOTAL(109,D34:D36) -> 3579720.45 | E33: 0.1427 | G33: =C33 -> EQUIPAMENTOS | H33: =SUMIF(#REF!,G33,#REF!) ->  | I33: =D33+D41 -> 5175826.206
A34: 9.1 | C34: =VLOOKUP(A34&".",'ORCAMENTO_CONSOLIDADO (2)'!A$10:C$800,3,FALSE) -> EQUIPAMENTOS - MECÂNICA | D34: =SUMIF('ORCAMENTO_CONSOLIDADO (2)'!A$10:A$800,A34&".",'ORCAMENTO_CONSOLIDADO (2)'!G$10:G$800) -> 28123.87 | E34: 0.0011 | H34: =SUMIF(#REF!,G34,#REF!) -> 
A35: 9.2 | C35: =VLOOKUP(A35&".",'ORCAMENTO_CONSOLIDADO (2)'!A$10:C$800,3,FALSE) -> EQUIPAMENTOS - ELÉTRICA | D35: =SUMIF('ORCAMENTO_CONSOLIDADO (2)'!A$10:A$800,A35&".",'ORCAMENTO_CONSOLIDADO (2)'!G$10:G$800) -> 10890 | E35: 0.0004 | H35: =SUMIF(#REF!,G35,#REF!) -> 
A36: 9.3 | C36: =VLOOKUP(A36&".",'ORCAMENTO_CONSOLIDADO (2)'!A$10:C$800,3,FALSE) -> EQUIPAMENTOS - CIVIL | D36: =SUMIF('ORCAMENTO_CONSOLIDADO (2)'!A$10:A$800,A36&".",'ORCAMENTO_CONSOLIDADO (2)'!G$10:G$800) -> 3540706.58 | E36: 0.1411 | H36: =SUMIF(#REF!,G36,#REF!) -> 
A37: 10. | C37: ='ORCAMENTO_CONSOLIDADO (2)'!C635 -> INSTRUMENTOS | D37: =SUBTOTAL(109,D38:D40) -> 153689.02 | E37: 0.0061 | G37: =C37 -> INSTRUMENTOS | H37: =SUMIF(#REF!,G37,#REF!) -> 
A38: 10.1 | C38: =VLOOKUP(A38&".",'ORCAMENTO_CONSOLIDADO (2)'!A$10:C$800,3,FALSE) -> INSTRUMENTOS - MECÂNICA | D38: =SUMIF('ORCAMENTO_CONSOLIDADO (2)'!A$10:A$800,A38&".",'ORCAMENTO_CONSOLIDADO (2)'!G$10:G$800) -> 12906.06 | E38: 0.0005 | H38: =SUMIF(#REF!,G38,#REF!) -> 
A39: 10.2 | C39: =VLOOKUP(A39&".",'ORCAMENTO_CONSOLIDADO (2)'!A$10:C$800,3,FALSE) -> INSTRUMENTOS - ELÉTRICA | D39: =SUMIF('ORCAMENTO_CONSOLIDADO (2)'!A$10:A$800,A39&".",'ORCAMENTO_CONSOLIDADO (2)'!G$10:G$800) -> 87902.13 | E39: 0.0035 | H39: =SUMIF(#REF!,G39,#REF!) -> 
A40: 10.3 | C40: =VLOOKUP(A40&".",'ORCAMENTO_CONSOLIDADO (2)'!A$10:C$800,3,FALSE) -> INSTRUMENTOS - CIVIL | D40: =SUMIF('ORCAMENTO_CONSOLIDADO (2)'!A$10:A$800,A40&".",'ORCAMENTO_CONSOLIDADO (2)'!G$10:G$800) -> 52880.83 | E40: =ROUND(D40/E$8,4) -> 0.0021 | H40: =SUMIF(#REF!,G40,#REF!) -> 
A41: 11. | C41: ='ORCAMENTO_CONSOLIDADO (2)'!C676 -> SEGURANÇA E MANUTENÇÃO DE BARRAGENS | D41: =SUBTOTAL(109,D42:D44) -> 1596105.756 | E41: 0.0636 | G41: =C41 -> SEGURANÇA E MANUTENÇÃO DE BARRAGENS | H41: =SUMIF(#REF!,G41,#REF!) -> 
A42: 11.1 | C42: =VLOOKUP(A42&".",'ORCAMENTO_CONSOLIDADO (2)'!A$10:C$800,3,FALSE) -> MÃO DE OBRA - SEGURANÇA DE BARRAGENS | D42: =SUMIF('ORCAMENTO_CONSOLIDADO (2)'!A$10:A$800,A42&".",'ORCAMENTO_CONSOLIDADO (2)'!G$10:G$800) -> 677863.5 | E42: 0.027
A43: 11.2 | C43: =VLOOKUP(A43&".",'ORCAMENTO_CONSOLIDADO (2)'!A$10:C$800,3,FALSE) -> EQUIPAMENTOS - SEGURANÇA DE BARRAGENS | D43: =SUMIF('ORCAMENTO_CONSOLIDADO (2)'!A$10:A$800,A43&".",'ORCAMENTO_CONSOLIDADO (2)'!G$10:G$800) -> 846984 | E43: 0.0338
A44: 11.3 | C44: =VLOOKUP(A44&".",'ORCAMENTO_CONSOLIDADO (2)'!A$10:C$800,3,FALSE) -> VEÍCULOS - SEGURANÇA DE BARRAGENS | D44: =SUMIF('ORCAMENTO_CONSOLIDADO (2)'!A$10:A$800,A44&".",'ORCAMENTO_CONSOLIDADO (2)'!G$10:G$800) -> 71258.256 | E44: 0.0028
A45: 12. | C45: ='ORCAMENTO_CONSOLIDADO (2)'!C700 -> SERVIÇOS ADICIONAIS | D45: =SUBTOTAL(109,D46:D47) -> 62491.8 | E45: 0.0025 | F45: =#REF! ->  | G45: =#REF! ->  | H45: =#REF! -> 
A46: 12.1 | C46: =VLOOKUP(A46&".",'ORCAMENTO_CONSOLIDADO (2)'!A$10:C$800,3,FALSE) -> FORNECIMENTO DE ÁGUA POTÁVEL PARA CANTEIRO | D46: =SUMIF('ORCAMENTO_CONSOLIDADO (2)'!A$10:A$800,A46&".",'ORCAMENTO_CONSOLIDADO (2)'!G$10:G$800) -> 14715.78 | E46: 0.0006
A47: 12.2 | C47: =VLOOKUP(A47&".",'ORCAMENTO_CONSOLIDADO (2)'!A$10:C$800,3,FALSE) -> ANÁLISES DE EFLUENTES | D47: =SUMIF('ORCAMENTO_CONSOLIDADO (2)'!A$10:A$800,A47&".",'ORCAMENTO_CONSOLIDADO (2)'!G$10:G$800) -> 47776.02 | E47: =ROUND(D47/E$8,4) -> 0.0019
A48: 13. | C48: ='ORCAMENTO_CONSOLIDADO (2)'!C707 -> AQUISIÇÃO DE PEÇAS SOBRESSALENTES PISF - EIXOS LESTE | D48: =SUBTOTAL(109,D49:D52) -> 789296.98 | E48: 0.0315
A49: 13.1 | C49: =VLOOKUP(A49&".",'ORCAMENTO_CONSOLIDADO (2)'!A$10:C$800,3,FALSE) -> SOBRESSALENTES - MECÂNICA | D49: =SUMIF('ORCAMENTO_CONSOLIDADO (2)'!A$10:A$800,A49&".",'ORCAMENTO_CONSOLIDADO (2)'!G$10:G$800) -> 397956.22 | E49: 0.0159
A50: 13.2 | C50: =VLOOKUP(A50&".",'ORCAMENTO_CONSOLIDADO (2)'!A$10:C$800,3,FALSE) -> SOBRESSALENTES - ELÉTRICA | D50: =SUMIF('ORCAMENTO_CONSOLIDADO (2)'!A$10:A$800,A50&".",'ORCAMENTO_CONSOLIDADO (2)'!G$10:G$800) -> 338227.01 | E50: 0.0135 | F50: =SUMIF(#REF!,C50&".",#REF!) ->  | G50: =ROUND(F50/G$8,4) ->  | H50: =SUMIF(#REF!,E50&".",#REF!) -> 
A51: 13.3 | C51: =VLOOKUP(A51&".",'ORCAMENTO_CONSOLIDADO (2)'!A$10:C$800,3,FALSE) -> Peças para reposições nas manutenções preventivas e corretivas dos condicionadores de ar | D51: =SUMIF('ORCAMENTO_CONSOLIDADO (2)'!A$10:A$800,A51&".",'ORCAMENTO_CONSOLIDADO (2)'!G$10:G$800) -> 25755.24 | E51: 0.001
A52: 13.4 | C52: =VLOOKUP(A52&".",'ORCAMENTO_CONSOLIDADO (2)'!A$10:C$800,3,FALSE) -> PEÇAS PARA MANUTENÇÃO GERADOR - MECÂNICA | D52: =SUMIF('ORCAMENTO_CONSOLIDADO (2)'!A$10:A$800,A52&".",'ORCAMENTO_CONSOLIDADO (2)'!G$10:G$800) -> 27358.51 | E52: 0.0011
A53: 14. | C53: ='ORCAMENTO_CONSOLIDADO (2)'!C784 -> SERVIÇOS ESPECIALIZADOS (EIXO LESTE) | D53: =SUBTOTAL(109,D54:D54) -> 21421.5 | E53: 0.0009
A54: 14.1 | C54: =VLOOKUP(A54&".",'ORCAMENTO_CONSOLIDADO (2)'!A$10:C$800,3,FALSE) -> Serviços de recarga de extintores de incêndio (EB / SE / Canteiros) | D54: =SUMIF('ORCAMENTO_CONSOLIDADO (2)'!A$10:A$800,A54&".",'ORCAMENTO_CONSOLIDADO (2)'!G$10:G$800) -> 21421.5 | E54: 0.0009
A55: 15. | C55: ='ORCAMENTO_CONSOLIDADO (2)'!C796 -> CUSTOS INDIRETOS | D55: =SUMIF('ORCAMENTO_CONSOLIDADO (2)'!A$10:A$800,A55,'ORCAMENTO_CONSOLIDADO (2)'!G$10:G$800) -> 4676789.98 | E55: 0.1864 | M55: =D53+D48+D45+D41+D37+D33+D29+D24+D23+D22+D19+D15+D12 -> 11553616.6
G56: =C55 -> CUSTOS INDIRETOS | H56: =SUMIF(#REF!,G56,#REF!) -> 
A57: NOME DO INFORMANTE: | D57: QUALIFICAÇÃO:
A59: ASSINATURA: | D59: DATA:

Sheet ORCAMENTO_CONSOLIDADO (2)
C1: Ministério do Desenvolvimento Regional - MDR | I1: 70000000 | K1: 6 | M1: 45318771.98
C2: Companhia de Desenvolvimento dos Vales do São Francisco e do Parnaíba | I2: =G7-I1 -> -44907711.12
C3: Gerência de Operação do PISF - Centro de Controle e Operação (AD / GOI / CCO)
A5: =ORCAMENTO_RESUMO!A5 -> TERMO DE REFERÊNCIA PARA CONTRATAÇÃO DOS RECURSOS NECESSÁRIOS À OPERAÇÃO E MANUTENÇÃO DAS INFRAESTRUTURAS DO EIXO LESTE DO PISF - PROJETO DE INTEGRAÇÃO DO SÃO FRANCISCO COM AS BACIAS HIDROGRÁFICAS DO NORDESTE SETENTRIONAL
A7: ORÇAMENTO CONSOLIDADO | F7: TOTAL - (R$) | G7: =SUBTOTAL(9,G11:G799) -> 25092288.88 | I7: 118869609.7 | J7: 88777364.98 | K7: SUBTOTAL(9;G11:G874) | P7: 25092288.88
A9: ITEM | B9: CÓDIGO | C9: DESCRIÇÃO | D9: UNID. | E9: QUANTID. | F9: R$ UNIT. | G9: R$ TOTAL | H9: %
A11: 1. | C11: =Mobilizacao_Desmobilizacao!C13 -> MOBILIZAÇÃO E DESMOBILIZAÇAO | G11: =SUBTOTAL(9,G12:G17) -> 175646.56 | H11: =ROUND(G11/G$7,4) -> 0.007
A12: 1.1. | C12: =Mobilizacao_Desmobilizacao!C15 -> MOBILIZAÇÃO (Máquinas, Equipamentos, Ferramentas, Instrumentos, Materiais, Mobiliário) | G12: =SUBTOTAL(9,G13:G14) -> 87823.28 | H12: =ROUND(G12/G$7,4) -> 0.0035
A13: 1.1.1 | C13: =Mobilizacao_Desmobilizacao!C16 -> Mobilização da Equipe - Canteiro apoio geral (Floresta/PE) | D13: =Mobilizacao_Desmobilizacao!D16 -> un | E13: =Mobilizacao_Desmobilizacao!E16 -> 1 | F13: =Mobilizacao_Desmobilizacao!F16 -> 12983.83 | G13: =ROUND(E13*F13,2) -> 12983.83 | H13: =ROUND(G13/G$7,4) -> 0.0005 | I13: 1
A14: 1.1.2 | C14: =Mobilizacao_Desmobilizacao!C17 -> Mobilização da Equipe - Canteiro central (Sertânia/PE) | D14: =Mobilizacao_Desmobilizacao!D17 -> un | E14: =Mobilizacao_Desmobilizacao!E17 -> 1 | F14: =Mobilizacao_Desmobilizacao!F17 -> 74839.45 | G14: =ROUND(E14*F14,2) -> 74839.45 | H14: 0.003 | I14: 1
A15: 1.2. | C15: =Mobilizacao_Desmobilizacao!C20 -> DESMOBILIZAÇÃO (Máquinas, Equip., Ferramentas, Instrumentos, Materiais, Mobiliário) | G15: =SUBTOTAL(9,G16:G17) -> 87823.28 | H15: 0.0035
A16: 1.2.1 | C16: =Mobilizacao_Desmobilizacao!C21 -> Desmobilização da Equipe - Canteiro apoio geral (Floresta/PE) | D16: =Mobilizacao_Desmobilizacao!D21 -> un | E16: =Mobilizacao_Desmobilizacao!E21 -> 1 | F16: =Mobilizacao_Desmobilizacao!F21 -> 12983.83 | G16: =ROUND(E16*F16,2) -> 12983.83 | H16: 0.0005 | I16: 1
A17: 1.2.2 | C17: =Mobilizacao_Desmobilizacao!C22 -> Desmobilização da Equipe - Canteiro central (Sertânia/PE) | D17: =Mobilizacao_Desmobilizacao!D22 -> un | E17: =Mobilizacao_Desmobilizacao!E22 -> 1 | F17: =Mobilizacao_Desmobilizacao!F22 -> 74839.45 | G17: 74839.45 | H17: 0.003 | I17: 1
A18: 2. | C18: =Moveis_Equipamentos!C13 -> MOBILIÁRIO E EQUIPAMENTOS DE ESCRITÓRIO | G18: =SUBTOTAL(9,G19:G73) -> 184500.5 | H18: =ROUND(G18/G$7,4) -> 0.0074
A19: 2.1 | B19: =Moveis_Equipamentos!B14 -> E209300236-EMBASA/BA | C19: =Moveis_Equipamentos!C14 -> Aluguel de impressora colorida-Laser com cartuchos-formatos A4 e A3 (inclusive suprimentos) | D19: =Moveis_Equipamentos!D14 -> un x mês | E19: =Moveis_Equipamentos!E14 -> 108 | F19: =Moveis_Equipamentos!F14 -> 225.08 | G19: =Moveis_Equipamentos!G14 -> 24308.64 | H19: =ROUND(G19/G$7,4) -> 0.001 | I19: 288
A20: 2.2 | B20: =Moveis_Equipamentos!B15 -> I8612-SEINFRA/CE | C20: =Moveis_Equipamentos!C15 -> Aluguel de Plotter (inclusive suprimentos) | D20: =Moveis_Equipamentos!D15 -> un x mês | E20: =Moveis_Equipamentos!E15 -> 12 | F20: =Moveis_Equipamentos!F15 -> 320 | G20: =Moveis_Equipamentos!G15 -> 3840 | H20: =ROUND(G20/G$7,4) -> 0.0002 | I20: 36
A21: 2.3 | B21: =Moveis_Equipamentos!B16 -> I8610-SEINFRA/CE | C21: =Moveis_Equipamentos!C16 -> Servidor para backup - EQUIPAMENTO SIMILAR | D21: =Moveis_Equipamentos!D16 -> un x mês | E21: =Moveis_Equipamentos!E16 -> 12 | F21: =Moveis_Equipamentos!F16 -> 170 | G21: =Moveis_Equipamentos!G16 -> 2040 | H21: 0.0001 | I21: 36
A22: 2.4 | B22: =Moveis_Equipamentos!B17 -> I8610-SEINFRA/CE | C22: =Moveis_Equipamentos!C17 -> Desktop com software-tipo 1 (i7, 1T, 8GB, monitor 19", S.O. Windows 10 e Office última versão) - EQUIPAMENTO SIMILAR | D22: =Moveis_Equipamentos!D17 -> un x mês | E22: =Moveis_Equipamentos!E17 -> 210 | F22: =Moveis_Equipamentos!F17 -> 170 | G22: =Moveis_Equipamentos!G17 -> 35700 | H22: 0.0014 | I22: 540
A23: 2.5 | B23: =Moveis_Equipamentos!B18 -> I8610-SEINFRA/CE | C23: =Moveis_Equipamentos!C18 -> Notebook-tipo 1 (i7, 1T, 8GB, S.O. Windows 10 e Office última versão) - EQUIPAMENTO SIMILAR | D23: =Moveis_Equipamentos!D18 -> un x mês | E23: =Moveis_Equipamentos!E18 -> 216 | F23: =Moveis_Equipamentos!F18 -> 170 | G23: =Moveis_Equipamentos!G18 -> 36720 | H23: 0.0015 | I23: 528
A24: 2.6 | B24: =Moveis_Equipamentos!B19 -> COT_ANTE | C24: =Moveis_Equipamentos!C19 -> Kit Antena Digital 4K Externa Log 16 elementos Mastro 45cm e cabo coaxial 12m | D24: =Moveis_Equipamentos!D19 -> un x mês | E24: =Moveis_Equipamentos!E19 -> 6 | F24: =Moveis_Equipamentos!F19 -> 1.660333333 | G24: =Moveis_Equipamentos!G19 -> 9.96 | H24: 0 | I24: 12
A25: 2.7 | B25: =Moveis_Equipamentos!B20 -> I0123-SEINFRA/CE | C25: =Moveis_Equipamentos!C20 -> Armário de escritório | D25: =Moveis_Equipamentos!D20 -> un x mês | E25: =Moveis_Equipamentos!E20 -> 342 | F25: =Moveis_Equipamentos!F20 -> 7.178333333 | G25: =Moveis_Equipamentos!G20 -> 2454.99 | H25: 0.0001 | I25: 804
A26: 2.8 | B26: =Moveis_Equipamentos!B21 -> 73.72.07-SUDECAP/MG | C26: =Moveis_Equipamentos!C21 -> Bebedouro industrial (canteiro) | D26: =Moveis_Equipamentos!D21 -> un x mês | E26: =Moveis_Equipamentos!E21 -> 12 | F26: =Moveis_Equipamentos!F21 -> 54.48433333 | G26: =Moveis_Equipamentos!G21 -> 653.81 | H26: 0 | I26: 36
A27: 2.9 | B27: =Moveis_Equipamentos!B22 -> 11534-ORSE/SE | C27: =Moveis_Equipamentos!C22 -> Cadeira giratória, com braço, tipo executiva | D27: =Moveis_Equipamentos!D22 -> un x mês | E27: =Moveis_Equipamentos!E22 -> 702 | F27: =Moveis_Equipamentos!F22 -> 9.333333333 | G27: =Moveis_Equipamentos!G22 -> 6552 | H27: 0.0003 | I27: 2112
A28: 2.10 | B28: =Moveis_Equipamentos!B23 -> 11543-ORSE | C28: =Moveis_Equipamentos!C23 -> Cadeira de plástico sem braço, cor branca | D28: =Moveis_Equipamentos!D23 -> un x mês | E28: =Moveis_Equipamentos!E23 -> 138 | F28: =Moveis_Equipamentos!F23 -> 0.7 | G28: =Moveis_Equipamentos!G23 -> 96.6 | H28: 0 | I28: 504
A29: 2.11 | B29: =Moveis_Equipamentos!B24 -> COT_CAM_FOTO | C29: =Moveis_Equipamentos!C24 -> Câmera fotográfica digital 20 mp 5x HD | D29: =Moveis_Equipamentos!D24 -> un x mês | E29: =Moveis_Equipamentos!E24 -> 12 | F29: =Moveis_Equipamentos!F24 -> 26.57733333 | G29: =Moveis_Equipamentos!G24 -> 318.93 | H29: 0 | I29: 36
A30: 2.12 | B30: =Moveis_Equipamentos!B25 -> COT - CAR - LIX | C30: =Moveis_Equipamentos!C25 -> Lixeira Carro Coletor 120L | D30: =Moveis_Equipamentos!D25 -> un x mês | E30: =Moveis_Equipamentos!E25 -> 24 | F30: =Moveis_Equipamentos!F25 -> 11.8 | G30: =Moveis_Equipamentos!G25 -> 283.2 | H30: 0 | I30: 72
A31: 2.13 | B31: =Moveis_Equipamentos!B26 -> COT_CESTO | C31: =Moveis_Equipamentos!C26 -> Cestos Telado de lixo 9,6L | D31: =Moveis_Equipamentos!D26 -> un x mês | E31: =Moveis_Equipamentos!E26 -> 48 | F31: =Moveis_Equipamentos!F26 -> 0.4496666667 | G31: =Moveis_Equipamentos!G26 -> 21.58 | H31: 0 | I31: 144
A32: 2.14 | B32: =Moveis_Equipamentos!B27 -> 39555-SINAPI/PE | C32: =Moveis_Equipamentos!C27 -> Condicionador de ar 12.000 BTU | D32: =Moveis_Equipamentos!D27 -> un x mês | E32: =Moveis_Equipamentos!E27 -> 246 | F32: =Moveis_Equipamentos!F27 -> 67.23366667 | G32: =Moveis_Equipamentos!G27 -> 16539.48 | H32: 0.0007 | I32: 624
A33: 2.15 | B33: =Moveis_Equipamentos!B28 -> COT_GPS | C33: =Moveis_Equipamentos!C28 -> GPS com cabo e software (conforme especificação) | D33: =Moveis_Equipamentos!D28 -> un x mês | E33: =Moveis_Equipamentos!E28 -> 12 | F33: =Moveis_Equipamentos!F28 -> 142.0666667 | G33: =Moveis_Equipamentos!G28 -> 1704.8 | H33: 0.0001 | I33: 36
A34: 2.16 | B34: =Moveis_Equipamentos!B29 -> COT_MESA_REUN | C34: =Moveis_Equipamentos!C29 -> Mesa de reunião 10 lugares com 10 cadeiras | D34: =Moveis_Equipamentos!D29 -> un x mês | E34: =Moveis_Equipamentos!E29 -> 42 | F34: =Moveis_Equipamentos!F29 -> 138.035 | G34: =Moveis_Equipamentos!G29 -> 5797.47 | H34: 0.0002 | I34: 108
A35: 2.17 | B35: =Moveis_Equipamentos!B30 -> COT_MESA_PVC | C35: =Moveis_Equipamentos!C30 -> Mesa retangular em Polipropileno 119x75cm | D35: =Moveis_Equipamentos!D30 -> un x mês | E35: =Moveis_Equipamentos!E30 -> 36 | F35: =Moveis_Equipamentos!F30 -> 7.266333333 | G35: =Moveis_Equipamentos!G30 -> 261.59 | H35: 0 | I35: 108
A36: 2.18 | B36: =Moveis_Equipamentos!B31 -> COT_MESA_ESCR | C36: =Moveis_Equipamentos!C31 -> Mesas de escritório com gavetas (conforme especificação) | D36: =Moveis_Equipamentos!D31 -> un x mês | E36: =Moveis_Equipamentos!E31 -> 702 | F36: =Moveis_Equipamentos!F31 -> 14.05933333 | G36: =Moveis_Equipamentos!G31 -> 9869.65 | H36: 0.0004 | I36: 2112
A37: 2.19 | B37: =Moveis_Equipamentos!B32 -> F030000293-EMBASA/BA | C37: =Moveis_Equipamentos!C32 -> Projetor multimídia (Datashow) | D37: =Moveis_Equipamentos!D32 -> un x mês | E37: =Moveis_Equipamentos!E32 -> 12 | F37: =Moveis_Equipamentos!F32 -> 52.927 | G37: =Moveis_Equipamentos!G32 -> 635.12 | H37: 0 | I37: 36
A38: 2.20 | B38: =Moveis_Equipamentos!B33 -> COT_RACK | C38: =Moveis_Equipamentos!C33 -> Rack para TV até 60 Polegadas 1 Porta | D38: =Moveis_Equipamentos!D33 -> un x mês | E38: =Moveis_Equipamentos!E33 -> 12 | F38: =Moveis_Equipamentos!F33 -> 8.963 | G38: =Moveis_Equipamentos!G33 -> 107.56 | H38: 0 | I38: 36
A39: 2.21 | B39: =Moveis_Equipamentos!B34 -> I0122-SEINFRA/CE | C39: =Moveis_Equipamentos!C34 -> Armário de cozinha completo | D39: =Moveis_Equipamentos!D34 -> un x mês | E39: =Moveis_Equipamentos!E34 -> 12 | F39: =Moveis_Equipamentos!F34 -> 18.33833333 | G39: =Moveis_Equipamentos!G34 -> 220.06 | H39: 0 | I39: 36
A40: 2.22 | B40: =Moveis_Equipamentos!B35 -> COT_MES_06 | C40: =Moveis_Equipamentos!C35 -> Conjunto de Mesa 1,40 com Tampo MDP com 6 cadeiras | D40: =Moveis_Equipamentos!D35 -> un x mês | E40: =Moveis_Equipamentos!E35 -> 12 | F40: =Moveis_Equipamentos!F35 -> 30.19366667 | G40: =Moveis_Equipamentos!G35 -> 362.32 | H40: 0 | I40: 36
A41: 2.23 | B41: =Moveis_Equipamentos!B36 -> 10231-ORSE/SE | C41: =Moveis_Equipamentos!C36 -> Fogão | D41: =Moveis_Equipamentos!D36 -> un x mês | E41: =Moveis_Equipamentos!E36 -> 12 | F41: =Moveis_Equipamentos!F36 -> 20.49366667 | G41: =Moveis_Equipamentos!G36 -> 245.92 | H41: 0 | I41: 36
A42: 2.24 | B42: =Moveis_Equipamentos!B37 -> 029028-IOPES | C42: =Moveis_Equipamentos!C37 -> Cilindro de Gás de Cozinha 45 kg | D42: =Moveis_Equipamentos!D37 -> un x mês | E42: =Moveis_Equipamentos!E37 -> 30 | F42: =Moveis_Equipamentos!F37 -> 19.111 | G42: =Moveis_Equipamentos!G37 -> 573.33 | H42: 0 | I42: 84
A43: 2.25 | B43: =Moveis_Equipamentos!B38 -> 4226-SINAPI/PE | C43: =Moveis_Equipamentos!C38 -> Gás de cozinha-GLP (kg) | D43: =Moveis_Equipamentos!D38 -> un x mês | E43: =Moveis_Equipamentos!E38 -> 1350 | F43: =Moveis_Equipamentos!F38 -> 7.97 | G43: =Moveis_Equipamentos!G38 -> 10759.5 | H43: 0.0004 | I43: 3780
A44: 2.26 | B44: =Moveis_Equipamentos!B39 -> F020000716-EMBASA/BA | C44: =Moveis_Equipamentos!C39 -> Geladeira 280 litros | D44: =Moveis_Equipamentos!D39 -> un x mês | E44: =Moveis_Equipamentos!E39 -> 12 | F44: =Moveis_Equipamentos!F39 -> 26.311 | G44: =Moveis_Equipamentos!G39 -> 315.73 | H44: 0 | I44: 36
A45: 2.27 | B45: =Moveis_Equipamentos!B40 -> COT_MICROOND | C45: =Moveis_Equipamentos!C40 -> Forno Microondas 20L | D45: =Moveis_Equipamentos!D40 -> un x mês | E45: =Moveis_Equipamentos!E40 -> 12 | F45: =Moveis_Equipamentos!F40 -> 15.199 | G45: =Moveis_Equipamentos!G40 -> 182.39 | H45: 0 | I45: 36
A46: 2.28 | B46: =Moveis_Equipamentos!B41 -> COT_FAQUEI | C46: =Moveis_Equipamentos!C41 -> Faqueiro com 24 peças | D46: =Moveis_Equipamentos!D41 -> un x mês | E46: =Moveis_Equipamentos!E41 -> 204 | F46: =Moveis_Equipamentos!F41 -> 1.43 | G46: =Moveis_Equipamentos!G41 -> 291.72 | H46: 0 | I46: 780
A47: 2.29 | B47: =Moveis_Equipamentos!B42 -> COT_PRATO | C47: =Moveis_Equipamentos!C42 -> Pratos rasos redondo em cerâmica | D47: =Moveis_Equipamentos!D42 -> un x mês | E47: =Moveis_Equipamentos!E42 -> 468 | F47: =Moveis_Equipamentos!F42 -> 0.3866666667 | G47: =Moveis_Equipamentos!G42 -> 180.96 | H47: 0 | I47: 1584
A48: 2.30 | B48: =Moveis_Equipamentos!B43 -> COT_COPO | C48: =Moveis_Equipamentos!C43 -> Conjunto copos em vidro 350ml com 8 unidades | D48: =Moveis_Equipamentos!D43 -> un x mês | E48: =Moveis_Equipamentos!E43 -> 24 | F48: =Moveis_Equipamentos!F43 -> 0.943 | G48: =Moveis_Equipamentos!G43 -> 22.63 | H48: 0 | I48: 72
A49: 2.31 | B49: =Moveis_Equipamentos!B44 -> COT_TELEVISOR | C49: =Moveis_Equipamentos!C44 -> Smart Tv LED 32" | D49: =Moveis_Equipamentos!D44 -> un x mês | E49: =Moveis_Equipamentos!E44 -> 42 | F49: =Moveis_Equipamentos!F44 -> 42.55733333 | G49: =Moveis_Equipamentos!G44 -> 1787.41 | H49: 0.0001 | I49: 108
A50: 2.32 | B50: =Moveis_Equipamentos!B45 -> AP_JANTAR | C50: =Moveis_Equipamentos!C45 -> Aparelho de jantar para 06 pessoas | D50: =Moveis_Equipamentos!D45 -> un x mês | E50: =Moveis_Equipamentos!E45 -> 78 | F50: =Moveis_Equipamentos!F45 -> 10.26966667 | G50: =Moveis_Equipamentos!G45 -> 801.03 | H50: 0 | I50: 264
A51: 2.33 | B51: =Moveis_Equipamentos!B46 -> 11645-ORSE/SE | C51: =Moveis_Equipamentos!C46 -> Armário para vestiário, em aço, com 12 portas, com cadeado | D51: =Moveis_Equipamentos!D46 -> un x mês | E51: =Moveis_Equipamentos!E46 -> 12 | F51: =Moveis_Equipamentos!F46 -> 66.98133333 | G51: =Moveis_Equipamentos!G46 -> 803.78 | H51: 0 | I51: 36
A52: 2.34 | B52: =Moveis_Equipamentos!B47 -> COT_CHAP | C52: =Moveis_Equipamentos!C47 -> Chapa gás 65 cm para grelhar | D52: =Moveis_Equipamentos!D47 -> un x mês | E52: =Moveis_Equipamentos!E47 -> 12 | F52: =Moveis_Equipamentos!F47 -> 28.33466667 | G52: =Moveis_Equipamentos!G47 -> 340.02 | H52: 0 | I52: 36
A53: 2.35 | B53: =Moveis_Equipamentos!B48 -> 08600-ORSE/SE | C53: =Moveis_Equipamentos!C48 -> Coifa | D53: =Moveis_Equipamentos!D48 -> un x mês | E53: =Moveis_Equipamentos!E48 -> 12 | F53: =Moveis_Equipamentos!F48 -> 63.27233333 | G53: =Moveis_Equipamentos!G48 -> 759.27 | H53: 0 | I53: 36
A54: 2.36 | B54: =Moveis_Equipamentos!B49 -> COT_UTENS | C54: =Moveis_Equipamentos!C49 -> Conjunto de utensílios gadgets inox para cozinha | D54: =Moveis_Equipamentos!D49 -> un x mês | E54: =Moveis_Equipamentos!E49 -> 12 | F54: =Moveis_Equipamentos!F49 -> 1.890666667 | G54: =Moveis_Equipamentos!G49 -> 22.69 | H54: 0 | I54: 36
A55: 2.37 | B55: =Moveis_Equipamentos!B50 -> COT_FOGAO | C55: =Moveis_Equipamentos!C50 -> Fogão industrial 6 bocas 30x30 baixa pressão perfil 5 | D55: =Moveis_Equipamentos!D50 -> un x mês | E55: =Moveis_Equipamentos!E50 -> 12 | F55: =Moveis_Equipamentos!F50 -> 40.11533333 | G55: =Moveis_Equipamentos!G50 -> 481.38 | H55: 0 | I55: 36
A56: 2.38 | B56: =Moveis_Equipamentos!B51 -> COT_FORNO | C56: =Moveis_Equipamentos!C51 -> Forno elétrico 46L 1500W | D56: =Moveis_Equipamentos!D51 -> un x mês | E56: =Moveis_Equipamentos!E51 -> 12 | F56: =Moveis_Equipamentos!F51 -> 17.97466667 | G56: =Moveis_Equipamentos!G51 -> 215.7 | H56: 0 | I56: 36
A57: 2.39 | B57: =Moveis_Equipamentos!B52 -> F020000719-EMBASA/BA | C57: =Moveis_Equipamentos!C52 -> Freezer 246 l | D57: =Moveis_Equipamentos!D52 -> un x mês | E57: =Moveis_Equipamentos!E52 -> 12 | F57: =Moveis_Equipamentos!F52 -> 39.46633333 | G57: =Moveis_Equipamentos!G52 -> 473.6 | H57: 0 | I57: 36
A58: 2.40 | B58: =Moveis_Equipamentos!B53 -> 10232-ORSE/SE | C58: =Moveis_Equipamentos!C53 -> Geladeira industrial 300 litros | D58: =Moveis_Equipamentos!D53 -> un x mês | E58: =Moveis_Equipamentos!E53 -> 12 | F58: =Moveis_Equipamentos!F53 -> 55.95766667 | G58: =Moveis_Equipamentos!G53 -> 671.49 | H58: 0 | I58: 36
A59: 2.41 | B59: =Moveis_Equipamentos!B54 -> COT_PANEL | C59: =Moveis_Equipamentos!C54 -> Conjunto de panelas antiaderente com 7 peças | D59: =Moveis_Equipamentos!D54 -> un x mês | E59: =Moveis_Equipamentos!E54 -> 12 | F59: =Moveis_Equipamentos!F54 -> 9.666333333 | G59: =Moveis_Equipamentos!G54 -> 116 | H59: 0 | I59: 36
A60: 2.42 | B60: =Moveis_Equipamentos!B55 -> COT_LIQUID | C60: =Moveis_Equipamentos!C55 -> Liquidificadores industriais alta rotação 2L | D60: =Moveis_Equipamentos!D55 -> un x mês | E60: =Moveis_Equipamentos!E55 -> 12 | F60: =Moveis_Equipamentos!F55 -> 14.06066667 | G60: =Moveis_Equipamentos!G55 -> 168.73 | H60: 0 | I60: 36
A61: 2.43 | B61: =Moveis_Equipamentos!B56 -> COT_MAQ_LAVA_LOUCA | C61: =Moveis_Equipamentos!C56 -> Máquina de lavar louças industrial B.30 | D61: =Moveis_Equipamentos!D56 -> un x mês | E61: =Moveis_Equipamentos!E56 -> 12 | F61: =Moveis_Equipamentos!F56 -> 485.451 | G61: =Moveis_Equipamentos!G56 -> 5825.41 | H61: 0.0002 | I61: 36
A62: 2.44 | B62: =Moveis_Equipamentos!B57 -> COT_MAQ_LAVA_ROUPA | C62: =Moveis_Equipamentos!C57 -> Máquina de Lavar roupa 11kg | D62: =Moveis_Equipamentos!D57 -> un x mês | E62: =Moveis_Equipamentos!E57 -> 12 | F62: =Moveis_Equipamentos!F57 -> 54.86666667 | G62: =Moveis_Equipamentos!G57 -> 658.4 | H62: 0 | I62: 36
A63: 2.45 | B63: =Moveis_Equipamentos!B58 -> COT_MESA_BUF | C63: =Moveis_Equipamentos!C58 -> Carrinho Buffet Térmico Self Service Inox 8 cubas | D63: =Moveis_Equipamentos!D58 -> un x mês | E63: =Moveis_Equipamentos!E58 -> 12 | F63: =Moveis_Equipamentos!F58 -> 69.38133333 | G63: =Moveis_Equipamentos!G58 -> 832.58 | H63: 0 | I63: 36
A64: 2.46 | B64: =Moveis_Equipamentos!B59 -> COT_MESA_REFEIT | C64: =Moveis_Equipamentos!C59 -> Mesa de refeitório 10 lugares com cadeiras MDF branco de 25mm | D64: =Moveis_Equipamentos!D59 -> un x mês | E64: =Moveis_Equipamentos!E59 -> 30 | F64: =Moveis_Equipamentos!F59 -> 118.811 | G64: =Moveis_Equipamentos!G59 -> 3564.33 | H64: 0.0001 | I64: 108
A65: 2.47 | B65: =Moveis_Equipamentos!B60 -> COT_REFRESQUEIRA | C65: =Moveis_Equipamentos!C60 -> Refresqueira BBS2 Inox | D65: =Moveis_Equipamentos!D60 -> un x mês | E65: =Moveis_Equipamentos!E60 -> 12 | F65: =Moveis_Equipamentos!F60 -> 82.657 | G65: =Moveis_Equipamentos!G60 -> 991.88 | H65: 0 | I65: 36
A66: 2.48 | B66: =Moveis_Equipamentos!B61 -> COT_TABUA | C66: =Moveis_Equipamentos!C61 -> Tábuas para carnes 19x35x1,6cm | D66: =Moveis_Equipamentos!D61 -> un x mês | E66: =Moveis_Equipamentos!E61 -> 12 | F66: =Moveis_Equipamentos!F61 -> 0.73 | G66: =Moveis_Equipamentos!G61 -> 8.76 | H66: 0 | I66: 36
A67: 2.49 | B67: =Moveis_Equipamentos!B62 -> COT_CAMA_BOX | C67: =Moveis_Equipamentos!C62 -> Cama box conjugada solteiro | D67: =Moveis_Equipamentos!D62 -> un x mês | E67: =Moveis_Equipamentos!E62 -> 168 | F67: =Moveis_Equipamentos!F62 -> 9.545333333 | G67: =Moveis_Equipamentos!G62 -> 1603.62 | H67: 0.0001 | I67: 528
A68: 2.50 | B68: =Moveis_Equipamentos!B63 -> COT_GUARDA_ROUPA | C68: =Moveis_Equipamentos!C63 -> Guarda-Roupa solteiro 4 Portas | D68: =Moveis_Equipamentos!D63 -> un x mês | E68: =Moveis_Equipamentos!E63 -> 12 | F68: =Moveis_Equipamentos!F63 -> 9.963666667 | G68: =Moveis_Equipamentos!G63 -> 119.56 | H68: 0 | I68: 36
A69: 2.51 | B69: =Moveis_Equipamentos!B64 -> COT_ROUPA_CAMA | C69: =Moveis_Equipamentos!C64 -> Jogo de roupa de cama solteiro 100% Algodão | D69: =Moveis_Equipamentos!D64 -> un x mês | E69: =Moveis_Equipamentos!E64 -> 336 | F69: =Moveis_Equipamentos!F64 -> 4.746666667 | G69: =Moveis_Equipamentos!G64 -> 1594.88 | H69: 0.0001 | I69: 1056
A70: 2.52 | B70: =Moveis_Equipamentos!B65 -> COT_ROUPA_BANHO | C70: =Moveis_Equipamentos!C65 -> Jogo de Roupa de banho 5 Peças | D70: =Moveis_Equipamentos!D65 -> un x mês | E70: =Moveis_Equipamentos!E65 -> 168 | F70: =Moveis_Equipamentos!F65 -> 7.253 | G70: =Moveis_Equipamentos!G65 -> 1218.5 | H70: 0 | I70: 528
A71: 2.53 | B71: =Moveis_Equipamentos!B66 -> COT_SOFA | C71: =Moveis_Equipamentos!C66 -> Conjunto de sofá 2 e 3 lugares | D71: =Moveis_Equipamentos!D66 -> un x mês | E71: =Moveis_Equipamentos!E66 -> 12 | F71: =Moveis_Equipamentos!F66 -> 30.96133333 | G71: =Moveis_Equipamentos!G66 -> 371.54 | H71: 0 | I71: 36
A74: 3. | C74: =Mao_de_Obra!C13 -> EQUIPE - MÃO DE OBRA | G74: =SUBTOTAL(9,G75:G137) -> 8861882.3 | H74: =ROUND(G74/G$7,4) -> 0.3532
A75: 3.1. | C75: SALÁRIOS FIXOS | G75: =SUBTOTAL(9,G76:G113) -> 8230842.7 | H75: 0.328
A76: 3.1.1 | B76: =Mao_de_Obra!B14 -> A1 | C76: =Mao_de_Obra!C14 -> Almoxarife | D76: =Mao_de_Obra!D14 -> homem x mês | E76: =Mao_de_Obra!E14 -> 6 | F76: =Mao_de_Obra!F14 -> 4191.83 | G76: =Mao_de_Obra!G14 -> 25150.98 | H76: 0.001 | I76: 12
A77: 3.1.2 | B77: =Mao_de_Obra!B15 -> A1 | C77: =Mao_de_Obra!C15 -> Auxiliar Administrativo | D77: =Mao_de_Obra!D15 -> homem x mês | E77: =Mao_de_Obra!E15 -> 6 | F77: =Mao_de_Obra!F15 -> 4191.83 | G77: =Mao_de_Obra!G15 -> 25150.98 | H77: 0.001 | I77: 48
A78: 3.1.3 | B78: =Mao_de_Obra!B16 -> A9 | C78: =Mao_de_Obra!C16 -> Auxiliar de serviços gerais | D78: =Mao_de_Obra!D16 -> homem x mês | E78: =Mao_de_Obra!E16 -> 36 | F78: =Mao_de_Obra!F16 -> 3231.03 | G78: =Mao_de_Obra!G16 -> 116317.08 | H78: 0.0046 | I78: 144
A79: 3.1.4 | B79: =Mao_de_Obra!B17 -> T3 | C79: =Mao_de_Obra!C17 -> Auxiliar de Topografia | D79: =Mao_de_Obra!D17 -> homem x mês | E79: =Mao_de_Obra!E17 -> 12 | F79: =Mao_de_Obra!F17 -> 4673.62 | G79: =Mao_de_Obra!G17 -> 56083.44 | H79: 0.0022 | I79: 24
A80: 3.1.5 | B80: =Mao_de_Obra!B18 -> A8 | C80: =Mao_de_Obra!C18 -> Carpinteiro | D80: =Mao_de_Obra!D18 -> homem x mês | E80: =Mao_de_Obra!E18 -> 12 | F80: =Mao_de_Obra!F18 -> 3964.86 | G80: =Mao_de_Obra!G18 -> 47578.32 | H80: 0.0019 | I80: 36
A81: 3.1.6 | B81: =Mao_de_Obra!B19 -> CA | C81: =Mao_de_Obra!C19 -> Coordenador - Chefe de Escritório | D81: =Mao_de_Obra!D19 -> homem x mês | E81: =Mao_de_Obra!E19 -> 6 | F81: =Mao_de_Obra!F19 -> 15604.75 | G81: =Mao_de_Obra!G19 -> 93628.5 | H81: 0.0037 | I81: 12
A82: 3.1.7 | B82: =Mao_de_Obra!B20 -> P0 | C82: =Mao_de_Obra!C20 -> Coordenador - Engenheiro Sênior (Civil / Eletricista / Mecânico) | D82: =Mao_de_Obra!D20 -> homem x mês | E82: =Mao_de_Obra!E20 -> 6 | F82: =Mao_de_Obra!F20 -> 30381.93 | G82: =Mao_de_Obra!G20 -> 182291.58 | H82: 0.0073 | I82: 12
A83: 3.1.8 | B83: =Mao_de_Obra!B21 -> P1 | C83: =Mao_de_Obra!C21 -> Coordenador Manutenção - Engenheiro Pleno (Civil / Eletricista / Mecânico) | D83: =Mao_de_Obra!D21 -> homem x mês | E83: =Mao_de_Obra!E21 -> 6 | F83: =Mao_de_Obra!F21 -> 22362.89 | G83: =Mao_de_Obra!G21 -> 134177.34 | H83: 0.0053 | I83: 12
A84: 3.1.9 | B84: =Mao_de_Obra!B22 -> P1 | C84: =Mao_de_Obra!C22 -> Coordenador Operação - Engenheiro Pleno (Civil / Eletricista / Mecânico) | D84: =Mao_de_Obra!D22 -> homem x mês | E84: =Mao_de_Obra!E22 -> 6 | F84: =Mao_de_Obra!F22 -> 22362.89 | G84: =Mao_de_Obra!G22 -> 134177.34 | H84: 0.0053 | I84: 12
A85: 3.1.10 | B85: =Mao_de_Obra!B23 -> A5 | C85: =Mao_de_Obra!C23 -> Eletricista | D85: =Mao_de_Obra!D23 -> homem x mês | E85: =Mao_de_Obra!E23 -> 12 | F85: =Mao_de_Obra!F23 -> 4038.06 | G85: =Mao_de_Obra!G23 -> 48456.72 | H85: 0.0019 | I85: 36
A86: 3.1.11 | B86: =Mao_de_Obra!B24 -> A5 | C86: =Mao_de_Obra!C24 -> Eletricista (inclusive adicional de periculosidade) | D86: =Mao_de_Obra!D24 -> homem x mês | E86: =Mao_de_Obra!E24 -> 18 | F86: =Mao_de_Obra!F24 -> 5249.48 | G86: =Mao_de_Obra!G24 -> 94490.64 | H86: 0.0038 | I86: 168
A87: 3.1.12 | B87: =Mao_de_Obra!B25 -> P1 | C87: =Mao_de_Obra!C25 -> Engenheiro de Segurança e Medicina do Trabalho (inclusive adicional de periculosidade) | D87: =Mao_de_Obra!D25 -> homem x mês | E87: =Mao_de_Obra!E25 -> 6 | F87: =Mao_de_Obra!F25 -> 29071.76 | G87: =Mao_de_Obra!G25 -> 174430.56 | H87: 0.007 | I87: 12
A88: 3.1.13 | B88: =Mao_de_Obra!B26 -> P2 | C88: =Mao_de_Obra!C26 -> Engenheiro Junior | D88: =Mao_de_Obra!D26 -> homem x mês | E88: =Mao_de_Obra!E26 -> 24 | F88: =Mao_de_Obra!F26 -> 18890.87 | G88: =Mao_de_Obra!G26 -> 453380.88 | H88: 0.0181 | I88: 72
A89: 3.1.14 | B89: =Mao_de_Obra!B27 -> P1 | C89: =Mao_de_Obra!C27 -> Engenheiro Pleno | D89: =Mao_de_Obra!D27 -> homem x mês | E89: =Mao_de_Obra!E27 -> 36 | F89: =Mao_de_Obra!F27 -> 22362.89 | G89: =Mao_de_Obra!G27 -> 805064.04 | H89: 0.0321 | I89: 144
A90: 3.1.15 | B90: =Mao_de_Obra!B28 -> A7 | C90: =Mao_de_Obra!C28 -> Ferreiro | D90: =Mao_de_Obra!D28 -> homem x mês | E90: =Mao_de_Obra!E28 -> 6 | F90: =Mao_de_Obra!F28 -> 3986.62 | G90: =Mao_de_Obra!G28 -> 23919.72 | H90: 0.001 | I90: 36
A91: 3.1.16 | B91: =Mao_de_Obra!B29 -> P1 | C91: =Mao_de_Obra!C29 -> Geólogo (Geotecnia) | D91: =Mao_de_Obra!D29 -> homem x mês | E91: =Mao_de_Obra!E29 -> 6 | F91: =Mao_de_Obra!F29 -> 22362.89 | G91: =Mao_de_Obra!G29 -> 134177.34 | H91: 0.0053 | I91: 12
A92: 3.1.17 | B92: =Mao_de_Obra!B30 -> P2 | C92: =Mao_de_Obra!C30 -> Médico do Trabalho | D92: =Mao_de_Obra!D30 -> homem x mês | E92: =Mao_de_Obra!E30 -> 6 | F92: =Mao_de_Obra!F30 -> 18890.87 | G92: =Mao_de_Obra!G30 -> 113345.22 | H92: 0.0045 | I92: 12
A93: 3.1.18 | B93: =Mao_de_Obra!B31 -> A3 | C93: =Mao_de_Obra!C31 -> Motorista | D93: =Mao_de_Obra!D31 -> homem x mês | E93: =Mao_de_Obra!E31 -> 6 | F93: =Mao_de_Obra!F31 -> 5309.43 | G93: =Mao_de_Obra!G31 -> 31856.58 | H93: 0.0013 | I93: 12
A94: 3.1.19 | B94: =Mao_de_Obra!B32 -> A6 | C94: =Mao_de_Obra!C32 -> Pedreiro | D94: =Mao_de_Obra!D32 -> homem x mês | E94: =Mao_de_Obra!E32 -> 24 | F94: =Mao_de_Obra!F32 -> 4004.23 | G94: =Mao_de_Obra!G32 -> 96101.52 | H94: 0.0038 | I94: 84
A95: 3.1.20 | B95: =Mao_de_Obra!B33 -> A11 | C95: =Mao_de_Obra!C33 -> Servente | D95: =Mao_de_Obra!D33 -> homem x mês | E95: =Mao_de_Obra!E33 -> 360 | F95: =Mao_de_Obra!F33 -> 3244.27 | G95: =Mao_de_Obra!G33 -> 1167937.2 | H95: 0.0465 | I95: 1488
A96: 3.1.21 | B96: =Mao_de_Obra!B34 -> T2 | C96: =Mao_de_Obra!C34 -> Técnico Automação - Especialista em SDSC (inclusive adicional de periculosidade) | D96: =Mao_de_Obra!D34 -> homem x mês | E96: =Mao_de_Obra!E34 -> 6 | F96: =Mao_de_Obra!F34 -> 8560.93 | G96: =Mao_de_Obra!G34 -> 51365.58 | H96: 0.002 | I96: 12
A97: 3.1.22 | B97: =Mao_de_Obra!B35 -> T3 | C97: =Mao_de_Obra!C35 -> Técnico Auxiliar | D97: =Mao_de_Obra!D35 -> homem x mês | E97: =Mao_de_Obra!E35 -> 36 | F97: =Mao_de_Obra!F35 -> 4673.62 | G97: =Mao_de_Obra!G35 -> 168250.32 | H97: 0.0067 | I97: 144
A98: 3.1.23 | B98: =Mao_de_Obra!B36 -> T3 | C98: =Mao_de_Obra!C36 -> Técnico Auxiliar (inclusive adicional de periculosidade) | D98: =Mao_de_Obra!D36 -> homem x mês | E98: =Mao_de_Obra!E36 -> 18 | F98: =Mao_de_Obra!F36 -> 6075.71 | G98: =Mao_de_Obra!G36 -> 109362.78 | H98: 0.0044
A99: 3.1.24 | B99: =Mao_de_Obra!B37 -> T2 | C99: =Mao_de_Obra!C37 -> Técnico de Segurança e Medicina do Trabalho (inclusive adicional de periculosidade) | D99: =Mao_de_Obra!D37 -> homem x mês | E99: =Mao_de_Obra!E37 -> 6 | F99: =Mao_de_Obra!F37 -> 8560.93 | G99: =Mao_de_Obra!G37 -> 51365.58 | H99: 0.002 | I99: 24
A100: 3.1.25 | B100: =Mao_de_Obra!B38 -> T2 | C100: =Mao_de_Obra!C38 -> Tecnico Edificações | D100: =Mao_de_Obra!D38 -> homem x mês | E100: =Mao_de_Obra!E38 -> 12 | F100: =Mao_de_Obra!F38 -> 6585.33 | G100: =Mao_de_Obra!G38 -> 79023.96 | H100: 0.0031 | I100: 36
A101: 3.1.26 | B101: =Mao_de_Obra!B39 -> T2 | C101: =Mao_de_Obra!C39 -> Técnico - Cadista | D101: =Mao_de_Obra!D39 -> homem x mês | E101: =Mao_de_Obra!E39 -> 6 | F101: =Mao_de_Obra!F39 -> 6585.33 | G101: =Mao_de_Obra!G39 -> 39511.98 | H101: 0.0016 | I101: 36
A102: 3.1.27 | B102: =Mao_de_Obra!B40 -> T2 | C102: =Mao_de_Obra!C40 -> Técnico Pleno - Eletrotécnico - Diurno (inclusive adicional de periculosidade) | D102: =Mao_de_Obra!D40 -> homem x mês | E102: =Mao_de_Obra!E40 -> 72 | F102: =Mao_de_Obra!F40 -> 8560.93 | G102: =Mao_de_Obra!G40 -> 616386.96 | H102: 0.0246 | I102: 288
A103: 3.1.28 | B103: =Mao_de_Obra!B41 -> T2 | C103: =Mao_de_Obra!C41 -> Técnico Pleno - Eletrotécnico - Noturno (inclusive adicional de periculosidade) | D103: =Mao_de_Obra!D41 -> homem x mês | E103: =Mao_de_Obra!E41 -> 72 | F103: =Mao_de_Obra!F41 -> 10476.09018 | G103: =Mao_de_Obra!G41 -> 754278.49 | H103: 0.0301 | I103: 288
A104: 3.1.29 | B104: =Mao_de_Obra!B42 -> T2 | C104: =Mao_de_Obra!C42 -> Técnico Junior - Mecânico - Diurno (inclusive adicional de periculosidade) | D104: =Mao_de_Obra!D42 -> homem x mês | E104: =Mao_de_Obra!E42 -> 72 | F104: =Mao_de_Obra!F42 -> 8560.93 | G104: =Mao_de_Obra!G42 -> 616386.96 | H104: 0.0246 | I104: 144
A105: 3.1.30 | B105: =Mao_de_Obra!B43 -> T2 | C105: =Mao_de_Obra!C43 -> Técnico Junior - Mecânico - Noturno (inclusive adicional de periculosidade) | D105: =Mao_de_Obra!D43 -> homem x mês | E105: =Mao_de_Obra!E43 -> 72 | F105: =Mao_de_Obra!F43 -> 10476.09018 | G105: =Mao_de_Obra!G43 -> 754278.49 | H105: 0.0301 | I105: 144
A106: 3.1.31 | B106: =Mao_de_Obra!B44 -> T2 | C106: =Mao_de_Obra!C44 -> Técnico Pleno | D106: =Mao_de_Obra!D44 -> homem x mês | E106: =Mao_de_Obra!E44 -> 60 | F106: =Mao_de_Obra!F44 -> 6585.33 | G106: =Mao_de_Obra!G44 -> 395119.8 | H106: 0.0157 | I106: 168
A107: 3.1.32 | B107: =Mao_de_Obra!B45 -> T2 | C107: =Mao_de_Obra!C45 -> Técnico Pleno (inclusive adicional de periculosidade) | D107: =Mao_de_Obra!D45 -> homem x mês | E107: =Mao_de_Obra!E45 -> 18 | F107: =Mao_de_Obra!F45 -> 8560.93 | G107: =Mao_de_Obra!G45 -> 154096.74 | H107: 0.0061 | I107: 60
A108: 3.1.33 | B108: =Mao_de_Obra!B46 -> T1 | C108: =Mao_de_Obra!C46 -> Técnico Pleno - Analista em Tecnologia da Informação | D108: =Mao_de_Obra!D46 -> homem x mês | E108: =Mao_de_Obra!E46 -> 6 | F108: =Mao_de_Obra!F46 -> 6585.33 | G108: =Mao_de_Obra!G46 -> 39511.98 | H108: 0.0016 | I108: 96
A109: 3.1.34 | B109: =Mao_de_Obra!B47 -> T0 | C109: =Mao_de_Obra!C47 -> Técnico - Profissional Sênior (N. Médio/Especializado) | D109: =Mao_de_Obra!D47 -> homem x mês | E109: =Mao_de_Obra!E47 -> 18 | F109: =Mao_de_Obra!F47 -> 10135.13 | G109: =Mao_de_Obra!G47 -> 182432.34 | H109: 0.0073 | I109: 12
A110: 3.1.35 | B110: =Mao_de_Obra!B48 -> T2 | C110: =Mao_de_Obra!C48 -> Técnico Telecomunicações/Eletrônica (inclusive adicional de periculosidade) | D110: =Mao_de_Obra!D48 -> homem x mês | E110: =Mao_de_Obra!E48 -> 6 | F110: =Mao_de_Obra!F48 -> 8560.93 | G110: =Mao_de_Obra!G48 -> 51365.58 | H110: 0.002 | I110: 12
A111: 3.1.36 | B111: =Mao_de_Obra!B49 -> TS | C111: =Mao_de_Obra!C49 -> Topógrafo | D111: =Mao_de_Obra!D49 -> homem x mês | E111: =Mao_de_Obra!E49 -> 6 | F111: =Mao_de_Obra!F49 -> 7178.1 | G111: =Mao_de_Obra!G49 -> 43068.6 | H111: 0.0017 | I111: 72
A112: 3.1.37 | B112: =Mao_de_Obra!B50 -> A10 | C112: =Mao_de_Obra!C50 -> Vigia diurno | D112: =Mao_de_Obra!D50 -> homem x mês | E112: =Mao_de_Obra!E50 -> 24 | F112: =Mao_de_Obra!F50 -> 3222.21 | G112: =Mao_de_Obra!G50 -> 77333.04 | H112: 0.0031 | I112: 72
A113: 3.1.38 | B113: =Mao_de_Obra!B51 -> A10 | C113: =Mao_de_Obra!C51 -> Vigia noturno | D113: =Mao_de_Obra!D51 -> homem x mês | E113: =Mao_de_Obra!E51 -> 24 | F113: =Mao_de_Obra!F51 -> 3749.480727 | G113: =Mao_de_Obra!G51 -> 89987.54 | H113: 0.0036
A115: 3.2. | C115: VALORES ADICIONAIS | G115: =SUBTOTAL(9,G116:G137) -> 631039.6 | H115: =ROUND(G115/G$7,4) -> 0.0251
A116: 3.2.1. | C116: ADICIONAL DE PERICULOSIDADE PARA OS ENGENHEIROS E COORDENADORES | G116: =SUBTOTAL(9,G117:G121) -> 530012.65 | H116: 0.0211
A117: 3.2.1.1 | B117: =Mao_de_Obra_VALORES_ADICIONAIS!C15 -> P1 | C117: =Mao_de_Obra_VALORES_ADICIONAIS!B15 -> Engenheiro Pleno | D117: homem x mês | E117: =Mao_de_Obra_VALORES_ADICIONAIS!G15 -> 42 | F117: =Mao_de_Obra_VALORES_ADICIONAIS!N15 -> 6708.867 | G117: =Mao_de_Obra_VALORES_ADICIONAIS!S15 -> 281772.41 | H117: 0.0112 | I117: 12
A118: 3.2.1.2 | B118: =Mao_de_Obra_VALORES_ADICIONAIS!C16 -> P2 | C118: =Mao_de_Obra_VALORES_ADICIONAIS!B16 -> Engenheiro Júnior | D118: homem x mês | E118: =Mao_de_Obra_VALORES_ADICIONAIS!G16 -> 18 | F118: =Mao_de_Obra_VALORES_ADICIONAIS!N16 -> 5667.261 | G118: =Mao_de_Obra_VALORES_ADICIONAIS!S16 -> 102010.7 | H118: 0.0041 | I118: 12
A119: 3.2.1.3 | B119: =Mao_de_Obra_VALORES_ADICIONAIS!C17 -> T0 | C119: =Mao_de_Obra_VALORES_ADICIONAIS!B17 -> Técnico Sênior | D119: homem x mês | E119: =Mao_de_Obra_VALORES_ADICIONAIS!G17 -> 12 | F119: =Mao_de_Obra_VALORES_ADICIONAIS!N17 -> 3040.539 | G119: =Mao_de_Obra_VALORES_ADICIONAIS!S17 -> 36486.47 | H119: 0.0015 | I119: 12
A120: 3.2.1.4 | B120: =Mao_de_Obra_VALORES_ADICIONAIS!C18 -> T2 | C120: =Mao_de_Obra_VALORES_ADICIONAIS!B18 -> Técnico Pleno | D120: homem x mês | E120: =Mao_de_Obra_VALORES_ADICIONAIS!G18 -> 30 | F120: =Mao_de_Obra_VALORES_ADICIONAIS!N18 -> 1975.599 | G120: =Mao_de_Obra_VALORES_ADICIONAIS!S18 -> 59267.97 | H120: 0.0024 | I120: 12
A121: 3.2.1.5 | B121: =Mao_de_Obra_VALORES_ADICIONAIS!C19 -> T3 | C121: =Mao_de_Obra_VALORES_ADICIONAIS!B19 -> Técnico Auxiliar | D121: homem x mês | E121: =Mao_de_Obra_VALORES_ADICIONAIS!G19 -> 36 | F121: =Mao_de_Obra_VALORES_ADICIONAIS!N19 -> 1402.086 | G121: =Mao_de_Obra_VALORES_ADICIONAIS!S19 -> 50475.1 | H121: 0.002 | I121: 12
A122: 3.2.2. | C122: MÃO DE OBRA - HORA EXTRA 50% | G122: =SUBTOTAL(9,G123:G129) -> 48356.77 | H122: 0.0019
A123: 3.2.2.1 | B123: =Mao_de_Obra_VALORES_ADICIONAIS!C21 -> P1 | C123: =Mao_de_Obra_VALORES_ADICIONAIS!B21 -> Engenheiro Pleno - Hora Extra 50% - C/ Periculosidade | D123: Homem x Hora | E123: =Mao_de_Obra_VALORES_ADICIONAIS!G21 -> 192 | F123: =Mao_de_Obra_VALORES_ADICIONAIS!N21 -> 82.59021875 | G123: =Mao_de_Obra_VALORES_ADICIONAIS!S21 -> 15857.32 | H123: 0.0006 | I123: 960 | J123: =F123*E123 -> 15857.322
A124: 3.2.2.2 | B124: =Mao_de_Obra_VALORES_ADICIONAIS!C22 -> T2 | C124: =Mao_de_Obra_VALORES_ADICIONAIS!B22 -> Técnico Pleno - Hora Extra 50% - C/ Periculosidade | D124: Homem x Hora | E124: =Mao_de_Obra_VALORES_ADICIONAIS!G22 -> 192 | F124: =Mao_de_Obra_VALORES_ADICIONAIS!N22 -> 24.32082102 | G124: =Mao_de_Obra_VALORES_ADICIONAIS!S22 -> 4669.6 | H124: 0.0002 | I124: 4719.96 | J124: =F124*E124 -> 4669.597636
A125: 3.2.2.3 | B125: =Mao_de_Obra_VALORES_ADICIONAIS!C23 -> T2 | C125: =Mao_de_Obra_VALORES_ADICIONAIS!B23 -> Técnico Júnior- Hora Extra 50% | D125: Homem x Hora | E125: =Mao_de_Obra_VALORES_ADICIONAIS!G23 -> 192 | F125: =Mao_de_Obra_VALORES_ADICIONAIS!N23 -> 18.70832386 | G125: =Mao_de_Obra_VALORES_ADICIONAIS!S23 -> 3592 | H125: 0.0001 | I125: 144 | J125: 3591.998182
A126: 3.2.2.4 | B126: =Mao_de_Obra_VALORES_ADICIONAIS!C24 -> T2 | C126: =Mao_de_Obra_VALORES_ADICIONAIS!B24 -> Técnico Júnior- Hora Extra 50% - C/ Periculosidade | D126: Homem x Hora | E126: =Mao_de_Obra_VALORES_ADICIONAIS!G24 -> 192 | F126: =Mao_de_Obra_VALORES_ADICIONAIS!N24 -> 24.32082102 | G126: =Mao_de_Obra_VALORES_ADICIONAIS!S24 -> 4669.6 | H126: 0.0002 | I126: 144 | J126: 4669.597636
A127: 3.2.2.5 | B127: =Mao_de_Obra_VALORES_ADICIONAIS!C25 -> T3 | C127: =Mao_de_Obra_VALORES_ADICIONAIS!B25 -> Técnico Auxiliar - Hora Extra 50% - C/ Periculosidade | D127: Homem x Hora | E127: =Mao_de_Obra_VALORES_ADICIONAIS!G25 -> 192 | F127: =Mao_de_Obra_VALORES_ADICIONAIS!N25 -> 17.26052841 | G127: =Mao_de_Obra_VALORES_ADICIONAIS!S25 -> 3314.02 | H127: 0.0001 | I127: 3888 | J127: 3314.021455
A128: 3.2.2.6 | B128: =Mao_de_Obra_VALORES_ADICIONAIS!C26 -> T3 | C128: =Mao_de_Obra_VALORES_ADICIONAIS!B26 -> Auxiliar - Hora Extra 50% - C/ Periculosidade | D128: Homem x Hora | E128: =Mao_de_Obra_VALORES_ADICIONAIS!G26 -> 192 | F128: =Mao_de_Obra_VALORES_ADICIONAIS!N26 -> 17.26052841 | G128: =Mao_de_Obra_VALORES_ADICIONAIS!S26 -> 3314.02 | H128: 0.0001 | I128: 336 | J128: 3314.021455
A129: 3.2.2.7 | B129: =Mao_de_Obra_VALORES_ADICIONAIS!C27 -> A11 | C129: =Mao_de_Obra_VALORES_ADICIONAIS!B27 -> Servente - Hora Extra 50% - C/ Periculosidade | D129: Homem x Hora | E129: =Mao_de_Obra_VALORES_ADICIONAIS!G27 -> 1080 | F129: =Mao_de_Obra_VALORES_ADICIONAIS!N27 -> 11.98167898 | G129: =Mao_de_Obra_VALORES_ADICIONAIS!S27 -> 12940.21 | H129: 0.0005 | I129: 7560 | J129: 12940.2133
A130: 3.2.3. | C130: MÃO DE OBRA - HORA EXTRA 100% | G130: =SUBTOTAL(9,G131:G137) -> 52670.18 | H130: 0.0021
A131: 3.2.3.1 | B131: =Mao_de_Obra_VALORES_ADICIONAIS!C29 -> P1 | C131: =Mao_de_Obra_VALORES_ADICIONAIS!B29 -> Engenheiro Pleno - Hora Extra 100% - C/ Periculosidade | D131: Homem x Hora | E131: =Mao_de_Obra_VALORES_ADICIONAIS!G29 -> 96 | F131: =Mao_de_Obra_VALORES_ADICIONAIS!N29 -> 165.1804375 | G131: =Mao_de_Obra_VALORES_ADICIONAIS!S29 -> 15857.32 | H131: 0.0006 | I131: 384
A132: 3.2.3.2 | B132: =Mao_de_Obra_VALORES_ADICIONAIS!C30 -> T2 | C132: =Mao_de_Obra_VALORES_ADICIONAIS!B30 -> Técnico Pleno - Hora Extra 100% - C/ Periculosidade | D132: Homem x Hora | E132: =Mao_de_Obra_VALORES_ADICIONAIS!G30 -> 96 | F132: =Mao_de_Obra_VALORES_ADICIONAIS!N30 -> 48.64164205 | G132: =Mao_de_Obra_VALORES_ADICIONAIS!S30 -> 4669.6 | H132: 0.0002 | I132: 1872
A133: 3.2.3.3 | B133: =Mao_de_Obra_VALORES_ADICIONAIS!C31 -> T2 | C133: =Mao_de_Obra_VALORES_ADICIONAIS!B31 -> Técnico Júnior- Hora Extra 100% | D133: Homem x Hora | E133: =Mao_de_Obra_VALORES_ADICIONAIS!G31 -> 96 | F133: =Mao_de_Obra_VALORES_ADICIONAIS!N31 -> 37.41664773 | G133: =Mao_de_Obra_VALORES_ADICIONAIS!S31 -> 3592 | H133: 0.0001 | I133: 144
A134: 3.2.3.4 | B134: =Mao_de_Obra_VALORES_ADICIONAIS!C32 -> T2 | C134: =Mao_de_Obra_VALORES_ADICIONAIS!B32 -> Técnico Júnior- Hora Extra 100% - C/ Periculosidade | D134: Homem x Hora | E134: =Mao_de_Obra_VALORES_ADICIONAIS!G32 -> 96 | F134: =Mao_de_Obra_VALORES_ADICIONAIS!N32 -> 48.64164205 | G134: =Mao_de_Obra_VALORES_ADICIONAIS!S32 -> 4669.6 | H134: 0.0002 | I134: 144
A135: 3.2.3.5 | B135: =Mao_de_Obra_VALORES_ADICIONAIS!C33 -> T3 | C135: =Mao_de_Obra_VALORES_ADICIONAIS!B33 -> Técnico Auxiliar - Hora Extra 100% - C/ Periculosidade | D135: Homem x Hora | E135: =Mao_de_Obra_VALORES_ADICIONAIS!G33 -> 96 | F135: =Mao_de_Obra_VALORES_ADICIONAIS!N33 -> 34.52105682 | G135: =Mao_de_Obra_VALORES_ADICIONAIS!S33 -> 3314.02 | H135: 0.0001 | I135: 1248
A136: 3.2.3.6 | B136: =Mao_de_Obra_VALORES_ADICIONAIS!C34 -> T3 | C136: =Mao_de_Obra_VALORES_ADICIONAIS!B34 -> Auxiliar - Hora Extra 100% - C/ Periculosidade | D136: Homem x Hora | E136: =Mao_de_Obra_VALORES_ADICIONAIS!G34 -> 96 | F136: =Mao_de_Obra_VALORES_ADICIONAIS!N34 -> 34.52105682 | G136: =Mao_de_Obra_VALORES_ADICIONAIS!S34 -> 3314.02 | H136: 0.0001 | I136: 144
A137: 3.2.3.7 | B137: =Mao_de_Obra_VALORES_ADICIONAIS!C35 -> A11 | C137: =Mao_de_Obra_VALORES_ADICIONAIS!B35 -> Servente - Hora Extra 100% - C/ Periculosidade | D137: Homem x Hora | E137: =Mao_de_Obra_VALORES_ADICIONAIS!G35 -> 720 | F137: =Mao_de_Obra_VALORES_ADICIONAIS!N35 -> 23.96335795 | G137: =Mao_de_Obra_VALORES_ADICIONAIS!S35 -> 17253.62 | H137: 0.0007 | I137: 3024
A139: 4. | C139: =Viagens_Diárias!C13 -> VIAGENS / DIÁRIAS | G139: =SUBTOTAL(9,G140:G146) -> 32217.36 | H139: =ROUND(G139/G$7,4) -> 0.0013
A140: 4.1. | C140: =Viagens_Diárias!C15 -> DESPESAS COM VIAGENS COMERCIAIS | G140: =SUBTOTAL(9,G141:G142) -> 13239.36 | H140: 0.0005
A141: 4.1.1 | C141: =Viagens_Diárias!C16 -> Viagem por via aerea | D141: =Viagens_Diárias!D16 -> un | E141: =Viagens_Diárias!E16 -> 6 | F141: =Viagens_Diárias!F16 -> 1148.97 | G141: =ROUND(E141*F141,2) -> 6893.82 | H141: 0.0003 | I141: 48
A142: 4.1.2 | C142: =Viagens_Diárias!C17 -> Viagem por via terrestre (comercial) | D142: =Viagens_Diárias!D17 -> un | E142: =Viagens_Diárias!E17 -> 18 | F142: =Viagens_Diárias!F17 -> 352.53 | G142: 6345.54 | H142: 0.0003 | I142: 144
A143: 4.2. | C143: =Viagens_Diárias!C20 -> DESPESAS COM DIÁRIAS | G143: =SUBTOTAL(9,G144:G145) -> 18978 | H143: 0.0008
A144: 4.2.1 | C144: =Viagens_Diárias!C21 -> Diárias nacionais | D144: =Viagens_Diárias!D21 -> un | E144: =Viagens_Diárias!E21 -> 6 | F144: =Viagens_Diárias!F21 -> 295 | G144: 1770 | H144: 0.0001 | I144: 48
A145: 4.2.2 | C145: =Viagens_Diárias!C22 -> Diárias regionais | D145: =Viagens_Diárias!D22 -> un | E145: =Viagens_Diárias!E22 -> 72 | F145: =Viagens_Diárias!F22 -> 239 | G145: 17208 | H145: 0.0007 | I145: 144
A147: 5. | C147: =Veiculos!C12 -> VEÍCULOS AUTOMOTORES | G147: =SUBTOTAL(9,G148:G152) -> 1686680 | H147: =ROUND(G147/G$7,4) -> 0.0672
A148: 5.1 | B148: =Veiculos!B13 -> B3 | C148: =Veiculos!C13 -> TIPO HATCH 1.6 FLEX (110 CV) | D148: =Veiculos!D13 -> un x mês | E148: =Veiculos!E13 -> 90 | F148: =Veiculos!F13 -> 4471.890667 | G148: 402470.16 | H148: 0.016 | I148: 456 | J148: =E148/12 -> 7.5
A149: 5.2 | B149: =Veiculos!B14 -> B4 | C149: =Veiculos!C14 -> TIPO SEDAN 1.6 FLEX (115CV) | D149: =Veiculos!D14 -> un x mês | E149: =Veiculos!E14 -> 6 | F149: =Veiculos!F14 -> 4471.890667 | G149: 26831.34 | H149: 0.0011 | I149: 12 | J149: =E149/12 -> 0.5
A150: 5.3 | B150: =Veiculos!B15 -> B11 | C150: =Veiculos!C15 -> Veículo Tipo Pick Up Cabine Dupla 4 x 4 (163 CV) | D150: =Veiculos!D15 -> un x mês | E150: =Veiculos!E15 -> 114 | F150: =Veiculos!F15 -> 7404.485333 | G150: 844111.33 | H150: 0.0336 | I150: 324 | J150: 9.5
A151: 5.4 | B151: =Veiculos!B16 -> B8 | C151: =Veiculos!C16 -> Veículo - Tipo Ônibus - 45 assentos (218 CV) - COM MOTORISTA | D151: =Veiculos!D16 -> un x mês | E151: =Veiculos!E16 -> 18 | F151: =Veiculos!F16 -> 19830.69463 | G151: 356952.5 | H151: 0.0142 | I151: 48 | J151: 1.5
A152: 5.5 | B152: =Veiculos!B17 -> B1 | C152: =Veiculos!C17 -> NXR BROS 160 | D152: =Veiculos!D17 -> un x mês | E152: =Veiculos!E17 -> 18 | F152: =Veiculos!F17 -> 3128.592593 | G152: 56314.67 | H152: 0.0022 | I152: 36 | J152: 1.5
A154: 6. | C154: =Frentes_Moveis!C13 -> FRENTES MÓVEIS DE LIMPEZA E CONSERVAÇÃO | G154: =SUBTOTAL(9,G155:G157) -> 80012.16 | H154: =ROUND(G154/G$7,4) -> 0.0032
A155: 6.1 | B155: =Frentes_Moveis!B14 -> Banco de Preços (PREGÃO ELETRÔNICO - MUNICÍPIO DE FÁTIMA/BA, 05/2022) | C155: =Frentes_Moveis!C14 -> Tenda Piramidal 5m x 5m (para refeitório) | D155: =Frentes_Moveis!D14 -> un x mês | E155: =Frentes_Moveis!E14 -> 48 | F155: =Frentes_Moveis!F14 -> 301.97 | G155: 14494.56 | H155: =ROUND(G155/G$7,4) -> 0.0006 | I155: 216
A156: 6.2 | B156: =Frentes_Moveis!B15 -> F099722405/EMBASA | C156: =Frentes_Moveis!C15 -> Tenda Piramidal 3m x 3m | D156: =Frentes_Moveis!D15 -> un x mês | E156: =Frentes_Moveis!E15 -> 48 | F156: =Frentes_Moveis!F15 -> 150 | G156: 7200 | H156: =ROUND(G156/G$7,4) -> 0.0003 | I156: 216
A157: 6.3 | B157: =Frentes_Moveis!B16 -> 10390 - ORSE/SE | C157: =Frentes_Moveis!C16 -> Banheiro Químico, com 03 limpezas semanais | D157: =Frentes_Moveis!D16 -> un x mês | E157: =Frentes_Moveis!E16 -> 120 | F157: =Frentes_Moveis!F16 -> 485.98 | G157: 58317.6 | H157: =ROUND(G157/G$7,4) -> 0.0023 | I157: 360
A159: 7. | C159: =Materiais_Consumo!C12 -> MATERIAL DE CONSUMO - ALMOXARIFADOS | G159: =SUBTOTAL(9,G160:G324) -> 2757360.818 | H159: =ROUND(G159/G$7,4) -> 0.1099
A160: 7.1. | C160: =Materiais_Consumo!C14 -> MATERIAL DE CONSUMO - MECÂNICA | G160: =SUBTOTAL(9,G161:G212) -> 729720.95 | H160: 0.0291
A161: 7.1.1 | B161: =Materiais_Consumo!B15 -> 04791 - SINAPI | C161: =Materiais_Consumo!C15 -> Adesivo Acrílico / Cola de contato | D161: =Materiais_Consumo!D15 -> un | E161: =Materiais_Consumo!E15 -> 480 | F161: =Materiais_Consumo!F15 -> 39.85 | G161: =Materiais_Consumo!G15 -> 19128 | H161: 0.0008 | I161: 480
A162: 7.1.2 | B162: =Materiais_Consumo!B16 -> 05318 - SINAPI | C162: =Materiais_Consumo!C16 -> Água Raz - galão 5 l | D162: =Materiais_Consumo!D16 -> un | E162: =Materiais_Consumo!E16 -> 112 | F162: =Materiais_Consumo!F16 -> 114.5 | G162: =Materiais_Consumo!G16 -> 12824 | H162: 0.0005 | I162: 112
A163: 7.1.3 | B163: =Materiais_Consumo!B17 -> 000312/SBC | C163: =Materiais_Consumo!C17 -> Alcool Comum 90º GL | D163: =Materiais_Consumo!D17 -> l | E163: =Materiais_Consumo!E17 -> 1200 | F163: =Materiais_Consumo!F17 -> 8.69 | G163: =Materiais_Consumo!G17 -> 10428 | H163: 0.0004 | I163: 1200
A164: 7.1.4 | C164: =Materiais_Consumo!C18 -> Antiferrugem aerosol WD-40 - tubo de 300 ml | D164: =Materiais_Consumo!D18 -> un | E164: =Materiais_Consumo!E18 -> 289 | F164: =Materiais_Consumo!F18 -> 23.92 | G164: =Materiais_Consumo!G18 -> 6912.88 | H164: 0.0003 | I164: 289
A165: 7.1.5 | B165: =Materiais_Consumo!B19 -> Banco de preços (NºPregão:142022 / UASG:926687 - Serviço Autonomo de Agua e Esgoto de Volta Redonda SAAE VR RJ, Pregão Eletrônico, 04/2022) | C165: =Materiais_Consumo!C19 -> Antiespumante – antiespumante a base de silicone | D165: =Materiais_Consumo!D19 -> l | E165: =Materiais_Consumo!E19 -> 223 | F165: =Materiais_Consumo!F19 -> 25 | G165: =Materiais_Consumo!G19 -> 5575 | H165: 0.0002 | I165: 223
A166: 7.1.6 | B166: =Materiais_Consumo!B20 -> 43132 - SINAPI | C166: =Materiais_Consumo!C20 -> Arame recozido n.º 18 | D166: =Materiais_Consumo!D20 -> kg | E166: =Materiais_Consumo!E20 -> 2400 | F166: =Materiais_Consumo!F20 -> 27.6 | G166: =Materiais_Consumo!G20 -> 66240 | H166: 0.0026 | I166: 2400
A167: 7.1.7 | B167: =Materiais_Consumo!B21 -> 00122 - SINAPI | C167: =Materiais_Consumo!C21 -> Cola de PVC com 850 g | D167: =Materiais_Consumo!D21 -> un | E167: =Materiais_Consumo!E21 -> 144 | F167: =Materiais_Consumo!F21 -> 60.78 | G167: =Materiais_Consumo!G21 -> 8752.32 | H167: 0.0003 | I167: 144
A168: 7.1.8 | B168: =Materiais_Consumo!B22 -> Banco de preços (DEPART.DE OBRAS E SERV.PUBLICOS Prefeitura Municipal de Ubiretama/RS, Dispensa por Limite - 01/2022) | C168: =Materiais_Consumo!C22 -> Cola Ultra Gray 70g | D168: =Materiais_Consumo!D22 -> un | E168: =Materiais_Consumo!E22 -> 144 | F168: =Materiais_Consumo!F22 -> 46 | G168: =Materiais_Consumo!G22 -> 6624 | H168: 0.0003 | I168: 144
A169: 7.1.9 | B169: =Materiais_Consumo!B23 -> Banco de preços (PREFEITURA MUNICIPAL DE QUEIROZ, PREGÃO PRESENCIAL - 80/2021) | C169: =Materiais_Consumo!C23 -> Cola para junta de motores com 73g | D169: =Materiais_Consumo!D23 -> un | E169: =Materiais_Consumo!E23 -> 1200 | F169: =Materiais_Consumo!F23 -> 11.1 | G169: =Materiais_Consumo!G23 -> 13320 | H169: 0.0005 | I169: 1200
A170: 7.1.10 | B170: =Materiais_Consumo!B24 -> Banco de preços (FUNDO MUNICIPAL DE ASSISTÊNCIA SOCIAL Prefeitura Municipal de Hulha Negra/RS, Dispensa por Limite - 05/2022) | C170: =Materiais_Consumo!C24 -> Convertedor de ferrugem 500 ml | D170: =Materiais_Consumo!D24 -> un | E170: =Materiais_Consumo!E24 -> 445 | F170: =Materiais_Consumo!F24 -> 33 | G170: =Materiais_Consumo!G24 -> 14685 | H170: 0.0006 | I170: 445
A171: 7.1.11 | B171: =Materiais_Consumo!B25 -> 038200 - SINAPI | C171: =Materiais_Consumo!C25 -> Corda de bombeiro 12mm em nylon trançado (rolo de 100,00m) | D171: =Materiais_Consumo!D25 -> m | E171: =Materiais_Consumo!E25 -> 3200 | F171: =Materiais_Consumo!F25 -> 7.26 | G171: =Materiais_Consumo!G25 -> 23232 | H171: 0.0009 | I171: 3200
A172: 7.1.12 | B172: =Materiais_Consumo!B26 -> 004221 - SINAPI | C172: =Materiais_Consumo!C26 -> Diesel comum (l) | D172: =Materiais_Consumo!D26 -> l | E172: =Materiais_Consumo!E26 -> 480 | F172: =Materiais_Consumo!F26 -> 6.85 | G172: =Materiais_Consumo!G26 -> 3288 | H172: 0.0001 | I172: 4800
A173: 7.1.13 | B173: =Materiais_Consumo!B27 -> 044533 - SINAPI | C173: =Materiais_Consumo!C27 -> Disco corte abrasivo 7" x 1/8" x 7/8" | D173: =Materiais_Consumo!D27 -> un | E173: =Materiais_Consumo!E27 -> 434 | F173: =Materiais_Consumo!F27 -> 30.85 | G173: =Materiais_Consumo!G27 -> 13388.9 | H173: 0.0005 | I173: 434
A174: 7.1.14 | B174: =Materiais_Consumo!B28 -> 044531 - SINAPI | C174: =Materiais_Consumo!C28 -> Disco de corte diamantado - 7", para esmerilhadeira, segmentado, para concreto | D174: =Materiais_Consumo!D28 -> un | E174: =Materiais_Consumo!E28 -> 108 | F174: =Materiais_Consumo!F28 -> 127.83 | G174: =Materiais_Consumo!G28 -> 13805.64 | H174: 0.0006 | I174: 434
A175: 7.1.15 | B175: =Materiais_Consumo!B29 -> 044495 - SINAPI | C175: =Materiais_Consumo!C29 -> Disco de corte para estrutura metálica 300 x 3,2 x 19,05 mm | D175: =Materiais_Consumo!D29 -> un | E175: =Materiais_Consumo!E29 -> 434 | F175: =Materiais_Consumo!F29 -> 32.67 | G175: =Materiais_Consumo!G29 -> 14178.78 | H175: 0.0006 | I175: 434
A176: 7.1.16 | B176: =Materiais_Consumo!B30 -> 044533 - SINAPI | C176: =Materiais_Consumo!C30 -> Disco de desbaste para estrutura metálica de 9" x 1/4" x 7/8" ( 225 x 6,25 x 21,87 mm) | D176: =Materiais_Consumo!D30 -> un | E176: =Materiais_Consumo!E30 -> 434 | F176: =Materiais_Consumo!F30 -> 30.85 | G176: =Materiais_Consumo!G30 -> 13388.9 | H176: 0.0005 | I176: 434
A177: 7.1.17 | B177: =Materiais_Consumo!B31 -> 010997 - SINAPI | C177: =Materiais_Consumo!C31 -> Eletrodos Revestido AWS-E7018, DN 4 mm | D177: =Materiais_Consumo!D31 -> kg | E177: =Materiais_Consumo!E31 -> 320 | F177: =Materiais_Consumo!F31 -> 37.95 | G177: =Materiais_Consumo!G31 -> 12144 | H177: 0.0005 | I177: 320
A178: 7.1.18 | C178: =Materiais_Consumo!C32 -> SOLDA-ELETRODO OK 4600 AWS 6013 6,0mm 1/4" | D178: =Materiais_Consumo!D32 -> kg | E178: =Materiais_Consumo!E32 -> 320 | F178: =Materiais_Consumo!F32 -> 71.73 | G178: =Materiais_Consumo!G32 -> 22953.6 | H178: 0.0009 | I178: 320
A179: 7.1.19 | B179: =Materiais_Consumo!B33 -> 000012 - SINAPI | C179: =Materiais_Consumo!C33 -> Escova de aço para remoção da graxa envelhecida dos cabos de aço | D179: =Materiais_Consumo!D33 -> un | E179: =Materiais_Consumo!E33 -> 160 | F179: =Materiais_Consumo!F33 -> 11.88 | G179: =Materiais_Consumo!G33 -> 1900.8 | H179: 0.0001 | I179: 160
A180: 7.1.20 | B180: =Materiais_Consumo!B34 -> 000013 - SINAPI | C180: =Materiais_Consumo!C34 -> Estopa - embalagem 20 kg | D180: =Materiais_Consumo!D34 -> kg | E180: =Materiais_Consumo!E34 -> 294 | F180: =Materiais_Consumo!F34 -> 18.29 | G180: =Materiais_Consumo!G34 -> 5377.26 | H180: 0.0002 | I180: 294
A181: 7.1.21 | B181: =Materiais_Consumo!B35 -> 000404 - SINAPI | C181: =Materiais_Consumo!C35 -> Fita auto fusão 19 mm x 10 m | D181: =Materiais_Consumo!D35 -> un | E181: =Materiais_Consumo!E35 -> 194 | F181: =Materiais_Consumo!F35 -> 23.8 | G181: =Materiais_Consumo!G35 -> 4617.2 | H181: 0.0002 | I181: 194
A182: 7.1.22 | B182: =Materiais_Consumo!B36 -> 012815 - SINAPI | C182: =Materiais_Consumo!C36 -> Fita crepe adesiva 25mm x 50mm | D182: =Materiais_Consumo!D36 -> un | E182: =Materiais_Consumo!E36 -> 194 | F182: =Materiais_Consumo!F36 -> 8.86 | G182: =Materiais_Consumo!G36 -> 1718.84 | H182: 0.0001 | I182: 194
A183: 7.1.23 | B183: =Materiais_Consumo!B37 -> 020111 - SINAPI | C183: =Materiais_Consumo!C37 -> Fita isolante 19 mm x 20 m | D183: =Materiais_Consumo!D37 -> un | E183: =Materiais_Consumo!E37 -> 194 | F183: =Materiais_Consumo!F37 -> 17.5 | G183: =Materiais_Consumo!G37 -> 3395 | H183: 0.0001 | I183: 194
A184: 7.1.24 | C184: =Materiais_Consumo!C38 -> Graxa a base de lítio NGLI 2 | D184: =Materiais_Consumo!D38 -> kg | E184: =Materiais_Consumo!E38 -> 478 | F184: =Materiais_Consumo!F38 -> 48.12 | G184: =Materiais_Consumo!G38 -> 23001.36 | H184: 0.0009 | I184: 478
A185: 7.1.25 | C185: =Materiais_Consumo!C39 -> Graxa a base de lítio NGLI 3 | D185: =Materiais_Consumo!D39 -> kg | E185: =Materiais_Consumo!E39 -> 478 | F185: =Materiais_Consumo!F39 -> 91.18 | G185: =Materiais_Consumo!G39 -> 43584.04 | H185: 0.0017 | I185: 478
A186: 7.1.26 | C186: =Materiais_Consumo!C40 -> Graxa com dissulfeto de molibidênio (MoS2) - Lata 500 g | D186: =Materiais_Consumo!D40 -> un | E186: =Materiais_Consumo!E40 -> 478 | F186: =Materiais_Consumo!F40 -> 41.85 | G186: =Materiais_Consumo!G40 -> 20004.3 | H186: 0.0008 | I186: 478
A187: 7.1.27 | C187: =Materiais_Consumo!C41 -> Graxa GMA - 2 | D187: =Materiais_Consumo!D41 -> kg | E187: =Materiais_Consumo!E41 -> 478 | F187: =Materiais_Consumo!F41 -> 45.58 | G187: =Materiais_Consumo!G41 -> 21787.24 | H187: 0.0009 | I187: 478
A188: 7.1.28 | C188: =Materiais_Consumo!C42 -> Graxa de Alta Resistência a Carga, Pressão LGEP 2/1. Aplicação: Engrenagens de roda e engrenagens expostas | D188: =Materiais_Consumo!D42 -> kg | E188: =Materiais_Consumo!E42 -> 478 | F188: =Materiais_Consumo!F42 -> 115.41 | G188: =Materiais_Consumo!G42 -> 55165.98 | H188: 0.0022 | I188: 478
A189: 7.1.29 | C189: =Materiais_Consumo!C43 -> Hidróxido de Cálcio P.A. 500 g | D189: =Materiais_Consumo!D43 -> kg | E189: =Materiais_Consumo!E43 -> 600 | F189: =Materiais_Consumo!F43 -> 32.67 | G189: =Materiais_Consumo!G43 -> 19602 | H189: 0.0008 | I189: 600
A190: 7.1.30 | C190: =Materiais_Consumo!C44 -> Hipoclorito de Sódio 12% 5000 ml | D190: =Materiais_Consumo!D44 -> kg | E190: =Materiais_Consumo!E44 -> 1200 | F190: =Materiais_Consumo!F44 -> 6.75 | G190: =Materiais_Consumo!G44 -> 8100 | H190: 0.0003 | I190: 1200
A191: 7.1.31 | B191: =Materiais_Consumo!B45 -> 8216 - ORSE | C191: =Materiais_Consumo!C45 -> Lâmina de serra para metal Starret ou similar | D191: =Materiais_Consumo!D45 -> un | E191: =Materiais_Consumo!E45 -> 667 | F191: =Materiais_Consumo!F45 -> 10.5 | G191: =Materiais_Consumo!G45 -> 7003.5 | H191: 0.0003 | I191: 667
A192: 7.1.32 | C192: =Materiais_Consumo!C46 -> Lençol de borracha manta 3/16” 4,8mm | D192: =Materiais_Consumo!D46 -> m² | E192: =Materiais_Consumo!E46 -> 400 | F192: =Materiais_Consumo!F46 -> 153.52 | G192: =Materiais_Consumo!G46 -> 61408 | H192: 0.0024 | I192: 400
A193: 7.1.33 | C193: =Materiais_Consumo!C47 -> Líquido penetrante visível lavável à água (Ensaios de Líquido Penetrante) | D193: =Materiais_Consumo!D47 -> un | E193: =Materiais_Consumo!E47 -> 98 | F193: =Materiais_Consumo!F47 -> 37.36 | G193: =Materiais_Consumo!G47 -> 3661.28 | H193: 0.0001 | I193: 98
A194: 7.1.34 | B194: =Materiais_Consumo!B48 -> 003767 - SINAPI | C194: =Materiais_Consumo!C48 -> Lixa nº120 | D194: =Materiais_Consumo!D48 -> un | E194: =Materiais_Consumo!E48 -> 2400 | F194: =Materiais_Consumo!F48 -> 0.74 | G194: =Materiais_Consumo!G48 -> 1776 | H194: 0.0001 | I194: 2400
A195: 7.1.35 | C195: =Materiais_Consumo!C49 -> Lona de borracha com alma 1,0 – 4,8 mm esp. | D195: =Materiais_Consumo!D49 -> m | E195: =Materiais_Consumo!E49 -> 45 | F195: =Materiais_Consumo!F49 -> 125.37 | G195: =Materiais_Consumo!G49 -> 5641.65 | H195: 0.0002 | I195: 45
A196: 7.1.36 | B196: =Materiais_Consumo!B50 -> 003777 - SINAPI/PE | C196: =Materiais_Consumo!C50 -> Lona plástica - 4 x 100 m - 12 kg | D196: =Materiais_Consumo!D50 -> m² | E196: =Materiais_Consumo!E50 -> 3200 | F196: =Materiais_Consumo!F50 -> 1.69 | G196: =Materiais_Consumo!G50 -> 5408 | H196: 0.0002 | I196: 3200
A197: 7.1.37 | B197: =Materiais_Consumo!B51 -> 037459 - SINAPI | C197: =Materiais_Consumo!C51 -> Mangueira Cristal, Lisa PVC transparente, 3/4" x 2 mm | D197: =Materiais_Consumo!D51 -> m | E197: =Materiais_Consumo!E51 -> 1600 | F197: =Materiais_Consumo!F51 -> 7.02 | G197: =Materiais_Consumo!G51 -> 11232 | H197: 0.0004 | I197: 1600
A198: 7.1.38 | C198: =Materiais_Consumo!C52 -> Mangueira FLG-62/1 0 - 150 PSI 1/4" NPT | D198: =Materiais_Consumo!D52 -> m | E198: =Materiais_Consumo!E52 -> 800 | F198: =Materiais_Consumo!F52 -> 5.11 | G198: =Materiais_Consumo!G52 -> 4088 | H198: 0.0002 | I198: 800
A199: 7.1.39 | B199: =Materiais_Consumo!B53 -> 7696 - ORSE | C199: =Materiais_Consumo!C53 -> Massa calafetar cinza-Durepox ou similiar | D199: =Materiais_Consumo!D53 -> kg | E199: =Materiais_Consumo!E53 -> 334 | F199: =Materiais_Consumo!F53 -> 26.37 | G199: =Materiais_Consumo!G53 -> 8807.58 | H199: 0.0004 | I199: 334
A200: 7.1.40 | C200: =Materiais_Consumo!C54 -> Óleo - Translação pórtico e ponte e direção do carro - 20 l - Óleo EP 220 | D200: =Materiais_Consumo!D54 -> l | E200: =Materiais_Consumo!E54 -> 334 | F200: =Materiais_Consumo!F54 -> 44.27 | G200: =Materiais_Consumo!G54 -> 14786.18 | H200: 0.0006 | I200: 334
A201: 7.1.41 | C201: =Materiais_Consumo!C55 -> Óleo Hidràulico para os componentes não protegido dos Servomotor Hidráulico - Óleo EP 320 | D201: =Materiais_Consumo!D55 -> l | E201: =Materiais_Consumo!E55 -> 334 | F201: =Materiais_Consumo!F55 -> 42.63 | G201: =Materiais_Consumo!G55 -> 14238.42 | H201: 0.0006 | I201: 334
A202: 7.1.42 | C202: =Materiais_Consumo!C56 -> Óleo Lubrificante Redutor - Óleo SAE 90 | D202: =Materiais_Consumo!D56 -> l | E202: =Materiais_Consumo!E56 -> 334 | F202: =Materiais_Consumo!F56 -> 47.83 | G202: =Materiais_Consumo!G56 -> 15975.22 | H202: 0.0006 | I202: 334
A203: 7.1.43 | C203: =Materiais_Consumo!C57 -> Óleo lubrificante, para engrenagem., EP-5, viscosidade (CSt) ( - 40ºC) = 22 - tambor 20 l | D203: =Materiais_Consumo!D57 -> l | E203: =Materiais_Consumo!E57 -> 334 | F203: =Materiais_Consumo!F57 -> 34.38 | G203: =Materiais_Consumo!G57 -> 11482.92 | H203: 0.0005 | I203: 334
A204: 7.1.44 | C204: =Materiais_Consumo!C58 -> PAC – Policloreto de alumínio (5 l) | D204: =Materiais_Consumo!D58 -> l | E204: =Materiais_Consumo!E58 -> 967 | F204: =Materiais_Consumo!F58 -> 14.96 | G204: =Materiais_Consumo!G58 -> 14466.32 | H204: 0.0006 | I204: 967
A205: 7.1.45 | C205: =Materiais_Consumo!C59 -> Papelão grafitado 1,50 m x 1,60 m Esp 2.4 | D205: =Materiais_Consumo!D59 -> un | E205: =Materiais_Consumo!E59 -> 30 | F205: =Materiais_Consumo!F59 -> 491.4 | G205: =Materiais_Consumo!G59 -> 14742 | H205: 0.0006 | I205: 30
A206: 7.1.46 | C206: =Materiais_Consumo!C60 -> Pasta de Limpeza Uso Geral Limptek 500 gramas | D206: =Materiais_Consumo!D60 -> kg | E206: =Materiais_Consumo!E60 -> 400 | F206: =Materiais_Consumo!F60 -> 22.46 | G206: =Materiais_Consumo!G60 -> 8984 | H206: 0.0004 | I206: 400
A207: 7.1.47 | C207: =Materiais_Consumo!C61 -> Querosene para limpeza | D207: =Materiais_Consumo!D61 -> l | E207: =Materiais_Consumo!E61 -> 240 | F207: =Materiais_Consumo!F61 -> 20.03 | G207: =Materiais_Consumo!G61 -> 4807.2 | H207: 0.0002 | I207: 240
A208: 7.1.48 | C208: =Materiais_Consumo!C62 -> Revelador não aquoso D70 (Ensaios de Líquido Penetrante) | D208: =Materiais_Consumo!D62 -> un | E208: =Materiais_Consumo!E62 -> 98 | F208: =Materiais_Consumo!F62 -> 35.66 | G208: =Materiais_Consumo!G62 -> 3494.68 | H208: 0.0001 | I208: 98
A209: 7.1.49 | C209: =Materiais_Consumo!C63 -> Sílica Gel Branca - Pacote De 1kg - Grânulos De 4-8 Mm | D209: =Materiais_Consumo!D63 -> kg | E209: =Materiais_Consumo!E63 -> 98 | F209: =Materiais_Consumo!F63 -> 52.28 | G209: =Materiais_Consumo!G63 -> 5123.44 | H209: 0.0002 | I209: 98
A210: 7.1.50 | B210: =Materiais_Consumo!B64 -> 039961 - SINAPI | C210: =Materiais_Consumo!C64 -> Silicone (acético branca) - Tubo de 280g | D210: =Materiais_Consumo!D64 -> un | E210: =Materiais_Consumo!E64 -> 480 | F210: =Materiais_Consumo!F64 -> 27.5 | G210: =Materiais_Consumo!G64 -> 13200 | H210: 0.0005 | I210: 480
A211: 7.1.51 | C211: =Materiais_Consumo!C65 -> Trava Parafusos de Alta Resistência 120 com 10g | D211: =Materiais_Consumo!D65 -> un | E211: =Materiais_Consumo!E65 -> 192 | F211: =Materiais_Consumo!F65 -> 19.56 | G211: =Materiais_Consumo!G65 -> 3755.52 | H211: 0.0001 | I211: 192
... 578 more rows

Sheet Manutenção de canteiro
C1: Ministério do Desenvolvimento Regional - MDR
C2: Companhia de Desenvolvimento dos Vales do São Francisco e do Parnaíba
C3: Gerência de Operação do PISF - Centro de Controle e Operação (AD / GOI / CCO)
A5: =Equipamentos!A5 -> TERMO DE REFERÊNCIA PARA CONTRATAÇÃO DOS RECURSOS NECESSÁRIOS À OPERAÇÃO E MANUTENÇÃO DAS INFRAESTRUTURAS DO EIXO LESTE DO PISF - PROJETO DE INTEGRAÇÃO DO SÃO FRANCISCO COM AS BACIAS HIDROGRÁFICAS DO NORDESTE SETENTRIONAL
A8: ='ORCAMENTO_CONSOLIDADO (2)'!C322 -> MANUTENÇÃO DE CANTEIRO - ESCRITÓRIO
A11: ITEM | B11: CÓDIGO | C11: DESCRIÇÃO | D11: UNIDADE | E11: QUANTIDADE | F11: VALOR (R$)
F12: UNITARIO | G12: TOTAL
A13: ='ORCAMENTO_CONSOLIDADO (2)'!A159 -> 7. | C13: ='ORCAMENTO_CONSOLIDADO (2)'!C159 -> MATERIAL DE CONSUMO - ALMOXARIFADOS
A14: ='ORCAMENTO_CONSOLIDADO (2)'!A322 -> 7.4. | C14: ='ORCAMENTO_CONSOLIDADO (2)'!C322 -> MANUTENÇÃO DE CANTEIRO - ESCRITÓRIO
A16: VALOR ATUAL DO BOLETIM DE MEDIÇÃO | D16: VBM
A17: VALOR TOTAL DO SERVIÇO DE MANUTENÇÃO DE CANTEIRO | D17: VSMC
A18: VALOR TOTAL DO SERVIÇO DE MANUTENÇÃO DE CANTEIRO - ANTERIOR | D18: VSMC.ANT
A19: VALOR TOTAL DA PLANILHA | D19: VTP
A20: VALOR DO BOLETIM DE MEDIÇÃO - ANTERIOR | D20: VBM.ANT
A22: VALOR MANT. CANTEIRO = VBM*((VSMC - VSMC.ANT) / (VTP - VBM.ANT))
A26: ="TOTAL - "&C14&" - (R$):" -> TOTAL - MANUTENÇÃO DE CANTEIRO - ESCRITÓRIO - (R$): | G26: =SUBTOTAL(9,G16:G25) -> 0
A30: NOME DO INFORMANTE: | F30: QUALIFICAÇÃO:
A32: ASSINATURA: | F32: DATA:
A34: OBSERVAÇÃO:
A35: TABELAS DE REFERÊNCIA
A36: SINAPI 04/2022
A37: ORSE 03/2022
A38: SBC 07/2022
A39: EMBASA 01/2022
A40: SETOP 03/2022
A41: COMPESA 01/2022

Sheet Mao_de_Obra_VALORES_ADICIONAIS
C1: Ministério do Desenvolvimento Regional - MDR
C2: Companhia de Desenvolvimento dos Vales do São Francisco e do Parnaíba
C3: Gerência de Operação do PISF - Centro de Controle e Operação (AD / GOI / CCO)
A5: =Mao_de_Obra!A5 -> TERMO DE REFERÊNCIA PARA CONTRATAÇÃO DOS RECURSOS NECESSÁRIOS À OPERAÇÃO E MANUTENÇÃO DAS INFRAESTRUTURAS DO EIXO LESTE DO PISF - PROJETO DE INTEGRAÇÃO DO SÃO FRANCISCO COM AS BACIAS HIDROGRÁFICAS DO NORDESTE SETENTRIONAL
A8: MÃO DE OBRA - VALORES ADICIONAIS
A10: ITEM | B10: DESCRIÇÃO | C10: CLASSE | D10: Und. | E10: Prazo (Mês) | F10: Quantidade (undxmês) | H10: VALOR ADICIONAL - UNITÁRIO | O10: VALOR ADICIONAL - TOTAL
H11: VALOR BASE (Com Encargo) | I11: CÁLCULO DO VALOR ADICIONAL | O11: VALOR BASE (Com Encargo) | P11: CÁLCULO DO VALOR ADICIONAL - TOTAL (R$)
I12: Periculosidade | J12: Adicional Noturno | L12: Hora Extra 100% | M12: Hora Extra 50% | N12: VALOR DO ADICIONAL (Incluindo: encargos) | P12: Periculosidade | Q12: Adicional Noturno (c/ intrajornada) | R12: Horas Extras | S12: VALOR DO ADICIONAL - COMPLETO (Incluindo: encargos)
F13: Unitária | G13: Total | I13: 0.3 | J13: Valor da Hora Noturna | K13: Valor do Adicional Noturno (c/ intrajornada) | L13: Valor Unitário | M13: Valor Unitário | P13: =I13 -> 0.3
A14: 1. | B14: ADICIONAL DE PERICULOSIDADE PARA OS ENGENHEIROS E COORDENADORES | U14: =SUM(#REF!) -> 
A15: 1.1 | B15: Engenheiro Pleno | C15: P1 | D15: homem x mês | E15: ='ORCAMENTO_CONSOLIDADO (2)'!$K$1 -> 6 | F15: 7 | G15: =E15*F15 -> 42 | H15: =VLOOKUP(C15,CPU_SALARIOS!$D$14:$H$39,5,FALSE) -> 22362.89 | I15: =H15*$I$13 -> 6708.867 | J15: 0 | K15: 0 | L15: 0 | M15: 0 | N15: =I15+K15+L15+M15 -> 6708.867 | O15: =ROUND(G15*H15,2) -> 939241.38 | P15: =ROUND(G15*I15,2) -> 281772.41 | Q15: =ROUND(G15*K15,2) -> 0 | R15: =ROUND((G15*L15)+(G15*M15),2) -> 0 | S15: =ROUND(G15*N15,2) -> 281772.41
A16: 1.2 | B16: Engenheiro Júnior | C16: P2 | D16: homem x mês | E16: =E15 -> 6 | F16: 3 | G16: =E16*F16 -> 18 | H16: =VLOOKUP(C16,CPU_SALARIOS!$D$14:$H$39,5,FALSE) -> 18890.87 | I16: 5667.261 | J16: 0 | K16: 0 | L16: 0 | M16: 0 | N16: 5667.261 | O16: 340035.66 | P16: 102010.7 | Q16: 0 | R16: 0 | S16: 102010.7
A17: 1.3 | B17: Técnico Sênior | C17: T0 | D17: homem x mês | E17: =E16 -> 6 | F17: 2 | G17: 12 | H17: =VLOOKUP(C17,CPU_SALARIOS!$D$14:$H$39,5,FALSE) -> 10135.13 | I17: 3040.539 | J17: 0 | K17: 0 | L17: 0 | M17: 0 | N17: 3040.539 | O17: 121621.56 | P17: 36486.47 | Q17: 0 | R17: 0 | S17: 36486.47
A18: 1.4 | B18: Técnico Pleno | C18: T2 | D18: homem x mês | E18: 6 | F18: 5 | G18: 30 | H18: =VLOOKUP(C18,CPU_SALARIOS!$D$14:$H$39,5,FALSE) -> 6585.33 | I18: 1975.599 | J18: 0 | K18: 0 | L18: 0 | M18: 0 | N18: 1975.599 | O18: 197559.9 | P18: 59267.97 | Q18: 0 | R18: 0 | S18: 59267.97
A19: 1.5 | B19: Técnico Auxiliar | C19: T3 | D19: homem x mês | E19: 6 | F19: 6 | G19: 36 | H19: =VLOOKUP(C19,CPU_SALARIOS!$D$14:$H$39,5,FALSE) -> 4673.62 | I19: 1402.086 | J19: 0 | K19: 0 | L19: 0 | M19: 0 | N19: 1402.086 | O19: 168250.32 | P19: 50475.1 | Q19: 0 | R19: 0 | S19: 50475.1
A20: 2. | B20: MÃO DE OBRA - HORA EXTRA 50%
A21: 2.1 | B21: Engenheiro Pleno - Hora Extra 50% - C/ Periculosidade | C21: P1 | D21: Homem x Hora | E21: =E19 -> 6 | F21: =(8*4) -> 32 | G21: =E21*F21 -> 192 | H21: =VLOOKUP(C21,CPU_SALARIOS!$D$14:$H$39,3,FALSE) -> 127.061875 | I21: =M21*$I$13 -> 19.05928125 | J21: 0 | K21: 0 | L21: 0 | M21: =H21/2 -> 63.5309375 | N21: 82.59021875 | O21: =ROUND(G21*H21,2) -> 24395.88 | P21: =ROUND(G21*I21,2) -> 3659.38 | Q21: =ROUND(G21*K21,2) -> 0 | R21: =ROUND((G21*L21)+(G21*M21),2) -> 12197.94 | S21: =ROUND(G21*N21,2) -> 15857.32 | U21: =SUBTOTAL(9,S21:S27) -> 48356.77
A22: 2.2 | B22: Técnico Pleno - Hora Extra 50% - C/ Periculosidade | C22: T2 | D22: Homem x Hora | E22: =E21 -> 6 | F22: =(8*4) -> 32 | G22: 192 | H22: =VLOOKUP(C22,CPU_SALARIOS!$D$14:$H$39,3,FALSE) -> 37.41664773 | I22: =M22*$I$13 -> 5.612497159 | J22: 0 | K22: 0 | L22: 0 | M22: =H22/2 -> 18.70832386 | N22: 24.32082102 | O22: 7184 | P22: 1077.6 | Q22: 0 | R22: 3592 | S22: 4669.6
A23: 2.3 | B23: Técnico Júnior- Hora Extra 50% | C23: T2 | D23: Homem x Hora | E23: =E22 -> 6 | F23: 32 | G23: 192 | H23: =VLOOKUP(C23,CPU_SALARIOS!$D$14:$H$39,3,FALSE) -> 37.41664773 | I23: 0 | J23: 0 | K23: 0 | L23: 0 | M23: 18.70832386 | N23: 18.70832386 | O23: 7184 | P23: 0 | Q23: 0 | R23: 3592 | S23: 3592
A24: 2.4 | B24: Técnico Júnior- Hora Extra 50% - C/ Periculosidade | C24: T2 | D24: Homem x Hora | E24: 6 | F24: 32 | G24: 192 | H24: =VLOOKUP(C24,CPU_SALARIOS!$D$14:$H$39,3,FALSE) -> 37.41664773 | I24: 5.612497159 | J24: 0 | K24: 0 | L24: 0 | M24: 18.70832386 | N24: 24.32082102 | O24: 7184 | P24: 1077.6 | Q24: 0 | R24: 3592 | S24: 4669.6
A25: 2.5 | B25: Técnico Auxiliar - Hora Extra 50% - C/ Periculosidade | C25: T3 | D25: Homem x Hora | E25: 6 | F25: 32 | G25: 192 | H25: =VLOOKUP(C25,CPU_SALARIOS!$D$14:$H$39,3,FALSE) -> 26.55465909 | I25: 3.983198864 | J25: 0 | K25: 0 | L25: 0 | M25: 13.27732955 | N25: 17.26052841 | O25: 5098.49 | P25: 764.77 | Q25: 0 | R25: 2549.25 | S25: 3314.02
A26: 2.6 | B26: Auxiliar - Hora Extra 50% - C/ Periculosidade | C26: T3 | D26: Homem x Hora | E26: 6 | F26: 32 | G26: 192 | H26: =VLOOKUP(C26,CPU_SALARIOS!$D$14:$H$39,3,FALSE) -> 26.55465909 | I26: 3.983198864 | J26: 0 | K26: 0 | L26: 0 | M26: 13.27732955 | N26: 17.26052841 | O26: 5098.49 | P26: 764.77 | Q26: 0 | R26: 2549.25 | S26: 3314.02
A27: 2.7 | B27: Servente - Hora Extra 50% - C/ Periculosidade | C27: A11 | D27: Homem x Hora | E27: 6 | F27: ='Mao_de_Obra (Total)'!E66*3 -> 180 | G27: =E27*F27 -> 1080 | H27: =VLOOKUP(C27,CPU_SALARIOS!$D$14:$H$39,3,FALSE) -> 18.43335227 | I27: 2.765002841 | J27: 0 | K27: 0 | L27: 0 | M27: 9.216676136 | N27: 11.98167898 | O27: 19908.02 | P27: 2986.2 | Q27: 0 | R27: 9954.01 | S27: 12940.21
A28: 3. | B28: MÃO DE OBRA - HORA EXTRA 100%
A29: 3.1 | B29: Engenheiro Pleno - Hora Extra 100% - C/ Periculosidade | C29: P1 | D29: Homem x Hora | E29: =E27 -> 6 | F29: =F21/2 -> 16 | G29: =E29*F29 -> 96 | H29: =VLOOKUP(C29,CPU_SALARIOS!$D$14:$H$39,3,FALSE) -> 127.061875 | I29: =L29*$I$13 -> 38.1185625 | J29: 0 | K29: 0 | L29: =H29 -> 127.061875 | M29: 0 | N29: 165.1804375 | O29: =ROUND(G29*H29,2) -> 12197.94 | P29: =ROUND(G29*I29,2) -> 3659.38 | Q29: =ROUND(G29*K29,2) -> 0 | R29: =ROUND((G29*L29)+(G29*M29),2) -> 12197.94 | S29: =ROUND(G29*N29,2) -> 15857.32 | U29: =SUBTOTAL(9,S29:S35) -> 52670.18
A30: 3.2 | B30: Técnico Pleno - Hora Extra 100% - C/ Periculosidade | C30: T2 | D30: Homem x Hora | E30: =E29 -> 6 | F30: =F22/2 -> 16 | G30: 96 | H30: =VLOOKUP(C30,CPU_SALARIOS!$D$14:$H$39,3,FALSE) -> 37.41664773 | I30: =L30*$I$13 -> 11.22499432 | J30: 0 | K30: 0 | L30: =H30 -> 37.41664773 | M30: 0 | N30: 48.64164205 | O30: 3592 | P30: 1077.6 | Q30: 0 | R30: 3592 | S30: 4669.6
A31: 3.3 | B31: Técnico Júnior- Hora Extra 100% | C31: T2 | D31: Homem x Hora | E31: =E30 -> 6 | F31: 16 | G31: 96 | H31: =VLOOKUP(C31,CPU_SALARIOS!$D$14:$H$39,3,FALSE) -> 37.41664773 | I31: 0 | J31: 0 | K31: 0 | L31: 37.41664773 | M31: 0 | N31: 37.41664773 | O31: 3592 | P31: 0 | Q31: 0 | R31: 3592 | S31: 3592
A32: 3.4 | B32: Técnico Júnior- Hora Extra 100% - C/ Periculosidade | C32: T2 | D32: Homem x Hora | E32: 6 | F32: 16 | G32: 96 | H32: =VLOOKUP(C32,CPU_SALARIOS!$D$14:$H$39,3,FALSE) -> 37.41664773 | I32: 11.22499432 | J32: 0 | K32: 0 | L32: 37.41664773 | M32: 0 | N32: 48.64164205 | O32: 3592 | P32: 1077.6 | Q32: 0 | R32: 3592 | S32: 4669.6
A33: 3.5 | B33: Técnico Auxiliar - Hora Extra 100% - C/ Periculosidade | C33: T3 | D33: Homem x Hora | E33: 6 | F33: 16 | G33: 96 | H33: =VLOOKUP(C33,CPU_SALARIOS!$D$14:$H$39,3,FALSE) -> 26.55465909 | I33: 7.966397727 | J33: 0 | K33: 0 | L33: 26.55465909 | M33: 0 | N33: 34.52105682 | O33: 2549.25 | P33: 764.77 | Q33: 0 | R33: 2549.25 | S33: 3314.02
A34: 3.6 | B34: Auxiliar - Hora Extra 100% - C/ Periculosidade | C34: T3 | D34: Homem x Hora | E34: 6 | F34: 16 | G34: 96 | H34: =VLOOKUP(C34,CPU_SALARIOS!$D$14:$H$39,3,FALSE) -> 26.55465909 | I34: 7.966397727 | J34: 0 | K34: 0 | L34: 26.55465909 | M34: 0 | N34: 34.52105682 | O34: 2549.25 | P34: 764.77 | Q34: 0 | R34: 2549.25 | S34: 3314.02
A35: 3.7 | B35: Servente - Hora Extra 100% - C/ Periculosidade | C35: A11 | D35: Homem x Hora | E35: 6 | F35: ='Mao_de_Obra (Total)'!E66*2 -> 120 | G35: 720 | H35: =VLOOKUP(C35,CPU_SALARIOS!$D$14:$H$39,3,FALSE) -> 18.43335227 | I35: 5.530005682 | J35: 0 | K35: 0 | L35: 18.43335227 | M35: 0 | N35: 23.96335795 | O35: 13272.01 | P35: 3981.6 | Q35: 0 | R35: 13272.01 | S35: 17253.62
A36: Total Geral - VALORES ADICIONAIS - MÃO DE OBRA (R$): | O36: =SUM(O15:O35) -> 1884106.15 | P36: =SUM(P15:P35) -> 551668.69 | Q36: =SUM(Q15:Q35) -> 0 | R36: =SUM(R15:R35) -> 79370.9 | S36: =SUM(S15:S35) -> 631039.6
A38: NOME DO INFORMANTE:
A40: ASSINATURA:
A42: OBSERVAÇÕES:
A43: 1. Considerado a carga horária de 176 horas/mês
A44: 2. Os cálculos de cada parcela que compõe o salário completo foram calculadas isoladamente. (Salário Base + Adicional de Periculosidade (quando houver) + Adicional Noturno (quando houver) + Adicional de Horas Extras (quando houver) + Encargos Sociais)
A45: 3. Adicional de Periculosidade 30%: foi previsto para todos os profissionais eletricitários (Operação e Manutenção) que trabalham em contato com rede elétrica (nas estações de bombeamento, sub-estações, etc.)
A46: 4. Hora Noturna: Hora Diurna x 20%
A47: 5. Adicional Noturno: *Considerado 120 horas/profissional/mês (Total de 8h noturnas: Período de 22h as 5h = 8h noturnas + 1h até as 6h => Súmula 60 do TST) *(Incide sobre Salário Base + Periculosidade => Súmula 191 do TST)
A48: 6. Período noturno – 22 às 5 horas, o valor da hora tem 52 minutos e 30 segundos; logo, nesse período, há 8 horas
A49: 6. Foi considerado intervalo intrajornada para todos os profissionais que trabalham em escala 12h x 36h
A50: 7. Foi considerado para o cálculo de horas extras os percentuais de: *5% para as horas remuneradas a 50% sobre o valor da hora normal; e *2,5% para as horas trabalhadas remuneradas a 100% sobre o valor da hora normal
A51: 8. Horas Extras: Foi estimado um percentual de 20% de horas extras no total de contrato para todos os profissionais da manutenção. Essas horas só serão pagas se houver demanda.

Sheet MC - VALORES ADICIONAIS
C1: Ministério do Desenvolvimento Regional - MDR
C2: Companhia de Desenvolvimento dos Vales do São Francisco e do Parnaíba
C3: Gerência de Operação do PISF - Centro de Controle e Operação (AD / GOI / CCO)
A5: =ORCAMENTO_RESUMO!A5 -> TERMO DE REFERÊNCIA PARA CONTRATAÇÃO DOS RECURSOS NECESSÁRIOS À OPERAÇÃO E MANUTENÇÃO DAS INFRAESTRUTURAS DO EIXO LESTE DO PISF - PROJETO DE INTEGRAÇÃO DO SÃO FRANCISCO COM AS BACIAS HIDROGRÁFICAS DO NORDESTE SETENTRIONAL
A7: MEMÓRIA DE CÁLCULO - VALORES ADICIONAIS
A9: ITEM | B9: CÓDIGO | C9: CATEGORIA / DESCRIÇÃO | D9: UND. | E9: QUANTID.
A11: 1. | C11: ADICIONAL DE PERICULOSIDADE PARA OS ENGENHEIROS E COORDENADORES
A12: 1.1 | B12: P1 | C12: Engenheiro Pleno | D12: homem | E12: 7
A13: 1.2 | B13: P2 | C13: Engenheiro Júnior | D13: homem | E13: 3
A14: 1.3 | B14: T0 | C14: Técnico Sênior | D14: homem | E14: 2
A15: 1.4 | B15: T2 | C15: Técnico Pleno | D15: homem | E15: 5
A16: 1.5 | B16: T3 | C16: Técnico Auxiliar | D16: homem | E16: 6
A17: 2. | C17: MÃO DE OBRA - HORA EXTRA 50%
A18: 2.1 | B18: P1 | C18: Engenheiro Sênior - Hora Extra 50% - C/ Periculosidade | D18: Hora/mês | E18: 32
A19: 2.2 | B19: T2 | C19: Técnico Pleno - Hora Extra 50% - C/ Periculosidade | D19: Hora/mês | E19: 32
A20: 2.3 | B20: T2 | C20: Técnico Júnior- Hora Extra 50% | D20: Hora/mês | E20: 32
A21: 2.4 | B21: T2 | C21: Técnico Júnior- Hora Extra 50% - C/ Periculosidade | D21: Hora/mês | E21: 32
A22: 2.5 | B22: T3 | C22: Técnico Auxiliar - Hora Extra 50% - C/ Periculosidade | D22: Hora/mês | E22: 32
A23: 2.6 | B23: T3 | C23: Auxiliar - Hora Extra 50% - C/ Periculosidade | D23: Hora/mês | E23: 32
A24: 2.7 | B24: A11 | C24: Servente - Hora Extra 50% - C/ Periculosidade | D24: Hora/mês | E24: 180
A25: 3. | C25: MÃO DE OBRA - HORA EXTRA 100%
A26: 3.1 | B26: P1 | C26: Engenheiro Sênior - Hora Extra 100% - C/ Periculosidade | D26: Hora/mês | E26: 16
A27: 3.2 | B27: T2 | C27: Técnico Pleno - Hora Extra 100% - C/ Periculosidade | D27: Hora/mês | E27: 16
A28: 3.3 | B28: T2 | C28: Técnico Júnior- Hora Extra 100% | D28: Hora/mês | E28: 16
A29: 3.4 | B29: T2 | C29: Técnico Júnior- Hora Extra 100% - C/ Periculosidade | D29: Hora/mês | E29: 16
A30: 3.5 | B30: T3 | C30: Técnico Auxiliar - Hora Extra 100% - C/ Periculosidade | D30: Hora/mês | E30: 16
A31: 3.6 | B31: T3 | C31: Auxiliar - Hora Extra 100% - C/ Periculosidade | D31: Hora/mês | E31: 16
A32: 3.7 | B32: A11 | C32: Servente - Hora Extra 100% - C/ Periculosidade | D32: Hora/mês | E32: 120
B166: Quantidades
A167: EBV | B167: 6 | C167: un
A168: SE | B168: 6 | C168: un
A169: Canteiros | B169: 3 | C169: un
A170: tempo | B170: 12 | C170: meses
A171: Extensão total | B171: 217 | C171: km
A172: Nº DE VIAGENS | B172: NACIONAIS | C172: 2
B173: REGIONAIS | C173: 6
A174: Nº DE DIÁRIAS | B174: NACIONAIS | C174: 2
B175: REGIONAIS | C175: 2

Sheet Moveis_Equipamentos
C1: Ministério do Desenvolvimento Regional -MDR
C2: Companhia de Desenvolvimento dos Vales do São Francisco e do Parnaíba
C3: Gerência de Operação do PISF-Centro de Controle e Operação (AD / GOI / CCO)
A5: ='MC - VALORES ADICIONAIS'!A5:E6 -> TERMO DE REFERÊNCIA PARA CONTRATAÇÃO DOS RECURSOS NECESSÁRIOS À OPERAÇÃO E MANUTENÇÃO DAS INFRAESTRUTURAS DO EIXO LESTE DO PISF - PROJETO DE INTEGRAÇÃO DO SÃO FRANCISCO COM AS BACIAS HIDROGRÁFICAS DO NORDESTE SETENTRIONAL
A8: MOBILIÁRIO E EQUIPAMENTOS DE ESCRITÓRIO
A11: ITEM | B11: CÓDIGO | C11: DESCRIÇÃO | D11: UNIDADE | E11: QUANTIDADE | F11: VALOR (R$)
F12: UNITARIO | G12: TOTAL
A13: 1. | C13: MOBILIÁRIO E EQUIPAMENTOS DE ESCRITÓRIO | J13: 12 | K13: ='ORCAMENTO_CONSOLIDADO (2)'!$K$1 -> 6
A14: 1.1 | B14: E209300236-EMBASA/BA | C14: Aluguel de impressora colorida-Laser com cartuchos-formatos A4 e A3 (inclusive suprimentos) | D14: un x mês | E14: =K14 -> 108 | F14: 225.08 | G14: =ROUND(E14*F14,2) -> 24308.64 | H14: =E14/6 -> 18 | I14: 216 | J14: =I14/$J$13 -> 18 | K14: =J14*$K$13 -> 108
A15: 1.2 | B15: I8612-SEINFRA/CE | C15: Aluguel de Plotter (inclusive suprimentos) | D15: un x mês | E15: =K15 -> 12 | F15: 320 | G15: =ROUND(E15*F15,2) -> 3840 | H15: =E15/6 -> 2 | I15: 24 | J15: =I15/$J$13 -> 2 | K15: =J15*$K$13 -> 12
A16: 1.3 | B16: I8610-SEINFRA/CE | C16: Servidor para backup - EQUIPAMENTO SIMILAR | D16: un x mês | E16: 12 | F16: ='CPU_Móveis e Equipamentos'!H17 -> 170 | G16: 2040 | H16: 2 | I16: 24 | J16: 2 | K16: 12
A17: 1.4 | B17: I8610-SEINFRA/CE | C17: Desktop com software-tipo 1 (i7, 1T, 8GB, monitor 19", S.O. Windows 10 e Office última versão) - EQUIPAMENTO SIMILAR | D17: un x mês | E17: 210 | F17: ='CPU_Móveis e Equipamentos'!H18 -> 170 | G17: 35700 | H17: 35 | I17: 420 | J17: 35 | K17: 210
A18: 1.5 | B18: I8610-SEINFRA/CE | C18: Notebook-tipo 1 (i7, 1T, 8GB, S.O. Windows 10 e Office última versão) - EQUIPAMENTO SIMILAR | D18: un x mês | E18: 216 | F18: ='CPU_Móveis e Equipamentos'!H19 -> 170 | G18: 36720 | H18: 36 | I18: 432 | J18: 36 | K18: 216
A19: 1.6 | B19: COT_ANTE | C19: Kit Antena Digital 4K Externa Log 16 elementos Mastro 45cm e cabo coaxial 12m | D19: un x mês | E19: 6 | F19: ='CPU_Móveis e Equipamentos'!H20 -> 1.660333333 | G19: 9.96 | H19: 1 | I19: 12 | J19: 1 | K19: 6
A20: 1.7 | B20: I0123-SEINFRA/CE | C20: Armário de escritório | D20: un x mês | E20: 342 | F20: ='CPU_Móveis e Equipamentos'!H21 -> 7.178333333 | G20: 2454.99 | H20: 57 | I20: 684 | J20: 57 | K20: 342
A21: 1.8 | B21: 73.72.07-SUDECAP/MG | C21: Bebedouro industrial (canteiro) | D21: un x mês | E21: 12 | F21: ='CPU_Móveis e Equipamentos'!H22 -> 54.48433333 | G21: 653.81 | H21: 2 | I21: 24 | J21: 2 | K21: 12
A22: 1.9 | B22: 11534-ORSE/SE | C22: Cadeira giratória, com braço, tipo executiva | D22: un x mês | E22: 702 | F22: ='CPU_Móveis e Equipamentos'!H23 -> 9.333333333 | G22: 6552 | H22: 117 | I22: 1404 | J22: 117 | K22: 702
A23: 1.10 | B23: 11543-ORSE | C23: Cadeira de plástico sem braço, cor branca | D23: un x mês | E23: 138 | F23: ='CPU_Móveis e Equipamentos'!H24 -> 0.7 | G23: 96.6 | H23: 23 | I23: 276 | J23: 23 | K23: 138
A24: 1.11 | B24: COT_CAM_FOTO | C24: Câmera fotográfica digital 20 mp 5x HD | D24: un x mês | E24: 12 | F24: ='CPU_Móveis e Equipamentos'!H25 -> 26.57733333 | G24: 318.93 | H24: 2 | I24: 24 | J24: 2 | K24: 12
A25: 1.12 | B25: COT - CAR - LIX | C25: Lixeira Carro Coletor 120L | D25: un x mês | E25: 24 | F25: ='CPU_Móveis e Equipamentos'!H26 -> 11.8 | G25: 283.2 | H25: 4 | I25: 48 | J25: 4 | K25: 24
A26: 1.13 | B26: COT_CESTO | C26: Cestos Telado de lixo 9,6L | D26: un x mês | E26: 48 | F26: ='CPU_Móveis e Equipamentos'!H27 -> 0.4496666667 | G26: 21.58 | H26: 8 | I26: 96 | J26: 8 | K26: 48
A27: 1.14 | B27: 39555-SINAPI/PE | C27: Condicionador de ar 12.000 BTU | D27: un x mês | E27: 246 | F27: ='CPU_Móveis e Equipamentos'!H28 -> 67.23366667 | G27: 16539.48 | H27: 41 | I27: 492 | J27: 41 | K27: 246
A28: 1.15 | B28: COT_GPS | C28: GPS com cabo e software (conforme especificação) | D28: un x mês | E28: 12 | F28: ='CPU_Móveis e Equipamentos'!H29 -> 142.0666667 | G28: 1704.8 | H28: 2 | I28: 24 | J28: 2 | K28: 12
A29: 1.16 | B29: COT_MESA_REUN | C29: Mesa de reunião 10 lugares com 10 cadeiras | D29: un x mês | E29: 42 | F29: ='CPU_Móveis e Equipamentos'!H30 -> 138.035 | G29: 5797.47 | H29: 7 | I29: 84 | J29: 7 | K29: 42
A30: 1.17 | B30: COT_MESA_PVC | C30: Mesa retangular em Polipropileno 119x75cm | D30: un x mês | E30: 36 | F30: ='CPU_Móveis e Equipamentos'!H31 -> 7.266333333 | G30: 261.59 | H30: 6 | I30: 72 | J30: 6 | K30: 36
A31: 1.18 | B31: COT_MESA_ESCR | C31: Mesas de escritório com gavetas (conforme especificação) | D31: un x mês | E31: 702 | F31: ='CPU_Móveis e Equipamentos'!H32 -> 14.05933333 | G31: 9869.65 | H31: 117 | I31: 1404 | J31: 117 | K31: 702
A32: 1.19 | B32: F030000293-EMBASA/BA | C32: Projetor multimídia (Datashow) | D32: un x mês | E32: 12 | F32: ='CPU_Móveis e Equipamentos'!H33 -> 52.927 | G32: 635.12 | H32: 2 | I32: 24 | J32: 2 | K32: 12
A33: 1.20 | B33: COT_RACK | C33: Rack para TV até 60 Polegadas 1 Porta | D33: un x mês | E33: 12 | F33: ='CPU_Móveis e Equipamentos'!H34 -> 8.963 | G33: 107.56 | H33: 2 | I33: 24 | J33: 2 | K33: 12
A34: 1.21 | B34: I0122-SEINFRA/CE | C34: Armário de cozinha completo | D34: un x mês | E34: 12 | F34: ='CPU_Móveis e Equipamentos'!H35 -> 18.33833333 | G34: =ROUND(E34*F34,2) -> 220.06 | H34: 2 | I34: 24 | J34: 2 | K34: 12
A35: 1.22 | B35: COT_MES_06 | C35: Conjunto de Mesa 1,40 com Tampo MDP com 6 cadeiras | D35: un x mês | E35: 12 | F35: ='CPU_Móveis e Equipamentos'!H36 -> 30.19366667 | G35: 362.32 | H35: 2 | I35: 24 | J35: 2 | K35: 12
A36: 1.23 | B36: 10231-ORSE/SE | C36: Fogão | D36: un x mês | E36: 12 | F36: ='CPU_Móveis e Equipamentos'!H37 -> 20.49366667 | G36: 245.92 | H36: 2 | I36: 24 | J36: 2 | K36: 12
A37: 1.24 | B37: 029028-IOPES | C37: Cilindro de Gás de Cozinha 45 kg | D37: un x mês | E37: 30 | F37: ='CPU_Móveis e Equipamentos'!H38 -> 19.111 | G37: 573.33 | H37: 5 | I37: 60 | J37: 5 | K37: 30
A38: 1.25 | B38: 4226-SINAPI/PE | C38: Gás de cozinha-GLP (kg) | D38: un x mês | E38: 1350 | F38: ='CPU_Móveis e Equipamentos'!F39 -> 7.97 | G38: =ROUND(E38*F38,2) -> 10759.5 | H38: 225 | I38: 2700 | J38: 225 | K38: 1350
A39: 1.26 | B39: F020000716-EMBASA/BA | C39: Geladeira 280 litros | D39: un x mês | E39: 12 | F39: ='CPU_Móveis e Equipamentos'!H40 -> 26.311 | G39: 315.73 | H39: 2 | I39: 24 | J39: 2 | K39: 12
A40: 1.27 | B40: COT_MICROOND | C40: Forno Microondas 20L | D40: un x mês | E40: 12 | F40: ='CPU_Móveis e Equipamentos'!H41 -> 15.199 | G40: =ROUND(E40*F40,2) -> 182.39 | H40: 2 | I40: 24 | J40: 2 | K40: 12
A41: 1.28 | B41: COT_FAQUEI | C41: Faqueiro com 24 peças | D41: un x mês | E41: 204 | F41: ='CPU_Móveis e Equipamentos'!H42 -> 1.43 | G41: 291.72 | H41: 34 | I41: 408 | J41: 34 | K41: 204
A42: 1.29 | B42: COT_PRATO | C42: Pratos rasos redondo em cerâmica | D42: un x mês | E42: 468 | F42: ='CPU_Móveis e Equipamentos'!H43 -> 0.3866666667 | G42: 180.96 | H42: 78 | I42: 936 | J42: 78 | K42: 468
A43: 1.30 | B43: COT_COPO | C43: Conjunto copos em vidro 350ml com 8 unidades | D43: un x mês | E43: 24 | F43: ='CPU_Móveis e Equipamentos'!H44 -> 0.943 | G43: =ROUND(E43*F43,2) -> 22.63 | H43: 4 | I43: 48 | J43: 4 | K43: 24
A44: 1.31 | B44: COT_TELEVISOR | C44: Smart Tv LED 32" | D44: un x mês | E44: 42 | F44: ='CPU_Móveis e Equipamentos'!H45 -> 42.55733333 | G44: 1787.41 | H44: 7 | I44: 84 | J44: 7 | K44: 42
A45: 1.32 | B45: AP_JANTAR | C45: Aparelho de jantar para 06 pessoas | D45: un x mês | E45: 78 | F45: ='CPU_Móveis e Equipamentos'!H46 -> 10.26966667 | G45: 801.03 | H45: 13 | I45: 156 | J45: 13 | K45: 78
A46: 1.33 | B46: 11645-ORSE/SE | C46: Armário para vestiário, em aço, com 12 portas, com cadeado | D46: un x mês | E46: 12 | F46: ='CPU_Móveis e Equipamentos'!H47 -> 66.98133333 | G46: 803.78 | H46: 2 | I46: 24 | J46: 2 | K46: 12
A47: 1.34 | B47: COT_CHAP | C47: Chapa gás 65 cm para grelhar | D47: un x mês | E47: 12 | F47: ='CPU_Móveis e Equipamentos'!H48 -> 28.33466667 | G47: 340.02 | H47: 2 | I47: 24 | J47: 2 | K47: 12
A48: 1.35 | B48: 08600-ORSE/SE | C48: Coifa | D48: un x mês | E48: 12 | F48: ='CPU_Móveis e Equipamentos'!H49 -> 63.27233333 | G48: 759.27 | H48: 2 | I48: 24 | J48: 2 | K48: 12
A49: 1.36 | B49: COT_UTENS | C49: Conjunto de utensílios gadgets inox para cozinha | D49: un x mês | E49: 12 | F49: ='CPU_Móveis e Equipamentos'!H50 -> 1.890666667 | G49: 22.69 | H49: 2 | I49: 24 | J49: 2 | K49: 12
A50: 1.37 | B50: COT_FOGAO | C50: Fogão industrial 6 bocas 30x30 baixa pressão perfil 5 | D50: un x mês | E50: 12 | F50: ='CPU_Móveis e Equipamentos'!H51 -> 40.11533333 | G50: 481.38 | H50: 2 | I50: 24 | J50: 2 | K50: 12
A51: 1.38 | B51: COT_FORNO | C51: Forno elétrico 46L 1500W | D51: un x mês | E51: 12 | F51: ='CPU_Móveis e Equipamentos'!H52 -> 17.97466667 | G51: 215.7 | H51: 2 | I51: 24 | J51: 2 | K51: 12
A52: 1.39 | B52: F020000719-EMBASA/BA | C52: Freezer 246 l | D52: un x mês | E52: 12 | F52: ='CPU_Móveis e Equipamentos'!H53 -> 39.46633333 | G52: 473.6 | H52: 2 | I52: 24 | J52: 2 | K52: 12
A53: 1.40 | B53: 10232-ORSE/SE | C53: Geladeira industrial 300 litros | D53: un x mês | E53: 12 | F53: ='CPU_Móveis e Equipamentos'!H54 -> 55.95766667 | G53: 671.49 | H53: 2 | I53: 24 | J53: 2 | K53: 12
A54: 1.41 | B54: COT_PANEL | C54: Conjunto de panelas antiaderente com 7 peças | D54: un x mês | E54: 12 | F54: ='CPU_Móveis e Equipamentos'!H55 -> 9.666333333 | G54: 116 | H54: 2 | I54: 24 | J54: 2 | K54: 12
A55: 1.42 | B55: COT_LIQUID | C55: Liquidificadores industriais alta rotação 2L | D55: un x mês | E55: 12 | F55: ='CPU_Móveis e Equipamentos'!H56 -> 14.06066667 | G55: 168.73 | H55: 2 | I55: 24 | J55: 2 | K55: 12
A56: 1.43 | B56: COT_MAQ_LAVA_LOUCA | C56: Máquina de lavar louças industrial B.30 | D56: un x mês | E56: 12 | F56: ='CPU_Móveis e Equipamentos'!H57 -> 485.451 | G56: 5825.41 | H56: 2 | I56: 24 | J56: 2 | K56: 12
A57: 1.44 | B57: COT_MAQ_LAVA_ROUPA | C57: Máquina de Lavar roupa 11kg | D57: un x mês | E57: 12 | F57: ='CPU_Móveis e Equipamentos'!H58 -> 54.86666667 | G57: 658.4 | H57: 2 | I57: 24 | J57: 2 | K57: 12
A58: 1.45 | B58: COT_MESA_BUF | C58: Carrinho Buffet Térmico Self Service Inox 8 cubas | D58: un x mês | E58: 12 | F58: ='CPU_Móveis e Equipamentos'!H59 -> 69.38133333 | G58: 832.58 | H58: 2 | I58: 24 | J58: 2 | K58: 12
A59: 1.46 | B59: COT_MESA_REFEIT | C59: Mesa de refeitório 10 lugares com cadeiras MDF branco de 25mm | D59: un x mês | E59: 30 | F59: ='CPU_Móveis e Equipamentos'!H60 -> 118.811 | G59: 3564.33 | H59: 5 | I59: 60 | J59: 5 | K59: 30
A60: 1.47 | B60: COT_REFRESQUEIRA | C60: Refresqueira BBS2 Inox | D60: un x mês | E60: 12 | F60: ='CPU_Móveis e Equipamentos'!H61 -> 82.657 | G60: 991.88 | H60: 2 | I60: 24 | J60: 2 | K60: 12
A61: 1.48 | B61: COT_TABUA | C61: Tábuas para carnes 19x35x1,6cm | D61: un x mês | E61: 12 | F61: ='CPU_Móveis e Equipamentos'!H62 -> 0.73 | G61: 8.76 | H61: 2 | I61: 24 | J61: 2 | K61: 12
A62: 1.49 | B62: COT_CAMA_BOX | C62: Cama box conjugada solteiro | D62: un x mês | E62: 168 | F62: ='CPU_Móveis e Equipamentos'!H63 -> 9.545333333 | G62: 1603.62 | H62: 28 | I62: 336 | J62: 28 | K62: 168
A63: 1.50 | B63: COT_GUARDA_ROUPA | C63: Guarda-Roupa solteiro 4 Portas | D63: un x mês | E63: 12 | F63: ='CPU_Móveis e Equipamentos'!H64 -> 9.963666667 | G63: 119.56 | H63: 2 | I63: 24 | J63: 2 | K63: 12
A64: 1.51 | B64: COT_ROUPA_CAMA | C64: Jogo de roupa de cama solteiro 100% Algodão | D64: un x mês | E64: 336 | F64: ='CPU_Móveis e Equipamentos'!H65 -> 4.746666667 | G64: 1594.88 | H64: 56 | I64: 672 | J64: 56 | K64: 336
A65: 1.52 | B65: COT_ROUPA_BANHO | C65: Jogo de Roupa de banho 5 Peças | D65: un x mês | E65: 168 | F65: ='CPU_Móveis e Equipamentos'!H66 -> 7.253 | G65: 1218.5 | H65: 28 | I65: 336 | J65: 28 | K65: 168
A66: 1.53 | B66: COT_SOFA | C66: Conjunto de sofá 2 e 3 lugares | D66: un x mês | E66: 12 | F66: ='CPU_Móveis e Equipamentos'!H67 -> 30.96133333 | G66: 371.54 | H66: 2 | I66: 24 | J66: 2 | K66: 12
A67: ="TOTAL-"&C13&"-(R$):" -> TOTAL-MOBILIÁRIO E EQUIPAMENTOS DE ESCRITÓRIO-(R$): | G67: =SUBTOTAL(9,G13:G66) -> 184500.5
A70: ="RESUMO-"&A$8 -> RESUMO-MOBILIÁRIO E EQUIPAMENTOS DE ESCRITÓRIO
A71: ITEM | C71: DESCRIÇÃO | F71: VALOR TOTAL (R$)
A72: 1 | C72: =C13 -> MOBILIÁRIO E EQUIPAMENTOS DE ESCRITÓRIO | F72: =G67 -> 184500.5
A73: ="TOTAL GERAL-"&A70&"- (R$):" -> TOTAL GERAL-RESUMO-MOBILIÁRIO E EQUIPAMENTOS DE ESCRITÓRIO- (R$): | F73: =SUM(F72:G72) -> 184500.5 | I73: =(Mov_Equip/499177.96)-1 -> -0.6303913338
A76: NOME DO INFORMANTE: | F76: QUALIFICAÇÃO:
A78: ASSINATURA: | F78: DATA:
A80: OBSERVAÇÃO:
A81: 1. Fonte de Preços: - Sistema Nacional de Pesquisa de Custos e Índices da Construção (Tabela SINAPI/PE). Data base: Abril/2022. - Empresa Baiana de Águas e Saneamento S.A. (Tabela de preços EMBASA). Data base: 10/2021. - Secretaria da Infraestrutura do Estado do Ceará (Tabela 027 SEINFRA/CE). Data base: 03/2021. - Sistema de Orçamento de Obras de Sergipe (ORSE). Data base: 03/2022. - Companhia Paulista de Obras e Serviços (Boletim Referencial de Custos CPOS). Data base: 07/2019 - Superintendência de Desenvolvimento da Capital-Prefeitura de Belo Horizonte (Tabela de Preços SUDECAP/MG). Data base: 02/2022. - Companhia de Águas e Esgotos do Rio Grande do Norte (Tabela de Preços CAERN/RN). Data base: 05/2019. - Sistemas e Consultoria de Custos (Base de Dados SBC/PE). Data base: 11/2019. - Instituto de Obras Públicas do Estado do Espírito Santo (Tabela REferencial de Preços IOPES/ES). Data base: 03/2022.
B98: Código | C98: Descrição | D98: Unid. | E98: R$/unit
B99: E209300236-EMBASA/BA | C99: Aluguel de impressora colorida-Laser com cartuchos-formatos A4 e A3 | D99: un x mês | E99: 225.08
B100: E209300236-EMBASA/BA | C100: Aluguel de impressora colorida-Laser com cartuchos-formatos A4 e A3 | D100: un x mês | E100: 225.08
B101: I8612-SEINFRA/CE | C101: Aluguel de Plotter | D101: un x mês | E101: 320 | F101: ok
B102: I2677-SEINFRA/CE | C102: Servidor para backup | D102: un | E102: 4685 | F102: ok
B103: 3671-ORSE/SE | C103: Desktop com software-tipo 1 (i7, 1T, 8GB, monitor 19", S.O. Windows 10 e Office última versão) | D103: un | E103: 2505.11 | F103: ok
B104: I6395-SEINFRA/CE | C104: Notebook-tipo 1 (i7, 1T, 8GB, S.O. Windows 10 e Office última versão) | D104: un | E104: 2583.64 | F104: ok
B105: P.17.000.042561-CPOS/SP | C105: Antena externa | D105: un | E105: 326.55
B106: AP_JANTAR | C106: Aparelho de jantar para 06 pessoas | D106: un | E106: 199.97
B107: I0122-SEINFRA/CE | C107: Armário de cozinha completo | D107: un | E107: 550.15 | F107: ok
B108: I0123-SEINFRA/CE | C108: Armário de escritório | D108: un | E108: 215.35 | F108: ok
B109: 11645-ORSE/SE | C109: Armário para vestiário, em aço, com 12 portas, com cadeado | D109: un | E109: 1842.89 | F109: ok
B110: 73.72.07-SUDECAP/MG | C110: Bebedouro industrial (canteiro) | D110: un | E110: 1488 | F110: ok
B111: 11534-ORSE/SE | C111: Cadeira giratória, com braço, tipo executiva | D111: un | E111: 280 | F111: ok
B112: 11543-ORSE | C112: Cadeira de plástico sem braço, cor branca | D112: un | E112: 21 | F112: ok
B113: COT_CAMA_BOX | C113: Cama box solteiro | D113: un | E113: 279.3
B114: COT_CAM_FOTO | C114: Câmera fotográfica digital | D114: un | E114: 1835.21 | G114: Esclarescimento 05
B115: DV_16-CAERN/RN | C115: Carrinhos de lixo | D115: un | E115: 429.02
B116: 040117-SBC/PE | C116: Cestos de lixo | D116: un | E116: 96
B117: COT_CHAP | C117: Chapa gás para grelhar | D117: un | E117: 674.19
B118: 08600-ORSE/SE | C118: Coifa | D118: un | E118: 1898.17 | F118: ok | G118: 2020-06-01
B119: 39555-SINAPI/PE | C119: Condicionador de ar 12.000 BTU | D119: un | E119: 1719.34
B120: COT_COPO | C120: Conjunto copos em vidro com 8 unidades | D120: un | E120: 31.32
B121: COT_MES_06 | C121: Conjunto de Mesa com 06 lugares (para cozinha) | D121: un | E121: 550.63
B122: COT_PANEL | C122: Conjunto de panelas com 7 peças | D122: un | E122: 235.96
B123: COT_SOFA | C123: Conjunto de sofá 2 e 3 lugares | D123: un | E123: 495.67
B124: COT_UTENS | C124: Conjunto de utensílios para cozinha | D124: conj. | E124: 55.15
B125: COT_FAQUEI | C125: Faqueiro com 24 peças | D125: un | E125: 45.61
B126: 10231-ORSE/SE | C126: Fogão | D126: un | E126: 605.19
B127: 78052-SIURB/SP | C127: Fogão industrial 6 bocas | D127: un | E127: 1797.94
B128: COT_FORNO | C128: Forno elétrico | D128: un | E128: 1670.61
B129: COT_MICROOND | C129: Forno Microondas | D129: un | E129: 469
B130: F020000719-EMBASA/BA | C130: Freezer 246 l | D130: un | E130: 1183.99
B131: 029028-IOPES | C131: Cilindro de Gás de Cozinha 45 kg | D131: un | E131: 566.67 | F131: ok
B132: 4226-SINAPI/PE | C132: Gás de cozinha-GLP | D132: kg | E132: 5.9
B133: F020000716-EMBASA/BA | C133: Geladeira 280 litros | D133: un | E133: 789.33
B134: 10232-ORSE/SE | C134: Geladeira industrial 300 litros | D134: un | E134: 1652.46 | F134: ok | G134: 2020-06-01
B135: COT_GPS | C135: GPS com cabo e software (conforme especificação) | D135: un | E135: 321.97
B136: COT_GUARDA_ROUPA | C136: Guarda-Roupa 4 Portas | D136: un | E136: 287.26
B137: COT_ROUPA_BANHO | C137: Jogo de Roupa de banho 5 Peças | D137: un | E137: 96.63
B138: COT_ROUPA_CAMA | C138: Jogo de roupa de cama solteiro | D138: un | E138: 147.63
B139: COT_LIQUID | C139: Liquidificadores industriais | D139: un | E139: 616.17
B140: COT_MAQ_LAVA_LOUCA | C140: Máquina de lavar louças industrial | D140: um | E140: 1050
B141: COT_MAQ_LAVA_ROUPA | C141: Máquina de Lavar roupa 11kg | D141: un | E141: 1450.07
B142: COT_MESA_BUF | C142: Mesa buffets | D142: un | E142: 1577.7
B143: COT_MESA_REFEIT | C143: Mesa de refeitório 10 lugares com cadeiras | D143: un | E143: 1280.48
B144: COT_MESA_REUN | C144: Mesa de reunião 10 lugares com 10 cadeiras | D144: un | E144: 3669.74
B145: COT_MESA_PVC | C145: Mesa retangular em PVC | D145: un | E145: 188
B146: COT_MESA_ESCR | C146: Mesas de escritório com gavetas (conforme especificação) | D146: un | E146: 390.96
B147: COT_PRATO | C147: Pratos rasos | D147: un | E147: 6.73
B148: F030000293-EMBASA/BA | C148: Projetor multimídia (Datashow) | D148: un | E148: 1587.81
B149: COT_RACK | C149: Rack (sala) | D149: un | E149: 210.3
B150: COT_REFRESQUEIRA | C150: Refresqueira | D150: un | E150: 1606.88
B151: COT_TABUA | C151: Tábuas para carnes | D151: un | E151: 91.6
B152: COT_TELEVISOR | C152: Televisor LCD com 27,5" | D152: un | E152: 913.48
B153: 01885-ORSE/SE | C153: Prateleira de madeira revestida com fórmica | D153: m | E153: 64.98

Sheet CPU_Móveis e Equipamentos
C1: Ministério do Desenvolvimento Regional -MDR
C2: Companhia de Desenvolvimento dos Vales do São Francisco e do Parnaíba
C3: Gerência de Operação do PISF-Centro de Controle e Operação (AD / GOI / CCO)
A5: =Moveis_Equipamentos!A5 -> TERMO DE REFERÊNCIA PARA CONTRATAÇÃO DOS RECURSOS NECESSÁRIOS À OPERAÇÃO E MANUTENÇÃO DAS INFRAESTRUTURAS DO EIXO LESTE DO PISF - PROJETO DE INTEGRAÇÃO DO SÃO FRANCISCO COM AS BACIAS HIDROGRÁFICAS DO NORDESTE SETENTRIONAL
A8: COMPOSIÇÃO DE PREÇO - MÓVEIS E EQUIPAMENTOS
A10: VALOR DE AQUISIÇÃO (*Exceto itens : 1.1, 1.2, 1.3, 1.4, 1.5 e 1.25) | G10: VALOR DE LOCAÇÃO
A12: ITEM | B12: CÓDIGO | C12: DESCRIÇÃO | D12: UNIDADE | E12: QUANTIDADE | F12: VALOR (R$) | G12: UNIDADE | H12: VALOR (R$)
F13: UNITARIO | H13: UNITARIO
A14: 1.
A15: 1.1 | B15: E209300236-EMBASA/BA | C15: Aluguel de impressora colorida-Laser com cartuchos-formatos A4 e A3 (inclusive suprimentos) | D15: un x mês | E15: =Moveis_Equipamentos!E14 -> 108 | F15: 225.08 | G15: un x mês | H15: =F15 -> 225.08
A16: 1.2 | B16: I8612-SEINFRA/CE | C16: Aluguel de Plotter (inclusive suprimentos) | D16: un x mês | E16: =Moveis_Equipamentos!E15 -> 12 | F16: 320 | G16: un x mês | H16: =F16 -> 320
A17: 1.3 | B17: I8610-SEINFRA/CE | C17: Servidor para backup | D17: un x mês | E17: =Moveis_Equipamentos!E16 -> 12 | F17: 170 | G17: un x mês | H17: 170
A18: 1.4 | B18: I8610-SEINFRA/CE | C18: Desktop com software-tipo 1 (i7, 1T, 8GB, monitor 19", S.O. Windows 10 e Office última versão) | D18: un x mês | E18: =Moveis_Equipamentos!E17 -> 210 | F18: 170 | G18: un x mês | H18: 170
A19: 1.5 | B19: I8610-SEINFRA/CE | C19: Notebook-tipo 1 (i7, 1T, 8GB, S.O. Windows 10 e Office última versão) | D19: un x mês | E19: =Moveis_Equipamentos!E18 -> 216 | F19: 170 | G19: un x mês | H19: 170
A20: 1.6 | B20: COT_ANTE | C20: Kit Antena Digital 4K Externa Log 16 elementos Mastro 45cm e cabo coaxial 12m | D20: un | E20: =Moveis_Equipamentos!E19/12 -> 0.5 | F20: 49.81 | G20: un x mês | H20: =((F20*$C$82))/'MC - VALORES ADICIONAIS'!$B$170 -> 1.660333333
A21: 1.7 | B21: I0123-SEINFRA/CE | C21: Armário de escritório | D21: un | E21: =Moveis_Equipamentos!E20/12 -> 28.5 | F21: 215.35 | G21: un x mês | H21: =((F21*$C$82))/'MC - VALORES ADICIONAIS'!$B$170 -> 7.178333333
A22: 1.8 | B22: 73.72.07-SUDECAP/MG | C22: Bebedouro industrial (canteiro) | D22: un | E22: =Moveis_Equipamentos!E21/12 -> 1 | F22: 1634.53 | G22: un x mês | H22: =((F22*$C$82))/'MC - VALORES ADICIONAIS'!$B$170 -> 54.48433333
A23: 1.9 | B23: 11534-ORSE/SE | C23: Cadeira giratória, com braço, tipo executiva | D23: un | E23: =Moveis_Equipamentos!E22/12 -> 58.5 | F23: 280 | G23: un x mês | H23: =((F23*$C$82))/'MC - VALORES ADICIONAIS'!$B$170 -> 9.333333333
A24: 1.10 | B24: 11543-ORSE | C24: Cadeira de plástico sem braço, cor branca | D24: un | E24: =Moveis_Equipamentos!E23/12 -> 11.5 | F24: 21 | G24: un x mês | H24: =((F24*$C$82))/'MC - VALORES ADICIONAIS'!$B$170 -> 0.7
A25: 1.11 | B25: COT_CAM_FOTO | C25: Câmera fotográfica digital 20 mp 5x HD | D25: un | E25: =Moveis_Equipamentos!E24/12 -> 1 | F25: 797.32 | G25: un x mês | H25: =((F25*$C$82))/'MC - VALORES ADICIONAIS'!$B$170 -> 26.57733333
A26: 1.12 | B26: COT - CAR - LIX | C26: Lixeira Carro Coletor 120L | D26: un | E26: =Moveis_Equipamentos!E25/12 -> 2 | F26: 354 | G26: un x mês | H26: =((F26*$C$82))/'MC - VALORES ADICIONAIS'!$B$170 -> 11.8
A27: 1.13 | B27: COT_CESTO | C27: Cestos Telado de lixo 9,6L | D27: un | E27: =Moveis_Equipamentos!E26/12 -> 4 | F27: 13.49 | G27: un x mês | H27: =((F27*$C$82))/'MC - VALORES ADICIONAIS'!$B$170 -> 0.4496666667
A28: 1.14 | B28: 39555-SINAPI/PE | C28: Condicionador de ar 12.000 BTU | D28: un | E28: =Moveis_Equipamentos!E27/12 -> 20.5 | F28: 2017.01 | G28: un x mês | H28: =((F28*$C$82))/'MC - VALORES ADICIONAIS'!$B$170 -> 67.23366667
A29: 1.15 | B29: COT_GPS | C29: GPS com cabo e software (conforme especificação) | D29: un | E29: =Moveis_Equipamentos!E28/12 -> 1 | F29: 4262 | G29: un x mês | H29: =((F29*$C$82))/'MC - VALORES ADICIONAIS'!$B$170 -> 142.0666667
A30: 1.16 | B30: COT_MESA_REUN | C30: Mesa de reunião 10 lugares com 10 cadeiras | D30: un | E30: =Moveis_Equipamentos!E29/12 -> 3.5 | F30: 4141.05 | G30: un x mês | H30: =((F30*$C$82))/'MC - VALORES ADICIONAIS'!$B$170 -> 138.035
A31: 1.17 | B31: COT_MESA_PVC | C31: Mesa retangular em Polipropileno 119x75cm | D31: un | E31: =Moveis_Equipamentos!E30/12 -> 3 | F31: 217.99 | G31: un x mês | H31: =((F31*$C$82))/'MC - VALORES ADICIONAIS'!$B$170 -> 7.266333333
A32: 1.18 | B32: COT_MESA_ESCR | C32: Mesas de escritório com gavetas (conforme especificação) | D32: un | E32: =Moveis_Equipamentos!E31/12 -> 58.5 | F32: 421.78 | G32: un x mês | H32: =((F32*$C$82))/'MC - VALORES ADICIONAIS'!$B$170 -> 14.05933333
A33: 1.19 | B33: F030000293-EMBASA/BA | C33: Projetor multimídia (Datashow) | D33: un | E33: =Moveis_Equipamentos!E32/12 -> 1 | F33: 1587.81 | G33: un x mês | H33: =((F33*$C$82))/'MC - VALORES ADICIONAIS'!$B$170 -> 52.927
A34: 1.20 | B34: COT_RACK | C34: Rack para TV até 60 Polegadas 1 Porta | D34: un | E34: =Moveis_Equipamentos!E33/12 -> 1 | F34: 268.89 | G34: un x mês | H34: =((F34*$C$82))/'MC - VALORES ADICIONAIS'!$B$170 -> 8.963
A35: 1.21 | B35: I0122-SEINFRA/CE | C35: Armário de cozinha completo | D35: un | E35: =Moveis_Equipamentos!E34/12 -> 1 | F35: 550.15 | G35: un x mês | H35: =((F35*$C$82))/'MC - VALORES ADICIONAIS'!$B$170 -> 18.33833333
A36: 1.22 | B36: COT_MES_06 | C36: Conjunto de Mesa 1,40 com Tampo MDP com 6 cadeiras | D36: un | E36: =Moveis_Equipamentos!E35/12 -> 1 | F36: 905.81 | G36: un x mês | H36: =((F36*$C$82))/'MC - VALORES ADICIONAIS'!$B$170 -> 30.19366667
A37: 1.23 | B37: 10231-ORSE/SE | C37: Fogão | D37: un | E37: =Moveis_Equipamentos!E36/12 -> 1 | F37: 614.81 | G37: un x mês | H37: =((F37*$C$82))/'MC - VALORES ADICIONAIS'!$B$170 -> 20.49366667
A38: 1.24 | B38: 029028-IOPES | C38: Cilindro de Gás de Cozinha 45 kg | D38: un | E38: =Moveis_Equipamentos!E37/12 -> 2.5 | F38: 573.33 | G38: un x mês | H38: =((F38*$C$82))/'MC - VALORES ADICIONAIS'!$B$170 -> 19.111
A39: 1.25 | B39: 4226-SINAPI/PE | C39: Gás de cozinha-GLP (kg) | D39: kg | E39: =Moveis_Equipamentos!E38 -> 1350 | F39: 7.97 | G39: un x mês | H39: =F39 -> 7.97
A40: 1.26 | B40: F020000716-EMBASA/BA | C40: Geladeira 280 litros | D40: un | E40: =Moveis_Equipamentos!E39/12 -> 1 | F40: 789.33 | G40: un x mês | H40: =((F40*$C$82))/'MC - VALORES ADICIONAIS'!$B$170 -> 26.311
A41: 1.27 | B41: COT_MICROOND | C41: Forno Microondas 20L | D41: un | E41: =Moveis_Equipamentos!E40/12 -> 1 | F41: 455.97 | G41: un x mês | H41: =((F41*$C$82))/'MC - VALORES ADICIONAIS'!$B$170 -> 15.199
A42: 1.28 | B42: COT_FAQUEI | C42: Faqueiro com 24 peças | D42: un | E42: =Moveis_Equipamentos!E41/12 -> 17 | F42: 42.9 | G42: un x mês | H42: =((F42*$C$82))/'MC - VALORES ADICIONAIS'!$B$170 -> 1.43
A43: 1.29 | B43: COT_PRATO | C43: Pratos rasos redondo em cerâmica | D43: un | E43: =Moveis_Equipamentos!E42/12 -> 39 | F43: 11.6 | G43: un x mês | H43: =((F43*$C$82))/'MC - VALORES ADICIONAIS'!$B$170 -> 0.3866666667
A44: 1.30 | B44: COT_COPO | C44: Conjunto copos em vidro 350ml com 8 unidades | D44: un | E44: =Moveis_Equipamentos!E43/12 -> 2 | F44: 28.29 | G44: un x mês | H44: =((F44*$C$82))/'MC - VALORES ADICIONAIS'!$B$170 -> 0.943
A45: 1.31 | B45: COT_TELEVISOR | C45: Smart Tv LED 32" | D45: un | E45: =Moveis_Equipamentos!E44/12 -> 3.5 | F45: 1276.72 | G45: un x mês | H45: =((F45*$C$82))/'MC - VALORES ADICIONAIS'!$B$170 -> 42.55733333
A46: 1.32 | B46: AP_JANTAR | C46: Aparelho de jantar para 06 pessoas | D46: un | E46: =Moveis_Equipamentos!E45/12 -> 6.5 | F46: 308.09 | G46: un x mês | H46: =((F46*$C$82))/'MC - VALORES ADICIONAIS'!$B$170 -> 10.26966667
A47: 1.33 | B47: 11645-ORSE/SE | C47: Armário para vestiário, em aço, com 12 portas, com cadeado | D47: un | E47: =Moveis_Equipamentos!E46/12 -> 1 | F47: 2009.44 | G47: un x mês | H47: =((F47*$C$82))/'MC - VALORES ADICIONAIS'!$B$170 -> 66.98133333
A48: 1.34 | B48: COT_CHAP | C48: Chapa gás 65 cm para grelhar | D48: un | E48: =Moveis_Equipamentos!E47/12 -> 1 | F48: 850.04 | G48: un x mês | H48: =((F48*$C$82))/'MC - VALORES ADICIONAIS'!$B$170 -> 28.33466667
A49: 1.35 | B49: 08600-ORSE/SE | C49: Coifa | D49: un | E49: =Moveis_Equipamentos!E48/12 -> 1 | F49: 1898.17 | G49: un x mês | H49: =((F49*$C$82))/'MC - VALORES ADICIONAIS'!$B$170 -> 63.27233333
A50: 1.36 | B50: COT_UTENS | C50: Conjunto de utensílios gadgets inox para cozinha | D50: conj. | E50: =Moveis_Equipamentos!E49/12 -> 1 | F50: 56.72 | G50: un x mês | H50: =((F50*$C$82))/'MC - VALORES ADICIONAIS'!$B$170 -> 1.890666667
A51: 1.37 | B51: COT_FOGAO | C51: Fogão industrial 6 bocas 30x30 baixa pressão perfil 5 | D51: un | E51: =Moveis_Equipamentos!E50/12 -> 1 | F51: 1203.46 | G51: un x mês | H51: =((F51*$C$82))/'MC - VALORES ADICIONAIS'!$B$170 -> 40.11533333
A52: 1.38 | B52: COT_FORNO | C52: Forno elétrico 46L 1500W | D52: un | E52: =Moveis_Equipamentos!E51/12 -> 1 | F52: 539.24 | G52: un x mês | H52: =((F52*$C$82))/'MC - VALORES ADICIONAIS'!$B$170 -> 17.97466667
A53: 1.39 | B53: F020000719-EMBASA/BA | C53: Freezer 246 l | D53: un | E53: =Moveis_Equipamentos!E52/12 -> 1 | F53: 1183.99 | G53: un x mês | H53: =((F53*$C$82))/'MC - VALORES ADICIONAIS'!$B$170 -> 39.46633333
A54: 1.40 | B54: 10232-ORSE/SE | C54: Geladeira industrial 300 litros | D54: un | E54: =Moveis_Equipamentos!E53/12 -> 1 | F54: 1678.73 | G54: un x mês | H54: =((F54*$C$82))/'MC - VALORES ADICIONAIS'!$B$170 -> 55.95766667
A55: 1.41 | B55: COT_PANEL | C55: Conjunto de panelas antiaderente com 7 peças | D55: un | E55: =Moveis_Equipamentos!E54/12 -> 1 | F55: 289.99 | G55: un x mês | H55: =((F55*$C$82))/'MC - VALORES ADICIONAIS'!$B$170 -> 9.666333333
A56: 1.42 | B56: COT_LIQUID | C56: Liquidificadores industriais alta rotação 2L | D56: un | E56: =Moveis_Equipamentos!E55/12 -> 1 | F56: 421.82 | G56: un x mês | H56: =((F56*$C$82))/'MC - VALORES ADICIONAIS'!$B$170 -> 14.06066667
A57: 1.43 | B57: COT_MAQ_LAVA_LOUCA | C57: Máquina de lavar louças industrial B.30 | D57: un | E57: =Moveis_Equipamentos!E56/12 -> 1 | F57: 14563.53 | G57: un x mês | H57: =((F57*$C$82))/'MC - VALORES ADICIONAIS'!$B$170 -> 485.451
A58: 1.44 | B58: COT_MAQ_LAVA_ROUPA | C58: Máquina de Lavar roupa 11kg | D58: un | E58: =Moveis_Equipamentos!E57/12 -> 1 | F58: 1646 | G58: un x mês | H58: =((F58*$C$82))/'MC - VALORES ADICIONAIS'!$B$170 -> 54.86666667
A59: 1.45 | B59: COT_MESA_BUF | C59: Carrinho Buffet Térmico Self Service Inox 8 cubas | D59: un | E59: =Moveis_Equipamentos!E58/12 -> 1 | F59: 2081.44 | G59: un x mês | H59: =((F59*$C$82))/'MC - VALORES ADICIONAIS'!$B$170 -> 69.38133333
A60: 1.46 | B60: COT_MESA_REFEIT | C60: Mesa de refeitório 10 lugares com cadeiras MDF branco de 25mm | D60: un | E60: =Moveis_Equipamentos!E59/12 -> 2.5 | F60: 3564.33 | G60: un x mês | H60: =((F60*$C$82))/'MC - VALORES ADICIONAIS'!$B$170 -> 118.811
A61: 1.47 | B61: COT_REFRESQUEIRA | C61: Refresqueira BBS2 Inox | D61: un | E61: =Moveis_Equipamentos!E60/12 -> 1 | F61: 2479.71 | G61: un x mês | H61: =((F61*$C$82))/'MC - VALORES ADICIONAIS'!$B$170 -> 82.657
A62: 1.48 | B62: COT_TABUA | C62: Tábuas para carnes 19x35x1,6cm | D62: un | E62: =Moveis_Equipamentos!E61/12 -> 1 | F62: 21.9 | G62: un x mês | H62: =((F62*$C$82))/'MC - VALORES ADICIONAIS'!$B$170 -> 0.73
A63: 1.49 | B63: COT_CAMA_BOX | C63: Cama box conjugada solteiro | D63: un | E63: =Moveis_Equipamentos!E62/12 -> 14 | F63: 286.36 | G63: un x mês | H63: =((F63*$C$82))/'MC - VALORES ADICIONAIS'!$B$170 -> 9.545333333
A64: 1.50 | B64: COT_GUARDA_ROUPA | C64: Guarda-Roupa solteiro 4 Portas | D64: un | E64: =Moveis_Equipamentos!E63/12 -> 1 | F64: 298.91 | G64: un x mês | H64: =((F64*$C$82))/'MC - VALORES ADICIONAIS'!$B$170 -> 9.963666667
A65: 1.51 | B65: COT_ROUPA_CAMA | C65: Jogo de roupa de cama solteiro 100% Algodão | D65: un | E65: =Moveis_Equipamentos!E64/12 -> 28 | F65: 142.4 | G65: un x mês | H65: =((F65*$C$82))/'MC - VALORES ADICIONAIS'!$B$170 -> 4.746666667
A66: 1.52 | B66: COT_ROUPA_BANHO | C66: Jogo de Roupa de banho 5 Peças | D66: un | E66: =Moveis_Equipamentos!E65/12 -> 14 | F66: 217.59 | G66: un x mês | H66: =((F66*$C$82))/'MC - VALORES ADICIONAIS'!$B$170 -> 7.253
A67: 1.53 | B67: COT_SOFA | C67: Conjunto de sofá 2 e 3 lugares | D67: un | E67: =Moveis_Equipamentos!E66/12 -> 1 | F67: 928.84 | G67: un x mês | H67: =((F67*$C$82))/'MC - VALORES ADICIONAIS'!$B$170 -> 30.96133333
A68: Observações | J68: =SUM(H15:H67) -> 3003.104667
J69: =(J68/2906.02)-1 -> 0.03340812061
A70: art. 305 do RIR/1999 esclarece que: "Art. 305. Poderá ser computada, como custo ou encargo, em cada período de apuração, a importância correspondente à diminuição do valor dos bens do ativo resultante do desgaste pelo uso, ação da natureza e obsolescência normal (Lei nº 4.506, de 1964, art. 57)."
A75: Instrução Normativa da Secretaria da Receita Federal (SRF)
A76: Da | B76: Depreciação | C76: Da = (VN - VR) / N
A77: VN | B77: Valor Novo
A78: VR | B78: Valor Residual
A79: N | B79: Vída útil (anos)
A81: DADOS - MÓVEIS UTENSÍLIOS | D81: CONSIDERAÇÕES
A82: Depreciação anual (%) | C82: 0.4 | D82: *Taxas adotadas dos itens 1.6 até 1.54 (exceto o item 1.25, visto que o valor adotado para gás de cozinha já está com a unidade "kg")
A83: Vida últil (anos) | C83: 2.5
A87: 1. Valor unitário final = (Depreciação anual) / (Tempo de contrato)
A88: 2. A vida útil adotada, leva em consideração o uso serevero dos itens listados, visto que são utilizados em canteiros de obras e frequentemente são deslocados entre canteiros e postos de serviço em campo.
A89: 3. Adotou-se tempo de contrato igual a 12 meses

Sheet Mobilizacao_Desmobilizacao
C1: Ministério do Desenvolvimento Regional - MDR
C2: Companhia de Desenvolvimento dos Vales do São Francisco e do Parnaíba
C3: Gerência de Operação do PISF - Centro de Controle e Operação (AD / GOI / CCO)
A5: =Moveis_Equipamentos!A5 -> TERMO DE REFERÊNCIA PARA CONTRATAÇÃO DOS RECURSOS NECESSÁRIOS À OPERAÇÃO E MANUTENÇÃO DAS INFRAESTRUTURAS DO EIXO LESTE DO PISF - PROJETO DE INTEGRAÇÃO DO SÃO FRANCISCO COM AS BACIAS HIDROGRÁFICAS DO NORDESTE SETENTRIONAL
A8: MOBILIZAÇÃO E DESMOBILIZAÇAO
A11: ITEM | B11: CÓDIGO | C11: DESCRIÇÃO | D11: UNIDADE | E11: QUANTIDADE | F11: VALOR (R$)
F12: UNITARIO | G12: TOTAL
C13: =A8 -> MOBILIZAÇÃO E DESMOBILIZAÇAO
A15: 1. | C15: MOBILIZAÇÃO (Máquinas, Equipamentos, Ferramentas, Instrumentos, Materiais, Mobiliário)
A16: 1.1 | C16: Mobilização da Equipe - Canteiro apoio geral (Floresta/PE) | D16: un | E16: 1 | F16: =CPU_MOBILIZAÇAO!I98 -> 12983.83 | G16: =ROUND(E16*F16,2) -> 12983.83
A17: 1.2 | C17: Mobilização da Equipe - Canteiro central (Sertânia/PE) | D17: un | E17: 1 | F17: =CPU_MOBILIZAÇAO!I57 -> 74839.45 | G17: =ROUND(E17*F17,2) -> 74839.45
A18: TOTAL - MOBILIZAÇÃO DA EQUIPE (R$): | G18: =SUBTOTAL(9,G16:G17) -> 87823.28
A20: 2. | C20: DESMOBILIZAÇÃO (Máquinas, Equip., Ferramentas, Instrumentos, Materiais, Mobiliário)
A21: 2.1 | C21: Desmobilização da Equipe - Canteiro apoio geral (Floresta/PE) | D21: un | E21: 1 | F21: =F16 -> 12983.83 | G21: =ROUND(E21*F21,2) -> 12983.83
A22: 2.2 | C22: Desmobilização da Equipe - Canteiro central (Sertânia/PE) | D22: un | E22: 1 | F22: =F17 -> 74839.45 | G22: =ROUND(E22*F22,2) -> 74839.45
A23: TOTAL - DESMOBILIZAÇÃO DA EQUIPE (R$): | G23: =SUBTOTAL(9,G21:G22) -> 87823.28
A25: ="TOTAL - "&C13&" - (R$):" -> TOTAL - MOBILIZAÇÃO E DESMOBILIZAÇAO - (R$): | G25: =SUBTOTAL(9,G15:G24) -> 175646.56
A28: ="RESUMO - "&A$8 -> RESUMO - MOBILIZAÇÃO E DESMOBILIZAÇAO
A29: ITEM | C29: DESCRIÇÃO | F29: VALOR TOTAL (R$)
A30: 01 | C30: =C15 -> MOBILIZAÇÃO (Máquinas, Equipamentos, Ferramentas, Instrumentos, Materiais, Mobiliário) | F30: =G18 -> 87823.28
A31: 02 | C31: =C20 -> DESMOBILIZAÇÃO (Máquinas, Equip., Ferramentas, Instrumentos, Materiais, Mobiliário) | F31: =G23 -> 87823.28
A32: ="TOTAL GERAL - "&A$8&" - (R$):" -> TOTAL GERAL - MOBILIZAÇÃO E DESMOBILIZAÇAO - (R$): | F32: =SUM(F30:G31) -> 175646.56 | I32: 230168.14
I33: =Mob_Desmob/I32 -> 0.7631228197
A35: NOME DO INFORMANTE: | F35: QUALIFICAÇÃO:
A37: ASSINATURA: | F37: DATA:
A39: OBSERVAÇÃO:
A40: 1. Considerou-se na Mobilizaçao: Transporte dos materiais e equipamentos / Instalação de Pessoal, entre outras despesas.
A41: 2. Considerou-se na Desmobilização: Retirada de máquinas e equipamentos / Demolições e/ou Recuperação de Canteiro, entre outras despesas.
A42: 3. Mobilização e Desmobilização do Quadro de Pessoal: Será realizada com os veículos previstos no contrato.

Sheet CPU_MOBILIZAÇAO
A1: Ministério do Desenvolvimento Regional -MDR
A2: Companhia de Desenvolvimento dos Vales do São Francisco e do Parnaíba
A3: Gerência de Operação do PISF-Centro de Controle e Operação (AD / GOI / CCO)
A5: SERVIÇOS DE OPERAÇÃO E MANUTENÇÃO DAS INFRAESTRUTURAS DO EIXO LESTE DO PROJETO DE INTEGRAÇÃO DO RIO SÃO FRANCISCO COM AS BACIAS HIDROGRÁFICAS DO NORDESTE SETENTRIONAL – PISF
A9: COMPOSIÇÃO DE PREÇO UNITÁRIO-MOBILIZAÇÃO
A10: Local / Canteiros: EIXO LESTE-Canteiro Central (Sertânia/PE)
A12: Distância entre Recife/PE-Canteiro Central (km): | D12: =Canteiros!H18 -> 320 | E12: Veloc. Média (km/h): | I12: 60
A14: EQUIPAMENTO
A15: CÓDIGO | B15: DESCRIÇÃO | C15: MEIO DE LOCOMOÇÃO | D15: QUANTIDADE | E15: FU | F15: K | G15: DMT (km) | H15: CHP (R$) | I15: CUSTO TOTAL (R$)
A16: E9592-DNIT/PE | B16: CAMINHÃO TRUCADO (C/ TERCEIRO EIXO) ELETRÔNICO - POTÊNCIA 231CV - PBT = 22000KG - DIST. ENTRE EIXOS 5170 MM - INCLUI CARROCERIA FIXA ABERTA DE MADEIRA | C16: Rodando | D16: =(Equipamentos!E85/Equipamentos!E85)*3 -> 3 | E16: 1 | F16: 1 | G16: =$D$12 -> 320 | H16: =VLOOKUP(A16,A$117:C$125,3,FALSE) -> 248.2681 | I16: =ROUND(D16*(((G16*F16*E16)/$I$12)*H16),2) -> 3972.29 | M16: CAMINHÃO TRUCADO (C/ TERCEIRO EIXO) ELETRÔNICO - POTÊNCIA 231CV - PBT = 22000KG - DIST. ENTRE EIXOS 5170 MM - INCLUI CARROCERIA FIXA ABERTA DE MADEIRA
A17: E9579-DNIT/PE | B17: CAMINHÃO BASCULANTE 10 M3, TRUCADO CABINE SIMPLES, PESO BRUTO TOTAL 23.000 KG, CARGA ÚTIL MÁXIMA 15.935 KG, DISTÂNCIA ENTRE EIXOS 4,80 M, POTÊNCIA 230 CV INCLUSIVE CAÇAMBA METÁLICA | C17: Rodando | D17: =(Equipamentos!E84/Equipamentos!E84)*3 -> 3 | E17: 1 | F17: 1 | G17: =$D$12 -> 320 | H17: 249.494 | I17: =ROUND(D17*(((G17*F17*E17)/$I$12)*H17),2) -> 3991.9 | M17: CAMINHÃO BASCULANTE 10 M3, TRUCADO CABINE SIMPLES, PESO BRUTO TOTAL 23.000 KG, CARGA ÚTIL MÁXIMA 15.935 KG, DISTÂNCIA ENTRE EIXOS 4,80 M, POTÊNCIA 230 CV INCLUSIVE CAÇAMBA METÁLICA
A18: E9509-DNIT/PE | B18: Caminhão Comboio para lubrificação e abastecimento (melosa), convencional totalmente equipado (Capacidade de Combustível: 5.000 l, Capacidade de Lubrificante: 500 l, Capacidade de Graxa: 200 kg, Capacidade de Água: 300 l, Recipiente para Óleo Usado: 200 l, Compressor de Ar e Bomba- d’agua) | C18: Rodando | D18: =Equipamentos!E86/Equipamentos!E86 -> 1 | E18: 1 | F18: 1 | G18: 320 | H18: 244.79 | I18: 1305.55 | M18: Caminhão guindauto com capacidade de carga até 10,0 t
A19: E9686-DNIT/PE | B19: Caminhão guindauto com capacidade de carga até 10,0 t | C19: Rodando | D19: =Equipamentos!E87/Equipamentos!E87 -> 1 | E19: 1 | F19: 1 | G19: 320 | H19: 279.49 | I19: 1490.61 | M19: Caminhão tanque, capacidade de volume 6000 l e potência 136,0 hp
A20: E9605-DNIT/PE | B20: Caminhão tanque, capacidade de volume 6000 l e potência 136,0 hp | C20: Rodando | D20: =(Equipamentos!E88/Equipamentos!E88)*4 -> 4 | E20: 1 | F20: 1 | G20: 320 | H20: 234.19 | I20: 4996.05 | M20: Carreta Reboque (para embarcação)
A21: A9353-DNIT/PE | B21: Carreta Reboque (para embarcação) | C21: Rodando | D21: =('SEGURANÇA DE BARRAGENS'!E37/'SEGURANÇA DE BARRAGENS'!E37)*2 -> 2 | E21: 1 | F21: 1 | G21: 320 | H21: 55.6056 | I21: 593.13 | M21: Minicarregadeira sobre rodas, potência líquida de 47 hp, capacidade nominal de operação de 646 kg
A22: E9666-DNIT/PE | B22: ESCAVADEIRA HIDRAULICA SOBRE ESTEIRAS CACAMBA 0,40 A 1,20 M3, PESO OPERACIONAL 21,19 T, POTENCIA LIQUIDA 173 HP | C22: Carreta | D22: =Equipamentos!E94/Equipamentos!E94+'SEGURANÇA DE BARRAGENS'!E32/'SEGURANÇA DE BARRAGENS'!E32 -> 2 | E22: 1 | F22: 2 | G22: 320 | H22: 378.45 | I22: 8073.6 | M22: Retroescavadeira sobre rodas com carregadeira, tração 4x4, potência líquida 72 hp, peso operacional mínimo de 7.140 kg, capacidade mínima da carregadeira de 0,79 m³ e da retroescavadeira mínima de 0,18 m³, profundidade de escavação máxima de 4,50 m.
A23: E9686-DNIT/PE | B23: =Equipamentos!C95 -> Grupo gerador de 13/14 KVA, 220v, trifásico, silenciado, com 100 metros de cabos e 01 QTA. | C23: Guindauto | D23: =Equipamentos!E95/Equipamentos!E95 -> 1 | E23: 1 | F23: 2 | G23: 320 | H23: 279.49 | I23: 2981.23 | M23: Trator de esteiras, potência de 150 hp, peso operacional de 16,7 t, com roda motriz elevada e lâmina com contato de 3,18 m³.
A24: E9686-DNIT/PE | B24: =Equipamentos!C96 -> Grupo gerador de 145/160 kVA | C24: Guindauto | D24: =Equipamentos!E96/Equipamentos!E96 -> 1 | E24: 1 | F24: 2 | G24: 320 | H24: 279.49 | I24: =ROUND(D24*(((G24*F24*E24)/$I$12)*H24),2) -> 2981.23 | M24: Barco tipo Alumínio, 7 m de comprimento, Alumínio soldado, reforçado, borda sem corrimão, chapa de Alumínio 2,00 cm, boca 1,50 cm, borda 0,60 cm. / Motor popa, tipo partida manual, potência 15 hp, aplicação barco Alumínio, características adicionais: válvulas automáticas descompressão, refrigerado a ar, quantidade marchas 2 und, quantidade cilíndro 2 und, capacidade tanque 23 l, tipo motor: 2 tempos, velocidade: 4.500 a 5.800 rpm.
A25: E9686-DNIT/PE | B25: =Equipamentos!C97 -> Grupo gerador de 310/340 kVA | C25: Guindauto | D25: =Equipamentos!E97/Equipamentos!E97 -> 1 | E25: 1 | F25: 2 | G25: 320 | H25: 279.49 | I25: =ROUND(D25*(((G25*F25*E25)/$I$12)*H25),2) -> 2981.23
A26: E9666-DNIT/PE | B26: MOTONIVELADORA POTENCIA BASICA LIQUIDA (PRIMEIRA MARCHA) 171 HP, PESO BRUTO 14768 KG, LARGURA DA LAMINA DE 3,7 M | C26: Carreta | D26: =Equipamentos!E105/Equipamentos!E105+'SEGURANÇA DE BARRAGENS'!E31/'SEGURANÇA DE BARRAGENS'!E31 -> 2 | E26: 1 | F26: 2 | G26: 320 | H26: 378.45 | I26: 8073.6
A27: E9666-DNIT/PE | B27: Grupo Gerador-32,0 kVA, 220 V, trifásico, silenciado, com 100 metros de cabos e 01 QTA. | C27: Carreta | D27: ='SEGURANÇA DE BARRAGENS'!E30/'SEGURANÇA DE BARRAGENS'!E30 -> 1 | E27: 1 | F27: 2 | G27: 320 | H27: 378.45 | I27: 4036.8
A28: E9666-DNIT/PE | B28: Cavalo Mecânico com Reboque M. Benz Randon LS-1634/45 29,5 t, ou similar | C28: Carreta | D28: =Equipamentos!E89/Equipamentos!E89+('SEGURANÇA DE BARRAGENS'!E34/'SEGURANÇA DE BARRAGENS'!E34) -> 2 | E28: 1 | F28: 2 | G28: 320 | H28: 378.45 | I28: 8073.6
A29: E9666-DNIT/PE | B29: Retroescavadeira sobre rodas com carregadeira, tração 4x4, potência líquida 72 hp, peso operacional mínimo de 7.140 kg, capacidade mínima da carregadeira de 0,79 m³ e da retroescavadeira mínima de 0,18 m³, profundidade de escavação máxima de 4,50 m. | C29: Carreta | D29: =(Equipamentos!E108/Equipamentos!E108)*3 -> 3 | E29: 1 | F29: 2 | G29: 320 | H29: 378.45 | I29: =ROUND(D29*(((G29*F29*E29)/$I$12)*H29),2) -> 12110.4
A30: E9666-DNIT/PE | B30: ='SEGURANÇA DE BARRAGENS'!C33 -> Trator de esteiras, potência de 150 hp, peso operacional de 16,7 t, com roda motriz elevada e lâmina com contato de 3,18 m³. | C30: Carreta | D30: ='SEGURANÇA DE BARRAGENS'!E33/'SEGURANÇA DE BARRAGENS'!E33 -> 1 | E30: 1 | F30: 2 | G30: 320 | H30: 378.45 | I30: =ROUND(D30*(((G30*F30*E30)/$I$12)*H30),2) -> 4036.8
A31: E9666-DNIT/PE | B31: Rolo compactador pé-de-carneiro vibratório, potência 125 hp, peso operacional sem/com lastro 11,95/13,30 t, impacto dinâmico 38,5/22,5 t, largura de trabalho 2,15 m. | C31: Carreta | D31: =+('SEGURANÇA DE BARRAGENS'!E35/'SEGURANÇA DE BARRAGENS'!E35) -> 1 | E31: 1 | F31: 2 | G31: 320 | H31: 378.45 | I31: 4036.8
A32: A9353-DNIT/PE | B32: Barco tipo Alumínio, 7 m de comprimento, Alumínio soldado, reforçado, borda sem corrimão, chapa de Alumínio 2,00 cm, boca 1,50 cm, borda 0,60 cm. / Motor popa, tipo partida manual, potência 15 hp, aplicação barco Alumínio, características adicionais: válvulas automáticas descompressão, refrigerado a ar, quantidade marchas 2 und, quantidade cilíndro 2 und, capacidade tanque 23 l, tipo motor: 2 tempos, velocidade: 4.500 a 5.800 rpm. | C32: Rodando | D32: =('SEGURANÇA DE BARRAGENS'!E36/'SEGURANÇA DE BARRAGENS'!E36)*2 -> 2 | E32: 1 | F32: 1 | G32: 320 | H32: 55.6056 | I32: 593.13
A34: SUB-TOTAL (R$): | I34: =SUBTOTAL(9,I16:I32) -> 74327.95
A36: MATERIAL
A37: CÓDIGO | B37: DESCRIÇÃO | C37: UNIDADE | D37: QUANTIDADE | H37: CUSTO UNIT. (R$) | I37: CUSTO TOTAL (R$)
A38: SINDUSCON/PE | B38: Alimentação (motorista que vai rodando) | C38: und | D38: =SUMIF(C16:C32,"RODANDO",D16:D32) -> 16 | H38: =$C$124 -> 16.5 | I38: =ROUND(D38*H38,2) -> 264
A39: SINDUSCON/PE | B39: Alimentação (motorista que retorna) | C39: und | D39: =SUMIF(C16:C32,"CARRETA",D16:D32)+SUMIF(C16:C32,"REBOQUE",D16:D32)+SUMIF(C16:C32,"GUINDAUTO",D16:D32) -> 15 | H39: =$C$124 -> 16.5 | I39: =ROUND(D39*H39,2) -> 247.5
A41: SUB-TOTAL (R$): | I41: =SUM(I38:I40) -> 511.5
A43: SERVIÇOS-COMPOSIÇÕES AUXILIARES
A44: CÓDIGO | B44: DESCRIÇÃO | C44: UNIDADE | D44: QUANTIDADE | H44: CUSTO UNIT. (R$) | I44: CUSTO TOTAL (R$)
A47: SUB-TOTAL (R$): | I47: 0
A49: MÃO DE OBRA
A50: CÓDIGO | B50: DESCRIÇÃO | C50: UNIDADE | D50: QUANTIDADE | H50: CUSTO UNIT. (R$) | I50: CUSTO TOTAL (R$)
A53: SUB-TOTAL (R$): | I53: 0
A55: PRODUÇÃO DA EQUIPE: | C55: 1 | D55: CUSTO (R$): | I55: =I53+I47+I41+I34 -> 74839.45
A57: TOTAL-COMPOSIÇÃO DE PREÇO UNITÁRIO-MOBILIZAÇÃO-(R$): | I57: =ROUND(I55*C55,2) -> 74839.45
A60: COMPOSIÇÃO DE PREÇO UNITÁRIO-MOBILIZAÇÃO
A61: Local / Canteiros: EIXO LESTE-Canteiro apoio geral (Floresta/PE)
A63: Distância entre Recife/PE-Canteiro apoio geral (km): | D63: =Canteiros!H13 -> 472 | E63: Veloc. Média (km/h): | I63: 60
A65: EQUIPAMENTO
A66: CÓDIGO | B66: DESCRIÇÃO | C66: MEIO DE LOCOMOÇÃO | D66: QUANTIDADE | E66: FU | F66: K | G66: DMT (km) | H66: CHP (R$) | I66: CUSTO TOTAL (R$)
A67: E9592-DNIT/PE | B67: CAMINHÃO TRUCADO (C/ TERCEIRO EIXO) ELETRÔNICO - POTÊNCIA 231CV - PBT = 22000KG - DIST. ENTRE EIXOS 5170 MM - INCLUI CARROCERIA FIXA ABERTA DE MADEIRA | C67: Rodando | D67: =Equipamentos!E85/Equipamentos!E85 -> 1 | E67: 1 | F67: 1 | G67: =$D$63 -> 472 | H67: =VLOOKUP(A67,A$117:C$125,3,FALSE) -> 248.2681 | I67: =ROUND(D67*(((G67*F67*E67)/$I$12)*H67),2) -> 1953.04
A68: E9579-DNIT/PE | B68: CAMINHÃO BASCULANTE 10 M3, TRUCADO CABINE SIMPLES, PESO BRUTO TOTAL 23.000 KG, CARGA ÚTIL MÁXIMA 15.935 KG, DISTÂNCIA ENTRE EIXOS 4,80 M, POTÊNCIA 230 CV INCLUSIVE CAÇAMBA METÁLICA | C68: Rodando | D68: =Equipamentos!E84/Equipamentos!E84 -> 1 | E68: 1 | F68: 1 | G68: =$D$63 -> 472 | H68: 249.494 | I68: 1962.69
A69: E9686-DNIT/PE | B69: Caminhão guindauto com capacidade de carga até 10,0 t | C69: Rodando | D69: =Equipamentos!E87/Equipamentos!E87 -> 1 | E69: 1 | F69: 1 | G69: =$D$63 -> 472 | H69: 279.49 | I69: 2198.65
A70: E9605-DNIT/PE | B70: Caminhão tanque, capacidade de volume 6000 l e potência 136,0 hp | C70: Rodando | D70: =Equipamentos!E88/Equipamentos!E88 -> 1 | E70: 1 | F70: 1 | G70: =$D$63 -> 472 | H70: 234.19 | I70: 1842.29
A71: A9353-DNIT/PE | B71: Carreta Reboque (para embarcação) | C71: Rodando | D71: ='SEGURANÇA DE BARRAGENS'!E37/'SEGURANÇA DE BARRAGENS'!E37 -> 1 | E71: 1 | F71: 1 | G71: =$D$63 -> 472 | H71: 55.6056 | I71: 437.43
A72: E9666-DNIT/PE | B72: Retroescavadeira sobre rodas com carregadeira, tração 4x4, potência líquida 72 hp, peso operacional mínimo de 7.140 kg, capacidade mínima da carregadeira de 0,79 m³ e da retroescavadeira mínima de 0,18 m³, profundidade de escavação máxima de 4,50 m. | C72: Carreta | D72: =(Equipamentos!E108/Equipamentos!E108)*1 -> 1 | E72: 1 | F72: 2 | G72: =$D$12 -> 320 | H72: 378.45 | I72: 4036.8
A73: A9353-DNIT/PE | B73: Barco tipo Alumínio, 7 m de comprimento, Alumínio soldado, reforçado, borda sem corrimão, chapa de Alumínio 2,00 cm, boca 1,50 cm, borda 0,60 cm. / Motor popa, tipo partida manual, potência 15 hp, aplicação barco Alumínio, características adicionais: válvulas automáticas descompressão, refrigerado a ar, quantidade marchas 2 und, quantidade cilíndro 2 und, capacidade tanque 23 l, tipo motor: 2 tempos, velocidade: 4.500 a 5.800 rpm. | C73: Rodando | D73: ='SEGURANÇA DE BARRAGENS'!E36/'SEGURANÇA DE BARRAGENS'!E36 -> 1 | E73: 1 | F73: 1 | G73: =$D$63 -> 472 | H73: 55.6056 | I73: 437.43
A75: SUB-TOTAL (R$): | I75: =SUBTOTAL(9,I67:I73) -> 12868.33
A77: MATERIAL
A78: CÓDIGO | B78: DESCRIÇÃO | C78: UNIDADE | D78: QUANTIDADE | H78: CUSTO UNIT. (R$) | I78: CUSTO TOTAL (R$)
A79: SINDUSCON/PE | B79: Alimentação (motorista que vai rodando) | C79: und | D79: =SUMIF(C67:C73,"RODANDO",D67:D73) -> 6 | H79: =$C$124 -> 16.5 | I79: =ROUND(D79*H79,2) -> 99
A80: SINDUSCON/PE | B80: Alimentação (motorista que retorna) | C80: und | D80: =SUMIF(C67:C73,"CARRETA",D67:D73)+SUMIF(C67:C73,"REBOQUE",D67:D73)+SUMIF(C67:C73,"GUINDAUTO",D67:D73) -> 1 | H80: =$C$124 -> 16.5 | I80: =ROUND(D80*H80,2) -> 16.5
A82: SUB-TOTAL (R$): | I82: =SUM(I79:I81) -> 115.5
A84: SERVIÇOS-COMPOSIÇÕES AUXILIARES
A85: CÓDIGO | B85: DESCRIÇÃO | C85: UNIDADE | D85: QUANTIDADE | H85: CUSTO UNIT. (R$) | I85: CUSTO TOTAL (R$)
A88: SUB-TOTAL (R$): | I88: 0
A90: MÃO DE OBRA
A91: CÓDIGO | B91: DESCRIÇÃO | C91: UNIDADE | D91: QUANTIDADE | H91: CUSTO UNIT. (R$) | I91: CUSTO TOTAL (R$)
A94: SUB-TOTAL (R$): | I94: 0
A96: PRODUÇÃO DA EQUIPE: | C96: 1 | D96: CUSTO (R$): | I96: =I94+I88+I82+I75 -> 12983.83
A98: TOTAL-COMPOSIÇÃO DE PREÇO UNITÁRIO-MOBILIZAÇÃO-(R$): | I98: =ROUND(I96*C96,2) -> 12983.83
A102: NOME DO INFORMANTE: | H102: QUALIFICAÇÃO:
A104: ASSINATURA: | H104: DATA:
A106: OBSERVAÇÃO:
A107: 1. Fonte de Preços: Sistemas de Custos Referenciais de Obras-DNIT/PE (Tabela SICRO/PE). Data base: Janeiro/2022.
A108: 1. Fonte de Preços: SINAPI/PE. Data base: Abril/2022.
A109: 2. Para o Cálculo do Custo da Mobilização foi utilizada a metodologia do DNIT/PE.
A110: 3. Distância considerada a partir da capital mais próxima ao canteiro
A116: Código | B116: Descrição | C116: R$/h
A117: E9592-DNIT/PE | B117: Caminhão carroceria com capacidade de 15 t-188 kW | C117: 248.2681 | D117: ok
A118: E9579-DNIT/PE | B118: Caminhão basculante com capacidade de 10 m³-188 kW | C118: 249.494 | D118: ok
A119: E9509-DNIT/PE | B119: Caminhão tanque distribuidor de asfalto com capacidade de 6.000 l-7 kW/136 kW | C119: 244.79 | D119: ok
A120: E9686-DNIT/PE | B120: Caminhão carroceria com guindauto com capacidade de 20 t.m-136 kW | C120: 279.49
A121: E9605-DNIT/PE | B121: Caminhão tanque com capacidade de 6.000 l-136 kW | C121: 234.19 | D121: ok
A122: A9353-DNIT/PE | B122: Semirreboque com 2 eixos | C122: 55.6056 | D122: ok
A123: E9666-DNIT/PE | B123: Cavalo mecânico com semirreboque com capacidade de 30 t-265 kW | C123: 378.45 | D123: ok
A124: SINDCON/PE | B124: Alimentação (motorista que vai rodando)-Convenção Coletiva de Trabalho 2021-2023-SINDCON/PE (Cláusula 19ª) | C124: 16.5
E125: =SUM(C117:C124) -> 1706.7877

Sheet CPU_DESMOBILIZAÇAO
A1: Ministério do Desenvolvimento Regional -MDR
A2: Companhia de Desenvolvimento dos Vales do São Francisco e do Parnaíba
A3: Gerência de Operação do PISF-Centro de Controle e Operação (AD / GOI / CCO)
A5: SERVIÇOS DE OPERAÇÃO E MANUTENÇÃO DAS INFRAESTRUTURAS DO EIXO LESTE DO PROJETO DE INTEGRAÇÃO DO RIO SÃO FRANCISCO COM AS BACIAS HIDROGRÁFICAS DO NORDESTE SETENTRIONAL – PISF
A9: COMPOSIÇÃO DE PREÇO UNITÁRIO-DESMOBILIZAÇÃO
A10: Local / Canteiros: EIXO LESTE-Canteiro Central (Sertânia/PE)
A12: Distância entre Recife/PE-Canteiro Central (km): | D12: =Canteiros!H18 -> 320 | E12: Veloc. Média (km/h): | I12: 60
A14: EQUIPAMENTO
A15: CÓDIGO | B15: DESCRIÇÃO | C15: MEIO DE LOCOMOÇÃO | D15: QUANTIDADE | E15: FU | F15: K | G15: DMT (km) | H15: CHP (R$) | I15: CUSTO TOTAL (R$)
A16: E9592-DNIT/PE | B16: CAMINHÃO TRUCADO (C/ TERCEIRO EIXO) ELETRÔNICO - POTÊNCIA 231CV - PBT = 22000KG - DIST. ENTRE EIXOS 5170 MM - INCLUI CARROCERIA FIXA ABERTA DE MADEIRA | C16: Rodando | D16: =CPU_MOBILIZAÇAO!D16 -> 3 | E16: 1 | F16: 1 | G16: =$D$12 -> 320 | H16: =VLOOKUP(A16,A$117:C$125,3,FALSE) -> 248.2681 | I16: =ROUND(D16*(((G16*F16*E16)/$I$12)*H16),2) -> 3972.29 | M16: CAMINHÃO TRUCADO (C/ TERCEIRO EIXO) ELETRÔNICO - POTÊNCIA 231CV - PBT = 22000KG - DIST. ENTRE EIXOS 5170 MM - INCLUI CARROCERIA FIXA ABERTA DE MADEIRA
A17: E9579-DNIT/PE | B17: CAMINHÃO BASCULANTE 10 M3, TRUCADO CABINE SIMPLES, PESO BRUTO TOTAL 23.000 KG, CARGA ÚTIL MÁXIMA 15.935 KG, DISTÂNCIA ENTRE EIXOS 4,80 M, POTÊNCIA 230 CV INCLUSIVE CAÇAMBA METÁLICA | C17: Rodando | D17: =CPU_MOBILIZAÇAO!D17 -> 3 | E17: 1 | F17: 1 | G17: =$D$12 -> 320 | H17: 249.494 | I17: =ROUND(D17*(((G17*F17*E17)/$I$12)*H17),2) -> 3991.9 | M17: CAMINHÃO BASCULANTE 10 M3, TRUCADO CABINE SIMPLES, PESO BRUTO TOTAL 23.000 KG, CARGA ÚTIL MÁXIMA 15.935 KG, DISTÂNCIA ENTRE EIXOS 4,80 M, POTÊNCIA 230 CV INCLUSIVE CAÇAMBA METÁLICA
A18: E9509-DNIT/PE | B18: Caminhão Comboio para lubrificação e abastecimento (melosa), convencional totalmente equipado (Capacidade de Combustível: 5.000 l, Capacidade de Lubrificante: 500 l, Capacidade de Graxa: 200 kg, Capacidade de Água: 300 l, Recipiente para Óleo Usado: 200 l, Compressor de Ar e Bomba- d’agua) | C18: Rodando | D18: =CPU_MOBILIZAÇAO!D18 -> 1 | E18: 1 | F18: 1 | G18: 320 | H18: 244.79 | I18: 1305.55 | M18: Caminhão guindauto com capacidade de carga até 10,0 t
A19: E9686-DNIT/PE | B19: Caminhão guindauto com capacidade de carga até 10,0 t | C19: Rodando | D19: =CPU_MOBILIZAÇAO!D19 -> 1 | E19: 1 | F19: 1 | G19: 320 | H19: 279.49 | I19: 1490.61 | M19: Caminhão tanque, capacidade de volume 6000 l e potência 136,0 hp
A20: E9605-DNIT/PE | B20: Caminhão tanque, capacidade de volume 6000 l e potência 136,0 hp | C20: Rodando | D20: =CPU_MOBILIZAÇAO!D20 -> 4 | E20: 1 | F20: 1 | G20: 320 | H20: 234.19 | I20: 4996.05 | M20: Carreta Reboque (para embarcação)
A21: A9353-DNIT/PE | B21: Carreta Reboque (para embarcação) | C21: Rodando | D21: =CPU_MOBILIZAÇAO!D21 -> 2 | E21: 1 | F21: 1 | G21: 320 | H21: 55.6056 | I21: 593.13 | M21: Minicarregadeira sobre rodas, potência líquida de 47 hp, capacidade nominal de operação de 646 kg
A22: E9666-DNIT/PE | B22: ESCAVADEIRA HIDRAULICA SOBRE ESTEIRAS CACAMBA 0,40 A 1,20 M3, PESO OPERACIONAL 21,19 T, POTENCIA LIQUIDA 173 HP | C22: Carreta | D22: =CPU_MOBILIZAÇAO!D22 -> 2 | E22: 1 | F22: 2 | G22: 320 | H22: 378.45 | I22: 8073.6 | M22: Retroescavadeira sobre rodas com carregadeira, tração 4x4, potência líquida 72 hp, peso operacional mínimo de 7.140 kg, capacidade mínima da carregadeira de 0,79 m³ e da retroescavadeira mínima de 0,18 m³, profundidade de escavação máxima de 4,50 m.
A23: E9686-DNIT/PE | B23: =Equipamentos!C95 -> Grupo gerador de 13/14 KVA, 220v, trifásico, silenciado, com 100 metros de cabos e 01 QTA. | C23: Guindauto | D23: =CPU_MOBILIZAÇAO!D23 -> 1 | E23: 1 | F23: 2 | G23: 320 | H23: 279.49 | I23: 2981.23 | M23: Trator de esteiras, potência de 150 hp, peso operacional de 16,7 t, com roda motriz elevada e lâmina com contato de 3,18 m³.
A24: E9686-DNIT/PE | B24: =Equipamentos!C96 -> Grupo gerador de 145/160 kVA | C24: Guindauto | D24: =CPU_MOBILIZAÇAO!D24 -> 1 | E24: 1 | F24: 2 | G24: 320 | H24: 279.49 | I24: =ROUND(D24*(((G24*F24*E24)/$I$12)*H24),2) -> 2981.23 | M24: Barco tipo Alumínio, 7 m de comprimento, Alumínio soldado, reforçado, borda sem corrimão, chapa de Alumínio 2,00 cm, boca 1,50 cm, borda 0,60 cm. / Motor popa, tipo partida manual, potência 15 hp, aplicação barco Alumínio, características adicionais: válvulas automáticas descompressão, refrigerado a ar, quantidade marchas 2 und, quantidade cilíndro 2 und, capacidade tanque 23 l, tipo motor: 2 tempos, velocidade: 4.500 a 5.800 rpm.
A25: E9686-DNIT/PE | B25: =Equipamentos!C97 -> Grupo gerador de 310/340 kVA | C25: Guindauto | D25: =CPU_MOBILIZAÇAO!D25 -> 1 | E25: 1 | F25: 2 | G25: 320 | H25: 279.49 | I25: =ROUND(D25*(((G25*F25*E25)/$I$12)*H25),2) -> 2981.23
A26: E9666-DNIT/PE | B26: MOTONIVELADORA POTENCIA BASICA LIQUIDA (PRIMEIRA MARCHA) 171 HP, PESO BRUTO 14768 KG, LARGURA DA LAMINA DE 3,7 M | C26: Carreta | D26: =CPU_MOBILIZAÇAO!D26 -> 2 | E26: 1 | F26: 2 | G26: 320 | H26: 378.45 | I26: 8073.6
A27: E9666-DNIT/PE | B27: Grupo Gerador-32,0 kVA, 220 V, trifásico, silenciado, com 100 metros de cabos e 01 QTA. | C27: Carreta | D27: =CPU_MOBILIZAÇAO!D27 -> 1 | E27: 1 | F27: 2 | G27: 320 | H27: 378.45 | I27: 4036.8
A28: E9666-DNIT/PE | B28: Cavalo Mecânico com Reboque M. Benz Randon LS-1634/45 29,5 t, ou similar | C28: Carreta | D28: =CPU_MOBILIZAÇAO!D28 -> 2 | E28: 1 | F28: 2 | G28: 320 | H28: 378.45 | I28: 8073.6
A29: E9666-DNIT/PE | B29: Retroescavadeira sobre rodas com carregadeira, tração 4x4, potência líquida 72 hp, peso operacional mínimo de 7.140 kg, capacidade mínima da carregadeira de 0,79 m³ e da retroescavadeira mínima de 0,18 m³, profundidade de escavação máxima de 4,50 m. | C29: Carreta | D29: =CPU_MOBILIZAÇAO!D29 -> 3 | E29: 1 | F29: 2 | G29: 320 | H29: 378.45 | I29: 12110.4
A30: E9666-DNIT/PE | B30: ='SEGURANÇA DE BARRAGENS'!C33 -> Trator de esteiras, potência de 150 hp, peso operacional de 16,7 t, com roda motriz elevada e lâmina com contato de 3,18 m³. | C30: Carreta | D30: =CPU_MOBILIZAÇAO!D30 -> 1 | E30: 1 | F30: 2 | G30: 320 | H30: 378.45 | I30: 4036.8
A31: E9666-DNIT/PE | B31: Rolo compactador pé-de-carneiro vibratório, potência 125 hp, peso operacional sem/com lastro 11,95/13,30 t, impacto dinâmico 38,5/22,5 t, largura de trabalho 2,15 m. | C31: Carreta | D31: =CPU_MOBILIZAÇAO!D31 -> 1 | E31: 1 | F31: 2 | G31: 320 | H31: 378.45 | I31: 4036.8
A32: A9353-DNIT/PE | B32: Barco tipo Alumínio, 7 m de comprimento, Alumínio soldado, reforçado, borda sem corrimão, chapa de Alumínio 2,00 cm, boca 1,50 cm, borda 0,60 cm. / Motor popa, tipo partida manual, potência 15 hp, aplicação barco Alumínio, características adicionais: válvulas automáticas descompressão, refrigerado a ar, quantidade marchas 2 und, quantidade cilíndro 2 und, capacidade tanque 23 l, tipo motor: 2 tempos, velocidade: 4.500 a 5.800 rpm. | C32: Rodando | D32: =CPU_MOBILIZAÇAO!D32 -> 2 | E32: 1 | F32: 1 | G32: 320 | H32: 55.6056 | I32: 593.13
A34: SUB-TOTAL (R$): | I34: =SUBTOTAL(9,I16:I32) -> 74327.95
A36: MATERIAL
A37: CÓDIGO | B37: DESCRIÇÃO | C37: UNIDADE | D37: QUANTIDADE | H37: CUSTO UNIT. (R$) | I37: CUSTO TOTAL (R$)
A38: SINDUSCON/PE | B38: Alimentação (motorista que vai rodando) | C38: und | D38: =SUMIF(C16:C32,"RODANDO",D16:D32) -> 16 | H38: =$C$124 -> 16.5 | I38: =ROUND(D38*H38,2) -> 264
A39: SINDUSCON/PE | B39: Alimentação (motorista que retorna) | C39: und | D39: =SUMIF(C16:C32,"CARRETA",D16:D32)+SUMIF(C16:C32,"REBOQUE",D16:D32)+SUMIF(C16:C32,"GUINDAUTO",D16:D32) -> 15 | H39: =$C$124 -> 16.5 | I39: =ROUND(D39*H39,2) -> 247.5
A41: SUB-TOTAL (R$): | I41: =SUM(I38:I40) -> 511.5
A43: SERVIÇOS-COMPOSIÇÕES AUXILIARES
A44: CÓDIGO | B44: DESCRIÇÃO | C44: UNIDADE | D44: QUANTIDADE | H44: CUSTO UNIT. (R$) | I44: CUSTO TOTAL (R$)
A47: SUB-TOTAL (R$): | I47: 0
A49: MÃO DE OBRA
A50: CÓDIGO | B50: DESCRIÇÃO | C50: UNIDADE | D50: QUANTIDADE | H50: CUSTO UNIT. (R$) | I50: CUSTO TOTAL (R$)
A53: SUB-TOTAL (R$): | I53: 0
A55: PRODUÇÃO DA EQUIPE: | C55: 1 | D55: CUSTO (R$): | I55: =I53+I47+I41+I34 -> 74839.45
A57: TOTAL-COMPOSIÇÃO DE PREÇO UNITÁRIO-DESMOBILIZAÇÃO-(R$): | I57: =ROUND(I55*C55,2) -> 74839.45
A60: COMPOSIÇÃO DE PREÇO UNITÁRIO-DESMOBILIZAÇÃO
A61: Local / Canteiros: EIXO LESTE-Canteiro apoio geral (Floresta/PE)
A63: Distância entre Recife/PE-Canteiro apoio geral (km): | D63: =Canteiros!H13 -> 472 | E63: Veloc. Média (km/h): | I63: 60
A65: EQUIPAMENTO
A66: CÓDIGO | B66: DESCRIÇÃO | C66: MEIO DE LOCOMOÇÃO | D66: QUANTIDADE | E66: FU | F66: K | G66: DMT (km) | H66: CHP (R$) | I66: CUSTO TOTAL (R$)
A67: E9592-DNIT/PE | B67: CAMINHÃO TRUCADO (C/ TERCEIRO EIXO) ELETRÔNICO - POTÊNCIA 231CV - PBT = 22000KG - DIST. ENTRE EIXOS 5170 MM - INCLUI CARROCERIA FIXA ABERTA DE MADEIRA | C67: Rodando | D67: =CPU_MOBILIZAÇAO!D67 -> 1 | E67: 1 | F67: 1 | G67: =$D$63 -> 472 | H67: =VLOOKUP(A67,A$117:C$125,3,FALSE) -> 248.2681 | I67: =ROUND(D67*(((G67*F67*E67)/$I$12)*H67),2) -> 1953.04
A68: E9579-DNIT/PE | B68: CAMINHÃO BASCULANTE 10 M3, TRUCADO CABINE SIMPLES, PESO BRUTO TOTAL 23.000 KG, CARGA ÚTIL MÁXIMA 15.935 KG, DISTÂNCIA ENTRE EIXOS 4,80 M, POTÊNCIA 230 CV INCLUSIVE CAÇAMBA METÁLICA | C68: Rodando | D68: =CPU_MOBILIZAÇAO!D68 -> 1 | E68: 1 | F68: 1 | G68: =$D$63 -> 472 | H68: 249.494 | I68: 1962.69
A69: E9686-DNIT/PE | B69: Caminhão guindauto com capacidade de carga até 10,0 t | C69: Rodando | D69: =CPU_MOBILIZAÇAO!D69 -> 1 | E69: 1 | F69: 1 | G69: =$D$63 -> 472 | H69: 279.49 | I69: 2198.65
A70: E9605-DNIT/PE | B70: Caminhão tanque, capacidade de volume 6000 l e potência 136,0 hp | C70: Rodando | D70: =CPU_MOBILIZAÇAO!D70 -> 1 | E70: 1 | F70: 1 | G70: =$D$63 -> 472 | H70: 234.19 | I70: 1842.29
A71: A9353-DNIT/PE | B71: Carreta Reboque (para embarcação) | C71: Rodando | D71: =CPU_MOBILIZAÇAO!D71 -> 1 | E71: 1 | F71: 1 | G71: =$D$63 -> 472 | H71: 55.6056 | I71: 437.43
A72: E9666-DNIT/PE | B72: Retroescavadeira sobre rodas com carregadeira, tração 4x4, potência líquida 72 hp, peso operacional mínimo de 7.140 kg, capacidade mínima da carregadeira de 0,79 m³ e da retroescavadeira mínima de 0,18 m³, profundidade de escavação máxima de 4,50 m. | C72: Carreta | D72: =CPU_MOBILIZAÇAO!D72 -> 1 | E72: 1 | F72: 2 | G72: =$D$12 -> 320 | H72: 378.45 | I72: 4036.8
A73: A9353-DNIT/PE | B73: Barco tipo Alumínio, 7 m de comprimento, Alumínio soldado, reforçado, borda sem corrimão, chapa de Alumínio 2,00 cm, boca 1,50 cm, borda 0,60 cm. / Motor popa, tipo partida manual, potência 15 hp, aplicação barco Alumínio, características adicionais: válvulas automáticas descompressão, refrigerado a ar, quantidade marchas 2 und, quantidade cilíndro 2 und, capacidade tanque 23 l, tipo motor: 2 tempos, velocidade: 4.500 a 5.800 rpm. | C73: Rodando | D73: =CPU_MOBILIZAÇAO!D73 -> 1 | E73: 1 | F73: 1 | G73: =$D$63 -> 472 | H73: 55.6056 | I73: 437.43
A75: SUB-TOTAL (R$): | I75: =SUBTOTAL(9,I67:I73) -> 12868.33
A77: MATERIAL
A78: CÓDIGO | B78: DESCRIÇÃO | C78: UNIDADE | D78: QUANTIDADE | H78: CUSTO UNIT. (R$) | I78: CUSTO TOTAL (R$)
A79: SINDUSCON/PE | B79: Alimentação (motorista que vai rodando) | C79: und | D79: =SUMIF(C67:C73,"RODANDO",D67:D73) -> 6 | H79: =$C$124 -> 16.5 | I79: =ROUND(D79*H79,2) -> 99
A80: SINDUSCON/PE | B80: Alimentação (motorista que retorna) | C80: und | D80: =SUMIF(C67:C73,"CARRETA",D67:D73)+SUMIF(C67:C73,"REBOQUE",D67:D73)+SUMIF(C67:C73,"GUINDAUTO",D67:D73) -> 1 | H80: =$C$124 -> 16.5 | I80: =ROUND(D80*H80,2) -> 16.5
A82: SUB-TOTAL (R$): | I82: =SUM(I79:I81) -> 115.5
A84: SERVIÇOS-COMPOSIÇÕES AUXILIARES
A85: CÓDIGO | B85: DESCRIÇÃO | C85: UNIDADE | D85: QUANTIDADE | H85: CUSTO UNIT. (R$) | I85: CUSTO TOTAL (R$)
A88: SUB-TOTAL (R$): | I88: 0
A90: MÃO DE OBRA
A91: CÓDIGO | B91: DESCRIÇÃO | C91: UNIDADE | D91: QUANTIDADE | H91: CUSTO UNIT. (R$) | I91: CUSTO TOTAL (R$)
A94: SUB-TOTAL (R$): | I94: 0
A96: PRODUÇÃO DA EQUIPE: | C96: 1 | D96: CUSTO (R$): | I96: =I94+I88+I82+I75 -> 12983.83
A98: TOTAL-COMPOSIÇÃO DE PREÇO UNITÁRIO-DESMOBILIZAÇÃO-(R$): | I98: =ROUND(I96*C96,2) -> 12983.83
A102: NOME DO INFORMANTE: | H102: QUALIFICAÇÃO:
A104: ASSINATURA: | H104: DATA:
A106: OBSERVAÇÃO:
A107: 1. Fonte de Preços: Sistemas de Custos Referenciais de Obras-DNIT/PE (Tabela SICRO/PE). Data base: Janeiro/2022.
A108: 1. Fonte de Preços: SINAPI/PE. Data base: Abril/2022.
A109: 2. Para o Cálculo do Custo da Mobilização foi utilizada a metodologia do DNIT/PE.
A110: 3. Distância considerada a partir da capital mais próxima ao canteiro
A116: Código | B116: Descrição | C116: R$/h
A117: E9592-DNIT/PE | B117: Caminhão carroceria com capacidade de 15 t-188 kW | C117: 248.2681 | D117: ok
A118: E9579-DNIT/PE | B118: Caminhão basculante com capacidade de 10 m³-188 kW | C118: 249.494 | D118: ok
A119: E9509-DNIT/PE | B119: Caminhão tanque distribuidor de asfalto com capacidade de 6.000 l-7 kW/136 kW | C119: 244.79 | D119: ok
A120: E9686-DNIT/PE | B120: Caminhão carroceria com guindauto com capacidade de 20 t.m-136 kW | C120: 279.49
A121: E9605-DNIT/PE | B121: Caminhão tanque com capacidade de 6.000 l-136 kW | C121: 234.19 | D121: ok
A122: A9353-DNIT/PE | B122: Semirreboque com 2 eixos | C122: 55.6056 | D122: ok
A123: E9666-DNIT/PE | B123: Cavalo mecânico com semirreboque com capacidade de 30 t-265 kW | C123: 378.45 | D123: ok
A124: SINDCON/PE | B124: Alimentação (motorista que vai rodando)-Convenção Coletiva de Trabalho 2021-2023-SINDCON/PE (Cláusula 19ª) | C124: 16.5
E125: =SUM(C117:C124) -> 1706.7877

Sheet Canteiros
D1: Ministério do Desenvolvimento Regional - MDR
D2: Companhia de Desenvolvimento dos Vales do São Francisco e do Parnaíba
D3: Gerência de Operação do PISF - Centro de Controle e Operação (AD / GOI / CCO)
A5: =Mobilizacao_Desmobilizacao!A5 -> TERMO DE REFERÊNCIA PARA CONTRATAÇÃO DOS RECURSOS NECESSÁRIOS À OPERAÇÃO E MANUTENÇÃO DAS INFRAESTRUTURAS DO EIXO LESTE DO PISF - PROJETO DE INTEGRAÇÃO DO SÃO FRANCISCO COM AS BACIAS HIDROGRÁFICAS DO NORDESTE SETENTRIONAL
A8: CANTEIROS - INFORMAÇÕES COMPLEMENTARES
A11: ITEM | B11: CANTEIRO | D11: TRECHO | E11: RESERVATÓRIOS | F11: ESTAÇÕES DE BOMBEAMENTO | G11: LOCALIZAÇÃO
G12: CAPITAL MAIS PRÓXIMA | H12: DIST. ATÉ CAPITAL (km)
A13: 1 | B13: Canteiro apoio geral (Reforma e / ou Construção) | C13: Floresta / PE | D13: Trecho 1 - Do reservatório de Itaparica até o canal 2213 | E13: Areias | F13: EBV-1 | G13: Recife / PE | H13: 472
E14: Braúnas | F14: EBV-2
E15: Mandantes | F15: EBV-3
E16: Salgueiro
E17: Muquem
A18: 2 | B18: Canteiro Central (Reforma e / ou Construção) | C18: Sertânia / PE | D18: Trecho 2 - De Reservatório Cacimba Nova até Monteiro/PB. | E18: Cacimba Nova | F18: EBV-4 | G18: Recife / PE | H18: 320
E19: Bagres
E20: Copiti
E21: Moxotó | F21: EBV-5
E22: Barreiro | F22: EBV-6
E23: Campos
E24: Barro Branco
E25: Monteiro
E26: Monteiro
A27: NOME DO INFORMANTE: | G27: QUALIFICAÇÃO:
A29: ASSINATURA: | G29: DATA:
A31: OBSERVAÇAO:

Sheet Mao_de_Obra
C1: Ministério do Desenvolvimento Regional - MDR
C2: Companhia de Desenvolvimento dos Vales do São Francisco e do Parnaíba
C3: Gerência de Operação do PISF - Centro de Controle e Operação (AD / GOI / CCO)
A5: =ORCAMENTO_RESUMO!A5 -> TERMO DE REFERÊNCIA PARA CONTRATAÇÃO DOS RECURSOS NECESSÁRIOS À OPERAÇÃO E MANUTENÇÃO DAS INFRAESTRUTURAS DO EIXO LESTE DO PISF - PROJETO DE INTEGRAÇÃO DO SÃO FRANCISCO COM AS BACIAS HIDROGRÁFICAS DO NORDESTE SETENTRIONAL
A8: EQUIPE - MÃO DE OBRA
A11: ITEM | B11: CÓDIGO | C11: DESCRIÇÃO | D11: UNIDADE | E11: QUANTIDADE | F11: VALOR (R$)
F12: UNITARIO | G12: TOTAL
A13: 1. | C13: =A8 -> EQUIPE - MÃO DE OBRA
A14: 1.1 | B14: =VLOOKUP(C14,'Mao_de_Obra (Total)'!B$15:C$69,2,FALSE) -> A1 | C14: Almoxarife | D14: homem x mês | E14: =SUMIF('Mao_de_Obra (Total)'!B$14:B$69,C14,'Mao_de_Obra (Total)'!F$14:F$69) -> 6 | F14: =VLOOKUP(C14,'Mao_de_Obra (Total)'!B$11:K$69,10,FALSE) -> 4191.83 | G14: =ROUND(E14*F14,2) -> 25150.98 | H14: 47118.6
A15: 1.2 | B15: =VLOOKUP(C15,'Mao_de_Obra (Total)'!B$15:C$69,2,FALSE) -> A1 | C15: Auxiliar Administrativo | D15: homem x mês | E15: =SUMIF('Mao_de_Obra (Total)'!B$14:B$69,C15,'Mao_de_Obra (Total)'!F$14:F$69) -> 6 | F15: =VLOOKUP(C15,'Mao_de_Obra (Total)'!B$11:K$69,10,FALSE) -> 4191.83 | G15: =ROUND(E15*F15,2) -> 25150.98 | H15: 188474.4
A16: 1.3 | B16: A9 | C16: Auxiliar de serviços gerais | D16: homem x mês | E16: =SUMIF('Mao_de_Obra (Total)'!B$14:B$69,C16,'Mao_de_Obra (Total)'!F$14:F$69) -> 36 | F16: =VLOOKUP(C16,'Mao_de_Obra (Total)'!B$11:K$69,10,FALSE) -> 3231.03 | G16: =ROUND(E16*F16,2) -> 116317.08 | H16: 466871.04
A17: 1.4 | B17: =VLOOKUP(C17,'Mao_de_Obra (Total)'!B$15:C$69,2,FALSE) -> T3 | C17: Auxiliar de Topografia | D17: homem x mês | E17: =SUMIF('Mao_de_Obra (Total)'!B$14:B$69,C17,'Mao_de_Obra (Total)'!F$14:F$69) -> 12 | F17: =VLOOKUP(C17,'Mao_de_Obra (Total)'!B$11:K$69,10,FALSE) -> 4673.62 | G17: 56083.44 | H17: 105009.36
A18: 1.5 | B18: =VLOOKUP(C18,'Mao_de_Obra (Total)'!B$15:C$69,2,FALSE) -> A8 | C18: Carpinteiro | D18: homem x mês | E18: =SUMIF('Mao_de_Obra (Total)'!B$14:B$69,C18,'Mao_de_Obra (Total)'!F$14:F$69) -> 12 | F18: =VLOOKUP(C18,'Mao_de_Obra (Total)'!B$11:K$69,10,FALSE) -> 3964.86 | G18: 47578.32 | H18: 136999.44
A19: 1.6 | B19: =VLOOKUP(C19,'Mao_de_Obra (Total)'!B$15:C$69,2,FALSE) -> CA | C19: Coordenador - Chefe de Escritório | D19: homem x mês | E19: =SUMIF('Mao_de_Obra (Total)'!B$14:B$69,C19,'Mao_de_Obra (Total)'!F$14:F$69) -> 6 | F19: =VLOOKUP(C19,'Mao_de_Obra (Total)'!B$11:K$69,10,FALSE) -> 15604.75 | G19: 93628.5 | H19: 82067.76
A20: 1.7 | B20: =VLOOKUP(C20,'Mao_de_Obra (Total)'!B$15:C$69,2,FALSE) -> P0 | C20: Coordenador - Engenheiro Sênior (Civil / Eletricista / Mecânico) | D20: homem x mês | E20: =SUMIF('Mao_de_Obra (Total)'!B$14:B$69,C20,'Mao_de_Obra (Total)'!F$14:F$69) -> 6 | F20: =VLOOKUP(C20,'Mao_de_Obra (Total)'!B$11:K$69,10,FALSE) -> 30381.93 | G20: 182291.58 | H20: 374418.84
A21: 1.8 | B21: =VLOOKUP(C21,'Mao_de_Obra (Total)'!B$15:C$69,2,FALSE) -> P1 | C21: Coordenador Manutenção - Engenheiro Pleno (Civil / Eletricista / Mecânico) | D21: homem x mês | E21: =SUMIF('Mao_de_Obra (Total)'!B$14:B$69,C21,'Mao_de_Obra (Total)'!F$14:F$69) -> 6 | F21: =VLOOKUP(C21,'Mao_de_Obra (Total)'!B$11:K$69,10,FALSE) -> 22362.89 | G21: 134177.34 | H21: 266942.76
A22: 1.9 | B22: =VLOOKUP(C22,'Mao_de_Obra (Total)'!B$15:C$69,2,FALSE) -> P1 | C22: Coordenador Operação - Engenheiro Pleno (Civil / Eletricista / Mecânico) | D22: homem x mês | E22: =SUMIF('Mao_de_Obra (Total)'!B$14:B$69,C22,'Mao_de_Obra (Total)'!F$14:F$69) -> 6 | F22: =VLOOKUP(C22,'Mao_de_Obra (Total)'!B$11:K$69,10,FALSE) -> 22362.89 | G22: 134177.34 | H22: 266942.76
A23: 1.10 | B23: =VLOOKUP(C23,'Mao_de_Obra (Total)'!B$15:C$69,2,FALSE) -> A5 | C23: Eletricista | D23: homem x mês | E23: =SUMIF('Mao_de_Obra (Total)'!B$14:B$69,C23,'Mao_de_Obra (Total)'!F$14:F$69) -> 12 | F23: =VLOOKUP(C23,'Mao_de_Obra (Total)'!B$11:K$69,10,FALSE) -> 4038.06 | G23: 48456.72 | H23: 139231.44
A24: 1.11 | B24: =VLOOKUP(C24,'Mao_de_Obra (Total)'!B$15:C$69,2,FALSE) -> A5 | C24: Eletricista (inclusive adicional de periculosidade) | D24: homem x mês | E24: =SUMIF('Mao_de_Obra (Total)'!B$14:B$69,C24,'Mao_de_Obra (Total)'!F$14:F$69) -> 18 | F24: =VLOOKUP(C24,'Mao_de_Obra (Total)'!B$11:K$69,10,FALSE) -> 5249.48 | G24: 94490.64 | H24: 844670.4
A25: 1.12 | B25: =VLOOKUP(C25,'Mao_de_Obra (Total)'!B$15:C$69,2,FALSE) -> P1 | C25: Engenheiro de Segurança e Medicina do Trabalho (inclusive adicional de periculosidade) | D25: homem x mês | E25: =SUMIF('Mao_de_Obra (Total)'!B$14:B$69,C25,'Mao_de_Obra (Total)'!F$14:F$69) -> 6 | F25: =VLOOKUP(C25,'Mao_de_Obra (Total)'!B$11:K$69,10,FALSE) -> 29071.76 | G25: 174430.56 | H25: 347025.6
A26: 1.13 | B26: =VLOOKUP(C26,'Mao_de_Obra (Total)'!B$15:C$69,2,FALSE) -> P2 | C26: Engenheiro Junior | D26: homem x mês | E26: =SUMIF('Mao_de_Obra (Total)'!B$14:B$69,C26,'Mao_de_Obra (Total)'!F$14:F$69) -> 24 | F26: =VLOOKUP(C26,'Mao_de_Obra (Total)'!B$11:K$69,10,FALSE) -> 18890.87 | G26: =ROUND(E26*F26,2) -> 453380.88 | H26: 1235866.32
A27: 1.14 | B27: =VLOOKUP(C27,'Mao_de_Obra (Total)'!B$15:C$69,2,FALSE) -> P1 | C27: Engenheiro Pleno | D27: homem x mês | E27: =SUMIF('Mao_de_Obra (Total)'!B$14:B$69,C27,'Mao_de_Obra (Total)'!F$14:F$69) -> 36 | F27: =VLOOKUP(C27,'Mao_de_Obra (Total)'!B$11:K$69,10,FALSE) -> 22362.89 | G27: =ROUND(E27*F27,2) -> 805064.04 | H27: 3203313.12
A28: 1.15 | B28: =VLOOKUP(C28,'Mao_de_Obra (Total)'!B$15:C$69,2,FALSE) -> A7 | C28: Ferreiro | D28: homem x mês | E28: =SUMIF('Mao_de_Obra (Total)'!B$14:B$69,C28,'Mao_de_Obra (Total)'!F$14:F$69) -> 6 | F28: =VLOOKUP(C28,'Mao_de_Obra (Total)'!B$11:K$69,10,FALSE) -> 3986.62 | G28: 23919.72 | H28: 137722.32
A29: 1.16 | B29: =VLOOKUP(C29,'Mao_de_Obra (Total)'!B$15:C$69,2,FALSE) -> P1 | C29: Geólogo (Geotecnia) | D29: homem x mês | E29: =SUMIF('Mao_de_Obra (Total)'!B$14:B$69,C29,'Mao_de_Obra (Total)'!F$14:F$69) -> 6 | F29: =VLOOKUP(C29,'Mao_de_Obra (Total)'!B$11:K$69,10,FALSE) -> 22362.89 | G29: 134177.34 | H29: 266942.76
A30: 1.17 | B30: =VLOOKUP(C30,'Mao_de_Obra (Total)'!B$15:C$69,2,FALSE) -> P2 | C30: Médico do Trabalho | D30: homem x mês | E30: =SUMIF('Mao_de_Obra (Total)'!B$14:B$69,C30,'Mao_de_Obra (Total)'!F$14:F$69) -> 6 | F30: =VLOOKUP(C30,'Mao_de_Obra (Total)'!B$11:K$69,10,FALSE) -> 18890.87 | G30: 113345.22 | H30: 266942.76
A31: 1.18 | B31: =VLOOKUP(C31,'Mao_de_Obra (Total)'!B$15:C$69,2,FALSE) -> A3 | C31: Motorista | D31: homem x mês | E31: =SUMIF('Mao_de_Obra (Total)'!B$14:B$69,C31,'Mao_de_Obra (Total)'!F$14:F$69) -> 6 | F31: =VLOOKUP(C31,'Mao_de_Obra (Total)'!B$11:K$69,10,FALSE) -> 5309.43 | G31: 31856.58 | H31: 62155.56
A32: 1.19 | B32: =VLOOKUP(C32,'Mao_de_Obra (Total)'!B$15:C$69,2,FALSE) -> A6 | C32: Pedreiro | D32: homem x mês | E32: =SUMIF('Mao_de_Obra (Total)'!B$14:B$69,C32,'Mao_de_Obra (Total)'!F$14:F$69) -> 24 | F32: =VLOOKUP(C32,'Mao_de_Obra (Total)'!B$11:K$69,10,FALSE) -> 4004.23 | G32: 96101.52 | H32: 322656.6
A33: 1.20 | B33: =VLOOKUP(C33,'Mao_de_Obra (Total)'!B$15:C$69,2,FALSE) -> A11 | C33: Servente | D33: homem x mês | E33: =SUMIF('Mao_de_Obra (Total)'!B$14:B$69,C33,'Mao_de_Obra (Total)'!F$14:F$69) -> 360 | F33: =VLOOKUP(C33,'Mao_de_Obra (Total)'!B$11:K$69,10,FALSE) -> 3244.27 | G33: 1167937.2 | H33: 4588992
A34: 1.21 | B34: =VLOOKUP(C34,'Mao_de_Obra (Total)'!B$15:C$69,2,FALSE) -> T2 | C34: Técnico Automação - Especialista em SDSC (inclusive adicional de periculosidade) | D34: homem x mês | E34: =SUMIF('Mao_de_Obra (Total)'!B$14:B$69,C34,'Mao_de_Obra (Total)'!F$14:F$69) -> 6 | F34: =VLOOKUP(C34,'Mao_de_Obra (Total)'!B$11:K$69,10,FALSE) -> 8560.93 | G34: 51365.58 | H34: 99377.16
A35: 1.22 | B35: =VLOOKUP(C35,'Mao_de_Obra (Total)'!B$15:C$69,2,FALSE) -> T3 | C35: Técnico Auxiliar | D35: homem x mês | E35: =SUMIF('Mao_de_Obra (Total)'!B$14:B$69,C35,'Mao_de_Obra (Total)'!F$14:F$69) -> 36 | F35: =VLOOKUP(C35,'Mao_de_Obra (Total)'!B$11:K$69,10,FALSE) -> 4673.62 | G35: 168250.32 | H35: 630056.16
A36: 1.23 | B36: =VLOOKUP(C36,'Mao_de_Obra (Total)'!B$15:C$69,2,FALSE) -> T3 | C36: Técnico Auxiliar (inclusive adicional de periculosidade) | D36: homem x mês | E36: =SUMIF('Mao_de_Obra (Total)'!B$14:B$69,C36,'Mao_de_Obra (Total)'!F$14:F$69) -> 18 | F36: =VLOOKUP(C36,'Mao_de_Obra (Total)'!B$11:K$69,10,FALSE) -> 6075.71 | G36: =ROUND(E36*F36,2) -> 109362.78
A37: 1.24 | B37: =VLOOKUP(C37,'Mao_de_Obra (Total)'!B$15:C$69,2,FALSE) -> T2 | C37: Técnico de Segurança e Medicina do Trabalho (inclusive adicional de periculosidade) | D37: homem x mês | E37: =SUMIF('Mao_de_Obra (Total)'!B$14:B$69,C37,'Mao_de_Obra (Total)'!F$14:F$69) -> 6 | F37: =VLOOKUP(C37,'Mao_de_Obra (Total)'!B$11:K$69,10,FALSE) -> 8560.93 | G37: =ROUND(E37*F37,2) -> 51365.58 | H37: 198754.32
A38: 1.25 | B38: =VLOOKUP(C38,'Mao_de_Obra (Total)'!B$15:C$69,2,FALSE) -> T2 | C38: Tecnico Edificações | D38: homem x mês | E38: =SUMIF('Mao_de_Obra (Total)'!B$14:B$69,C38,'Mao_de_Obra (Total)'!F$14:F$69) -> 12 | F38: =VLOOKUP(C38,'Mao_de_Obra (Total)'!B$11:K$69,10,FALSE) -> 6585.33 | G38: =ROUND(E38*F38,2) -> 79023.96 | H38: 229331.88
A39: 1.26 | B39: =VLOOKUP(C39,'Mao_de_Obra (Total)'!B$15:C$69,2,FALSE) -> T2 | C39: Técnico - Cadista | D39: homem x mês | E39: =SUMIF('Mao_de_Obra (Total)'!B$14:B$69,C39,'Mao_de_Obra (Total)'!F$14:F$69) -> 6 | F39: =VLOOKUP(C39,'Mao_de_Obra (Total)'!B$11:K$69,10,FALSE) -> 6585.33 | G39: 39511.98 | H39: 229331.88
A40: 1.27 | B40: =VLOOKUP(C40,'Mao_de_Obra (Total)'!B$15:C$69,2,FALSE) -> T2 | C40: Técnico Pleno - Eletrotécnico - Diurno (inclusive adicional de periculosidade) | D40: homem x mês | E40: =SUMIF('Mao_de_Obra (Total)'!B$14:B$69,C40,'Mao_de_Obra (Total)'!F$14:F$69) -> 72 | F40: =VLOOKUP(C40,'Mao_de_Obra (Total)'!B$11:K$69,10,FALSE) -> 8560.93 | G40: 616386.96 | H40: 2385051.84
A41: 1.28 | B41: =VLOOKUP(C41,'Mao_de_Obra (Total)'!B$15:C$69,2,FALSE) -> T2 | C41: Técnico Pleno - Eletrotécnico - Noturno (inclusive adicional de periculosidade) | D41: homem x mês | E41: =SUMIF('Mao_de_Obra (Total)'!B$14:B$69,C41,'Mao_de_Obra (Total)'!F$14:F$69) -> 72 | F41: =VLOOKUP(C41,'Mao_de_Obra (Total)'!B$11:K$69,10,FALSE) -> 10476.09018 | G41: 754278.49 | H41: 2918610.01
A42: 1.29 | B42: =VLOOKUP(C42,'Mao_de_Obra (Total)'!B$15:C$69,2,FALSE) -> T2 | C42: Técnico Junior - Mecânico - Diurno (inclusive adicional de periculosidade) | D42: homem x mês | E42: =SUMIF('Mao_de_Obra (Total)'!B$14:B$69,C42,'Mao_de_Obra (Total)'!F$14:F$69) -> 72 | F42: =VLOOKUP(C42,'Mao_de_Obra (Total)'!B$11:K$69,10,FALSE) -> 8560.93 | G42: =ROUND(E42*F42,2) -> 616386.96 | H42: 1192525.92
A43: 1.30 | B43: =VLOOKUP(C43,'Mao_de_Obra (Total)'!B$15:C$69,2,FALSE) -> T2 | C43: Técnico Junior - Mecânico - Noturno (inclusive adicional de periculosidade) | D43: homem x mês | E43: =SUMIF('Mao_de_Obra (Total)'!B$14:B$69,C43,'Mao_de_Obra (Total)'!F$14:F$69) -> 72 | F43: =VLOOKUP(C43,'Mao_de_Obra (Total)'!B$11:K$69,10,FALSE) -> 10476.09018 | G43: 754278.49 | H43: 1459305.01
A44: 1.31 | B44: =VLOOKUP(C44,'Mao_de_Obra (Total)'!B$15:C$69,2,FALSE) -> T2 | C44: Técnico Pleno | D44: homem x mês | E44: =SUMIF('Mao_de_Obra (Total)'!B$14:B$69,C44,'Mao_de_Obra (Total)'!F$14:F$69) -> 60 | F44: =VLOOKUP(C44,'Mao_de_Obra (Total)'!B$11:K$69,10,FALSE) -> 6585.33 | G44: 395119.8 | H44: 1070215.44
A45: 1.32 | B45: =VLOOKUP(C45,'Mao_de_Obra (Total)'!B$15:C$69,2,FALSE) -> T2 | C45: Técnico Pleno (inclusive adicional de periculosidade) | D45: homem x mês | E45: =SUMIF('Mao_de_Obra (Total)'!B$14:B$69,C45,'Mao_de_Obra (Total)'!F$14:F$69) -> 18 | F45: =VLOOKUP(C45,'Mao_de_Obra (Total)'!B$11:K$69,10,FALSE) -> 8560.93 | G45: 154096.74 | H45: 496885.8
A46: 1.33 | B46: =VLOOKUP(C46,'Mao_de_Obra (Total)'!B$15:C$69,2,FALSE) -> T1 | C46: Técnico Pleno - Analista em Tecnologia da Informação | D46: homem x mês | E46: =SUMIF('Mao_de_Obra (Total)'!B$14:B$69,C46,'Mao_de_Obra (Total)'!F$14:F$69) -> 6 | F46: =VLOOKUP(C46,'Mao_de_Obra (Total)'!B$11:K$69,10,FALSE) -> 6585.33 | G46: =ROUND(E46*F46,2) -> 39511.98
A47: 1.34 | B47: T0 | C47: Técnico - Profissional Sênior (N. Médio/Especializado) | D47: homem x mês | E47: =SUMIF('Mao_de_Obra (Total)'!B$14:B$69,C47,'Mao_de_Obra (Total)'!F$14:F$69) -> 18 | F47: =VLOOKUP(C47,'Mao_de_Obra (Total)'!B$11:K$69,10,FALSE) -> 10135.13 | G47: =ROUND(E47*F47,2) -> 182432.34 | H47: 1647821.76
A48: 1.35 | B48: =VLOOKUP(C48,'Mao_de_Obra (Total)'!B$15:C$69,2,FALSE) -> T2 | C48: Técnico Telecomunicações/Eletrônica (inclusive adicional de periculosidade) | D48: homem x mês | E48: =SUMIF('Mao_de_Obra (Total)'!B$14:B$69,C48,'Mao_de_Obra (Total)'!F$14:F$69) -> 6 | F48: =VLOOKUP(C48,'Mao_de_Obra (Total)'!B$11:K$69,10,FALSE) -> 8560.93 | G48: =ROUND(E48*F48,2) -> 51365.58 | H48: 99377.16
A49: 1.36 | B49: =VLOOKUP(C49,'Mao_de_Obra (Total)'!B$15:C$69,2,FALSE) -> TS | C49: Topógrafo | D49: homem x mês | E49: =SUMIF('Mao_de_Obra (Total)'!B$14:B$69,C49,'Mao_de_Obra (Total)'!F$14:F$69) -> 6 | F49: =VLOOKUP(C49,'Mao_de_Obra (Total)'!B$11:K$69,10,FALSE) -> 7178.1 | G49: 43068.6 | H49: 80742
A50: 1.37 | B50: =VLOOKUP(C50,'Mao_de_Obra (Total)'!B$15:C$69,2,FALSE) -> A10 | C50: Vigia diurno | D50: homem x mês | E50: =SUMIF('Mao_de_Obra (Total)'!B$14:B$69,C50,'Mao_de_Obra (Total)'!F$14:F$69) -> 24 | F50: =VLOOKUP(C50,'Mao_de_Obra (Total)'!B$11:K$69,10,FALSE) -> 3222.21 | G50: 77333.04 | H50: 295647.84
A51: 1.38 | B51: =VLOOKUP(C51,'Mao_de_Obra (Total)'!B$15:C$69,2,FALSE) -> A10 | C51: Vigia noturno | D51: homem x mês | E51: =SUMIF('Mao_de_Obra (Total)'!B$14:B$69,C51,'Mao_de_Obra (Total)'!F$14:F$69) -> 24 | F51: =VLOOKUP(C51,'Mao_de_Obra (Total)'!B$11:K$69,10,FALSE) -> 3749.480727 | G51: =ROUND(E51*F51,2) -> 89987.54
A52: ="TOTAL - "&C13&" - (R$):" -> TOTAL - EQUIPE - MÃO DE OBRA - (R$): | G52: =SUM(G14:G51) -> 8230842.7
A55: ="RESUMO - "&A$8 -> RESUMO - EQUIPE - MÃO DE OBRA
A56: ITEM | C56: DESCRIÇÃO | F56: VALOR TOTAL (R$)
A57: 1 | C57: =C13 -> EQUIPE - MÃO DE OBRA | F57: =G52 -> 8230842.7
A58: ="TOTAL GERAL - "&A$8&" - (R$):" -> TOTAL GERAL - EQUIPE - MÃO DE OBRA - (R$): | F58: =SUM(F57:G57) -> 8230842.7 | I58: 31038949.16
A61: NOME DO INFORMANTE: | F61: QUALIFICAÇÃO:
A63: ASSINATURA: | F63: DATA:
A65: OBSERVAÇÕES:
A66: 1. Considerado a carga horária de 176 horas/mês
A67: 2. Os cálculos de cada parcela que compõe o salário completo foram calculadas isoladamente. (Salário Base + Adicional de Periculosidade (quando houver) + Adicional Noturno (quando houver) + Adicional de Horas Extras (quando houver) + Encargos Sociais)
A69: 3. Adicional de Periculosidade 30%: foi previsto para todos os profissionais eletricitários (Operação e Manutenção) que trabalham em contato com rede elétrica (nas estações de bombeamento, sub-estações, etc.)
A71: 4. Hora Noturna: Hora Diurna x 20%
A72: 5. Adicional Noturno: *Considerado 120 horas/profissional/mês (Total de 8h noturnas: Período de 22h as 5h = 8h noturnas + 1h até as 6h => Súmula 60 do TST) *(Incide sobre Salário Base + Periculosidade => Súmula 191 do TST)
A74: 6. Período noturno – 22 às 5 horas, o valor da hora tem 52 minutos e 30 segundos; logo, nesse período, há 8 horas
A75: 7. Foi considerado intervalo intrajornada para todos os profissionais que trabalham em escala 12h x 36h

Sheet Mao_de_Obra (Total)
C1: Ministério do Desenvolvimento Regional - MDR
C2: Companhia de Desenvolvimento dos Vales do São Francisco e do Parnaíba
C3: Gerência de Operação do PISF - Centro de Controle e Operação (AD / GOI / CCO)
A5: =Mao_de_Obra!A5 -> TERMO DE REFERÊNCIA PARA CONTRATAÇÃO DOS RECURSOS NECESSÁRIOS À OPERAÇÃO E MANUTENÇÃO DAS INFRAESTRUTURAS DO EIXO LESTE DO PISF - PROJETO DE INTEGRAÇÃO DO SÃO FRANCISCO COM AS BACIAS HIDROGRÁFICAS DO NORDESTE SETENTRIONAL
A8: MÃO DE OBRA - TOTAL
A11: ITEM | B11: DESCRIÇÃO | C11: CLASSE | D11: Prazo (Mês) | E11: Quantidade (undxmês) | G11: SALÁRIOS MENSAL (R$) | L11: SALÁRIOS TOTAL (R$)
G12: SALÁRIO BASE (Com Encargo) | H12: Periculosidade | I12: Adicional Noturno | K12: SALÁRIO COMPLETO (Incluindo: encargos, benefícios, adicionais e horas extras) | L12: SALÁRIO BASE (Com Encargo) | M12: Periculosidade | N12: Adicional Noturno (c/ intrajornada) | O12: SALÁRIO COMPLETO (Incluindo: encargos, adicionais e horas extras)
E13: Unitária | F13: Total | H13: 0.3 | I13: Valor da Hora Noturna | J13: Valor do Adicional Noturno (c/ intrajornada) | M13: =H13 -> 0.3
A14: 1. | B14: COORDENAÇÃO GERAL
A15: 1.1 | B15: Coordenador - Engenheiro Sênior (Civil / Eletricista / Mecânico) | C15: P0 | D15: ='ORCAMENTO_CONSOLIDADO (2)'!$K$1 -> 6 | E15: =Mem_Calculo_EQUIPE!F13 -> 1 | F15: =D15*E15 -> 6 | G15: =VLOOKUP(C15,CPU_SALARIOS!$D$14:$H$39,5,FALSE) -> 30381.93 | H15: 0 | I15: 0 | J15: 0 | K15: =G15+H15+J15 -> 30381.93 | L15: =ROUND(F15*G15,2) -> 182291.58 | M15: =ROUND(F15*H15,2) -> 0 | N15: =ROUND(F15*J15,2) -> 0 | O15: =ROUND(F15*K15,2) -> 182291.58 | Y15: 1 | Z15: =AC15-$Y15 -> 0 | AA15: 1 | AB15: =AC15-AA15 -> 0 | AC15: =SUM(AD15:AG15) -> 1 | AD15: 1 | AE15: 0 | AF15: 0 | AG15: 0
A16: 2. | B16: COORDENAÇÃO DA OPERAÇÃO
A17: 2.1 | B17: Coordenador Operação - Engenheiro Pleno (Civil / Eletricista / Mecânico) | C17: P1 | D17: =D$15 -> 6 | E17: =Mem_Calculo_EQUIPE!F16 -> 1 | F17: =D17*E17 -> 6 | G17: =VLOOKUP(C17,CPU_SALARIOS!$D$14:$H$39,5,FALSE) -> 22362.89 | H17: 0 | I17: 0 | J17: 0 | K17: =G17+H17+J17 -> 22362.89 | L17: =ROUND(F17*G17,2) -> 134177.34 | M17: =ROUND(F17*H17,2) -> 0 | N17: =ROUND(F17*J17,2) -> 0 | O17: =ROUND(F17*K17,2) -> 134177.34 | Y17: 1 | Z17: =AC17-$Y17 -> 0 | AA17: 1 | AB17: =AC17-AA17 -> 0 | AC17: =SUM(AD17:AG17) -> 1 | AD17: 1 | AE17: 0 | AF17: 0 | AG17: 0
A18: 3. | B18: COORDENAÇÃO DA MANUTENÇÃO
A19: 3.1 | B19: Coordenador Manutenção - Engenheiro Pleno (Civil / Eletricista / Mecânico) | C19: P1 | D19: =D$15 -> 6 | E19: =Mem_Calculo_EQUIPE!F19 -> 1 | F19: =D19*E19 -> 6 | G19: =VLOOKUP(C19,CPU_SALARIOS!$D$14:$H$39,5,FALSE) -> 22362.89 | H19: 0 | I19: 0 | J19: 0 | K19: 22362.89 | L19: =ROUND(F19*G19,2) -> 134177.34 | M19: =ROUND(F19*H19,2) -> 0 | N19: =ROUND(F19*J19,2) -> 0 | O19: =ROUND(F19*K19,2) -> 134177.34 | Y19: 1 | Z19: =AC19-$Y19 -> 0 | AA19: 1 | AB19: =AC19-AA19 -> 0 | AC19: =SUM(AD19:AG19) -> 1 | AD19: 1 | AE19: 0 | AF19: 0 | AG19: 0
A20: 4. | B20: COORDENAÇÃO ADMINISTRAÇÃO E LOGÍSTICA
A21: 4.1 | B21: Coordenador - Chefe de Escritório | C21: CA | D21: =D$15 -> 6 | E21: =Mem_Calculo_EQUIPE!F22 -> 1 | F21: =D21*E21 -> 6 | G21: =VLOOKUP(C21,CPU_SALARIOS!$D$14:$H$39,5,FALSE) -> 15604.75 | H21: 0 | I21: 0 | J21: 0 | K21: 15604.75 | L21: =ROUND(F21*G21,2) -> 93628.5 | M21: =ROUND(F21*H21,2) -> 0 | N21: =ROUND(F21*J21,2) -> 0 | O21: =ROUND(F21*K21,2) -> 93628.5 | Y21: 1 | Z21: =AC21-$Y21 -> 0 | AA21: 1 | AB21: =AC21-AA21 -> 0 | AC21: =SUM(AD21:AG21) -> 1 | AD21: 1 | AE21: 0 | AF21: 0 | AG21: 0
A22: 4.2 | B22: Auxiliar Administrativo | C22: A1 | D22: 6 | E22: =Mem_Calculo_EQUIPE!F23 -> 1 | F22: 6 | G22: =VLOOKUP(C22,CPU_SALARIOS!$D$14:$H$39,5,FALSE) -> 4191.83 | H22: 0 | I22: 0 | J22: 0 | K22: 4191.83 | L22: 25150.98 | M22: 0 | N22: 0 | O22: 25150.98 | Y22: 2 | Z22: -1 | AA22: 2 | AB22: -1 | AC22: 1 | AD22: 1 | AE22: 0 | AF22: 0 | AG22: 0
A23: 4.3 | B23: Técnico Pleno - Analista em Tecnologia da Informação | C23: T1 | D23: 6 | E23: =Mem_Calculo_EQUIPE!F24 -> 1 | F23: 6 | G23: =VLOOKUP(C23,CPU_SALARIOS!$D$14:$H$39,5,FALSE) -> 6585.33 | H23: 0 | I23: 0 | J23: 0 | K23: 6585.33 | L23: 39511.98 | M23: 0 | N23: 0 | O23: 39511.98 | Y23: 1 | Z23: 0 | AA23: 1 | AB23: 0 | AC23: 1 | AD23: 1 | AE23: 0 | AF23: 0 | AG23: 0
A24: 4.4 | B24: Motorista | C24: A3 | D24: 6 | E24: =Mem_Calculo_EQUIPE!F25 -> 1 | F24: 6 | G24: =VLOOKUP(C24,CPU_SALARIOS!$D$14:$H$39,5,FALSE) -> 5309.43 | H24: 0 | I24: 0 | J24: 0 | K24: 5309.43 | L24: 31856.58 | M24: 0 | N24: 0 | O24: 31856.58 | Y24: 9 | Z24: -4 | AA24: 5 | AB24: 0 | AC24: 5 | AD24: 2 | AE24: 1 | AF24: 1 | AG24: 1
A25: 4.5 | B25: Almoxarife | C25: A1 | D25: 6 | E25: =Mem_Calculo_EQUIPE!F26 -> 1 | F25: 6 | G25: =VLOOKUP(C25,CPU_SALARIOS!$D$14:$H$39,5,FALSE) -> 4191.83 | H25: 0 | I25: 0 | J25: 0 | K25: 4191.83 | L25: 25150.98 | M25: 0 | N25: 0 | O25: 25150.98 | Y25: 2 | Z25: -1 | AA25: 1 | AB25: 0 | AC25: 1 | AD25: 1 | AE25: 0 | AF25: 0 | AG25: 0
A26: 4.6 | B26: Auxiliar de serviços gerais | C26: A9 | D26: 6 | E26: =Mem_Calculo_EQUIPE!F27 -> 6 | F26: =D26*E26 -> 36 | G26: =VLOOKUP(C26,CPU_SALARIOS!$D$14:$H$39,5,FALSE) -> 3231.03 | H26: 0 | I26: 0 | J26: 0 | K26: 3231.03 | L26: 116317.08 | M26: 0 | N26: 0 | O26: 116317.08 | Y26: 6 | Z26: 6 | AA26: 6 | AB26: 6 | AC26: 12 | AD26: 0 | AE26: 4 | AF26: 4 | AG26: 4
A27: 5. | B27: SEGURANÇA E MEDICINA DO TRABALHO
A28: 5.1 | B28: Engenheiro de Segurança e Medicina do Trabalho (inclusive adicional de periculosidade) | C28: P1 | D28: =D$15 -> 6 | E28: =Mem_Calculo_EQUIPE!F30 -> 1 | F28: =D28*E28 -> 6 | G28: =VLOOKUP(C28,CPU_SALARIOS!$D$14:$H$39,5,FALSE) -> 22362.89 | H28: =ROUND(((G28+J28)*$H$13),2) -> 6708.87 | I28: 0 | J28: 0 | K28: 29071.76 | L28: =ROUND(F28*G28,2) -> 134177.34 | M28: =ROUND(F28*H28,2) -> 40253.22 | N28: =ROUND(F28*J28,2) -> 0 | O28: =ROUND(F28*K28,2) -> 174430.56 | Y28: 1 | Z28: =AC28-$Y28 -> 0 | AA28: 1 | AB28: =AC28-AA28 -> 0 | AC28: =SUM(AD28:AG28) -> 1 | AD28: 1 | AE28: 0 | AF28: 0 | AG28: 0
A29: 5.2 | B29: Técnico de Segurança e Medicina do Trabalho (inclusive adicional de periculosidade) | C29: T2 | D29: 6 | E29: =Mem_Calculo_EQUIPE!F32 -> 1 | F29: =D29*E29 -> 6 | G29: =VLOOKUP(C29,CPU_SALARIOS!$D$14:$H$39,5,FALSE) -> 6585.33 | H29: =ROUND(((G29+J29)*$H$13),2) -> 1975.6 | I29: 0 | J29: 0 | K29: 8560.93 | L29: =ROUND(F29*G29,2) -> 39511.98 | M29: =ROUND(F29*H29,2) -> 11853.6 | N29: =ROUND(F29*J29,2) -> 0 | O29: =ROUND(F29*K29,2) -> 51365.58 | Y29: 7 | Z29: =AC29-$Y29 -> -5 | AA29: 3 | AB29: =AC29-AA29 -> -1 | AC29: =SUM(AD29:AG29) -> 2 | AD29: 2 | AE29: 0 | AF29: 0 | AG29: 0
A30: 5.3 | B30: Médico do Trabalho | C30: P2 | D30: 6 | E30: 1 | F30: =D30*E30 -> 6 | G30: =VLOOKUP(C30,CPU_SALARIOS!$D$14:$H$39,5,FALSE) -> 18890.87 | H30: 0 | I30: 0 | J30: 0 | K30: 18890.87 | L30: =ROUND(F30*G30,2) -> 113345.22 | M30: =ROUND(F30*H30,2) -> 0 | N30: =ROUND(F30*J30,2) -> 0 | O30: =ROUND(F30*K30,2) -> 113345.22 | Y30: 1 | Z30: =AC30-$Y30 -> 0 | AA30: 1 | AB30: =AC30-AA30 -> 0 | AC30: =SUM(AD30:AG30) -> 1 | AD30: 1 | AE30: 0 | AF30: 0 | AG30: 0
A31: 6. | B31: PLANEJAMENTO E CONTROLE DA OPERAÇÃO
A32: 6.1 | B32: Engenheiro Pleno | C32: P1 | D32: =D$15 -> 6 | E32: =Mem_Calculo_EQUIPE!F35 -> 1 | F32: =D32*E32 -> 6 | G32: =VLOOKUP(C32,CPU_SALARIOS!$D$14:$H$39,5,FALSE) -> 22362.89 | H32: 0 | I32: 0 | J32: 0 | K32: 22362.89 | L32: =ROUND(F32*G32,2) -> 134177.34 | M32: =ROUND(F32*H32,2) -> 0 | N32: =ROUND(F32*J32,2) -> 0 | O32: =ROUND(F32*K32,2) -> 134177.34 | Y32: 1 | Z32: =AC32-$Y32 -> 0 | AA32: 1 | AB32: =AC32-AA32 -> 0 | AC32: =SUM(AD32:AG32) -> 1 | AD32: 1 | AE32: 0 | AF32: 0 | AG32: 0
A33: 6.2 | B33: Engenheiro Junior | C33: P2 | D33: 6 | E33: =Mem_Calculo_EQUIPE!F36 -> 1 | F33: =D33*E33 -> 6 | G33: =VLOOKUP(C33,CPU_SALARIOS!$D$14:$H$39,5,FALSE) -> 18890.87 | H33: 0 | I33: 0 | J33: 0 | K33: 18890.87 | L33: =ROUND(F33*G33,2) -> 113345.22 | M33: =ROUND(F33*H33,2) -> 0 | N33: =ROUND(F33*J33,2) -> 0 | O33: =ROUND(F33*K33,2) -> 113345.22 | Y33: 2 | Z33: =AC33-$Y33 -> -1 | AA33: 1 | AB33: =AC33-AA33 -> 0 | AC33: =SUM(AD33:AG33) -> 1 | AD33: 1 | AE33: 0 | AF33: 0 | AG33: 0
A34: 7. | B34: PLANEJAMENTO E CONTROLE DA MANUTENÇÃO
A35: 7.1 | B35: Engenheiro Pleno | C35: P1 | D35: =D$15 -> 6 | E35: =Mem_Calculo_EQUIPE!F39 -> 5 | F35: =D35*E35 -> 30 | G35: =VLOOKUP(C35,CPU_SALARIOS!$D$14:$H$39,5,FALSE) -> 22362.89 | H35: 0 | I35: 0 | J35: 0 | K35: 22362.89 | L35: =ROUND(F35*G35,2) -> 670886.7 | M35: =ROUND(F35*H35,2) -> 0 | N35: =ROUND(F35*J35,2) -> 0 | O35: =ROUND(F35*K35,2) -> 670886.7 | Y35: 1 | Z35: =AC35-$Y35 -> 0 | AA35: 1 | AB35: =AC35-AA35 -> 0 | AC35: =SUM(AD35:AG35) -> 1 | AD35: 1 | AE35: 0 | AF35: 0 | AG35: 0
A36: 7.2 | B36: Engenheiro Junior | C36: P2 | D36: 6 | E36: =Mem_Calculo_EQUIPE!F40 -> 3 | F36: 18 | G36: =VLOOKUP(C36,CPU_SALARIOS!$D$14:$H$39,5,FALSE) -> 18890.87 | H36: 0 | I36: 0 | J36: 0 | K36: 18890.87 | L36: =ROUND(F36*G36,2) -> 340035.66 | M36: =ROUND(F36*H36,2) -> 0 | N36: =ROUND(F36*J36,2) -> 0 | O36: =ROUND(F36*K36,2) -> 340035.66 | Y36: 2 | Z36: -2 | AA36: 1 | AB36: -1 | AC36: =SUM(AD36:AG36) -> 0 | AD36: 0 | AE36: 0 | AF36: 0 | AG36: 0
A37: 7.3 | B37: Técnico Pleno | C37: T2 | D37: 6 | E37: =Mem_Calculo_EQUIPE!F41 -> 3 | F37: 18 | G37: =VLOOKUP(C37,CPU_SALARIOS!$D$14:$H$39,5,FALSE) -> 6585.33 | H37: 0 | I37: 0 | J37: 0 | K37: 6585.33 | L37: =ROUND(F37*G37,2) -> 118535.94 | M37: =ROUND(F37*H37,2) -> 0 | N37: =ROUND(F37*J37,2) -> 0 | O37: =ROUND(F37*K37,2) -> 118535.94 | Y37: 2 | Z37: -1 | AA37: 2 | AB37: -1 | AC37: =SUM(AD37:AG37) -> 1 | AD37: 1 | AE37: 0 | AF37: 0 | AG37: 0
A38: 7.4 | B38: Geólogo (Geotecnia) | C38: P1 | D38: 6 | E38: =Mem_Calculo_EQUIPE!F42 -> 1 | F38: 6 | G38: =VLOOKUP(C38,CPU_SALARIOS!$D$14:$H$39,5,FALSE) -> 22362.89 | H38: 0 | I38: 0 | J38: 0 | K38: 22362.89 | L38: =ROUND(F38*G38,2) -> 134177.34 | M38: =ROUND(F38*H38,2) -> 0 | N38: =ROUND(F38*J38,2) -> 0 | O38: =ROUND(F38*K38,2) -> 134177.34 | Y38: 2 | Z38: -1 | AA38: 1 | AB38: 0 | AC38: =SUM(AD38:AG38) -> 1 | AD38: 1 | AE38: 0 | AF38: 0 | AG38: 0
A39: 8. | B39: OPERAÇÃO
A40: 8.1 | B40: Técnico Pleno - Eletrotécnico - Diurno (inclusive adicional de periculosidade) | C40: T2 | D40: =D$15 -> 6 | E40: =Mem_Calculo_EQUIPE!F45 -> 12 | F40: =D40*E40 -> 72 | G40: =VLOOKUP(C40,CPU_SALARIOS!$D$14:$H$39,5,FALSE) -> 6585.33 | H40: =ROUND(((G40+J40)*$H$13),2) -> 1975.6 | I40: 0 | J40: 0 | K40: 8560.93 | L40: =ROUND(F40*G40,2) -> 474143.76 | M40: =ROUND(F40*H40,2) -> 142243.2 | N40: =ROUND(F40*J40,2) -> 0 | O40: =ROUND(F40*K40,2) -> 616386.96 | Y40: 18 | Z40: =AC40-$Y40 -> -6 | AA40: 12 | AB40: =AC40-AA40 -> 0 | AC40: =SUM(AD40:AG40) -> 12 | AD40: 0 | AE40: 6 | AF40: 2 | AG40: 4
A41: 8.2 | B41: Técnico Pleno - Eletrotécnico - Noturno (inclusive adicional de periculosidade) | C41: T2 | D41: 6 | E41: =Mem_Calculo_EQUIPE!F46 -> 12 | F41: 72 | G41: =VLOOKUP(C41,CPU_SALARIOS!$D$14:$H$39,5,FALSE) -> 6585.33 | H41: =ROUND(((G41+J41)*$H$13),2) -> 2417.56 | I41: =(((G41+H41)/176)*0.2) -> 10.23055682 | J41: =(I41*120)+((I41*120)/25)*5 -> 1473.200182 | K41: 10476.09018 | L41: 474143.76 | M41: 174064.32 | N41: 106070.41 | O41: 754278.49 | Y41: 18 | Z41: -6 | AA41: 12 | AB41: 0 | AC41: =SUM(AD41:AG41) -> 12 | AD41: 0 | AE41: 6 | AF41: 2 | AG41: 4
A42: 8.3 | B42: Técnico Junior - Mecânico - Diurno (inclusive adicional de periculosidade) | C42: T2 | D42: 6 | E42: =Mem_Calculo_EQUIPE!F47 -> 12 | F42: =D42*E42 -> 72 | G42: =VLOOKUP(C42,CPU_SALARIOS!$D$14:$H$39,5,FALSE) -> 6585.33 | H42: =ROUND(((G42+J42)*$H$13),2) -> 1975.6 | I42: 0 | J42: 0 | K42: 8560.93 | L42: 474143.76 | M42: 142243.2 | N42: 0 | O42: 616386.96 | Y42: 18 | Z42: -6 | AA42: 12 | AB42: 0 | AC42: =SUM(AD42:AG42) -> 12 | AD42: 0 | AE42: 6 | AF42: 2 | AG42: 4
A43: 8.4 | B43: Técnico Junior - Mecânico - Noturno (inclusive adicional de periculosidade) | C43: T2 | D43: 6 | E43: =Mem_Calculo_EQUIPE!F48 -> 12 | F43: 72 | G43: =VLOOKUP(C43,CPU_SALARIOS!$D$14:$H$39,5,FALSE) -> 6585.33 | H43: =ROUND(((G43+J43)*$H$13),2) -> 2417.56 | I43: =(((G43+H43)/176)*0.2) -> 10.23055682 | J43: =(I43*120)+((I43*120)/25)*5 -> 1473.200182 | K43: 10476.09018 | L43: 474143.76 | M43: 174064.32 | N43: 106070.41 | O43: 754278.49
A44: 8.5 | B44: Técnico Auxiliar (inclusive adicional de periculosidade) | C44: T3 | D44: 6 | E44: =Mem_Calculo_EQUIPE!F49 -> 3 | F44: 18 | G44: =VLOOKUP(C44,CPU_SALARIOS!$D$14:$H$39,5,FALSE) -> 4673.62 | H44: 1402.09 | I44: 0 | J44: 0 | K44: 6075.71 | L44: 84125.16 | M44: 25237.62 | N44: 0 | O44: 109362.78 | Y44: 18 | Z44: -5 | AA44: 4 | AB44: 9 | AC44: =SUM(AD44:AG44) -> 13 | AD44: =1*(4+4+5) -> 13 | AE44: 0 | AF44: 0 | AG44: 0
A45: 8.6 | B45: Técnico - Profissional Sênior (N. Médio/Especializado) | C45: T0 | D45: 6 | E45: =Mem_Calculo_EQUIPE!F50 -> 3 | F45: 18 | G45: =VLOOKUP(C45,CPU_SALARIOS!$D$14:$H$39,5,FALSE) -> 10135.13 | H45: 0 | I45: 0 | J45: 0 | K45: 10135.13 | L45: 182432.34 | M45: 0 | N45: 0 | O45: 182432.34
A46: 9. | B46: MANUTENÇÃO - MECÂNICA
A47: 9.1 | B47: Técnico Pleno | C47: T2 | D47: =D$15 -> 6 | E47: =Mem_Calculo_EQUIPE!F53 -> 3 | F47: =D47*E47 -> 18 | G47: =VLOOKUP(C47,CPU_SALARIOS!$D$14:$H$39,5,FALSE) -> 6585.33 | H47: 0 | I47: 0 | J47: 0 | K47: 6585.33 | L47: =ROUND(F47*G47,2) -> 118535.94 | M47: =ROUND(F47*H47,2) -> 0 | N47: =ROUND(F47*J47,2) -> 0 | O47: =ROUND(F47*K47,2) -> 118535.94 | Y47: 7 | Z47: =AC47-$Y47 -> -4 | AA47: 2 | AB47: =AC47-AA47 -> 1 | AC47: =SUM(AD47:AG47) -> 3 | AD47: 0 | AE47: 1 | AF47: 1 | AG47: 1
A48: 9.2 | B48: Técnico Auxiliar | C48: T3 | D48: 6 | E48: =Mem_Calculo_EQUIPE!F54 -> 6 | F48: 36 | G48: =VLOOKUP(C48,CPU_SALARIOS!$D$14:$H$39,5,FALSE) -> 4673.62 | H48: 0 | I48: 0 | J48: 0 | K48: 4673.62 | L48: =ROUND(F48*G48,2) -> 168250.32 | M48: =ROUND(F48*H48,2) -> 0 | N48: =ROUND(F48*J48,2) -> 0 | O48: =ROUND(F48*K48,2) -> 168250.32 | Y48: 12 | Z48: -8 | AA48: 5 | AB48: -1 | AC48: =SUM(AD48:AG48) -> 4 | AD48: 0 | AE48: 2 | AF48: 1 | AG48: 1
A49: 10. | B49: MANUTENÇÃO - EQUIPAMENTOS E SISTEMAS ELÉTRICOS
A50: 10.1 | B50: Técnico Pleno (inclusive adicional de periculosidade) | C50: T2 | D50: =D$15 -> 6 | E50: =Mem_Calculo_EQUIPE!F57 -> 3 | F50: =D50*E50 -> 18 | G50: =VLOOKUP(C50,CPU_SALARIOS!$D$14:$H$39,5,FALSE) -> 6585.33 | H50: =ROUND(((G50)*$H$13),2) -> 1975.6 | I50: 0 | J50: 0 | K50: 8560.93 | L50: =ROUND(F50*G50,2) -> 118535.94 | M50: =ROUND(F50*H50,2) -> 35560.8 | N50: =ROUND(F50*J50,2) -> 0 | O50: =ROUND(F50*K50,2) -> 154096.74 | Y50: 6 | Z50: =AC50-$Y50 -> -3 | AA50: 3 | AB50: =AC50-AA50 -> 0 | AC50: =SUM(AD50:AG50) -> 3 | AD50: 0 | AE50: 1 | AF50: 1 | AG50: 1
A51: 10.2 | B51: Eletricista (inclusive adicional de periculosidade) | C51: A5 | D51: 6 | E51: =Mem_Calculo_EQUIPE!F58 -> 3 | F51: =D51*E51 -> 18 | G51: =VLOOKUP(C51,CPU_SALARIOS!$D$14:$H$39,5,FALSE) -> 4038.06 | H51: 1211.42 | I51: 0 | J51: 0 | K51: 5249.48 | L51: =ROUND(F51*G51,2) -> 72685.08 | M51: =ROUND(F51*H51,2) -> 21805.56 | N51: =ROUND(F51*J51,2) -> 0 | O51: =ROUND(F51*K51,2) -> 94490.64 | Y51: 8 | Z51: =AC51-$Y51 -> -4 | AA51: 4 | AB51: =AC51-AA51 -> 0 | AC51: =SUM(AD51:AG51) -> 4 | AD51: 0 | AE51: 2 | AF51: 0 | AG51: 2
A52: 11. | B52: MANUTENÇÃO SDSC
A53: 11.1 | B53: Técnico Automação - Especialista em SDSC (inclusive adicional de periculosidade) | C53: T2 | D53: =D$15 -> 6 | E53: =Mem_Calculo_EQUIPE!F61 -> 1 | F53: =D53*E53 -> 6 | G53: =VLOOKUP(C53,CPU_SALARIOS!$D$14:$H$39,5,FALSE) -> 6585.33 | H53: =ROUND(((G53+J53)*$H$13),2) -> 1975.6 | I53: 0 | J53: 0 | K53: 8560.93 | L53: =ROUND(F53*G53,2) -> 39511.98 | M53: =ROUND(F53*H53,2) -> 11853.6 | N53: =ROUND(F53*J53,2) -> 0 | O53: =ROUND(F53*K53,2) -> 51365.58 | Y53: 2 | Z53: =AC53-$Y53 -> 1 | AA53: 2 | AB53: =AC53-AA53 -> 1 | AC53: =SUM(AD53:AG53) -> 3 | AD53: 0 | AE53: 1 | AF53: 1 | AG53: 1
A54: 12. | B54: MANUTENÇÃO TELECOM
A55: 12.1 | B55: Técnico Telecomunicações/Eletrônica (inclusive adicional de periculosidade) | C55: T2 | D55: =D$15 -> 6 | E55: =Mem_Calculo_EQUIPE!F64 -> 1 | F55: =D55*E55 -> 6 | G55: =VLOOKUP(C55,CPU_SALARIOS!$D$14:$H$39,5,FALSE) -> 6585.33 | H55: =ROUND(((G55+J55)*$H$13),2) -> 1975.6 | I55: 0 | J55: 0 | K55: 8560.93 | L55: =ROUND(F55*G55,2) -> 39511.98 | M55: =ROUND(F55*H55,2) -> 11853.6 | N55: =ROUND(F55*J55,2) -> 0 | O55: =ROUND(F55*K55,2) -> 51365.58 | Y55: 4 | Z55: =AC55-$Y55 -> -3 | AA55: 2 | AB55: =AC55-AA55 -> -1 | AC55: =SUM(AD55:AG55) -> 1 | AD55: 1 | AE55: 0 | AF55: 0 | AG55: 0
A56: 13. | B56: MANUTENÇÃO - CIVIL
A57: 13.1 | B57: Técnico Pleno | C57: T2 | D57: =$D$55 -> 6 | E57: =Mem_Calculo_EQUIPE!F67 -> 4 | F57: =D57*E57 -> 24 | G57: =VLOOKUP(C57,CPU_SALARIOS!$D$14:$H$39,5,FALSE) -> 6585.33 | H57: 0 | I57: 0 | J57: 0 | K57: 6585.33 | L57: =ROUND(F57*G57,2) -> 158047.92 | M57: =ROUND(F57*H57,2) -> 0 | N57: =ROUND(F57*J57,2) -> 0 | O57: =ROUND(F57*K57,2) -> 158047.92 | P57: =SUBTOTAL(9,O57:O68) -> 1927049.96 | Q57: 5
A58: 13.2 | B58: Tecnico Edificações | C58: T2 | D58: =D$15 -> 6 | E58: =Mem_Calculo_EQUIPE!F68 -> 2 | F58: 12 | G58: =VLOOKUP(C58,CPU_SALARIOS!$D$14:$H$39,5,FALSE) -> 6585.33 | H58: 0 | I58: 0 | J58: 0 | K58: 6585.33 | L58: 79023.96 | M58: 0 | N58: 0 | O58: 79023.96 | Q58: 3 | Y58: 3 | Z58: =AC58-$Y58 -> 0 | AA58: 1 | AB58: =AC58-AA58 -> 2 | AC58: =SUM(AD58:AG58) -> 3 | AD58: 0 | AE58: 1 | AF58: 1 | AG58: 1
A59: 13.3 | B59: Técnico - Cadista | C59: T2 | D59: 6 | E59: =Mem_Calculo_EQUIPE!F69 -> 1 | F59: 6 | G59: =VLOOKUP(C59,CPU_SALARIOS!$D$14:$H$39,5,FALSE) -> 6585.33 | H59: 0 | I59: 0 | J59: 0 | K59: 6585.33 | L59: 39511.98 | M59: 0 | N59: 0 | O59: 39511.98 | Q59: 3 | Y59: 3 | Z59: 0 | AA59: 2 | AB59: 1 | AC59: =SUM(AD59:AG59) -> 3 | AD59: 0 | AE59: 1 | AF59: 1 | AG59: 1
A60: 13.4 | B60: Topógrafo | C60: TS | D60: 6 | E60: =Mem_Calculo_EQUIPE!F70 -> 1 | F60: 6 | G60: =VLOOKUP(C60,CPU_SALARIOS!$D$14:$H$39,5,FALSE) -> 7178.1 | H60: 0 | I60: 0 | J60: 0 | K60: 7178.1 | L60: 43068.6 | M60: 0 | N60: 0 | O60: 43068.6 | Q60: 1
A61: 13.5 | B61: Auxiliar de Topografia | C61: T3 | D61: 6 | E61: =Mem_Calculo_EQUIPE!F71 -> 2 | F61: 12 | G61: =VLOOKUP(C61,CPU_SALARIOS!$D$14:$H$39,5,FALSE) -> 4673.62 | H61: 0 | I61: 0 | J61: 0 | K61: 4673.62 | L61: 56083.44 | M61: 0 | N61: 0 | O61: 56083.44 | Q61: 2
A62: 13.6 | B62: Carpinteiro | C62: A8 | D62: 6 | E62: =Mem_Calculo_EQUIPE!F72 -> 2 | F62: 12 | G62: =VLOOKUP(C62,CPU_SALARIOS!$D$14:$H$39,5,FALSE) -> 3964.86 | H62: 0 | I62: 0 | J62: 0 | K62: =G62+H62+J62 -> 3964.86 | L62: 47578.32 | M62: 0 | N62: 0 | O62: 47578.32 | Q62: 3
A63: 13.7 | B63: Eletricista | C63: A5 | D63: 6 | E63: =Mem_Calculo_EQUIPE!F73 -> 2 | F63: 12 | G63: =VLOOKUP(C63,CPU_SALARIOS!$D$14:$H$39,5,FALSE) -> 4038.06 | H63: 0 | I63: 0 | J63: 0 | K63: 4038.06 | L63: 48456.72 | M63: 0 | N63: 0 | O63: 48456.72 | Q63: 3
A64: 13.8 | B64: Ferreiro | C64: A7 | D64: 6 | E64: =Mem_Calculo_EQUIPE!F74 -> 1 | F64: 6 | G64: =VLOOKUP(C64,CPU_SALARIOS!$D$14:$H$39,5,FALSE) -> 3986.62 | H64: 0 | I64: 0 | J64: 0 | K64: 3986.62 | L64: 23919.72 | M64: 0 | N64: 0 | O64: 23919.72 | Q64: 3 | R64: 2
A65: 13.9 | B65: Pedreiro | C65: A6 | D65: 6 | E65: =Mem_Calculo_EQUIPE!F75 -> 4 | F65: 24 | G65: =VLOOKUP(C65,CPU_SALARIOS!$D$14:$H$39,5,FALSE) -> 4004.23 | H65: 0 | I65: 0 | J65: 0 | K65: 4004.23 | L65: 96101.52 | M65: 0 | N65: 0 | O65: 96101.52 | Q65: 7 | R65: 2
A66: 13.10 | B66: Servente | C66: A11 | D66: 6 | E66: =Mem_Calculo_EQUIPE!F76 -> 60 | F66: 360 | G66: =VLOOKUP(C66,CPU_SALARIOS!$D$14:$H$39,5,FALSE) -> 3244.27 | H66: 0 | I66: 0 | J66: 0 | K66: 3244.27 | L66: 1167937.2 | M66: 0 | N66: 0 | O66: 1167937.2 | Q66: 124 | R66: 44
A67: 13.11 | B67: Vigia diurno | C67: A10 | D67: 6 | E67: =Mem_Calculo_EQUIPE!F77 -> 4 | F67: 24 | G67: =VLOOKUP(C67,CPU_SALARIOS!$D$14:$H$39,5,FALSE) -> 3222.21 | H67: 0 | I67: 0 | J67: 0 | K67: 3222.21 | L67: 77333.04 | M67: 0 | N67: 0 | O67: 77333.04 | Q67: 6 | Y67: 4 | Z67: -4 | AA67: 2 | AB67: -2 | AC67: =SUM(AD67:AG67) -> 0 | AD67: 0 | AE67: 0 | AF67: 0 | AG67: 0
A68: 13.12 | B68: Vigia noturno | C68: A10 | D68: 6 | E68: =Mem_Calculo_EQUIPE!F78 -> 4 | F68: 24 | G68: =VLOOKUP(C68,CPU_SALARIOS!$D$14:$H$39,5,FALSE) -> 3222.21 | H68: 0 | I68: =(((G68+H68)/176)*0.2) -> 3.661602273 | J68: =(I68*120)+((I68*120)/25)*5 -> 527.2707273 | K68: 3749.480727 | L68: 77333.04 | M68: 0 | N68: 12654.5 | O68: 89987.54 | Q68: 6
A69: Total Geral - Equipe com Vínculo Mensalista (R$): | L69: =SUM(L15:L68) -> 7215014.34 | M69: =SUM(M15:M68) -> 791033.04 | N69: =SUM(N15:N68) -> 224795.32 | O69: =SUM(O15:O68) -> 8230842.7
A71: NOME DO INFORMANTE:
A73: ASSINATURA:
A75: OBSERVAÇÕES:
A76: 1. Considerado a carga horária de 176 horas/mês
A77: 2. Os cálculos de cada parcela que compõe o salário completo foram calculadas isoladamente. (Salário Base + Adicional de Periculosidade (quando houver) + Adicional Noturno (quando houver) + Adicional de Horas Extras (quando houver) + Encargos Sociais)
A78: 3. Adicional de Periculosidade 30%: foi previsto para todos os profissionais eletricitários (Operação e Manutenção) que trabalham em contato com rede elétrica (nas estações de bombeamento, sub-estações, etc.)
A79: 4. Hora Noturna: Hora Diurna x 20%
A80: 5. Adicional Noturno: *Considerado 120 horas/profissional/mês (Total de 8h noturnas: Período de 22h as 5h = 8h noturnas + 1h até as 6h => Súmula 60 do TST) *(Incide sobre Salário Base + Periculosidade => Súmula 191 do TST)
A81: 6. Período noturno – 22 às 5 horas, o valor da hora tem 52 minutos e 30 segundos; logo, nesse período, há 8 horas
A82: 6. Foi considerado intervalo intrajornada para todos os profissionais que trabalham em escala 12h x 36h
A83: 7. Foi considerado para o cálculo de horas extras os percentuais de: *5% para as horas remuneradas a 50% sobre o valor da hora normal; e *2,5% para as horas trabalhadas remuneradas a 100% sobre o valor da hora normal
A84: 8. Horas Extras: Foi estimado um percentual de 20% de horas extras no total de contrato para todos os profissionais da manutenção. Essas horas só serão pagas se houver demanda.

Sheet Mem_Calculo_EQUIPE
B1: Ministério do Desenvolvimento Regional - MDR
B2: Companhia de Desenvolvimento dos Vales do São Francisco e do Parnaíba
B3: Gerência de Operação do PISF - Centro de Controle e Operação (AD / GOI / CCO)
A5: ='Mao_de_Obra (Total)'!A5 -> TERMO DE REFERÊNCIA PARA CONTRATAÇÃO DOS RECURSOS NECESSÁRIOS À OPERAÇÃO E MANUTENÇÃO DAS INFRAESTRUTURAS DO EIXO LESTE DO PISF - PROJETO DE INTEGRAÇÃO DO SÃO FRANCISCO COM AS BACIAS HIDROGRÁFICAS DO NORDESTE SETENTRIONAL
A8: MEMORIAL DE CÁLCULO - EQUIPE DE MÃO DE OBRA
A11: ITEM | B11: DESCRIÇÃO | C11: CLASSE | D11: LOTAÇÃO | E11: MOBILIZAÇÃO | F11: QUANTIDADE | G11: OBSERVAÇÕES
A12: 1. | B12: COORDENAÇÃO GERAL
A13: 1.1 | B13: Coordenador - Engenheiro Sênior (Civil / Eletricista / Mecânico) | C13: P0 | D13: Coordenação (à definir) | E13: Escritório | F13: 1
A15: 2. | B15: COORDENAÇÃO DA OPERAÇÃO
A16: 2.1 | B16: Coordenador Operação - Engenheiro Pleno (Civil / Eletricista / Mecânico) | C16: P1 | D16: Coordenação (à definir) | E16: Escritório | F16: 1
A18: 3. | B18: COORDENAÇÃO DA MANUTENÇÃO
A19: 3.1 | B19: Coordenador Manutenção - Engenheiro Pleno (Civil / Eletricista / Mecânico) | C19: P1 | D19: Coordenação (à definir) | E19: Escritório | F19: 1
A21: 4. | B21: COORDENAÇÃO ADMINISTRAÇÃO E LOGÍSTICA
A22: 4.1 | B22: Almoxarife | C22: CA | D22: Coordenação (à definir) | E22: Não utilliza o Escritório | F22: 1
A23: 4.2 | B23: Auxiliar Administrativo | C23: A1 | D23: Coordenação (à definir) | E23: Escritório | F23: 1
A24: 4.3 | B24: Motorista | C24: A3 | D24: Coordenação (à definir) | E24: Não utilliza o Escritório | F24: 1
A25: 4.4 | B25: Coordenador - Chefe de Escritório | C25: A3 | D25: Coordenação (à definir) | E25: Escritório | F25: 1
A26: 4.5 | B26: Técnico Pleno - Analista em Tecnologia da Informação | C26: A1 | D26: Coordenação (à definir) | E26: Escritório | F26: 1
A27: 4.6 | B27: Auxiliar de serviços gerais | C27: A9 | D27: Coordenação (à definir) | E27: Não utilliza o Escritório | F27: 6
A29: 5. | B29: SEGURANÇA E MEDICINA DO TRABALHO
A30: 5.1 | B30: Engenheiro de Segurança e Medicina do Trabalho | C30: P1 | D30: Coordenação (à definir) | E30: Escritório | F30: 1
A31: 5.2 | B31: Médico do Trabalho | C31: T2 | D31: Coordenação (à definir) | E31: Escritório | F31: 1
A32: 5.3 | B32: Técnico de Segurança e Medicina do Trabalho | C32: P2 | D32: Coordenação (à definir) | E32: Pode utilizar o escritório | F32: 1
A34: 6. | B34: PLANEJAMENTO E CONTROLE DA OPERAÇÃO
A35: 6.1 | B35: Engenheiro Pleno - (Civil / Eletricista) | C35: P1 | D35: Coordenação (à definir) | E35: Planeja / Utiliza - Escritório | F35: 1
A36: 6.2 | B36: Engenheiro Junior - (Civil / Eletricista) | C36: P2 | D36: Coordenação (à definir) | E36: Planeja / Utiliza - Escritório | F36: 1
A38: 7. | B38: PLANEJAMENTO E CONTROLE DA MANUTENÇÃO
A39: 7.1 | B39: Engenheiro Pleno | C39: P1 | D39: Coordenação (à definir) | E39: Planeja / Utiliza - Escritório | F39: 5
A40: 7.2 | B40: Engenheiro Junior | C40: P2 | D40: Coordenação (à definir) | E40: Planeja / Utiliza - Escritório | F40: 3
A41: 7.3 | B41: Técnico Pleno | C41: T2 | D41: Coordenação (à definir) | E41: Pode utilizar o escritório | F41: 3
A42: 7.4 | B42: Geólogo (Geotecnia) | C42: P1 | D42: Coordenação (à definir) | E42: Pode utilizar o escritório | F42: 1
A44: 8. | B44: OPERAÇÃO
A45: 8.1 | B45: Técnico Pleno - Eletrotécnico - Diurno (inclusive adicional de periculosidade) | C45: T2 | D45: Coordenação (à definir) | E45: Não utilliza o Escritório | F45: 12
A46: 8.2 | B46: Técnico Pleno - Eletrotécnico - Noturno (inclusive adicional de periculosidade) | C46: T2 | D46: Coordenação (à definir) | E46: Não utilliza o Escritório | F46: 12
A47: 8.3 | B47: Técnico Junior - Mecânico - Diurno (inclusive adicional de periculosidade) | C47: T2 | D47: Coordenação (à definir) | E47: Não utilliza o Escritório | F47: 12
A48: 8.4 | B48: Técnico Junior - Mecânico - Noturno (inclusive adicional de periculosidade) | C48: T2 | D48: Coordenação (à definir) | E48: Não utilliza o Escritório | F48: 12
A49: 8.5 | B49: Técnico Auxiliar (inclusive adicional de periculosidade) | C49: T3 | D49: Coordenação (à definir) | E49: Não utilliza o Escritório | F49: 3
A50: 8.6 | B50: Técnico - Profissional Sênior (N. Médio/Especializado) | C50: T0 | D50: Coordenação (à definir) | E50: Não utilliza o Escritório | F50: 3
A52: 9. | B52: MANUTENÇÃO - MECÂNICA
A53: 9.1 | B53: Técnico Pleno | C53: T2 | D53: Coordenação (à definir) | E53: Pode utilizar o escritório | F53: 3
A54: 9.2 | B54: Técnico Auxiliar | C54: T3 | D54: Coordenação (à definir) | E54: Não utilliza o Escritório | F54: 6
A56: 10. | B56: MANUTENÇÃO - EQUIPAMENTOS E SISTEMAS ELÉTRICOS
A57: 10.1 | B57: Técnico Pleno | C57: T2 | D57: Coordenação (à definir) | E57: Pode utilizar o escritório | F57: 3
A58: 10.2 | B58: Técnico Auxiliar | C58: A5 | D58: Coordenação (à definir) | E58: Não utilliza o Escritório | F58: 3
A60: 11. | B60: MANUTENÇÃO SDSC
A61: 11.1 | B61: Técnico Automação - Especialista em SDSC (inclusive adicional de periculosidade) | C61: T2 | D61: Coordenação (à definir) | E61: Não utilliza o Escritório | F61: 1
A63: 12. | B63: MANUTENÇÃO TELECOM
A64: 12.1 | B64: Técnico Telecomunicações/Eletrônica (inclusive adicional de periculosidade) | C64: T2 | D64: Coordenação (à definir) | E64: Não utilliza o Escritório | F64: 1 | G64: Equipe: 01/EIXO
A66: 13. | B66: MANUTENÇÃO - CIVIL | J66: 14 | K66: MANUTENÇÃO - CIVIL - SUBESTAÇÃO, LINHA DE TRANSMISSÃO E LINHA DE DISTRIBUIÇÃO
A67: 13.1 | B67: Técnico Pleno | C67: T2 | D67: Coordenação (à definir) | E67: Pode utilizar o escritório | F67: 4 | J67: 14.1 | K67: Tecnico Edificações - Inspeção (inclusive adicional de periculosidade) | O67: T2 | P67: 0
A68: 13.2 | B68: Tecnico Edificações | C68: T2 | D68: Coordenação (à definir) | E68: Pode utilizar o escritório | F68: 2 | J68: 14.2 | K68: Carpinteiro (inclusive adicional de periculosidade) | O68: A8 | P68: 0
A69: 13.3 | B69: Técnico - Cadista | C69: T2 | D69: Coordenação (à definir) | E69: Pode utilizar o escritório | F69: 1 | J69: 14.3 | K69: Eletricista (inclusive adicional de periculosidade) | O69: A5 | P69: 0
A70: 13.4 | B70: Topógrafo | C70: TS | D70: Coordenação (à definir) | E70: Pode utilizar o escritório | F70: 1 | J70: 14.4 | K70: Ferreiro (inclusive adicional de periculosidade) | O70: A7 | P70: 0
A71: 13.5 | B71: Auxiliar de Topografia | C71: T3 | D71: Coordenação (à definir) | E71: Não utilliza o Escritório | F71: 2 | J71: 14.5 | K71: Pedreiro (inclusive adicional de periculosidade) | O71: A6 | P71: 0
A72: 13.6 | B72: Carpinteiro | C72: A8 | D72: Coordenação (à definir) | E72: Não utilliza o Escritório | F72: 2 | J72: 14.6 | K72: Servente (inclusive adicional de periculosidade) | O72: A11 | P72: 0
A73: 13.7 | B73: Eletricista | C73: A5 | D73: Coordenação (à definir) | E73: Não utilliza o Escritório | F73: 2
A74: 13.8 | B74: Ferreiro | C74: A7 | D74: Coordenação (à definir) | E74: Não utilliza o Escritório | F74: =1+P70 -> 1
A75: 13.9 | B75: Pedreiro | C75: A6 | D75: Coordenação (à definir) | E75: Não utilliza o Escritório | F75: 4
A76: 13.10 | B76: Servente | C76: A11 | D76: Coordenação (à definir) | E76: Não utilliza o Escritório | F76: =60+P72 -> 60
A77: 13.11 | B77: Vigia diurno | C77: A10 | D77: Coordenação (à definir) | E77: Não utilliza o Escritório | F77: 4
A78: 13.12 | B78: Vigia noturno | C78: A10 | D78: Coordenação (à definir) | E78: Não utilliza o Escritório | F78: 4
A80: NOME DO INFORMANTE: | G80: QUALIFICAÇÃO:
A82: ASSINATURA: | G82: DATA:
A84: OBSERVAÇAO:

Sheet SEGURANÇA DE BARRAGENS
D1: Ministério do Desenvolvimento Regional - MDR
D2: Companhia de Desenvolvimento dos Vales do São Francisco e do Parnaíba
D3: Gerência de Operação do PISF - Centro de Controle e Operação (AD / GOI / CCO)
A5: =ORCAMENTO_RESUMO!A5 -> TERMO DE REFERÊNCIA PARA CONTRATAÇÃO DOS RECURSOS NECESSÁRIOS À OPERAÇÃO E MANUTENÇÃO DAS INFRAESTRUTURAS DO EIXO LESTE DO PISF - PROJETO DE INTEGRAÇÃO DO SÃO FRANCISCO COM AS BACIAS HIDROGRÁFICAS DO NORDESTE SETENTRIONAL
A8: SEGURANÇA DE BARRAGENS
A10: 1.0 | C10: MÃO DE OBRA - SEGURANÇA DE BARRAGENS
A11: ITEM | C11: DESCRIÇÃO | D11: CLASSE | E11: Prazo (Mês) | F11: Quantidade (undxmês) | H11: SALÁRIOS MENSAL (R$) | M11: SALÁRIOS TOTAL (R$)
H12: SALÁRIO BASE (Com Encargo) | I12: Periculosidade | J12: Adicional Noturno | L12: SALÁRIO COMPLETO (Incluindo: encargos, benefícios, adicionais e horas extras) | M12: SALÁRIO BASE (Com Encargo) | N12: Periculosidade | O12: Adicional Noturno (c/ intrajornada) | P12: SALÁRIO COMPLETO (Incluindo: encargos, adicionais e horas extras)
F13: Unitária | G13: Total | I13: 0.3 | J13: Valor da Hora Noturna | K13: Valor do Adicional Noturno (c/ intrajornada) | N13: 0.3
A14: 1.1 | C14: MÃO DE OBRA - SEGURAÇA DE BARRAGEM - LESTE
A15: 1.1.1 | C15: Engenheiro Pleno - Esp. Em Seg. de Barragem | D15: P1 | E15: ='Mao_de_Obra (Total)'!D$15 -> 6 | F15: ='MEM_CALCULO_SEG DE BARRAGENS'!G14 -> 1 | G15: =E15*F15 -> 6 | H15: =VLOOKUP(D15,CPU_SALARIOS!$D$14:$H$39,5,FALSE) -> 22362.89 | I15: 0 | J15: 0 | K15: 0 | L15: =H15+I15+K15 -> 22362.89 | M15: =ROUND(G15*H15,2) -> 134177.34 | N15: =ROUND(G15*I15,2) -> 0 | O15: =ROUND(G15*K15,2) -> 0 | P15: =ROUND(G15*L15,2) -> 134177.34
A16: 1.1.2 | C16: Engenheiro. Civil (Geotecnico) | D16: P1 | E16: ='Mao_de_Obra (Total)'!D$15 -> 6 | F16: ='MEM_CALCULO_SEG DE BARRAGENS'!G15 -> 1 | G16: 6 | H16: =VLOOKUP(D16,CPU_SALARIOS!$D$14:$H$39,5,FALSE) -> 22362.89 | I16: 0 | J16: 0 | K16: 0 | L16: =H16+I16+K16 -> 22362.89 | M16: 134177.34 | N16: 0 | O16: 0 | P16: 134177.34
A17: 1.1.3 | C17: Engenheiro Junior - Civil | D17: P2 | E17: ='Mao_de_Obra (Total)'!D$15 -> 6 | F17: ='MEM_CALCULO_SEG DE BARRAGENS'!G16 -> 1 | G17: 6 | H17: =VLOOKUP(D17,CPU_SALARIOS!$D$14:$H$39,5,FALSE) -> 18890.87 | I17: 0 | J17: 0 | K17: 0 | L17: 18890.87 | M17: 113345.22 | N17: 0 | O17: 0 | P17: 113345.22 | R17: ANTES P3
A18: 1.1.4 | C18: Assistente Administrativo (Assistente social) | D18: AS | E18: ='Mao_de_Obra (Total)'!D$15 -> 6 | F18: ='MEM_CALCULO_SEG DE BARRAGENS'!G17 -> 2 | G18: 12 | H18: =VLOOKUP(D18,CPU_SALARIOS!$D$14:$H$39,5,FALSE) -> 6837.22 | I18: 0 | J18: 0 | K18: 0 | L18: 6837.22 | M18: 82046.64 | N18: 0 | O18: 0 | P18: 82046.64 | R18: ANTES T1
A19: 1.1.5 | C19: Assistente Administrativo (administrativo) | D19: A1 | E19: ='Mao_de_Obra (Total)'!D$15 -> 6 | F19: ='MEM_CALCULO_SEG DE BARRAGENS'!G18 -> 2 | G19: 12 | H19: =VLOOKUP(D19,CPU_SALARIOS!$D$14:$H$39,5,FALSE) -> 4191.83 | I19: 0 | J19: 0 | K19: 0 | L19: 4191.83 | M19: 50301.96 | N19: 0 | O19: 0 | P19: 50301.96
A20: 1.1.6 | C20: Auxiliar Administrativo | D20: A1 | E20: ='Mao_de_Obra (Total)'!D$15 -> 6 | F20: ='MEM_CALCULO_SEG DE BARRAGENS'!G19 -> 1 | G20: 6 | H20: =VLOOKUP(D20,CPU_SALARIOS!$D$14:$H$39,5,FALSE) -> 4191.83 | I20: 0 | J20: 0 | K20: 0 | L20: 4191.83 | M20: 25150.98 | N20: 0 | O20: 0 | P20: 25150.98
A21: 1.1.7 | C21: Topógrafo | D21: TS | E21: ='Mao_de_Obra (Total)'!D$15 -> 6 | F21: ='MEM_CALCULO_SEG DE BARRAGENS'!G20 -> 1 | G21: 6 | H21: =VLOOKUP(D21,CPU_SALARIOS!$D$14:$H$39,5,FALSE) -> 7178.1 | I21: 0 | J21: 0 | K21: 0 | L21: 7178.1 | M21: 43068.6 | N21: 0 | O21: 0 | P21: 43068.6 | R21: ANTES T1
A22: 1.1.8 | C22: Auxiliar de Topografia | D22: T3 | E22: ='Mao_de_Obra (Total)'!D$15 -> 6 | F22: ='MEM_CALCULO_SEG DE BARRAGENS'!G21 -> 2 | G22: 12 | H22: =VLOOKUP(D22,CPU_SALARIOS!$D$14:$H$39,5,FALSE) -> 4673.62 | I22: 0 | J22: 0 | K22: 0 | L22: 4673.62 | M22: 56083.44 | N22: 0 | O22: 0 | P22: 56083.44 | R22: ANTES T4
A23: 1.1.9 | C23: Técnico Pleno | D23: T2 | E23: ='Mao_de_Obra (Total)'!D$15 -> 6 | F23: ='MEM_CALCULO_SEG DE BARRAGENS'!G22 -> 1 | G23: 6 | H23: =VLOOKUP(D23,CPU_SALARIOS!$D$14:$H$39,5,FALSE) -> 6585.33 | I23: 0 | J23: 0 | K23: 0 | L23: 6585.33 | M23: 39511.98 | N23: 0 | O23: 0 | P23: 39511.98
A24: Total Geral - Equipe com Vínculo Mensalista (R$): | M24: =SUBTOTAL(9,M15:M23) -> 677863.5 | N24: =SUBTOTAL(9,N15:N23) -> 0 | O24: =SUBTOTAL(9,O15:O23) -> 0 | P24: =SUBTOTAL(9,P15:P23) -> 677863.5
A26: 2.0 | C26: EQUIPAMENTOS - SEGURANÇA DE BARRAGENS
A27: ITEM | B27: CÓDIGO | C27: DESCRIÇÃO | D27: UNIDADE | E27: QUANTIDADE | F27: VALOR (R$)
F28: UNITARIO | G28: TOTAL
A29: 2.1 | B29: SEGURANÇA DE BARRAGEM | T29: 12 | U29: ='ORCAMENTO_CONSOLIDADO (2)'!$K$1 -> 6
A30: 2.1.1 | B30: E9763-DNIT/PE | C30: Grupo Gerador - 32,0 kVA, 220 V, trifásico, silenciado, com 100 metros de cabos e 01 QTA. | D30: un x mês | E30: =U30 -> 6 | F30: =CPU_EQUIPAMENTOS_!E838 -> 1506.5272 | G30: =ROUND(E30*F30,2) -> 9039.16 | S30: 12 | T30: =S30/$T$29 -> 1 | U30: =T30*$U$29 -> 6
A31: 2.1.2 | B31: 13227 - SINAPI/PE | C31: MOTONIVELADORA POTENCIA BASICA LIQUIDA (PRIMEIRA MARCHA) 171 HP, PESO BRUTO 14768 KG, LARGURA DA LAMINA DE 3,7 M | D31: un x mês | E31: 6 | F31: =CPU_EQUIPAMENTOS_!E228 -> 31868.48 | G31: 191210.88 | S31: 12 | T31: 1 | U31: 6
A32: 2.1.3 | B32: 36483 - SINAPI/PE | C32: ESCAVADEIRA HIDRAULICA SOBRE ESTEIRAS CACAMBA 0,40 A 1,20 M3, PESO OPERACIONAL 21,19 T, POTENCIA LIQUIDA 173 HP | D32: un x mês | E32: 6 | F32: =CPU_EQUIPAMENTOS_!E131 -> 19454.96 | G32: 116729.76 | S32: 12 | T32: 1 | U32: 6
A33: 2.1.4 | B33: E9540-DNIT/PE | C33: Trator de esteiras, potência de 150 hp, peso operacional de 16,7 t, com roda motriz elevada e lâmina com contato de 3,18 m³. | D33: un x mês | E33: 6 | F33: =CPU_EQUIPAMENTOS_!E800 -> 19437.7788 | G33: 116626.67 | S33: 12 | T33: 1 | U33: 6
A34: 2.1.5 | B34: 89883-SINAPI/PE | C34: Cavalo Mecânico com Reboque M. Benz Randon LS-1634/45 29,5 t, ou similar | D34: un x mês | E34: 6 | F34: =CPU_EQUIPAMENTOS_!E632 -> 31798.02 | G34: 190788.12 | S34: 12 | T34: 1 | U34: 6
A35: 2.1.6 | B35: E9685-DNIT/PE | C35: Rolo compactador pé-de-carneiro vibratório, potência 125 hp, peso operacional sem/com lastro 11,95/13,30 t, impacto dinâmico 38,5/22,5 t, largura de trabalho 2,15 m. | D35: un x mês | E35: 6 | F35: =CPU_EQUIPAMENTOS_!M767 -> 14012.3244 | G35: 84073.95 | S35: 12 | T35: 1 | U35: 6
A36: 2.1.7 | B36: E9043-DNIT/PE | C36: Embarcação de alumínio com comprimento de 6 m e motor de popa - 18,60 kW (inclusive barqueiro) | D36: un x mês | E36: 18 | F36: =CPU_EQUIPAMENTOS_!I838 -> 5928.2507 | G36: 106708.51 | S36: 36 | T36: 3 | U36: 18
A37: 2.1.8 | B37: A9382-DNIT/PE | C37: Dolly intermediário com 2 eixos para semirreboque (para embarcação) | D37: un x mês | E37: 18 | F37: =CPU_EQUIPAMENTOS_!M838 -> 1767.0526 | G37: 31806.95 | S37: 36 | T37: 3 | U37: 18
A38: TOTAL - EQUIPAMENTOS DE SEGURANÇA DE BARRAGENS | G38: =SUBTOTAL(9,G30:G37) -> 846984
A41: 3.0 | C41: VEÍCULOS - SEGURANÇA DE BARRAGENS
A42: ITEM | B42: CÓDIGO | C42: DESCRIÇÃO | D42: UNIDADE | E42: QUANTIDADE | F42: VALOR (R$)
F43: UNITARIO | G43: TOTAL
A44: 3.1 | C44: VEÍCULOS AUTOMOTORES
A45: 3.1.1 | B45: B4 | C45: TIPO SEDAN 1.6 FLEX (115CV) | D45: un x mês | E45: =U45 -> 6 | F45: =VLOOKUP(B45,Mem_Calculo_VEICULOS!B$13:F$26,3,FALSE) -> 4471.890667 | G45: =F45*E45 -> 26831.344 | S45: 12 | T45: =S45/$T$29 -> 1 | U45: =T45*$U$29 -> 6
A46: 3.1.2 | B46: B11 | C46: Veículo Tipo Pick Up Cabine Dupla 4 x 4 (163 CV) | D46: un x mês | E46: =U46 -> 6 | F46: =VLOOKUP(B46,Mem_Calculo_VEICULOS!B$13:F$26,3,FALSE) -> 7404.485333 | G46: =F46*E46 -> 44426.912 | S46: 12 | T46: =S46/$T$29 -> 1 | U46: =T46*$U$29 -> 6
A47: TOTAL - VEÍCULOS AUTOMOTORES - (R$): | G47: =SUBTOTAL(9,G45:G46) -> 71258.256
A49: TOTAL - SEGURANÇA DE BARRAGENS | G49: =SUM(P24,G38,G47) -> 1596105.756

Sheet Mao_de_Obra (SEG.BARRAGENS)
C1: Ministério do Desenvolvimento Regional - MDR
C2: Companhia de Desenvolvimento dos Vales do São Francisco e do Parnaíba
C3: Gerência de Operação do PISF - Centro de Controle e Operação (AD / GOI / CCO)
A5: =ORCAMENTO_RESUMO!A5 -> TERMO DE REFERÊNCIA PARA CONTRATAÇÃO DOS RECURSOS NECESSÁRIOS À OPERAÇÃO E MANUTENÇÃO DAS INFRAESTRUTURAS DO EIXO LESTE DO PISF - PROJETO DE INTEGRAÇÃO DO SÃO FRANCISCO COM AS BACIAS HIDROGRÁFICAS DO NORDESTE SETENTRIONAL
A8: EQUIPE - MÃO DE OBRA (SEGURANÇA DE BARRAGENS)
A10: ITEM | B10: CÓDIGO | C10: DESCRIÇÃO | D10: UNIDADE | E10: QUANTIDADE | F10: VALOR (R$)
F11: UNITARIO | G11: TOTAL
A12: 1. | C12: EQUIPE - MÃO DE OBRA (SEGURANÇA DE BARRAGENS) | J12: 12 | K12: ='ORCAMENTO_CONSOLIDADO (2)'!$K$1 -> 6
A13: 1.1 | B13: P1 | C13: Engenheiro Pleno - Esp. Em Seg. de Barragem | D13: homem x mês | E13: ='MEM_CALCULO_SEG DE BARRAGENS'!G14*$K$12 -> 6 | F13: ='SEGURANÇA DE BARRAGENS'!L15 -> 22362.89 | G13: =TRUNC(E13*F13,2) -> 134177.34 | I13: 12 | J13: =I13/$J$12 -> 1
A14: 1.2 | B14: P1 | C14: Engenheiro. Civil (Geotecnico) | D14: homem x mês | E14: ='MEM_CALCULO_SEG DE BARRAGENS'!G15*$K$12 -> 6 | F14: ='SEGURANÇA DE BARRAGENS'!L16 -> 22362.89 | G14: =TRUNC(E14*F14,2) -> 134177.34 | I14: 12 | J14: =I14/$J$12 -> 1
A15: 1.3 | B15: P2 | C15: Engenheiro Junior - Civil | D15: homem x mês | E15: ='MEM_CALCULO_SEG DE BARRAGENS'!G16*$K$12 -> 6 | F15: ='SEGURANÇA DE BARRAGENS'!L17 -> 18890.87 | G15: 113345.22 | I15: 12 | J15: 1
A16: 1.4 | B16: A1 | C16: Assistente Administrativo (Assistente social) | D16: homem x mês | E16: ='MEM_CALCULO_SEG DE BARRAGENS'!G17*$K$12 -> 12 | F16: ='SEGURANÇA DE BARRAGENS'!L19 -> 4191.83 | G16: 50301.96 | I16: 24 | J16: 2
A17: 1.5 | B17: AS | C17: Assistente Administrativo (administrativo) | D17: homem x mês | E17: ='MEM_CALCULO_SEG DE BARRAGENS'!G18*$K$12 -> 12 | F17: ='SEGURANÇA DE BARRAGENS'!L18 -> 6837.22 | G17: 82046.64 | I17: 24 | J17: 2
A18: 1.6 | B18: A1 | C18: Auxiliar Administrativo | D18: homem x mês | E18: ='MEM_CALCULO_SEG DE BARRAGENS'!G19*$K$12 -> 6 | F18: ='SEGURANÇA DE BARRAGENS'!L20 -> 4191.83 | G18: 25150.98 | I18: 12 | J18: 1
A19: 1.7 | B19: TS | C19: Topógrafo | D19: homem x mês | E19: ='MEM_CALCULO_SEG DE BARRAGENS'!G20*$K$12 -> 6 | F19: ='SEGURANÇA DE BARRAGENS'!L21 -> 7178.1 | G19: 43068.6 | I19: 12 | J19: 1
A20: 1.8 | B20: T3 | C20: Auxiliar de Topografia | D20: homem x mês | E20: ='MEM_CALCULO_SEG DE BARRAGENS'!G21*$K$12 -> 12 | F20: ='SEGURANÇA DE BARRAGENS'!L22 -> 4673.62 | G20: 56083.44 | I20: 24 | J20: 2
A21: 1.9 | B21: T2 | C21: Técnico Pleno | D21: homem x mês | E21: ='MEM_CALCULO_SEG DE BARRAGENS'!G22*$K$12 -> 6 | F21: ='SEGURANÇA DE BARRAGENS'!L23 -> 6585.33 | G21: 39511.98 | I21: 12 | J21: 1
A22: TOTAL - EQUIPE - MÃO DE OBRA (SEGURANÇA DE BARRAGENS) - (R$): | G22: =SUBTOTAL(9,G13:G21) -> 677863.5
A25: RESUMO - EQUIPE - MÃO DE OBRA (SEGURANÇA DE BARRAGENS)
A26: ITEM | C26: DESCRIÇÃO | F26: VALOR TOTAL (R$)
A27: 1 | C27: EQUIPE - MÃO DE OBRA (SEGURANÇA DE BARRAGENS) | F27: =G22 -> 677863.5
A28: TOTAL GERAL - EQUIPE - MÃO DE OBRA (SEGURANÇA DE BARRAGENS) - (R$): | F28: =G22 -> 677863.5
A31: NOME DO INFORMANTE: | F31: QUALIFICAÇÃO:
A33: ASSINATURA: | F33: DATA:
A35: OBSERVAÇÕES:
A36: 1. Considerado a carga horária de 176 horas/mês
A37: 2. Os cálculos de cada parcela que compõe o salário completo foram calculadas isoladamente. (Salário Base + Adicional de Periculosidade (quando houver) + Adicional Noturno (quando houver) + Adicional de Horas Extras (quando houver) + Encargos Sociais)
A39: 3. Adicional de Periculosidade 30%: foi previsto para todos os profissionais eletricitários (Operação e Manutenção) que trabalham em contato com rede elétrica (nas estações de bombeamento, sub-estações, etc.)
A41: 4. Hora Noturna: Hora Diurna x 20%
A42: 5. Adicional Noturno: *Considerado 120 horas/profissional/mês (Total de 8h noturnas: Período de 22h as 5h = 8h noturnas + 1h até as 6h => Súmula 60 do TST) *(Incide sobre Salário Base + Periculosidade => Súmula 191 do TST)
A44: 6. Período noturno – 22 às 5 horas, o valor da hora tem 52 minutos e 30 segundos; logo, nesse período, há 8 horas
A45: 7. Foi considerado intervalo intrajornada para todos os profissionais que trabalham em escala 12h x 36h

Sheet MEM_CALCULO_SEG DE BARRAGENS
C1: Ministério do Desenvolvimento Regional - MDR
C2: Companhia de Desenvolvimento dos Vales do São Francisco e do Parnaíba
C3: Gerência de Operação do PISF - Centro de Controle e Operação (AD / GOI / CCO)
A5: =ORCAMENTO_RESUMO!A5 -> TERMO DE REFERÊNCIA PARA CONTRATAÇÃO DOS RECURSOS NECESSÁRIOS À OPERAÇÃO E MANUTENÇÃO DAS INFRAESTRUTURAS DO EIXO LESTE DO PISF - PROJETO DE INTEGRAÇÃO DO SÃO FRANCISCO COM AS BACIAS HIDROGRÁFICAS DO NORDESTE SETENTRIONAL
A8: MEMÓRIA DE CÁLCULO - EQUIPE - MÃO DE OBRA (SEGURANÇA DE BARRAGENS)
A10: ITEM | C10: DESCRIÇÃO | D10: CLASSE | E10: LOTAÇÃO | F10: MOBILIZAÇÃO | G10: QUANTIDADE | H10: OBSERVAÇÕES
A13: 1.0 | C13: MÃO DE OBRA - SEGURAÇA DE BARRAGEM - LESTE
A14: 1.1 | C14: Engenheiro Sênior - Esp. Em Seg. de Barragem | D14: P1 | E14: Coordenação (à definir) | F14: Pode utilizar o escritório | G14: =J14-K14 -> 1 | H14: Equipe: 1/EIXO | J14: 1
A15: 1.2 | C15: Engenheiro. Civil (Geotecnico) | D15: P1 | E15: Coordenação (à definir) | F15: Pode utilizar o escritório | G15: =J15-K15 -> 1 | H15: Equipe: 1/EIXO | J15: 1
A16: 1.3 | C16: Engenheiro Junior - Civil | D16: P2 | E16: Coordenação (à definir) | F16: Pode utilizar o escritório | G16: 1 | H16: Equipe: 1/EIXO | J16: 1
A17: 1.4 | C17: Assistente Administrativo (Assistente social) | D17: AS | E17: Coordenação (à definir) | F17: Pode utilizar o escritório | G17: 2 | H17: Equipe: 1/TRECHO | J17: 2
A18: 1.5 | C18: Assistente Administrativo (administrativo) | D18: A1 | E18: Coordenação (à definir) | F18: Pode utilizar o escritório | G18: 2 | H18: Equipe: 1/TRECHO | J18: 2
A19: 1.6 | C19: Auxiliar Administrativo | D19: A1 | E19: Coordenação (à definir) | F19: Pode utilizar o escritório | G19: 1 | H19: Inserido no item 3.0 | J19: 1
A20: 1.7 | C20: Topógrafo | D20: TS | E20: Coordenação (à definir) | F20: Pode utilizar o escritório | G20: 1 | H20: Equipe: 1/TRECHO | J20: 2 | K20: 1
A21: 1.8 | C21: Auxiliar de Topografia | D21: T3 | E21: Coordenação (à definir) | F21: Não utilliza o Escritório | G21: 2 | H21: Equipe: 2/TRECHO | J21: 4 | K21: 2
A22: 1.9 | C22: Técnico Pleno | D22: T2 | E22: Coordenação (à definir) | F22: Pode utilizar o escritório | G22: 1 | H22: Equipe: 1/EIXO | J22: 1
A24: 2. | C24: MÃO DE OBRA - SEGURAÇA DE BARRAGEM - LESTE
A25: 2.1 | B25: B11 | C25: Veículo Tipo Pick Up Cabine Dupla 4 x 4 (163 CV) | D25: 6 | E25: =J25-K25 -> 1 | F25: =E25*D25 -> 6 | J25: 2 | K25: 1
A26: 2.2 | B26: B4 | C26: TIPO SEDAN 1.6 FLEX (115CV) | D26: 6 | E26: =J26-K26 -> 1 | F26: =E26*D26 -> 6 | J26: 2 | K26: 1
A27: TOTAL DE VEÍCULOS - MÃO DE OBRA - SEGURAÇA DE BARRAGEM - NORTE : | E27: =SUM(E25:E26) -> 2 | F27: =SUM(F25:F26) -> 12

Sheet CPU_SALARIOS
D1: Ministério do Desenvolvimento Regional - MDR
D2: Companhia de Desenvolvimento dos Vales do São Francisco e do Parnaíba
D3: Gerência de Operação do PISF - Centro de Controle e Operação (AD / GOI / CCO)
A5: =Mem_Calculo_EQUIPE!A5 -> TERMO DE REFERÊNCIA PARA CONTRATAÇÃO DOS RECURSOS NECESSÁRIOS À OPERAÇÃO E MANUTENÇÃO DAS INFRAESTRUTURAS DO EIXO LESTE DO PISF - PROJETO DE INTEGRAÇÃO DO SÃO FRANCISCO COM AS BACIAS HIDROGRÁFICAS DO NORDESTE SETENTRIONAL
A8: MEMORIAL DE CÁLCULO - SALÁRIOS
A11: ITEM | D11: CLASSE | E11: PROFISSIONAL | F11: SALÁRIO
F12: HORISTA | G12: MENSALISTA
F13: COM ENCARGO | G13: VALOR BASE | H13: COM ENCARGO
A14: 1 | B14: Sicro | C14: P9955 | D14: P0.1 | E14: Engenheiro - Profissional Sênior c/ Encargos Complementares (N. Superior - Formação: 10 anos < T; mais de 5 anos de experiencia na função de Cooredenador) | F14: =H14/$C$49 -> 172.6246023 | G14: 16836.58 | H14: 30381.93
A15: 2 | B15: Sicro | C15: P9955 | D15: P0 | E15: Engenheiro - Profissional Sênior c/ Encargos Complementares (N. Superior - Formação: 10 anos < T ) | F15: =H15/$C$49 -> 172.6246023 | G15: 16836.58 | H15: 30381.93
A16: 3 | B16: Sicro | C16: P9819 | D16: P1 | E16: Engenheiro - Profissional Pleno c/ Encargos Complementares (N. Superior - Formação: 5 anos < T ) | F16: 127.061875 | G16: 12276.42 | H16: 22362.89
A17: 4 | B17: Sicro | C17: P9946 | D17: P2 | E17: Engenheiro - Profissional Junior c/ Encargos Complementares (N. Superior - Formação: 2 anos < T ) | F17: 107.3344886 | G17: 10302 | H17: 18890.87
A18: 5 | B18: Sicro | C18: P9949 | D18: TS | E18: Topógrafo (N. Médio/Especializado - Formação: 5 anos < T ) | F18: 40.78465909 | G18: 3451.8 | H18: 7178.1
A19: 6 | B19: Sicro | C19: P9840 | D19: T0 | E19: Técnico - Profissional Sênior (N. Médio/Especializado - Formação: 10 anos < T ) | F19: 57.58596591 | G19: 5285.9 | H19: 10135.13
A20: 7 | B20: Sicro | C20: P9867 | D20: T1 | E20: Técnico TI (N. Médio/Especializado - Formação: 2 anos < T) | F20: 37.41664773 | G20: 3128.5 | H20: 6585.33
A21: 8 | B21: Sicro | C21: P9867 | D21: T2 | E21: Auxiliar Tecnico / Assistente de Engenharia com Encargos Complementares (N. Médio/Especializado - Formação: 2 anos < T ) | F21: 37.41664773 | G21: 3128.5 | H21: 6585.33
A22: 9 | B22: Sicro | C22: P9950 | D22: T3 | E22: Auxiliar de Topografia/Técnico auxiliar (N. Médio) | F22: 26.55465909 | G22: 2035 | H22: 4673.62
A23: 10 | B23: Sicro | C23: P9883 | D23: AS | E23: Assistene Social (usado o custo de referência do setor administrativo)(N. Superior - Formação: 2 anos < T ) | F23: 38.84784091 | G23: 3463.66 | H23: 6837.22
A24: 11 | B24: Sicro | C24: P9826 | D24: CA | E24: Coordenador Administrativo - Chefe do setor administrativo (Chefe de Escritório) (N. Superior - Formação: 2 anos < T ) | F24: 88.66335227 | G24: 8392.54 | H24: 15604.75
A25: 12 | B25: Sicro | C25: P9806 | D25: A1 | E25: Auxiliar administrativo com Encargos Complementares | F25: 23.81721591 | G25: 1773.2 | H25: 4191.83
A26: 13 | B26: Sinapi | C26: 101377 | D26: A2 | E26: Mobilizador - Ajudante de Operação em Geral com Encargos Complementares (N. Médio) | F26: 20.61914773 | G26: =H26/('Encargos Sociais e Benefícios'!$C$65+1) -> 2065.178694 | H26: 3628.97
A27: 14 | B27: Sinapi | C27: 101422 | D27: A3 | E27: Motorista de Carro com Encargos Complementares (N. Elementar) | F27: 30.16721591 | G27: =H27/('Encargos Sociais e Benefícios'!$C$65+1) -> 3021.496929 | H27: 5309.43
A28: 15 | B28: Sinapi | C28: 100316 | D28: A4 | E28: AUXILIAR DE ALMOXARIFE COM ENCARGOS COMPLEMENTARES | F28: 14.22948864 | G28: =H28/('Encargos Sociais e Benefícios'!$C$65+1) -> 1425.20133 | H28: 2504.39
A29: 16 | B29: Sinapi | C29: 101399 | D29: A5 | E29: ELETRICISTA COM ENCARGOS COMPLEMENTARES | F29: 22.94352273 | G29: =H29/('Encargos Sociais e Benefícios'!$C$65+1) -> 2297.984132 | H29: 4038.06
A30: 17 | B30: Sinapi | C30: 101445 | D30: A6 | E30: PEDREIRO COM ENCARGOS COMPLEMENTARES | F30: 22.75130682 | G30: =H30/('Encargos Sociais e Benefícios'!$C$65+1) -> 2278.732114 | H30: 4004.23
A31: 18 | B31: Sinapi | C31: 101381 | D31: A7 | E31: ARMADOR COM ENCARGOS COMPLEMENTARES | F31: 22.65125 | G31: =H31/('Encargos Sociais e Benefícios'!$C$65+1) -> 2268.710594 | H31: 3986.62
A32: 19 | B32: Sinapi | C32: 101397 | D32: A8 | E32: CARPINTEIRO DE FORMAS COM ENCARGOS COMPLEMENTARES | F32: 22.52761364 | G32: =H32/('Encargos Sociais e Benefícios'!$C$65+1) -> 2256.327387 | H32: 3964.86
A33: 20 | B33: Sinapi | C33: 101388 | D33: A9 | E33: Auxiliar de Serviços Gerais com Encargos Complementares (Limpeza / Copa) (N. Elementar) | F33: 18.358125 | G33: =H33/('Encargos Sociais e Benefícios'!$C$65+1) -> 1838.718511 | H33: 3231.03
A34: 21 | B34: Sinapi | C34: 101460 | D34: A10 | E34: VIGIA DIURNO COM ENCARGOS COMPLEMENTARES | F34: 18.30801136 | G34: =H34/('Encargos Sociais e Benefícios'!$C$65+1) -> 1833.699215 | H34: 3222.21
A35: 22 | B35: Sinapi | C35: 101452 | D35: A11 | E35: SERVENTE DE OBRAS COM ENCARGOS COMPLEMENTARES | F35: 18.43335227 | G35: =H35/('Encargos Sociais e Benefícios'!$C$65+1) -> 1846.253146 | H35: 3244.27
A36: 23 | B36: Sicro | C36: P9867* | D36: T2*(SA) | E36: Auxiliar Tecnico / Assistente de Engenharia com Encargos Complementares (N. Médio/Especializado - Formação: 5 anos < T ) | F36: 12.47221591 | G36: =G21/3 -> 1042.833333 | H36: =H21/3 -> 2195.11
A37: 24 | B37: Sicro | C37: P9950* | D37: T3*(SA) | E37: Técnico - Auxiliar (N. Elementar) | F37: 8.85155303 | G37: =G22/3 -> 678.3333333 | H37: =H22/3 -> 1557.873333
A38: 25 | B38: Sicro | C38: P9819* | D38: P1*(SA) | E38: Engenheiro - Profissional Pleno c/ Encargos Complementares (N. Superior - Formação: 5 anos < T ) | F38: 42.35395833 | G38: =G16/3 -> 4092.14 | H38: =H16/3 -> 7454.296667 | J38: =SUM(H14:H38) -> 212150.28
A42: NOME DO INFORMANTE: | G42: QUALIFICAÇÃO:
A44: ASSINATURA: | G44: DATA:
A46: OBSERVAÇAO:
A47: 1. Fonte de Preços: Sinapi 04-2022 ; Sicro 01-2022
A48: *(SA)Profissionais com regime de sobreaviso
A49: *consideração de | C49: 176 | D49: horas por mês

Sheet Encargos Sociais e Benefícios
B1: Ministério do Desenvolvimento Regional - MDR
B2: Companhia de Desenvolvimento dos Vales do São Francisco e do Parnaíba
B3: Gerência de Operação do PISF - Centro de Controle e Operação (AD / GOI / CCO)
A5: =CPU_SALARIOS!A5 -> TERMO DE REFERÊNCIA PARA CONTRATAÇÃO DOS RECURSOS NECESSÁRIOS À OPERAÇÃO E MANUTENÇÃO DAS INFRAESTRUTURAS DO EIXO LESTE DO PISF - PROJETO DE INTEGRAÇÃO DO SÃO FRANCISCO COM AS BACIAS HIDROGRÁFICAS DO NORDESTE SETENTRIONAL
A8: ENCARGOS SOCIAIS E TRABALHISTAS E BENEFÍCIOS
A11: ITEM | B11: DESCRIÇÃO | C11: Mensalista Diurno
A12: 1.0 Encargos sociais - SISTEMA NACIONAL DE PESQUISA DE CUSTOS E ÍNDICES DA CONSTRUÇÃO CIVIL - Pernambuco - 2022
A13: GRUPO "A" | C13: %
A14: A1 | B14: INSS (Art. 22 inciso I da Lei 8.212/91) | C14: 0.2
A15: A2 | B15: SESC/SESI (Art. 3° da Lei 8036/90) | C15: 0.015
A16: A3 | B16: SENAC/SENAI (Decreto 2.318/86) | C16: 0.01
A17: A4 | B17: INCRA (Lei 7787 de 30/06/890e DL 1146/70) | C17: 0.002
A18: A5 | B18: SEBRAE (Art. 8° Lei 8029/90 e 8154 de 28/12/90) | C18: 0.006
A19: A6 | B19: Salário Educação (Art. 3° inciso I Decreto 87.043/) | C19: 0.025
A20: A7 | B20: Seguro contra Acidentes de Trabalho (Decreto 3.048/1999, Anexo V e Decreto 6.957/2009) | C20: 0.03
A21: A8 | B21: FGTS (Art. 15 da Lei 8030/90 art. 7° inciso III CF/88) | C21: 0.08
A22: A8 | B22: SECONCI | C22: -
A23: ="TOTAL - "&A13&" - (%):" -> TOTAL - GRUPO "A" - (%): | C23: =SUM(C14:C22) -> 0.368
A25: GRUPO "B" | C25: %
A26: B1 | B26: Repouso semanal remunerado | C26: -
A27: B2 | B27: Feriados | C27: -
A28: B3 | B28: Auxílio Enfermidade | C28: 0.0066
A29: B4 | B29: 13º Salário | C29: 0.0833
A30: B5 | B30: Licença Paternidade Faltas justificadas | C30: 0.0006
A31: B6 | B31: Faltas Justificadas | C31: 0.0056
A32: B7 | B32: Dias de Chuva | C32: -
A33: B8 | B33: Auxílio Acidente de Trabalho | C33: 0.0008
A34: B9 | B34: Férias Gozadas | C34: 0.0678
A35: B10 | B35: Salário Maternidade | C35: 0.0002
A36: ="TOTAL - "&A25&" - (%):" -> TOTAL - GRUPO "B" - (%): | C36: =SUM(C26:C35) -> 0.1649
A38: GRUPO "C" | C38: %
A39: C1 | B39: Aviso Prévio Indenizado | C39: 0.0363
A40: C2 | B40: Aviso Prévio Trabalhado | C40: 0.0009
A41: C3 | B41: Férias Indenizadas | C41: 0.0362
A42: C4 | B42: Depósito Rescisão sem Justa Causa | C42: 0.0259
A43: C5 | B43: Indenização Adicional | C43: 0.0031
A44: ="TOTAL - "&A38&" - (%):" -> TOTAL - GRUPO "C" - (%): | C44: =SUM(C39:C43) -> 0.1024
A46: GRUPO "D" | C46: %
A47: D1 | B47: Reincidência de Grupo A sobre Grupo B | C47: 0.0606832
A48: D2 | B48: Reincidência de Grupo A sobre C2 e Reincidência de A8 sobre C1 | C48: 0.0032352
A49: ="TOTAL - "&A46&" - (%):" -> TOTAL - GRUPO "D" - (%): | C49: =SUM(C47:C48) -> 0.0639184
A51: GRUPO "E" | C51: %
A52: E1 | B52: Auxílio Alimentação | C52: 0.04
A53: E2 | B53: Equipamento de Proteção Individual - EPI | C53: 0.013
A54: E3 | B54: Consultas e exames Médicos | C54: 0.005
A55: E4 | B55: Seguro de Vida | C55: 0
A56: ="TOTAL - "&A51&" - (%):" -> TOTAL - GRUPO "E" - (%): | C56: =SUM(C52:C55) -> 0.058
A58: RESUMO - 1.0 Encargos sociais - SISTEMA NACIONAL DE PESQUISA DE CUSTOS E ÍNDICES DA CONSTRUÇÃO CIVIL - Pernambuco - 2022
A59: ITEM | B59: DESCRIÇÃO | C59: %
A60: 1 | B60: =A13 -> GRUPO "A" | C60: =C23 -> 0.368
A61: 2 | B61: =A25 -> GRUPO "B" | C61: =C36 -> 0.1649
A62: 3 | B62: =A38 -> GRUPO "C" | C62: =C44 -> 0.1024
A63: 4 | B63: =A46 -> GRUPO "D" | C63: =C49 -> 0.0639184
A64: 5 | B64: =A51 -> GRUPO "E" | C64: =C56 -> 0.058
A65: ="TOTAL - "&A58&" - (%):" -> TOTAL - RESUMO - 1.0 Encargos sociais - SISTEMA NACIONAL DE PESQUISA DE CUSTOS E ÍNDICES DA CONSTRUÇÃO CIVIL - Pernambuco - 2022 - (%): | C65: =SUM(C60:C64) -> 0.7572184
A66: OBS: Utilizando os valores dos encargos complementares do SINAPI-PE 12/21 para os itens alimentação, EPI, seguro e exames, os menores indices encontrados respectivamentes são 8,80%, 2,32%, 3,12% e 0%. Então foi aplicado para todos os profissionais de referência SINAPI os indices do contrato vigente de O&M (nº 0.086.00/2019) que são 4,00%, 1,3% e 0,5%.
A69: 2.0 Encargos sociais - SISTEMA DE CUSTOS REFERENCIAIS DE OBRAS - SICRO - Pernambuco - 2022
A70: Os encargos sociais variam para cada categoria profissional
A71: NOME DO INFORMANTE: | C71: QUALIFICAÇÃO:
A73: ASSINATURA: | C73: DATA:
A75: OBSERVAÇÃO:
A76: 1. Fonte: Sistema Nacional de Pesquisa de Custos e Índices da Construção (Tablea SINAPI - Composição de Encargos Sociais); SISTEMA DE CUSTOS REFERENCIAIS DE OBRAS - SICRO (Tabela SICRO - Relatório Sintético de Encargos Sociais).
A77: 2. Os percentuais dos encargos previdenciários e FGTS, a serem preenchidos na coluna %, são aqueles estabelecidos pela legislação vigente, incidentes sobre a remuneração

Sheet CPU_Viagens
B1: Ministério do Desenvolvimento Regional - MDR
B2: Companhia de Desenvolvimento dos Vales do São Francisco e do Parnaíba
B3: Gerência de Operação do PISF - Centro de Controle e Operação (AD / GOI / CCO)
A5: =[2]Viagens_Diárias!A5 -> TERMO DE REFERÊNCIA PARA CONTRATAÇÃO DOS RECURSOS NECESSÁRIOS À OPERAÇÃO E MANUTENÇÃO DAS INFRAESTRUTURAS DO EIXO LESTE DO PISF - PROJETO DE INTEGRAÇÃO DO SÃO FRANCISCO COM AS BACIAS HIDROGRÁFICAS DO NORDESTE SETENTRIONAL
A8: MEMORIAL DE CÁLCULO - VIAGENS
A11: ITEM | B11: ORIGEM | C11: DESTINO | D11: COMPANHIA | E11: VALOR (R$)
E12: TAXA | F12: TRECHO | G12: TOTAL
A13: 1. | B13: PASSAGENS AÉREAS
A14: 1.1 | B14: Brasília (BSB) | C14: Curitiba (CWB) | D14: LATAM | E14: 140 | F14: 664 | G14: =F14+E14 -> 804
A15: 1.2 | B15: Brasília (BSB) | C15: Rio de Janeiro (GIG) | D15: LATAM | E15: 121 | F15: 464 | G15: 585
A16: 1.3 | B16: Brasília (BSB) | C16: São Paulo (GRU) | D16: LATAM | E16: 123 | F16: 526 | G16: 649
A17: 1.4 | B17: Brasília (BSB) | C17: Juazeiro do Norte (JDO) | D17: LATAM | E17: 234 | F17: 1334 | G17: 1568
A18: 1.5 | B18: Brasília (BSB) | C18: Petrolina (PNZ) | D18: LATAM | E18: 213 | F18: 1462 | G18: 1675
A19: 1.6 | B19: Brasília (BSB) | C19: Porto Alegre (POA) | D19: LATAM | E19: 181 | F19: 1052 | G19: 1233
A20: 1.7 | B20: Brasília (BSB) | C20: Recife (REC) | D20: LATAM | E20: 156 | F20: 732 | G20: 888
A21: 1.8 | B21: Brasília (BSB) | C21: Salvador (SSA) | D21: GOL | E21: 167 | F21: 974 | G21: 1141
A22: 1.9 | B22: Curitiba (CWB) | C22: Rio de Janeiro (GIG) | D22: LATAM | E22: 140 | F22: 604 | G22: 744
A23: 1.10 | B23: Curitiba (CWB) | C23: São Paulo (GRU) | D23: LATAM | E23: 116 | F23: 412 | G23: 528
A24: 1.11 | B24: Curitiba (CWB) | C24: Juazeiro do Norte (JDO) | D24: LATAM | E24: 246 | F24: 1394 | G24: 1640
A25: 1.12 | B25: Curitiba (CWB) | C25: Petrolina (PNZ) | D25: LATAM | E25: 218 | F25: 1109 | G25: 1327
A26: 1.13 | B26: Curitiba (CWB) | C26: Porto Alegre (POA) | D26: AZUL | E26: 121 | F26: 362 | G26: 483
A27: 1.14 | B27: Curitiba (CWB) | C27: Recife (REC) | D27: LATAM | E27: 214 | F27: 1262 | G27: 1476
A28: 1.15 | B28: Curitiba (CWB) | C28: Salvador (SSA) | D28: LATAM | E28: 147 | F28: 718 | G28: 865
A29: 1.16 | B29: Rio de Janeiro (GIG) | C29: São Paulo (GRU) | D29: LATAM | E29: 120 | F29: 444 | G29: 564
A30: 1.17 | B30: Rio de Janeiro (GIG) | C30: Juazeiro do Norte (JDO) | D30: LATAM | E30: 208 | F30: 1368 | G30: 1576
A31: 1.18 | B31: Rio de Janeiro (GIG) | C31: Petrolina (PNZ) | D31: LATAM | E31: 97 | F31: 609 | G31: 706
A32: 1.19 | B32: Rio de Janeiro (GIG) | C32: Porto Alegre (POA) | D32: LATAM | E32: 198 | F32: 1168 | G32: 1366
A33: 1.20 | B33: Rio de Janeiro (GIG) | C33: Recife (REC) | D33: LATAM | E33: 184 | F33: 964 | G33: 1148
A34: 1.21 | B34: Rio de Janeiro (GIG) | C34: Salvador (SSA) | D34: GOL | E34: 237 | F34: 1610 | G34: 1847
A35: 1.22 | B35: São Paulo (GRU) | C35: Juazeiro do Norte (JDO) | D35: LATAM | E35: 201 | F35: 1298 | G35: 1499
A36: 1.23 | B36: São Paulo (GRU) | C36: Petrolina (PNZ) | D36: GOL | E36: 143 | F36: 760 | G36: 903
A37: 1.24 | B37: São Paulo (GRU) | C37: Porto Alegre (POA) | D37: LATAM | E37: 177 | F37: 1006 | G37: 1183
A38: 1.25 | B38: São Paulo (GRU) | C38: Recife (REC) | D38: LATAM | E38: 182 | F38: 982 | G38: 1164
A39: 1.26 | B39: São Paulo (GRU) | C39: Salvador (SSA) | D39: LATAM | E39: 201 | F39: 1298 | G39: 1499
A40: 1.27 | B40: Juazeiro do Norte (JDO) | C40: Porto Alegre (POA) | D40: AZUL | E40: 200 | F40: 1281 | G40: 1481
A41: 1.28 | B41: Juazeiro do Norte (JDO) | C41: Recife (REC) | D41: AZUL | E41: 119 | F41: 305 | G41: 424
A42: 1.29 | B42: Juazeiro do Norte (JDO) | C42: Salvador (SSA) | D42: AZUL | E42: 310 | F42: 2437 | G42: 2747
A43: 1.30 | B43: Petrolina (PNZ) | C43: Porto Alegre (POA) | D43: GOL | E43: 219 | F43: 1456 | G43: 1675
A44: 1.31 | B44: Petrolina (PNZ) | C44: Recife (REC) | D44: AZUL | E44: 148 | F44: 682 | G44: 830
A45: 1.32 | B45: Petrolina (PNZ) | C45: Salvador (SSA) | D45: GOL | E45: 126 | F45: 580 | G45: 706
A46: 1.33 | B46: Porto Alegre (POA) | C46: Recife (REC) | D46: LATAM | E46: 185 | F46: 958 | G46: 1143
A47: 1.34 | B47: Porto Alegre (POA) | C47: Salvador (SSA) | D47: GOL | E47: 208 | F47: 1312 | G47: 1520
A48: 1.35 | B48: Recife (REC) | C48: Salvador (SSA) | D48: AZUL | E48: 133 | F48: 494 | G48: 627
A49: ="VALOR MÉDIO - "&B13&" - (R$):" -> VALOR MÉDIO - PASSAGENS AÉREAS - (R$): | G49: =ROUND(AVERAGE(G13:G48),2) -> 1148.97
A51: 2. | B51: PASSAGENS TERRESTRES
A52: 2.1 | B52: Brasília (BSB) | C52: Curitiba (CWB) | D52: Real Expresso | E52: 56.32 | F52: 312.89 | G52: =F52+E52 -> 369.21
A53: 2.2 | B53: Brasília (BSB) | C53: Rio de Janeiro (GIG) | D53: GIPSYY | E53: 21.61 | F53: 120.07 | G53: =F53+E53 -> 141.68
A54: 2.3 | B54: Brasília (BSB) | C54: São Paulo (GRU) | D54: Real Expresso | E54: 48.6 | F54: 269.99 | G54: 318.59
A55: 2.4 | B55: Brasília (BSB) | C55: Juazeiro do Norte (JDO) | D55: Guanabara | E55: 77.4 | F55: 429.99 | G55: 507.39
A56: 2.5 | B56: Brasília (BSB) | C56: Petrolina (PNZ) | D56: Guanabara | E56: 64.62 | F56: 358.99 | G56: 423.61
A57: 2.6 | B57: Brasília (BSB) | C57: Porto Alegre (POA) | D57: Real Expresso | E57: 97.92 | F57: 543.99 | G57: 641.91
A58: 2.7 | B58: Brasília (BSB) | C58: Recife (REC) | D58: Expresso São Luiz | E58: 123.04 | F58: 683.55 | G58: 806.59
A59: 2.8 | B59: Brasília (BSB) | C59: Salvador (SSA) | D59: Rápido Federal | E59: 72.18 | F59: 400.99 | G59: 473.17
A60: 2.9 | B60: Curitiba (CWB) | C60: Rio de Janeiro (GIG) | D60: Penha | E60: 37.66 | F60: 209.23 | G60: 246.89
A61: 2.10 | B61: Curitiba (CWB) | C61: São Paulo (GRU) | D61: Penha | E61: 10.78 | F61: 59.9 | G61: 70.68
A62: 2.11 | B62: Curitiba (CWB) | C62: Porto Alegre (POA) | D62: Penha | E62: 31.07 | F62: 172.62 | G62: 203.69
A63: 2.12 | B63: Rio de Janeiro (GIG) | C63: São Paulo (GRU) | D63: Aguia Branca | E63: 18 | F63: 99.99 | G63: 117.99
A64: 2.13 | B64: Rio de Janeiro (GIG) | C64: Porto Alegre (POA) | D64: Penha | E64: 91.8 | F64: 510 | G64: 601.8
A65: 2.14 | B65: Rio de Janeiro (GIG) | C65: Recife (REC) | D65: Gontijo | E65: 106.7 | F65: 592.75 | G65: 699.45
A66: 2.15 | B66: Rio de Janeiro (GIG) | C66: Salvador (SSA) | D66: Aguia Branca | E66: 43.02 | F66: 239 | G66: 282.02
A67: 2.16 | B67: São Paulo (GRU) | C67: Porto Alegre (POA) | D67: Penha | E67: 52.17 | F67: 289.98 | G67: 342.15
A68: 2.17 | B68: São Paulo (GRU) | C68: Recife (REC) | D68: Itapemirim | E68: 104.4 | F68: 579.99 | G68: 684.39
A69: 2.18 | B69: Juazeiro do Norte (JDO) | C69: Recife (REC) | D69: Progresso | E69: 32.2 | F69: 178.99 | G69: 211.19
A70: 2.19 | B70: Petrolina (PNZ) | C70: Recife (REC) | D70: Progresso | E70: 44.97 | F70: 249.99 | G70: 294.96
A71: 2.20 | B71: Petrolina (PNZ) | C71: Salvador (SSA) | D71: Aguia Branca | E71: 16.02 | F71: 89 | G71: 105.02
A72: 2.21 | B72: Recife (REC) | C72: Salvador (SSA) | D72: Guanabara | E72: 144.49 | F72: 25.99 | G72: 170.48
A73: 2.22 | B73: Brasília (BSB) | C73: Salgueiro (SGI) | D73: Guanabara | E73: 72 | F73: 399.99 | G73: 471.99
A74: 2.23 | B74: Petrolina (PNZ) | C74: Salgueiro (SGI) | D74: Progresso | E74: 12.19 | F74: 67.71 | G74: 79.9
A75: 2.24 | B75: Recife (REC) | C75: Salgueiro (SGI) | D75: Progresso | E75: 29.88 | F75: 165.99 | G75: 195.87
A76: ="VALOR MÉDIO - "&B51&" - (R$):" -> VALOR MÉDIO - PASSAGENS TERRESTRES - (R$): | G76: =ROUND(AVERAGE(G51:G75),2) -> 352.53
A79: ="RESUMO - "&A$8 -> RESUMO - MEMORIAL DE CÁLCULO - VIAGENS
A80: ITEM | B80: DESCRIÇÃO | F80: VALOR TOTAL (R$)
A81: 1 | B81: =B13 -> PASSAGENS AÉREAS | F81: =G49 -> 1148.97
A82: 2 | B82: =B51 -> PASSAGENS TERRESTRES | F82: =G76 -> 352.53
A83: ="MÉDIA GERAL - "&A$8&" - (R$):" -> MÉDIA GERAL - MEMORIAL DE CÁLCULO - VIAGENS - (R$): | F83: =ROUND(AVERAGE(F81:G82),2) -> 750.75
A85: NOME DO INFORMANTE: | F85: QUALIFICAÇÃO:
A87: ASSINATURA: | F87: DATA:
A89: OBSERVAÇÃO:
A90: 1. Fonte de Preço: www.decolar.com. Considerando menores preços e companhias aéreas para registro do preço.
A91: 2. Data de pesquisa: 12/01/2022 .
A92: 3. Fonte de Preço: www.clickbus.com.br. Considerando menores preços e companhias aéreas para registro do preço.
A93: 4. Diárias - Fonte www.Booking.com - Considerando os menores preços

Sheet Frentes_Moveis
C1: Ministério do Desenvolvimento Regional - MDR
C2: Companhia de Desenvolvimento dos Vales do São Francisco e do Parnaíba
C3: Gerência de Operação do PISF - Centro de Controle e Operação (AD / GOI / CCO)
A5: =CPU_Viagens!A5 -> TERMO DE REFERÊNCIA PARA CONTRATAÇÃO DOS RECURSOS NECESSÁRIOS À OPERAÇÃO E MANUTENÇÃO DAS INFRAESTRUTURAS DO EIXO LESTE DO PISF - PROJETO DE INTEGRAÇÃO DO SÃO FRANCISCO COM AS BACIAS HIDROGRÁFICAS DO NORDESTE SETENTRIONAL
A8: FRENTES MÓVEIS DE LIMPEZA E CONSERVAÇÃO
A11: ITEM | B11: ITEM | C11: DESCRIÇÃO | D11: UNIDADE | E11: QUANTIDADE | F11: VALOR (R$)
F12: UNITARIO | G12: TOTAL
A13: 1. | C13: FRENTES MÓVEIS DE LIMPEZA E CONSERVAÇÃO | K13: 12 | L13: ='ORCAMENTO_CONSOLIDADO (2)'!$K$1 -> 6
A14: 1.1 | B14: Banco de Preços (PREGÃO ELETRÔNICO - MUNICÍPIO DE FÁTIMA/BA, 05/2022) | C14: Tenda Piramidal 5m x 5m (para refeitório) | D14: un x mês | E14: =L14 -> 48 | F14: 301.97 | G14: =ROUND(E14*F14,2) -> 14494.56 | J14: 96 | K14: =J14/$K$13 -> 8 | L14: =K14*$L$13 -> 48
A15: 1.2 | B15: F099722405/EMBASA | C15: Tenda Piramidal 3m x 3m | D15: un x mês | E15: =L15 -> 48 | F15: 150 | G15: =ROUND(E15*F15,2) -> 7200 | J15: 96 | K15: =J15/$K$13 -> 8 | L15: =K15*$L$13 -> 48
A16: 1.3 | B16: 10390 - ORSE/SE | C16: Banheiro Químico, com 03 limpezas semanais | D16: un x mês | E16: =L16 -> 120 | F16: 485.98 | G16: =ROUND(E16*F16,2) -> 58317.6 | J16: 240 | K16: 20 | L16: 120
A17: ="TOTAL - "&C13&" - (R$):" -> TOTAL - FRENTES MÓVEIS DE LIMPEZA E CONSERVAÇÃO - (R$): | G17: =SUBTOTAL(9,G14:G16) -> 80012.16
A19: ="RESUMO - "&A$8 -> RESUMO - FRENTES MÓVEIS DE LIMPEZA E CONSERVAÇÃO
A20: ITEM | C20: DESCRIÇÃO | F20: VALOR TOTAL (R$)
A21: 01 | C21: =C13 -> FRENTES MÓVEIS DE LIMPEZA E CONSERVAÇÃO | F21: =G17 -> 80012.16
A22: ="TOTAL GERAL - "&A$8&" - (R$):" -> TOTAL GERAL - FRENTES MÓVEIS DE LIMPEZA E CONSERVAÇÃO - (R$): | F22: =SUM(F21) -> 80012.16
A24: NOME DO INFORMANTE: | F24: QUALIFICAÇÃO:
A26: ASSINATURA: | F26: DATA:
A28: Observações
A30: art. 305 do RIR/1999 esclarece que: "Art. 305. Poderá ser computada, como custo ou encargo, em cada período de apuração, a importância correspondente à diminuição do valor dos bens do ativo resultante do desgaste pelo uso, ação da natureza e obsolescência normal (Lei nº 4.506, de 1964, art. 57)."
A35: Instrução Normativa da Secretaria da Receita Federal (SRF)
A36: Da | B36: Depreciação | C36: Da = (VN - VR) / N
A37: VN | B37: Valor Novo
A38: VR | B38: Valor Residual
A39: N | B39: Vída útil (anos)
A41: DADOS - Frentes móveis | D41: CONSIDERAÇÕES
A42: Depreciação anual (%) | C42: 0.4
A43: Vida últil (anos) | C43: 2.5
A45: DESCRIÇÃO | D45: Valor de aquisição (R$) | E45: Valor com depreciação (R$)
A46: und | B46: COT_TP1 | C46: Tenda Piramidal 5m x 5m (para refeitório) | D46: 5681.33 | E46: =C42*D46/12 -> 189.3776667
A47: und | B47: COT_TP2 | C47: Tenda Piramidal 3m x 3m | D47: 3366.33 | E47: =C42*D47/12 -> 112.211
A48: 1. Valor unitário final = (Depreciação anual) / (Tempo de contrato)
A49: 2. A vida útil adotada, leva em consideração o uso serevero dos itens listados, visto que são utilizados em canteiros de obras e frequentemente são deslocados entre canteiros e postos de serviço em campo.
A50: 3. Adotou-se tempo de contrato igual a 12 meses
A51: 4. Sistema de Orçamento de Obras de Sergipe (ORSE). Data base: 03/2022.

Sheet Viagens_Diárias
C1: Ministério do Desenvolvimento Regional - MDR
C2: Companhia de Desenvolvimento dos Vales do São Francisco e do Parnaíba
C3: Gerência de Operação do PISF - Centro de Controle e Operação (AD / GOI / CCO)
A5: ='Encargos Sociais e Benefícios'!A5 -> TERMO DE REFERÊNCIA PARA CONTRATAÇÃO DOS RECURSOS NECESSÁRIOS À OPERAÇÃO E MANUTENÇÃO DAS INFRAESTRUTURAS DO EIXO LESTE DO PISF - PROJETO DE INTEGRAÇÃO DO SÃO FRANCISCO COM AS BACIAS HIDROGRÁFICAS DO NORDESTE SETENTRIONAL
A8: VIAGENS / DIÁRIAS
A11: ITEM | B11: CÓDIGO | C11: DESCRIÇÃO | D11: UNIDADE | E11: QUANTIDADE | F11: VALOR (R$)
F12: UNITARIO | G12: TOTAL
C13: =A8 -> VIAGENS / DIÁRIAS
A15: 1. | C15: DESPESAS COM VIAGENS COMERCIAIS | M15: ='ORCAMENTO_CONSOLIDADO (2)'!$K$1 -> 6
A16: 1.1 | C16: Viagem por via aerea | D16: un | E16: =M16 -> 6 | F16: =CPU_Viagens!F81 -> 1148.97 | G16: =ROUND(E16*F16,2) -> 6893.82 | K16: 12 | L16: =K16/12 -> 1 | M16: =L16*$M$15 -> 6
A17: 1.2 | C17: Viagem por via terrestre (comercial) | D17: un | E17: =M17 -> 18 | F17: =CPU_Viagens!F82 -> 352.53 | G17: =ROUND(E17*F17,2) -> 6345.54 | K17: 36 | L17: =K17/12 -> 3 | M17: =L17*$M$15 -> 18
A18: ="TOTAL - "&C15&" - (R$):" -> TOTAL - DESPESAS COM VIAGENS COMERCIAIS - (R$): | G18: =SUBTOTAL(9,G16:G17) -> 13239.36
A20: 2. | C20: DESPESAS COM DIÁRIAS
A21: 2.1 | C21: Diárias nacionais | D21: un | E21: =M21 -> 6 | F21: 295 | G21: =ROUND(E21*F21,2) -> 1770 | K21: 12 | L21: =K21/12 -> 1 | M21: 6
A22: 2.2 | C22: Diárias regionais | D22: un | E22: 72 | F22: 239 | G22: =ROUND(E22*F22,2) -> 17208 | K22: 144 | L22: 12 | M22: 72
A23: ="TOTAL - "&C20&" - (R$):" -> TOTAL - DESPESAS COM DIÁRIAS - (R$): | G23: =SUBTOTAL(9,G21:G22) -> 18978
A25: ="TOTAL - "&C13&" - (R$):" -> TOTAL - VIAGENS / DIÁRIAS - (R$): | G25: =SUBTOTAL(9,G13:G24) -> 32217.36
A28: ="RESUMO - "&A$8 -> RESUMO - VIAGENS / DIÁRIAS
A29: ITEM | C29: DESCRIÇÃO | F29: VALOR TOTAL (R$)
A30: 1 | C30: =C15 -> DESPESAS COM VIAGENS COMERCIAIS | F30: =G18 -> 13239.36
A31: 2 | C31: =C20 -> DESPESAS COM DIÁRIAS | F31: =G23 -> 18978
A32: ="TOTAL GERAL - "&A$8&" - (R$):" -> TOTAL GERAL - VIAGENS / DIÁRIAS - (R$): | F32: =SUM(F30:G31) -> 32217.36 | H32: ok
A35: NOME DO INFORMANTE: | F35: QUALIFICAÇÃO:
A37: ASSINATURA: | F37: DATA:
A39: OBSERVAÇÃO:
A40: 1. Os produtos serão pagos por demanda (Conforme efetiva utilização, mediante autorização prévia da fiscalização)
A41: 2. O valor estimado para as passagens aéreas foi calculado conforme "MEMORIAL DE CÁLCULO - VIAGENS"
A42: 3. O valor adotado para a diária é o valor praticado pela Codevasf, conforme "Tabela de Diárias da Codevasf", considerando: diária completa; demais localidades; e empregados de nível superior, médio e operacional.
A44: 4. Os quantitativos foram estimados de acordo com a quantidae de pessoal lotada no campo, e baseadas na quantidade de viagens que a equipe da Codevasf utiliza.
A45: 5. Os valores previstos são o máximo que serão pagos pela Codevasf durante todo o período do contrato.

Sheet Materiais_Consumo
C1: Ministério do Desenvolvimento Regional - MDR
C2: Companhia de Desenvolvimento dos Vales do São Francisco e do Parnaíba
C3: Gerência de Operação do PISF - Centro de Controle e Operação (AD / GOI / CCO)
A5: =Frentes_Moveis!A5 -> TERMO DE REFERÊNCIA PARA CONTRATAÇÃO DOS RECURSOS NECESSÁRIOS À OPERAÇÃO E MANUTENÇÃO DAS INFRAESTRUTURAS DO EIXO LESTE DO PISF - PROJETO DE INTEGRAÇÃO DO SÃO FRANCISCO COM AS BACIAS HIDROGRÁFICAS DO NORDESTE SETENTRIONAL
A8: MATERIAL DE CONSUMO - ALMOXARIFADOS
A10: ITEM | B10: CÓDIGO | C10: DESCRIÇÃO | D10: UNIDADE | E10: QUANTIDADE | F10: VALOR (R$)
F11: UNITARIO | G11: TOTAL
C12: =A8 -> MATERIAL DE CONSUMO - ALMOXARIFADOS
A14: 1. | C14: MATERIAL DE CONSUMO - MECÂNICA
A15: 1.1 | B15: 04791 - SINAPI | C15: Adesivo Acrílico / Cola de contato | D15: un | E15: 480 | F15: 39.85 | G15: =ROUND(E15*F15,2) -> 19128 | H15: at
A16: 1.2 | B16: 05318 - SINAPI | C16: Água Raz - galão 5 l | D16: un | E16: 112 | F16: 114.5 | G16: 12824 | H16: at
A17: 1.3 | B17: 000312/SBC | C17: Alcool Comum 90º GL | D17: l | E17: 1200 | F17: 8.69 | G17: 10428
A18: 1.4 | C18: Antiferrugem aerosol WD-40 - tubo de 300 ml | D18: un | E18: 289 | F18: 23.92 | G18: 6912.88
A19: 1.5 | B19: Banco de preços (NºPregão:142022 / UASG:926687 - Serviço Autonomo de Agua e Esgoto de Volta Redonda SAAE VR RJ, Pregão Eletrônico, 04/2022) | C19: Antiespumante – antiespumante a base de silicone | D19: l | E19: 223 | F19: 25 | G19: 5575
A20: 1.6 | B20: 43132 - SINAPI | C20: Arame recozido n.º 18 | D20: kg | E20: 2400 | F20: 27.6 | G20: 66240 | H20: at
A21: 1.7 | B21: 00122 - SINAPI | C21: Cola de PVC com 850 g | D21: un | E21: 144 | F21: 60.78 | G21: 8752.32 | H21: at
A22: 1.8 | B22: Banco de preços (DEPART.DE OBRAS E SERV.PUBLICOS Prefeitura Municipal de Ubiretama/RS, Dispensa por Limite - 01/2022) | C22: Cola Ultra Gray 70g | D22: un | E22: 144 | F22: 46 | G22: 6624
A23: 1.9 | B23: Banco de preços (PREFEITURA MUNICIPAL DE QUEIROZ, PREGÃO PRESENCIAL - 80/2021) | C23: Cola para junta de motores com 73g | D23: un | E23: 1200 | F23: 11.1 | G23: 13320
A24: 1.10 | B24: Banco de preços (FUNDO MUNICIPAL DE ASSISTÊNCIA SOCIAL Prefeitura Municipal de Hulha Negra/RS, Dispensa por Limite - 05/2022) | C24: Convertedor de ferrugem 500 ml | D24: un | E24: 445 | F24: 33 | G24: 14685
A25: 1.11 | B25: 038200 - SINAPI | C25: Corda de bombeiro 12mm em nylon trançado (rolo de 100,00m) | D25: m | E25: 3200 | F25: 7.26 | G25: 23232 | H25: at
A26: 1.12 | B26: 004221 - SINAPI | C26: Diesel comum (l) | D26: l | E26: 480 | F26: 6.85 | G26: 3288 | H26: at
A27: 1.13 | B27: 044533 - SINAPI | C27: Disco corte abrasivo 7" x 1/8" x 7/8" | D27: un | E27: 434 | F27: 30.85 | G27: 13388.9
A28: 1.14 | B28: 044531 - SINAPI | C28: Disco de corte diamantado - 7", para esmerilhadeira, segmentado, para concreto | D28: un | E28: 108 | F28: 127.83 | G28: 13805.64
A29: 1.15 | B29: 044495 - SINAPI | C29: Disco de corte para estrutura metálica 300 x 3,2 x 19,05 mm | D29: un | E29: 434 | F29: 32.67 | G29: 14178.78
A30: 1.16 | B30: 044533 - SINAPI | C30: Disco de desbaste para estrutura metálica de 9" x 1/4" x 7/8" ( 225 x 6,25 x 21,87 mm) | D30: un | E30: 434 | F30: 30.85 | G30: 13388.9
A31: 1.17 | B31: 010997 - SINAPI | C31: Eletrodos Revestido AWS-E7018, DN 4 mm | D31: kg | E31: 320 | F31: 37.95 | G31: 12144 | H31: at
A32: 1.18 | C32: SOLDA-ELETRODO OK 4600 AWS 6013 6,0mm 1/4" | D32: kg | E32: 320 | F32: 71.73 | G32: 22953.6
A33: 1.19 | B33: 000012 - SINAPI | C33: Escova de aço para remoção da graxa envelhecida dos cabos de aço | D33: un | E33: 160 | F33: 11.88 | G33: 1900.8 | H33: at
A34: 1.20 | B34: 000013 - SINAPI | C34: Estopa - embalagem 20 kg | D34: kg | E34: 294 | F34: 18.29 | G34: 5377.26 | H34: at
A35: 1.21 | B35: 000404 - SINAPI | C35: Fita auto fusão 19 mm x 10 m | D35: un | E35: 194 | F35: 23.8 | G35: 4617.2 | H35: at
A36: 1.22 | B36: 012815 - SINAPI | C36: Fita crepe adesiva 25mm x 50mm | D36: un | E36: 194 | F36: 8.86 | G36: 1718.84 | H36: at
A37: 1.23 | B37: 020111 - SINAPI | C37: Fita isolante 19 mm x 20 m | D37: un | E37: 194 | F37: 17.5 | G37: 3395 | H37: at
A38: 1.24 | C38: Graxa a base de lítio NGLI 2 | D38: kg | E38: 478 | F38: 48.12 | G38: 23001.36
A39: 1.25 | C39: Graxa a base de lítio NGLI 3 | D39: kg | E39: 478 | F39: 91.18 | G39: 43584.04
A40: 1.26 | C40: Graxa com dissulfeto de molibidênio (MoS2) - Lata 500 g | D40: un | E40: 478 | F40: 41.85 | G40: 20004.3
A41: 1.27 | C41: Graxa GMA - 2 | D41: kg | E41: 478 | F41: 45.58 | G41: 21787.24 | H41: ok
A42: 1.28 | C42: Graxa de Alta Resistência a Carga, Pressão LGEP 2/1. Aplicação: Engrenagens de roda e engrenagens expostas | D42: kg | E42: 478 | F42: 115.41 | G42: 55165.98
A43: 1.29 | C43: Hidróxido de Cálcio P.A. 500 g | D43: kg | E43: 600 | F43: 32.67 | G43: 19602
A44: 1.30 | C44: Hipoclorito de Sódio 12% 5000 ml | D44: kg | E44: 1200 | F44: 6.75 | G44: 8100
A45: 1.31 | B45: 8216 - ORSE | C45: Lâmina de serra para metal Starret ou similar | D45: un | E45: 667 | F45: 10.5 | G45: =ROUND(E45*F45,2) -> 7003.5 | H45: at
A46: 1.32 | C46: Lençol de borracha manta 3/16” 4,8mm | D46: m² | E46: 400 | F46: 153.52 | G46: 61408
A47: 1.33 | C47: Líquido penetrante visível lavável à água (Ensaios de Líquido Penetrante) | D47: un | E47: 98 | F47: 37.36 | G47: 3661.28
A48: 1.34 | B48: 003767 - SINAPI | C48: Lixa nº120 | D48: un | E48: 2400 | F48: 0.74 | G48: 1776 | H48: at
A49: 1.35 | C49: Lona de borracha com alma 1,0 – 4,8 mm esp. | D49: m | E49: 45 | F49: 125.37 | G49: 5641.65
A50: 1.36 | B50: 003777 - SINAPI/PE | C50: Lona plástica - 4 x 100 m - 12 kg | D50: m² | E50: 3200 | F50: 1.69 | G50: 5408 | H50: at
A51: 1.37 | B51: 037459 - SINAPI | C51: Mangueira Cristal, Lisa PVC transparente, 3/4" x 2 mm | D51: m | E51: 1600 | F51: 7.02 | G51: 11232 | H51: at
A52: 1.38 | C52: Mangueira FLG-62/1 0 - 150 PSI 1/4" NPT | D52: m | E52: 800 | F52: 5.11 | G52: 4088
A53: 1.39 | B53: 7696 - ORSE | C53: Massa calafetar cinza-Durepox ou similiar | D53: kg | E53: 334 | F53: 26.37 | G53: 8807.58 | H53: at
A54: 1.40 | C54: Óleo - Translação pórtico e ponte e direção do carro - 20 l - Óleo EP 220 | D54: l | E54: 334 | F54: 44.27 | G54: 14786.18
A55: 1.41 | C55: Óleo Hidràulico para os componentes não protegido dos Servomotor Hidráulico - Óleo EP 320 | D55: l | E55: 334 | F55: 42.63 | G55: 14238.42
A56: 1.42 | C56: Óleo Lubrificante Redutor - Óleo SAE 90 | D56: l | E56: 334 | F56: 47.83 | G56: 15975.22
A57: 1.43 | C57: Óleo lubrificante, para engrenagem., EP-5, viscosidade (CSt) ( - 40ºC) = 22 - tambor 20 l | D57: l | E57: 334 | F57: 34.38 | G57: 11482.92
A58: 1.44 | C58: PAC – Policloreto de alumínio (5 l) | D58: l | E58: 967 | F58: 14.96 | G58: 14466.32
A59: 1.45 | C59: Papelão grafitado 1,50 m x 1,60 m Esp 2.4 | D59: un | E59: 30 | F59: 491.4 | G59: 14742 | H59: ok
A60: 1.46 | C60: Pasta de Limpeza Uso Geral Limptek 500 gramas | D60: kg | E60: 400 | F60: 22.46 | G60: 8984
A61: 1.47 | C61: Querosene para limpeza | D61: l | E61: 240 | F61: 20.03 | G61: 4807.2
A62: 1.48 | C62: Revelador não aquoso D70 (Ensaios de Líquido Penetrante) | D62: un | E62: 98 | F62: 35.66 | G62: 3494.68
A63: 1.49 | C63: Sílica Gel Branca - Pacote De 1kg - Grânulos De 4-8 Mm | D63: kg | E63: 98 | F63: 52.28 | G63: 5123.44
A64: 1.50 | B64: 039961 - SINAPI | C64: Silicone (acético branca) - Tubo de 280g | D64: un | E64: 480 | F64: 27.5 | G64: 13200 | H64: at
A65: 1.51 | C65: Trava Parafusos de Alta Resistência 120 com 10g | D65: un | E65: 192 | F65: 19.56 | G65: 3755.52
A66: 1.52 | B66: Banco de preços (FUNDO MUNICIPAL DE CULTURA SECRETARIA DE CULTURA E TURISMO Prefeitura Municipal de Leme/SP, Dispensa por Limite - 04/2022) | C66: Vaselina sólida anti-inflamável 500g | D66: kg | E66: =480/4 -> 120 | F66: 54.3 | G66: =ROUND(E66*F66,2) -> 6516
A68: ="TOTAL - "&C14&" - (R$):" -> TOTAL - MATERIAL DE CONSUMO - MECÂNICA - (R$): | G68: =SUBTOTAL(9,G14:G67) -> 729720.95
A70: 2. | C70: MATERIAL DE CONSUMO - ELÉTRICA
A71: 2.1 | B71: 00181 - ORSE | C71: Anilha Identificação - 0,5 a 6mm² (pacote com 100 unidades) | D71: un | E71: 10 | F71: =0.05*100 -> 5 | G71: =ROUND(E71*F71,2) -> 50 | H71: at
A72: 2.2 | B72: 00181 - ORSE | C72: Anilha Identificação - 10 a 16mm² (pacote com 100 unidades) | D72: un | E72: 10 | F72: =0.05*100 -> 5 | G72: 50 | H72: at
A73: 2.3 | B73: 03875 - ORSE | C73: Anilha Identificação - 25 a 70mm² (pacote com 100 unidades) | D73: un | E73: 10 | F73: 57 | G73: 570 | H73: at
A74: 2.4 | B74: 03875 - ORSE | C74: Anilha Identificação - 95 a 120mm² (pacote com 100 unidades) | D74: un | E74: 10 | F74: 57 | G74: 570 | H74: at
A75: 2.5 | B75: 03531 - ORSE | C75: Ar comprimido seco Aerossol 300ml | D75: un | E75: 100 | F75: 44.97 | G75: 4497 | H75: at
A76: 2.6 | B76: 00993 - SINAPI | C76: Cabo cobre flexível classe 4 ou 5 isolação PVC/A M 1,68 e cobertura PVC-ST1 antichama BWF-B 0,6/1 kV 1,5mm² | D76: m | E76: 500 | F76: 2.69 | G76: 1345 | H76: at
A77: 2.7 | B77: 01022 - SINAPI | C77: Cabo cobre flexível classe 4 ou 5 isolação PVC/A M 1,68 e cobertura PVC-ST1 antichama BWF-B 0,6/1 kV 2,5mm² | D77: m | E77: 1000 | F77: 3.73 | G77: 3730 | H77: at
A78: 2.8 | B78: 01003 - SINAPI | C78: Cabo cobre flexível classe 4 ou 5 isolação PVC/A M 1,68 e cobertura PVC-ST1 antichama BWF-B 0,6/1 kV 4mm² | D78: m | E78: 1000 | F78: 5.76 | G78: 5760 | H78: at
A79: 2.9 | B79: 00994 - SINAPI | C79: Cabo cobre flexível classe 4 ou 5 isolação PVC/A M 1,68 e cobertura PVC-ST1 antichama BWF-B 0,6/1 kV 6mm² | D79: m | E79: 1000 | F79: 7.3 | G79: 7300 | H79: at
A80: 2.10 | B80: 01020 - SINAPI | C80: Cabo cobre flexível classe 4 ou 5 isolação PVC/A M 1,68 e cobertura PVC-ST1 antichama BWF-B 0,6/1 kV 10mm² | D80: m | E80: 500 | F80: 11.7 | G80: 5850 | H80: at
A81: 2.11 | B81: 00995 - SINAPI | C81: Cabo cobre flexível classe 4 ou 5 isolação PVC/A M 1,68 e cobertura PVC-ST1 antichama BWF-B 0,6/1 kV 16mm² | D81: m | E81: 500 | F81: 17.95 | G81: 8975 | H81: at
A82: 2.12 | B82: 00996 - SINAPI | C82: Cabo cobre flexível classe 4 ou 5 isolação PVC/A M 1,68 e cobertura PVC-ST1 antichama BWF-B 0,6/1 kV 25mm² | D82: m | E82: 500 | F82: 27.33 | G82: 13665 | H82: at
A83: 2.13 | B83: 01019 - SINAPI | C83: Cabo cobre flexível classe 4 ou 5 isolação PVC/A M 1,68 e cobertura PVC-ST1 antichama BWF-B 0,6/1 kV 35mm² | D83: m | E83: 500 | F83: 37.67 | G83: 18835 | H83: at
A84: 2.14 | B84: 01018 - SINAPI | C84: Cabo cobre flexível classe 4 ou 5 isolação PVC/A M 1,68 e cobertura PVC-ST1 antichama BWF-B 0,6/1 kV 50mm² | D84: m | E84: 500 | F84: 53.69 | G84: 26845 | H84: at
A85: 2.15 | B85: 00977 - SINAPI | C85: Cabo cobre flexível classe 4 ou 5 isolação PVC/A M 1,68 e cobertura PVC-ST1 antichama BWF-B 0,6/1 kV 70mm² | D85: m | E85: 500 | F85: 74.38 | G85: 37190 | H85: at
A86: 2.16 | B86: 00998 - SINAPI | C86: Cabo cobre flexível classe 4 ou 5 isolação PVC/A M 1,68 e cobertura PVC-ST1 antichama BWF-B 0,6/1 kV 95mm² | D86: m | E86: 200 | F86: 98.81 | G86: 19762 | H86: at
A87: 2.17 | B87: 01017 - SINAPI | C87: Cabo cobre flexível classe 4 ou 5 isolação PVC/A M 1,68 e cobertura PVC-ST1 antichama BWF-B 0,6/1 kV 120mm² | D87: m | E87: 200 | F87: 128.62 | G87: 25724 | H87: at
A88: 2.18 | B88: 00863 - SINAPI | C88: Cabo de cobre nu, eletrolítico, têmpera meio duro, #35mm² (m) | D88: m | E88: 200 | F88: 38.41 | G88: 7682 | H88: at
A89: 2.19 | B89: 00867 - SINAPI | C89: Cabo de cobre nu, eletrolítico, têmpera meio duro, #50mm² (m) | D89: m | E89: 200 | F89: 53.49 | G89: 10698 | H89: at
A90: 2.20 | B90: 00864 - SINAPI | C90: Cabo de cobre nu, eletrolítico, têmpera meio duro, #70mm² (m) | D90: m | E90: 200 | F90: 75.36 | G90: 15072 | H90: at
A91: 2.21 | B91: 09720 - ORSE | C91: Conector para haste aterramento #35mm² GTDU | D91: un | E91: 25 | F91: 54.5 | G91: 1362.5 | H91: at
A92: 2.22 | B92: 09720 - ORSE | C92: Conector para haste aterramento #50mm² GTDU | D92: un | E92: 20 | F92: =F91 -> 54.5 | G92: 1090 | H92: at
A93: 2.23 | B93: 09720 - ORSE | C93: Conector para haste aterramento #70mm² GTDU | D93: un | E93: 20 | F93: =F91 -> 54.5 | G93: 1090 | H93: at
A94: 2.24 | B94: 11602 - ORSE | C94: Filtro de ventiladores de painéis | D94: un | E94: 180 | F94: 38.39 | G94: 6910.2 | H94: at
A95: 2.25 | C95: Filtro dos motores do eixo leste EBV6 (fabricante Aeroglass (670x280x25mm) | D95: un | E95: 48 | F95: 168 | G95: 8064 | H95: ok
A96: 2.26 | C96: Filtro dos motores do eixo leste EBV5 (fabricante Aeroglass (750x225x25mm) | D96: un | E96: 48 | F96: 161 | G96: 7728 | H96: ok
A97: 2.27 | C97: Filtro dos motores do eixo leste EBV1, 2, 3 e 4 (fabricante Aeroglass-modelo FMT_C2015 inox - 345x925x25mm) | D97: un | E97: 64 | F97: 230 | G97: 14720 | H97: ok
A98: 2.28 | B98: 02643 - ORSE | C98: Fita isolante de borracha autofusão impermeável à prova dágua , até 69 kV (alta tensão)- 19mm x 10m | D98: un | E98: 200 | F98: 12.6 | G98: 2520 | H98: at
A99: 2.29 | B99: 020111 - SINAPI | C99: Fita isolante adesiva antichama 19mm x 20m | D99: un | E99: 280 | F99: 17.5 | G99: 4900 | H99: at
A100: 2.30 | B100: 01118 - ORSE | C100: Interruptor simples com 01 tecla | D100: un | E100: 4 | F100: 9.6 | G100: 38.4 | H100: at
A101: 2.31 | B101: 01119 - ORSE | C101: Interruptor simples com 02 teclas | D101: un | E101: 4 | F101: 6.2 | G101: 24.8 | H101: at
A102: 2.32 | B102: 38070 - SINAPI | C102: Interruptor tipo three-way (paralelos) com 02 teclas | D102: un | E102: 4 | F102: 18.02 | G102: 72.08 | H102: at
A103: 2.33 | C103: Limpador de contatos elétricos 300ml | D103: un | E103: 84 | F103: 13.19 | G103: 1107.96
A104: 2.34 | C104: Pano para limpeza (Rolo Tipo Perfex 20 cm x 300 metros) | D104: un | E104: 50 | F104: 141.17 | G104: 7058.5
A105: 2.35 | B105: 11443 - ORSE | C105: Pincel - kit 03 pincéis 1/2" 1" 1.1/2" | D105: un | E105: 76 | F105: 8.55 | G105: 649.8 | H105: at
A106: 2.36 | B106: Banco de preços (NºPregão:202022 / UASG:926430 - GOVERNO DO ESTADO DO AMAZONAS DEFENSORIA PUBLICA DO ESTADO DO AMAZONAS, Pregão Eletrônico - 05/2022) | C106: Sabão líquido neutro (5 l) | D106: un | E106: 54 | F106: 16.72 | G106: 902.88
A107: 2.37 | B107: 02922 - ORSE | C107: Solvente/Desengraxante de alta rigidez dielétrica 1l | D107: un | E107: 36 | F107: 25.38 | G107: 913.68 | H107: at
A108: 2.38 | B108: 12377 - ORSE* | C108: Terminal isolado tipo agulha para condutores de 0,5 a 1,5mm² (pct c/ 100) | D108: un | E108: 100 | F108: =0.6*100 -> 60 | G108: 6000 | H108: at
A109: 2.39 | B109: 12377 - ORSE* | C109: Terminal isolado tipo agulha para condutores de 1,5 a 2,5 mm² (pct c/ 100) | D109: un | E109: 100 | F109: =0.6*100 -> 60 | G109: 6000 | H109: at
A110: 2.40 | B110: 07948 - ORSE* | C110: Terminal isolado tipo agulha para condutores de 4 a 6 mm² (pct c/ 100) | D110: un | E110: 100 | F110: =0.57*100 -> 57 | G110: 5700
A111: 2.41 | B111: 04669 - ORSE | C111: Terminal de compressão – 10mm² | D111: un | E111: 200 | F111: 1.15 | G111: 230 | H111: at
A112: 2.42 | B112: 04670 - ORSE | C112: Terminal de compressão – 16mm² | D112: un | E112: 200 | F112: 1.36 | G112: 272 | H112: at
A113: 2.43 | B113: 02676 - ORSE | C113: Terminal de compressão – 25mm² | D113: un | E113: 100 | F113: 1.88 | G113: 188 | H113: at
A114: 2.44 | B114: 02677 - ORSE | C114: Terminal de compressão – 35mm² | D114: un | E114: 100 | F114: 2.12 | G114: 212 | H114: at
A115: 2.45 | B115: 03559 - ORSE | C115: Terminal de compressão – 50mm² | D115: un | E115: 100 | F115: 3.69 | G115: 369 | H115: at
A116: 2.46 | B116: 06911 - ORSE | C116: Terminal de compressão – 70mm² | D116: un | E116: 100 | F116: 4.6 | G116: 460 | H116: at
A117: 2.47 | B117: 03153 - ORSE | C117: Terminal de compressão – 95mm² | D117: un | E117: 50 | F117: 5.66 | G117: 283 | H117: at
A118: 2.48 | B118: 04673 - ORSE | C118: Terminal de compressão – 120mm² | D118: un | E118: 50 | F118: 7.96 | G118: 398 | H118: at
A119: 2.49 | B119: 01587 - SINAPI | C119: Terminal de pressão – 35mm² | D119: un | E119: 50 | F119: 7.13 | G119: 356.5 | H119: at
A120: 2.50 | B120: 01588 - SINAPI | C120: Terminal de pressão – 50mm² | D120: un | E120: 40 | F120: 9.79 | G120: 391.6 | H120: at
A121: 2.51 | B121: 01589 - SINAPI | C121: Terminal de pressão – 70mm² | D121: un | E121: 40 | F121: 10.09 | G121: =ROUND(E121*F121,2) -> 403.6 | H121: at
A123: ="TOTAL - "&C70&" - (R$):" -> TOTAL - MATERIAL DE CONSUMO - ELÉTRICA - (R$): | G123: =SUBTOTAL(9,G70:G122) -> 294586.5
A125: 3. | C125: MATERIAL DE CONSUMO - CIVIL
A126: 3.1 | B126: 00034 - SINAPI | C126: Aço D=10 mm CA 50 | D126: kg | E126: 1556 | F126: 11.42 | G126: =ROUND(E126*F126,2) -> 17769.52 | H126: at
A127: 3.2 | B127: 00043055 - SINAPI | C127: Aço D=12 mm CA 50 | D127: kg | E127: 1556 | F127: 9.89 | G127: 15388.84 | H127: at
A128: 3.3 | B128: 00043059 - SINAPI | C128: Aço D=5.0 mm CA 60 | D128: kg | E128: 1556 | F128: 10.8 | G128: 16804.8 | H128: at
A129: 3.4 | B129: 00032 - SINAPI | C129: Aço D=6.3 mm CA 50 | D129: kg | E129: 1556 | F129: 12.04 | G129: 18734.24 | H129: at
A130: 3.5 | B130: 00033 - SINAPI | C130: Aço D=8.0 mm CA 50 | D130: kg | E130: 1556 | F130: 12.11 | G130: 18843.16 | H130: at
A131: 3.6 | B131: 00340 - SINAPI | C131: Arame farpado nº. 16 galvanizado Simples | D131: m | E131: 2223 | F131: 1.52 | G131: 3378.96 | H131: at
A132: 3.7 | B132: 43131 - SINAPI | C132: Arame galvanizado 8BWG, d=4,19mm | D132: kg | E132: 240 | F132: 32.06 | G132: 7694.4 | H132: at
A133: 3.8 | B133: 43132 - SINAPI | C133: Arame recozido n.º 18 | D133: kg | E133: 134 | F133: 27.6 | G133: 3698.4 | H133: at
A134: 3.9 | B134: 00367 - SINAPI | C134: Areia grossa comercial, posto em obra | D134: m³ | E134: 491.740504 | F134: 116.5 | G134: 57287.77 | H134: at
A135: 3.10 | B135: 00000134 - SINAPI | C135: Argamassa para grauteamento | D135: kg | E135: 1112 | F135: 2.04 | G135: 2268.48 | H135: at
A136: 3.11 | B136: 004729 - SINAPI | C136: Pedra britada comercial (n.º 0 a 5) | D136: m³ | E136: 574.263898 | F136: 84.22 | G136: 48364.51 | H136: at
A137: 3.12 | B137: 04513 - SINAPI | C137: Caibro de 5x5cm | D137: m | E137: 1334 | F137: 7.29 | G137: 9724.86 | H137: at
A138: 3.13 | B138: 001106 - SINAPI | C138: Cal hidratada | D138: kg | E138: 92897 | F138: 1.18 | G138: 109618.46 | H138: at
A139: 3.14 | B139: 001379 - SINAPI | C139: Cimento CPII-32 | D139: kg | E139: 226100 | F139: 0.6 | G139: 135660 | H139: at
A140: 3.15 | B140: 001358 - SINAPI | C140: Compensado resinado 17mm | D140: m² | E140: 96 | F140: 55.12 | G140: 5291.52 | H140: at
A141: 3.16 | B141: 002692 - SINAPI | C141: Desmoldante | D141: l | E141: 86 | F141: 8.34 | G141: 717.24 | H141: at
A142: 3.17 | B142: 020111 - SINAPI | C142: Fita isolante adesiva antichama 19mm x 20m | D142: un | E142: 16 | F142: =$F$99 -> 17.5 | G142: 280 | H142: at
A143: 3.18 | B143: M2018 - SICRO3/PE | C143: Gastalho 10x2,5cm | D143: m | E143: 1334 | F143: 4.8 | G143: 6403.2
A144: 3.19 | B144: 005076 - SINAPI | C144: Grampo para cerca galvanizado 1 x 9 | D144: kg | E144: 96 | F144: 25.69 | G144: 2466.24 | H144: at
A145: 3.20 | B145: 003681 - SINAPI | C145: Junta de dilatação (O-22 ou similar) | D145: m | E145: 268 | F145: 109.82 | G145: 29431.76 | H145: at
A146: 3.21 | B146: 014077 - SINAPI | C146: Junta de dilatação - Perfil elastomerico pre-formado em epmd, para junta de dilatacao de pisos com pouca solicitacao, 15 mm de largura, movimentacao de 11 a 19 mm | D146: m | E146: 268 | F146: 168.36 | G146: 45120.48 | H146: at
A147: 3.22 | B147: 38780 - SINAPI/PE | C147: Lâmpada fluorescente compacta, branca 20 W, base E27 (127/220 V) | D147: un | E147: 134 | F147: 17.26 | G147: 2312.84 | H147: at
A148: 3.23 | B148: 038780 - SINAPI | C148: Lâmpada fluorecente de 20W | D148: un | E148: 134 | F148: 17.26 | G148: 2312.84 | H148: at
A149: 3.24 | B149: 003751 - SINAPI | C149: Lâmpada vapor mercúrio 400 W (base E40) | D149: un | E149: 16 | F149: 59.23 | G149: 947.68 | H149: at
A150: 3.25 | B150: 003767 - SINAPI | C150: Lixa nº120 | D150: un | E150: 40 | F150: =$F$48 -> 0.74 | G150: 29.6 | H150: at
A151: 3.26 | B151: 003777 - SINAPI | C151: Lona plástica - 4 x 100m - 12kg | D151: m² | E151: 2400 | F151: 1.69 | G151: 4056 | H151: at
A152: 3.27 | B152: 025865 - SINAPI | C152: Manta termoplástica PEAD, geomembrana lisa, e=2 mm | D152: m² | E152: 12062.8 | F152: 57.23 | G152: 690354.04 | H152: at
A153: 3.28 | B153: 004047 - SINAPI | C153: Massa corrida - latão 18 l | D153: un | E153: 23 | F153: =10.8*5 -> 54 | G153: 1242 | H153: at
A154: 3.29 | B154: 2866 - ORSE | C154: Mastique elástico base silicone | D154: l | E154: =4126/2-95.4249-402 -> 1565.5751 | F154: 159.63 | G154: =ROUND(E154*F154,2) -> 249912.75 | Y154: 159.63 | Z154: ='ORCAMENTO_CONSOLIDADO (2)'!P4/Y154 -> 0
A155: 3.30 | B155: 00036799 - SINAPI | C155: Mourão de concreto reto para cercas | D155: un | E155: 112 | F155: 64.93 | G155: 7272.16 | H155: at
A156: 3.31 | C156: Perfil para fixação das geomembrana Barra de 6m | D156: m | E156: 134 | F156: 154.89 | G156: 20755.26
A157: 3.32 | B157: 11442 - ORSE | C157: Pincel 1" | D157: un | E157: 89 | F157: 4.94 | G157: 439.66 | H157: at
A158: 3.33 | B158: 005075 - SINAPI | C158: Prego 18x30 | D158: kg | E158: 214 | F158: 25.43 | G158: 5442.02 | H158: at
A159: 3.34 | B159: 038390 - SINAPI | C159: Rolo de lã de carneiro - 20cm | D159: un | E159: 89 | F159: 34.82 | G159: 3098.98 | H159: at
A160: 3.35 | B160: 038393 - SINAPI | C160: Rolo de espuma poliéster 23 cm com cabo | D160: un | E160: 89 | F160: 15.7 | G160: 1397.3 | H160: at
A161: 3.36 | B161: 012296 - SINAPI | C161: Soquete de porcelana base E27, para uso ao tempo, para lâmpadas | D161: un | E161: 16 | F161: 3.97 | G161: 63.52 | H161: at
A162: 3.37 | B162: 00006194 - SINAPI | C162: Tábua de madeira não aparelhada *2,5 X 15 CM (1 X 6 ") pinus, mista ou equivalente da região | D162: m | E162: 223 | F162: 7.89 | G162: 1759.47 | H162: at
A163: 3.38 | B163: 005318 - SINAPI* | C163: Thinner/águarras - 5 l | D163: un | E163: 9 | F163: 114.5 | G163: 1030.5 | H163: at
A164: 3.39 | B164: 07258 - SINAPI | C164: Tijolo comum (5,5x10x20) cm | D164: un | E164: 10667 | F164: 0.43 | G164: 4586.81 | H164: at
A165: 3.40 | B165: 00154 - SINAPI | C165: Tinta Alcatrão de Hulha - galão de 3,6 litros | D165: l | E165: 9 | F165: 88.01 | G165: 792.09 | H165: at
A166: 3.41 | B166: 02232/ORSE | C166: Tinta Latex PVA | D166: l | E166: 221 | F166: 15.14 | G166: 3345.94 | H166: at
A167: 3.42 | B167: 38386 - SINAPI | C167: Trincha de 2 " | D167: un | E167: 89 | F167: 5.08 | G167: 452.12 | H167: at
A168: 3.43 | B168: 38400 - SINAPI | C168: Vassourão 40cm com cabo | D168: un | E168: 110 | F168: 19.15 | G168: =ROUND(E168*F168,2) -> 2106.5 | H168: at
A169: 3.44 | B169: 12001 - SINAPI | C169: CAIXA OCTOGONAL DE FUNDO MOVEL, EM PVC, DE 4" X 4", PARA ELETRODUTO FLEXIVEL CORRUGADO | D169: un | E169: 12 | F169: 7.46 | G169: 89.52 | H169: at
A170: 3.45 | B170: 1872 - SINAPI | C170: CAIXA DE PASSAGEM, EM PVC, DE 4" X 2", PARA ELETRODUTO FLEXIVEL CORRUGADO | D170: un | E170: 96 | F170: 2.88 | G170: 276.48 | H170: at
A171: 3.46 | B171: 2688 - SINAPI | C171: ELETRODUTO PVC FLEXIVEL CORRUGADO, COR AMARELA, DE 25 MM | D171: m | E171: 500 | F171: 2.81 | G171: 1405 | H171: at
A172: 3.47 | B172: 7528 - SINAPI | C172: TOMADA 2P+T 10A, 250V, CONJUNTO MONTADO PARA EMBUTIR 4" X 2" (PLACA + SUPORTE + MODULO) | D172: un | E172: 96 | F172: 9.9 | G172: 950.4 | H172: at
A173: 3.48 | B173: 38062 - SINAPI | C173: INTERRUPTOR SIMPLES 10A, 250V, CONJUNTO MONTADO PARA EMBUTIR 4" X 2" (PLACA + SUPORTE + MODULO) | D173: un | E173: 12 | F173: 7.6 | G173: 91.2 | H173: at
A174: 3.49 | B174: 0000345 - SINAPI | C174: ARAME GALVANIZADO 18 BWG, D = 1,24MM (0,009 KG/M) | D174: Kg | E174: 6.24 | F174: 39.37 | G174: 245.67 | H174: at
A175: 3.50 | B175: 00003315 - SINAPI | C175: GESSO EM PO PARA REVESTIMENTOS/MOLDURAS/SANCAS E USO GERAL | D175: kg | E175: 248.70144 | F175: 0.7 | G175: 174.09 | H175: at
A176: 3.51 | B176: 00004812 - SINAPI | C176: PLACA DE GESSO PARA FORRO, *60 X 60* CM, ESPESSURA DE 12 MM (SEM COLOCACAO) | D176: m² | E176: 249.6 | F176: 9.84 | G176: 2456.06 | H176: at
A177: 3.52 | B177: 00020250 - SINAPI | C177: SISAL EM FIBRA | D177: Kg | E177: 1.94688 | F177: 11 | G177: 21.42 | H177: at
A178: 3.53 | B178: 00040547 - SINAPI | C178: PARAFUSO ZINCADO, AUTOBROCANTE, FLANGEADO, 4,2 MM X 19 MM | D178: Cento | E178: 7.68768 | F178: 32.19 | G178: 247.47 | H178: at
A179: 3.54 | B179: 39484 - SINAPI | C179: KIT PORTA PRONTA DE MADEIRA, FOLHA LEVE (NBR 15930) DE 800 X 2100 MM, DE 35 MM A 40 MM DE ESPESSURA, COM MARCO EM ACO, NUCLEO COLMEIA, CAPA LISA EM HDF, ACABAMENTO MELAMINICO BRANCO (INCLUI MARCO, ALIZARES, DOBRADICAS E FECHADURA) | D179: un | E179: 12 | F179: 431 | G179: 5172 | H179: at
A180: 3.55 | B180: 031443 - IOPES | C180: JANELA DE CORRER EM ALUMINIO, 100 X 150 CM (A X L), 4 FLS, SEM BANDEIRA, ACABAMENTO ACET OU BRILHANTE, COM VIDRO, COM GUARNICAO PARA 1 FACE | D180: m² | E180: 7.2 | F180: 530.15 | G180: 3817.08
A182: ="TOTAL - "&C125&" - (R$):" -> TOTAL - MATERIAL DE CONSUMO - CIVIL - (R$): | G182: =SUBTOTAL(9,G125:G181) -> 1573603.31
A184: 4. | C184: =CPU_MANUTENCAO_CANTEIRO!C13 -> MANUTENÇÃO DE CANTEIRO - ESCRITÓRIO | J184: 12 | K184: ='ORCAMENTO_CONSOLIDADO (2)'!$K$1 -> 6
A185: 4.1 | C185: Taxa de manutenção de canteiros, incluindo despesas com material de expediente, material de limpeza, água, energia, comunicação, entre outras | D185: un x mês | E185: =K185 -> 6 | F185: =CPU_MANUTENCAO_CANTEIRO!F91 -> 26575.01 | G185: =ROUND(E185*F185,2) -> 159450.06 | I185: 12 | J185: =I185/J184 -> 1 | K185: =J185*K184 -> 6
A187: ="TOTAL - "&C184&" - (R$):" -> TOTAL - MANUTENÇÃO DE CANTEIRO - ESCRITÓRIO - (R$): | G187: =SUBTOTAL(9,G184:G186) -> 159450.06
A190: ="TOTAL - "&A8&" - (R$):" -> TOTAL - MATERIAL DE CONSUMO - ALMOXARIFADOS - (R$): | G190: =SUBTOTAL(9,G14:G189) -> 2757360.82
A192: ="RESUMO - "&A$8 -> RESUMO - MATERIAL DE CONSUMO - ALMOXARIFADOS
A193: ITEM | C193: DESCRIÇÃO | F193: VALOR TOTAL (R$)
A194: 1 | C194: =C14 -> MATERIAL DE CONSUMO - MECÂNICA | F194: =G68 -> 729720.95
A195: 2 | C195: =C70 -> MATERIAL DE CONSUMO - ELÉTRICA | F195: =G123 -> 294586.5
A196: 3 | C196: =C125 -> MATERIAL DE CONSUMO - CIVIL | F196: =G182 -> 1573603.31
A197: 4 | C197: =C184 -> MANUTENÇÃO DE CANTEIRO - ESCRITÓRIO | F197: =G187 -> 159450.06
A198: ="TOTAL GERAL - "&A192&" - (R$):" -> TOTAL GERAL - RESUMO - MATERIAL DE CONSUMO - ALMOXARIFADOS - (R$): | F198: =SUM(F194:G197) -> 2757360.82 | H198: =Mat_Cons/4479175.63 -> 0.6155956024
A201: NOME DO INFORMANTE: | F201: QUALIFICAÇÃO:
A203: ASSINATURA: | F203: DATA:
A205: OBSERVAÇÃO:

Sheet Veiculos
C1: Ministério do Desenvolvimento Regional - MDR
C2: Companhia de Desenvolvimento dos Vales do São Francisco e do Parnaíba
C3: Gerência de Operação do PISF - Centro de Controle e Operação (AD / GOI / CCO)
A5: =Materiais_Consumo!A5 -> TERMO DE REFERÊNCIA PARA CONTRATAÇÃO DOS RECURSOS NECESSÁRIOS À OPERAÇÃO E MANUTENÇÃO DAS INFRAESTRUTURAS DO EIXO LESTE DO PISF - PROJETO DE INTEGRAÇÃO DO SÃO FRANCISCO COM AS BACIAS HIDROGRÁFICAS DO NORDESTE SETENTRIONAL
A8: VEÍCULOS AUTOMOTORES
A10: ITEM | B10: CÓDIGO | C10: DESCRIÇÃO | D10: UNIDADE | E10: QUANTIDADE | F10: VALOR (R$)
F11: UNITARIO | G11: TOTAL
A12: 1. | C12: VEÍCULOS AUTOMOTORES
A13: 1.1 | B13: B3 | C13: TIPO HATCH 1.6 FLEX (110 CV) | D13: un x mês | E13: =SUMIF(Mem_Calculo_VEICULOS!C$34:C$105,Veiculos!C13,Mem_Calculo_VEICULOS!F$34:F$105) -> 90 | F13: =VLOOKUP(B13,Mem_Calculo_VEICULOS!B$13:F$26,3,FALSE) -> 4471.890667 | G13: =ROUND(E13*F13,2) -> 402470.16 | H13: =E13/6 -> 15 | I13: at
A14: 1.2 | B14: B4 | C14: TIPO SEDAN 1.6 FLEX (115CV) | D14: un x mês | E14: =SUMIF(Mem_Calculo_VEICULOS!C$34:C$111,Veiculos!C14,Mem_Calculo_VEICULOS!F$34:F$111) -> 6 | F14: =VLOOKUP(B14,Mem_Calculo_VEICULOS!B$13:F$26,3,FALSE) -> 4471.890667 | G14: 26831.34 | H14: =E14/6 -> 1 | I14: at
A15: 1.3 | B15: B11 | C15: Veículo Tipo Pick Up Cabine Dupla 4 x 4 (163 CV) | D15: un x mês | E15: =SUMIF(Mem_Calculo_VEICULOS!C$34:C$105,Veiculos!C15,Mem_Calculo_VEICULOS!F$34:F$105) -> 114 | F15: =VLOOKUP(B15,Mem_Calculo_VEICULOS!B$13:F$26,3,FALSE) -> 7404.485333 | G15: 844111.33 | H15: 19 | I15: at
A16: 1.4 | B16: B8 | C16: Veículo - Tipo Ônibus - 45 assentos (218 CV) - COM MOTORISTA | D16: un x mês | E16: =SUMIF(Mem_Calculo_VEICULOS!C$34:C$105,Veiculos!C16,Mem_Calculo_VEICULOS!F$34:F$105) -> 18 | F16: =VLOOKUP(B16,Mem_Calculo_VEICULOS!B$13:F$26,4,FALSE) -> 19830.69463 | G16: 356952.5 | H16: 3 | I16: at
A17: 1.5 | B17: B1 | C17: NXR BROS 160 | D17: un x mês | E17: =SUMIF(Mem_Calculo_VEICULOS!C$34:C$105,Veiculos!C17,Mem_Calculo_VEICULOS!F$34:F$105) -> 18 | F17: =VLOOKUP(B17,Mem_Calculo_VEICULOS!B$13:F$26,3,FALSE) -> 3128.592593 | G17: =ROUND(E17*F17,2) -> 56314.67 | H17: 3 | I17: at
A18: ="TOTAL - "&C12&" - (R$):" -> TOTAL - VEÍCULOS AUTOMOTORES - (R$): | G18: =SUBTOTAL(9,G12:G17) -> 1686680
A21: ="RESUMO - "&A$8 -> RESUMO - VEÍCULOS AUTOMOTORES
A22: ITEM | C22: DESCRIÇÃO | F22: VALOR TOTAL (R$)
A23: 1 | C23: =C12 -> VEÍCULOS AUTOMOTORES | F23: =G18 -> 1686680
A24: ="TOTAL GERAL - "&A21&" - (R$):" -> TOTAL GERAL - RESUMO - VEÍCULOS AUTOMOTORES - (R$): | F24: =SUM(F23:G23) -> 1686680
A27: NOME DO INFORMANTE: | F27: QUALIFICAÇÃO:
A29: ASSINATURA: | F29: DATA:
A31: OBSERVAÇÃO:
A33: =Mem_Calculo_VEICULOS!A113 -> 1. Despesas incluem manutenção, combustível, óleos, lubrificantes, pneus, etc.
A34: =Mem_Calculo_VEICULOS!A114 -> 2. Quilometragem adotada: 3.000 km/mês

Sheet Mem_Calculo_VEICULOS
C1: Ministério do Desenvolvimento Regional - MDR
C2: Companhia de Desenvolvimento dos Vales do São Francisco e do Parnaíba
C3: Gerência de Operação do PISF - Centro de Controle e Operação (AD / GOI / CCO)
A5: =Veiculos!A5 -> TERMO DE REFERÊNCIA PARA CONTRATAÇÃO DOS RECURSOS NECESSÁRIOS À OPERAÇÃO E MANUTENÇÃO DAS INFRAESTRUTURAS DO EIXO LESTE DO PISF - PROJETO DE INTEGRAÇÃO DO SÃO FRANCISCO COM AS BACIAS HIDROGRÁFICAS DO NORDESTE SETENTRIONAL
A8: TABELA DE VEÍCULOS
A11: ITEM | B11: CÓDIGO | C11: DESCRIÇÃO | D11: CUSTO MENSAL (R$) | F11: OBSERVAÇÕES
D12: S/ MOTORISTA | E12: C/ MOTORISTA
A13: 1. | C13: VEÍCULOS LEVES
A14: 1.1 | B14: B1 | C14: NXR BROS 160 | D14: =CPU_VEÍCULOS!F36 -> 3128.592593 | G14: at
A16: 2. | C16: VEÍCULOS LEVES
A17: 2.1 | B17: B3 | C17: TIPO HATCH 1.6 FLEX (110 CV) | D17: =CPU_VEÍCULOS!F17 -> 4471.890667 | G17: at
A18: 2.2 | B18: B4 | C18: TIPO SEDAN 1.6 FLEX (115CV) | D18: =CPU_VEÍCULOS!F12 -> 4471.890667 | G18: at
A20: 3. | C20: VEÍCULOS LEVES
A21: 3.2 | B21: B6 | C21: TIPO UTILITÁRIO (VAN 16 LUG) (129 CV) | E21: =CPU_VEÍCULOS!F24 -> 9462.367422 | G21: at
A22: 3.4 | B22: B8 | C22: TIPO ÔNIBUS (45 LUG) (218 CV) | E22: =CPU_VEÍCULOS!F30 -> 19830.69463 | G22: at
A24: 4. | C24: VEÍCULOS LEVES
A25: 4.3 | B25: B11 | C25: Veículo Tipo Pick Up Cabine Dupla 4 x 4 (163 CV) | D25: =CPU_VEÍCULOS!F7 -> 7404.485333 | G25: at
A29: MEMORIAL DE CÁLCULO - VEÍCULOS (Quantidade / Local)
A32: ITEM | B32: CLASSE | C32: DESCRIÇÃO | D32: PRAZO (mês) | E32: QUANTIDADE
E33: UNITÁRIA (mês) | F33: TOTAL (un x mês)
A34: 1. | C34: COORDENAÇÃO GERAL | Z34: 12 | AA34: ='ORCAMENTO_CONSOLIDADO (2)'!$K$1 -> 6
A35: 1.1 | C35: Veículo Tipo Pick Up Cabine Dupla 4 x 4 (163 CV) | D35: =AA35 -> 6 | E35: 1 | F35: =E35*D35 -> 6 | Y35: 12 | Z35: =Y35/$Z$34 -> 1 | AA35: =Z35*$AA$34 -> 6
A37: TOTAL DE VEÍCULOS - COORDENAÇÃO GERAL: | E37: =SUM(E35:E36) -> 1 | F37: =SUM(F35:F35) -> 6
A39: 2. | C39: COORDENAÇÃO DA OPERAÇÃO
A40: 2.1 | C40: Veículo Tipo Pick Up Cabine Dupla 4 x 4 (163 CV) | D40: =AA40 -> 6 | E40: 1 | F40: =E40*D40 -> 6 | Y40: 12 | Z40: =Y40/$Z$34 -> 1 | AA40: =Z40*$AA$34 -> 6
A42: TOTAL DE VEÍCULOS - COORDENAÇÃO DA OPERAÇÃO: | E42: =SUM(E40:E41) -> 1 | F42: =SUM(F40:F40) -> 6
A44: 3. | C44: COORDENAÇÃO DA MANUTENÇÃO
A45: 3.1 | C45: Veículo Tipo Pick Up Cabine Dupla 4 x 4 (163 CV) | D45: =AA45 -> 6 | E45: 1 | F45: =E45*D45 -> 6 | Y45: 12 | Z45: 1 | AA45: 6
A47: TOTAL DE VEÍCULOS - COORDENAÇÃO DA MANUTENÇÃO: | E47: =SUM(E45:E46) -> 1 | F47: =SUM(F45:F45) -> 6
A49: 4. | C49: COORDENAÇÃO ADMINISTRAÇÃO E LOGÍSTICA
A50: 4.1 | C50: TIPO HATCH 1.6 FLEX (110 CV) | D50: =AA50 -> 6 | E50: 1 | F50: =E50*D50 -> 6 | H50: 4 | I50: 2 | Y50: 12 | Z50: 1 | AA50: 6
A52: TOTAL DE VEÍCULOS - COORDENAÇÃO ADMINISTRAÇÃO E LOGÍSTICA: | E52: =SUM(E50:E51) -> 1 | F52: =SUM(F50:F50) -> 6
A54: 5. | C54: SEGURANÇA E MEDICINA DO TRABALHO
A55: 5.1 | C55: TIPO HATCH 1.6 FLEX (110 CV) | D55: =AA55 -> 6 | E55: 1 | F55: =E55*D55 -> 6 | H55: 3 | I55: 2 | Y55: 12 | Z55: 1 | AA55: 6
A57: TOTAL DE VEÍCULOS - SEGURANÇA E MEDICINA DO TRABALHO: | E57: =SUM(E55:E56) -> 1 | F57: =SUM(F55:F55) -> 6
A59: 6. | C59: PLANEJAMENTO E CONTROLE DA OPERAÇÃO
A60: 6.1 | C60: Veículo Tipo Pick Up Cabine Dupla 4 x 4 (163 CV) | D60: =AA60 -> 6 | E60: =H60-I60 -> 1 | F60: =E60*D60 -> 6 | H60: 2 | I60: 1 | Y60: 12 | Z60: 1 | AA60: 6
A62: TOTAL DE VEÍCULOS - PLANEJAMENTO E CONTROLE DA OPERAÇÃO: | E62: =SUM(E60:E61) -> 1 | F62: =SUM(F60:F60) -> 6
A64: 7. | C64: PLANEJAMENTO E CONTROLE DA MANUTENÇÃO
A65: 7.1 | C65: Veículo Tipo Pick Up Cabine Dupla 4 x 4 (163 CV) | D65: =AA65 -> 6 | E65: 3 | F65: =E65*D65 -> 18 | H65: 7 | I65: 2 | Y65: 12 | Z65: 1 | AA65: 6
A66: 7.2 | C66: TIPO HATCH 1.6 FLEX (110 CV) | D66: =AA66 -> 6 | E66: 1 | F66: =E66*D66 -> 6 | H66: 5 | I66: 1 | Y66: 12 | Z66: 1 | AA66: 6
A68: TOTAL DE VEÍCULOS - PLANEJAMENTO E CONTROLE DA MANUTENÇÃO: | E68: =SUM(E65:E67) -> 4 | F68: =SUM(F65:F66) -> 24
A70: 8. | C70: OPERAÇÃO
A71: 8.1 | C71: NXR BROS 160 | D71: =AA71 -> 6 | E71: =H71-I71 -> 3 | F71: =E71*D71 -> 18 | H71: 3 | Y71: 12 | Z71: 1 | AA71: 6
A72: 8.2 | C72: Veículo Tipo Pick Up Cabine Dupla 4 x 4 (163 CV) | D72: =AA72 -> 6 | E72: 2 | F72: =E72*D72 -> 12 | H72: 3 | I72: 1 | Y72: 12 | Z72: 1 | AA72: 6
A73: 8.3 | C73: TIPO HATCH 1.6 FLEX (110 CV) | D73: =AA73 -> 6 | E73: 5 | F73: 30 | H73: 12 | I73: 7 | Y73: 12 | Z73: 1 | AA73: 6
A75: TOTAL DE VEÍCULOS - OPERAÇÃO: | E75: =SUM(E71:E74) -> 10 | F75: =SUM(F71:F73) -> 60
A77: 9. | C77: MANUTENÇÃO - MECÂNICA
A78: 9.1 | C78: TIPO HATCH 1.6 FLEX (110 CV) | D78: =AA78 -> 6 | E78: =H78-I78 -> 2 | F78: =E78*D78 -> 12 | H78: 3 | I78: 1 | Y78: 12 | Z78: 1 | AA78: 6
A80: TOTAL DE VEÍCULOS - MANUTENÇÃO - MECÂNICA: | E80: =SUM(E78:E79) -> 2 | F80: =SUM(F78:F79) -> 12
A82: 10. | C82: MANUTENÇÃO - EQUIPAMENTOS E SISTEMAS ELÉTRICOS
A83: 10.1 | C83: TIPO HATCH 1.6 FLEX (110 CV) | D83: =AA83 -> 6 | E83: =H83-I83 -> 2 | F83: =E83*D83 -> 12 | H83: 3 | I83: 1 | Y83: 12 | Z83: 1 | AA83: 6
A85: TOTAL DE VEÍCULOS - MANUTENÇÃO - EQUIPAMENTOS E SISTEMAS ELÉTRICOS: | E85: =SUM(E83:E84) -> 2 | F85: =SUM(F83:F84) -> 12
A88: 11. | C88: MANUTENÇÃO TELECOM / SDSC
A89: 11.1 | C89: TIPO HATCH 1.6 FLEX (110 CV) | D89: =AA89 -> 6 | E89: 1 | F89: =E89*D89 -> 6 | Y89: 12 | Z89: 1 | AA89: 6
A91: TOTAL DE VEÍCULOS - MANUTENÇÃO TELECOM: | E91: 1 | F91: =SUM(F89) -> 6
A93: 12. | C93: MANUTENÇÃO - CIVIL | J93: 15 | L93: MANUTENÇÃO - CIVIL - SUBESTAÇÃO, LINHA DE TRANSMISSÃO E LINHA DE DISTRIBUIÇÃO
A94: 12.1 | C94: Veículo Tipo Pick Up Cabine Dupla 4 x 4 (163 CV) | D94: =AA94 -> 6 | E94: =H94-I94+N94 -> 2 | F94: =E94*D94 -> 12 | H94: 2 | I94: 1 | J94: 15.1 | L94: Veículo Tipo Pick Up Cabine Dupla 4 x 4 (163 CV) | M94: 12 | N94: 1 | O94: 12 | Y94: 12 | Z94: 1 | AA94: 6
A95: 12.2 | C95: Veículo - Tipo Ônibus - 45 assentos (218 CV) - COM MOTORISTA | D95: =AA95 -> 6 | E95: =H95-I95 -> 3 | F95: =E95*D95 -> 18 | H95: 4 | I95: 1 | J95: 15.2 | L95: Veículo Utilitário - Tipo Van - 16 assentos (129 CV) - COM MOTORISTA | M95: 12 | N95: 1 | O95: 12 | Y95: 12 | Z95: 1 | AA95: 6
A96: 12.3 | C96: TIPO SEDAN 1.6 FLEX (115CV) | D96: =AA96 -> 6 | E96: 1 | F96: 6 | H96: 1 | Y96: 12 | Z96: 1 | AA96: 6
A97: 12.4 | C97: TIPO HATCH 1.6 FLEX (110 CV) | D97: =AA97 -> 6 | E97: =H98-I98 -> 2 | F97: =E97*D97 -> 12 | Y97: 12 | Z97: 1 | AA97: 6
H98: 3 | I98: 1 | J98: TOTAL DE VEÍCULOS - MANUTENÇÃO - CIVIL - SUBESTAÇÃO, LINHA DE TRANSMISSÃO E LINHA DE DISTRIBUIÇÃO: | N98: 2 | O98: 24
A99: TOTAL DE VEÍCULOS - MANUTENÇÃO - CIVIL: | E99: =SUM(E94:E98) -> 8 | F99: =SUM(F94:F98) -> 48
A101: 13 | C101: EQUIPE DE SUPERVISÃO / FISCALIZAÇÃO
A102: 13.1 | C102: Veículo Tipo Pick Up Cabine Dupla 4 x 4 (163 CV) | D102: =AA102 -> 6 | E102: 8 | F102: =E102*D102 -> 48 | Y102: 12 | Z102: =Y102/$Z$34 -> 1 | AA102: =Z102*$AA$34 -> 6
H103: 6 | I103: 4
A104: TOTAL DE VEÍCULOS - EQUIPE DE SUPERVISÃO: | E104: =SUM(E102:E103) -> 8 | F104: =SUM(F102) -> 48
A107: NOME DO INFORMANTE: | E107: QUALIFICAÇÃO:
A109: ASSINATURA: | E109: DATA:
A111: OBSERVAÇÃO:
A113: 1. Despesas incluem manutenção, combustível, óleos, lubrificantes, pneus, etc.
A114: 2. Quilometragem adotada: 3.000 km/mês

Sheet CPU_VEÍCULOS
A2: COMPOSIÇÕES MENSAIS DE VEÍCULOS:
A3: CÓD. | B3: DESCRICAO DA COMPOSICAO | C3: UND | D3: COEF. | E3: P. UNIT. | F3: CUSTO T. | G3: % item
A4: AJUST.1 | B4: VEÍCULO CAMINHONETE DIESEL POT. MÍNIMA 180CV, CABINE DUPLA, 4x4, CHP e CHI AJUSTADAS S/MOTORISTA | C4: H | D4: 1 | E4: =F5+F6 -> 42.07093939 | F4: =D4*E4 -> 42.07093939
A5: SINAPI - 92138 | B5: CAMINHONETE COM MOTOR A DIESEL, POTÊNCIA 180 CV, CABINE DUPLA, 4X4 - CHP. AF_11/2015 | C5: CHP | D5: 0.45 | E5: =E43 -> 74.77875421 | F5: =E5*D5 -> 33.65043939
A6: SINAPI - 92139 | B6: CAMINHONETE COM MOTOR A DIESEL, POTÊNCIA 180 CV, CABINE DUPLA, 4X4 - CHI. AF_11/2015 | C6: CHI | D6: =1-D5 -> 0.55 | E6: =E52 -> 15.31 | F6: =E6*D6 -> 8.4205
B7: CUSTO MENSAL (referência média 176 horas, sendo 45% CHP e 55% CHI) | C7: MÊS | D7: 176 | E7: =E4 -> 42.07093939 | F7: =E7*D7 -> 7404.485333
A8: CÓD. | B8: DESCRICAO DA COMPOSICAO | C8: UND | D8: COEF. | E8: P. UNIT. | F8: CUSTO T. | G8: % item
A9: AJUST.2 | B9: VEÍCULO PICAPE 1.6 FLEX MANUAL POT. MÍN. 101CV SIMILAR P/ VEÍCULOS TIPO SEDAN 4 PORTAS S/MOTORISTA | C9: H | D9: 1 | E9: =F10+F11 -> 25.4084697 | F9: =D9*E9 -> 25.4084697
A10: SINAPI - 92145 | B10: CAMINHONETE SIMPLES MOTOR 1.6 FLEX, MANUAL, POT. 101/104 CV, 2 PORTAS - CHP. AF_11/2015 | C10: CHP | D10: 0.35 | E10: =E58 -> 62.19562771 | F10: =E10*D10 -> 21.7684697
A11: SINAPI - 92146 | B11: CAMINHONETE SIMPLES MOTOR 1.6 FLEX, MANUAL, POT. 101/104 CV, 2 PORTAS - CHI. AF_11/2015 | C11: CHI | D11: =1-D10 -> 0.65 | E11: =E67 -> 5.6 | F11: =E11*D11 -> 3.64
B12: CUSTO MENSAL (referência média 176 horas, sendo 35% CHP e 65% CHI) | C12: MÊS | D12: 176 | E12: =E9 -> 25.4084697 | F12: =E12*D12 -> 4471.890667
A14: AJUST.2 | B14: VEÍCULO PICAPE 1.6 FLEX MANUAL POT. MÍN. 101CV SIMILAR P/ VEÍCULOS TIPO HATCH 4 PORTAS S/MOTORISTA | C14: H | D14: 1 | E14: =F10+F11 -> 25.4084697 | F14: =D14*E14 -> 25.4084697
A15: SINAPI - 92145 | B15: CAMINHONETE SIMPLES MOTOR 1.6 FLEX, MANUAL, POT. 101/104 CV, 2 PORTAS - CHP. AF_11/2015 | C15: CHP | D15: 0.35 | E15: =E58 -> 62.19562771 | F15: =E15*D15 -> 21.7684697
A16: SINAPI - 92146 | B16: CAMINHONETE SIMPLES MOTOR 1.6 FLEX, MANUAL, POT. 101/104 CV, 2 PORTAS - CHI. AF_11/2015 | C16: CHI | D16: =1-D15 -> 0.65 | E16: =E67 -> 5.6 | F16: =E16*D16 -> 3.64
B17: CUSTO MENSAL (referência média 176 horas, sendo 35% CHP e 65% CHI) | C17: MÊS | D17: 176 | E17: =E14 -> 25.4084697 | F17: =E17*D17 -> 4471.890667
A20: SICRO - E9125 | B20: Veículo tipo van furgão com capacidade de 1,54 t - 93 kW | C20: UND | D20: COEF. | E20: P. UNIT. | F20: CUSTO T. | G20: % item
C21: CHP | D21: 0.35 | E21: 71.4587 | F21: =E21*D21 -> 25.010545
C22: CHI | D22: =1-D21 -> 0.65 | E22: 39.3139 | F22: =E22*D22 -> 25.554035
B23: PICK-UP DIESEL REPOSIÇÃO DE PNEUS R16 COM BASE NA UTILIZAÇÃO NO O&M PISF (1jg./ano) | C23: H | D23: =D85 -> 1.692030669e-05 | E23: 189055.1586 | F23: 3.198871264
C24: MÊS | D24: 176 | E24: =SUBTOTAL(9,F21:F23) -> 53.76345126 | F24: 9462.367422
A26: SICRO - E9134 | B26: Miniônibus com capacidade para 30 passageiros - 111 kW | C26: UND | D26: COEF. | E26: P. UNIT. | F26: CUSTO T. | G26: % item
C27: CHP | D27: 0.35 | E27: 192.8621 | F27: =E27*D27 -> 67.501735
C28: CHI | D28: =1-D27 -> 0.65 | E28: 59.7839 | F28: =E28*D28 -> 38.859535
C29: H | D29: =D124 -> 1.345682581e-05 | E29: 469139.7065 | F29: 6.313131313
C30: MÊS | D30: 176 | E30: =SUBTOTAL(9,F27:F29) -> 112.6744013 | F30: 19830.69463
A32: COTAÇÃO | B32: NXR BROS 160 | C32: UND | D32: COEF. | E32: P. UNIT. | F32: CUSTO T. | G32: % item
A33: COTAÇÃO | B33: Locação | C33: MÊS | D33: 1 | E33: ='[3]MOTO - LOCAÇÃO'!C7 -> 1950 | F33: =E33*D33 -> 1950
A34: 4222 / SINAPI | B34: Gasolina (Considerando quilometrametragem rodada do CHP-diesel supracitado - 4500 km/mês.Consumo de 30 km/L. | C34: L | D34: =4500/30 -> 150 | E34: =E107 -> 7.24 | F34: =E34*D34 -> 1086
B35: =B120 -> NXR 160 BROS REPOSIÇÃO DE PNEUS ARO 17 COM BASE NA UTILIZAÇÃO NO O&M PISF (1jg./ano) | C35: =C120 -> MÊS | D35: =D120 -> 176 | E35: =E120 -> 0.5260942761 | F35: =F120 -> 92.59259259
C36: MÊS | D36: 1 | E36: =SUBTOTAL(9,F33:F35) -> 3128.592593 | F36: =SUBTOTAL(9,F33:F35) -> 3128.592593
A39: DESCRIÇÃO DAS COMPOSIÇÕES:
A41: CÓD. | B41: DESCRICAO DA COMPOSICAO | C41: UND | D41: COEF. | E41: P. UNIT. | F41: CUSTO T. | G41: % item
B42: VEÍCULO CAMINHONETE DIESEL POTÊNCIA MÍNIMA 180CV, CABINE DUPLA, 4x4, CHP e CHI AJUSTADAS SEM MOTORISTA
A43: 92138 | B43: CAMINHONETE COM MOTOR A DIESEL, POTÊNCIA 180 CV, CABINE DUPLA, 4X4 - CHP. AF_11/2015 | C43: CHP | D43: 1 | E43: =SUM(F44:F51) -> 74.77875421 | F43: =E43*D43 -> 74.77875421 | G43: =F43/E43 -> 1 | I43: 67.85875421
A44: 88284 | B44: MOTORISTA DE VEIÍCULO LEVE COM ENCARGOS COMPLEMENTARES | C44: H | D44: 0 | E44: 30,06 | F44: =D44*E44 -> 0 | G44: =F44/$F$43 -> 0
A45: 92133 | B45: CAMINHONETE COM MOTOR A DIESEL, POTÊNCIA 180 CV, CABINE DUPLA, 4X4 - DEPRECIAÇÃO. AF_11/2015 | C45: H | D45: 1 | E45: 11.93 | F45: =D45*E45 -> 11.93 | G45: =F45/$F$43 -> 0.1595372927
A46: 92134 | B46: CAMINHONETE COM MOTOR A DIESEL, POTÊNCIA 180 CV, CABINE DUPLA, 4X4 - JUROS. AF_11/2015 | C46: H | D46: 1 | E46: 1.89 | F46: 1.89 | G46: 0.02527455853
A47: 92135 | B47: CAMINHONETE COM MOTOR A DIESEL, POTÊNCIA 180 CV, CABINE DUPLA, 4X4 - IMPOSTOS E SEGUROS. AF_11/2015 | C47: H | D47: 1 | E47: 1.49 | F47: 1.49 | G47: 0.01992544561
A48: 92136 | B48: CAMINHONETE COM MOTOR A DIESEL, POTÊNCIA 180 CV, CABINE DUPLA, 4X4 - MANUTENÇÃO. AF_11/2015 | C48: H | D48: 1 | E48: 14.92 | F48: 14.92 | G48: 0.1995219118
A49: 92137 | B49: CAMINHONETE COM MOTOR A DIESEL, POTÊNCIA 180 CV, CABINE DUPLA, 4X4 - MATERIAIS NA OPERAÇÃO. AF_11/2015 | C49: H | D49: 1 | E49: 40.34 | F49: =D49*E49 -> 40.34 | G49: =F49/$F$43 -> 0.5394580376
A50: a1.pneus | B50: PICK-UP DIESEL REPOSIÇÃO DE PNEUS R16 COM BASE NA UTILIZAÇÃO NO O&M PISF (1 jogo/ano = 4 pneus) | C50: H | D50: 1 | E50: =F85 -> 4.208754209 | F50: =E50*D50 -> 4.208754209 | G50: =F50/$F$43 -> 0.05628275375
A51: a2.comb. | B51: PICK-UP DIESEL, POT. 180 CV, CD, 4x4 - COMBUSTÍVEL ADICIONAL COM BASE NA UTILIZAÇÃO NO O&M PISF | C51: H | D51: 1 | E51: =F87 -> 0 | F51: 0 | G51: 0
A52: 92139 | B52: CAMINHONETE COM MOTOR A DIESEL, POTÊNCIA 180 CV, CABINE DUPLA, 4X4 - CHI. AF_11/2015 | C52: CHI | D52: 1 | E52: =SUM(F53:F56) -> 15.31 | F52: =E52*D52 -> 15.31 | G52: =F52/E52 -> 1
A53: 88284 | B53: MOTORISTA DE VEIÍCULO LEVE COM ENCARGOS COMPLEMENTARES | C53: H | D53: 0 | E53: 30.06 | F53: 0 | G53: =F53/$F$52 -> 0
A54: 92133 | B54: CAMINHONETE COM MOTOR A DIESEL, POTÊNCIA 180 CV, CABINE DUPLA, 4X4 - DEPRECIAÇÃO. AF_11/2015 | C54: H | D54: 1 | E54: 11.93 | F54: =D54*E54 -> 11.93 | G54: =F54/$F$52 -> 0.7792292619
A55: 92134 | B55: CAMINHONETE COM MOTOR A DIESEL, POTÊNCIA 180 CV, CABINE DUPLA, 4X4 - JUROS. AF_11/2015 | C55: H | D55: 1 | E55: 1.89 | F55: =D55*E55 -> 1.89 | G55: =F55/$F$52 -> 0.1234487263
A56: 92135 | B56: CAMINHONETE COM MOTOR A DIESEL, POTÊNCIA 180 CV, CABINE DUPLA, 4X4 - IMPOSTOS E SEGUROS. AF_11/2015 | C56: H | D56: 1 | E56: 1.49 | F56: 1.49 | G56: =F56/$F$52 -> 0.09732201176
B57: VEÍCULO PICAPE SIMPLES MOTOR 1.6 FLEX MANUAL POTÊNCIA MÍNIMA 101 CV SIMILAR PARA VEÍCULOS TIPO GOL 4 PORTAS FLEX SEM MOTORISTA
A58: 92145 | B58: CAMINHONETE SIMPLES MOTOR 1.6 FLEX, MANUAL, POT. 101/104 CV, 2 PORTAS - CHP. AF_11/2015 | C58: CHP | D58: 1 | E58: =SUM(F59:F66) -> 62.19562771 | F58: =E58*D58 -> 62.19562771 | G58: =F58/E58 -> 1 | H58: 55.59562771
A59: 88284 | B59: MOTORISTA DE VEIÍCULO LEVE COM ENCARGOS COMPLEMENTARES | C59: H | D59: 0 | E59: 30.06 | F59: =D59*E59 -> 0 | G59: =F59/$F$58 -> 0
A60: 92140 | B60: PICAPE SIMPLES MOTOR 1.6 FLEX, MANUAL, POTÊNCIA 101/104 CV - DEPRECIAÇÃO. AF_11/2015 | C60: H | D60: 1 | E60: 4.37 | F60: 4.37 | G60: 0.07026217374
A61: 92141 | B61: PICAPE SIMPLES MOTOR 1.6 FLEX, MANUAL, POTÊNCIA 101/104 CV - JUROS. AF_11/2015 | C61: H | D61: 1 | E61: 0.69 | F61: 0.69 | G61: 0.01109402743
A62: 92142 | B62: PICAPE SIMPLES MOTOR 1.6 FLEX, MANUAL, POTÊNCIA 101/104 CV - IMPOSTOS E SEGUROS. AF_11/2015 | C62: H | D62: 1 | E62: 0.54 | F62: 0.54 | G62: 0.008682282339
A63: 92143 | B63: PICAPE SIMPLES MOTOR 1.6 FLEX, MANUAL, POTÊNCIA 101/104 CV - MANUTENÇÃO. AF_11/2015 | C63: H | D63: 1 | E63: 5.46 | F63: 5.46 | G63: 0.08778752143
A64: 92144 | B64: PICAPE SIMPLES MOTOR 1.6 FLEX, MANUAL, POTÊNCIA 101/104 CV - MATERIAIS NA OPERAÇÃO. AF_11/2015 | C64: H | D64: 1 | E64: 48.43 | F64: =D64*E64 -> 48.43 | G64: 0.7786720994
A65: a3.pneus | B65: VEÍCULO FLEX REPOSIÇÃO DE PNEUS R14 COM BASE NA UTILIZAÇÃO NO O&M PISF (1 jogo/ano = 4 pneus) | C65: H | D65: 1 | E65: =F99 -> 2.705627706 | F65: =E65*D65 -> 2.705627706 | G65: 0.04350189564
A66: a4.comb. | B66: VEÍCULO FLEX COMBUSTÍVEL ADICIONAL COM BASE NA UTILIZAÇÃO NO O&M PISF | C66: H | D66: 1 | E66: =F101 -> 0 | F66: 0 | G66: 0
A67: 92146 | B67: CAMINHONETE SIMPLES MOTOR 1.6 FLEX, MANUAL, POT. 101/104 CV, 2 PORTAS - CHI. AF_11/2015 | C67: CHI | D67: 1 | E67: =SUM(F68:F71) -> 5.6 | F67: =E67*D67 -> 5.6 | G67: =F67/E67 -> 1
A68: 88284 | B68: MOTORISTA DE VEIÍCULO LEVE COM ENCARGOS COMPLEMENTARES | C68: H | D68: 0 | E68: 30.06 | F68: =D68*E68 -> 0 | G68: =F68/$F$67 -> 0
A69: 92140 | B69: PICAPE SIMPLES MOTOR 1.6 FLEX, MANUAL, POTÊNCIA 101/104 CV - DEPRECIAÇÃO. AF_11/2015 | C69: H | D69: 1 | E69: 4.37 | F69: =D69*E69 -> 4.37 | G69: =F69/$F$67 -> 0.7803571429
A70: 92141 | B70: PICAPE SIMPLES MOTOR 1.6 FLEX, MANUAL, POTÊNCIA 101/104 CV - JUROS. AF_11/2015 | C70: H | D70: 1 | E70: 0.69 | F70: =D70*E70 -> 0.69 | G70: =F70/$F$67 -> 0.1232142857
A71: 92142 | B71: PICAPE SIMPLES MOTOR 1.6 FLEX, MANUAL, POTÊNCIA 101/104 CV - IMPOSTOS E SEGUROS. AF_11/2015 | C71: H | D71: 1 | E71: 0.54 | F71: =D71*E71 -> 0.54 | G71: =F71/$F$67 -> 0.09642857143
A72: SUB-COMPOSIÇÕES
A73: CÓD. | B73: DESCRICAO DA COMPOSICAO | C73: UND | D73: COEF. | E73: P. UNIT. | F73: CUSTO T. | G73: % item
A74: 92133 | B74: CAMINHONETE MOTOR DIESEL, POTÊNCIA 180 CV, CABINE DUPLA, 4X4 - DEPRECIAÇÃO. AF_11/2015
B75: CAMINHONETE MOTOR DIESEL, POTÊNCIA 180 CV, CABINE DUPLA, 4X4 - DEPRECIAÇÃO. AF_11/2015 | C75: H | D75: 4.8e-05 | E75: 248739.83 | F75: 11.93
A76: 92134 | B76: CAMINHONETE MOTOR DIESEL, POTÊNCIA 180 CV, CABINE DUPLA, 4X4 - JUROS. AF_11/2015
B77: CAMINHONETE MOTOR DIESEL, POTÊNCIA 180 CV, CABINE DUPLA, 4X4 - JUROS. AF_11/2015 | C77: H | D77: 7.6e-06 | E77: 248739.83 | F77: 1.89
A78: 92135 | B78: CAMINHONETE MOTOR DIESEL, POTÊNCIA 180 CV, CABINE DUPLA, 4X4 - IMPOSTOS E SEGUROS. AF_11/2015
B79: CAMINHONETE MOTOR DIESEL, POTÊNCIA 180 CV, CABINE DUPLA, 4X4 - IMPOSTOS E SEGUROS. AF_11/2015 | C79: H | D79: 6e-06 | E79: 248739.83 | F79: 1.49
A80: 92136 | B80: CAMINHONETE MOTOR DIESEL, POTÊNCIA 180 CV, CABINE DUPLA, 4X4 - MANUTENÇÃO. AF_11/2015
B81: CAMINHONETE MOTOR DIESEL, POTÊNCIA 180 CV, CABINE DUPLA, 4X4 - MANUTENÇÃO. AF_11/2015 | C81: H | D81: 6e-05 | E81: 248739.83 | F81: 14.92
A82: 92137 | B82: CAMINHONETE MOTOR DIESEL, POTÊNCIA 180 CV, CABINE DUPLA, 4X4 - MATERIAIS NA OPERAÇÃO. AF_11/2015
B83: CAMINHONETE MOTOR DIESEL, POTÊNCIA 180 CV, CABINE DUPLA, 4X4 - MATERIAIS NA OPERAÇÃO. AF_11/2015 | C83: H | D83: 5.89 | E83: 6.85 | F83: 40.34
A84: a1.pneus | B84: PICK-UP DIESEL REPOSIÇÃO DE PNEUS R16 COM BASE NA UTILIZAÇÃO NO O&M PISF (1jg./ano)
B85: PICK-UP DIESEL, POT. 180 CV, CD, 4x4 - REPOSIÇÃO DE PNEUS COM BASE NA UTILIZAÇÃO NO O&M PISF (1jg./ano) | C85: H | D85: =(1/(44*4*12*0.45))*(4*1000/$E$75) -> 1.692030669e-05 | E85: =$E$81 -> 248739.83 | F85: =E85*D85 -> 4.208754209
A86: a2.comb. | B86: PICK-UP DIESEL, POT. 180 CV, CD, 4x4 - COMBUSTÍVEL ADICIONAL COM BASE NA UTILIZAÇÃO NO O&M PISF
B87: PICK-UP DIESEL, POT. 180 CV, CD, 4x4 - COMBUSTÍVEL ADICIONAL COM BASE NA UTILIZAÇÃO NO O&M PISF | C87: L/H | D87: 0 | E87: 5.28 | F87: =D87*E87 -> 0
A88: 92140 | B88: PICAPE SIMPLES MOTOR 1.6 FLEX, MANUAL, POTÊNCIA 101/104 CV - DEPRECIAÇÃO. AF_11/2015 | C88: H
B89: PICAPE SIMPLES MOTOR 1.6 FLEX, MANUAL, POTÊNCIA 101/104 CV - DEPRECIAÇÃO. AF_11/2015 | C89: H | D89: 4.8e-05 | E89: 91142 | F89: =F60 -> 4.37
A90: 92141 | B90: PICAPE SIMPLES MOTOR 1.6 FLEX, MANUAL, POTÊNCIA 101/104 CV - JUROS. AF_11/2015 | C90: H
B91: PICAPE SIMPLES MOTOR 1.6 FLEX, MANUAL, POTÊNCIA 101/104 CV - JUROS. AF_11/2015 | C91: H | D91: 7.6e-06 | E91: 91142 | F91: =F61 -> 0.69
A92: 92142 | B92: PICAPE SIMPLES MOTOR 1.6 FLEX, MANUAL, POTÊNCIA 101/104 CV - IMPOSTOS E SEGUROS. AF_11/2015 | C92: H
B93: PICAPE SIMPLES MOTOR 1.6 FLEX, MANUAL, POTÊNCIA 101/104 CV - IMPOSTOS E SEGUROS. AF_11/2015 | C93: H | D93: 6e-06 | E93: 91142 | F93: =F62 -> 0.54
A94: 92143 | B94: PICAPE SIMPLES MOTOR 1.6 FLEX, MANUAL, POTÊNCIA 101/104 CV - MANUTENÇÃO. AF_11/2015 | C94: H
B95: PICAPE SIMPLES MOTOR 1.6 FLEX, MANUAL, POTÊNCIA 101/104 CV - MANUTENÇÃO. AF_11/2015 | C95: H | D95: 6e-05 | E95: 91142 | F95: =F63 -> 5.46
A96: 92144 | B96: PICAPE SIMPLES MOTOR 1.6 FLEX, MANUAL, POTÊNCIA 101/104 CV - MATERIAIS NA OPERAÇÃO. AF_11/2015 | C96: H
B97: PICAPE SIMPLES MOTOR 1.6 FLEX, MANUAL, POTÊNCIA 101/104 CV - MATERIAIS NA OPERAÇÃO. AF_11/2015 | C97: H | D97: 6.69 | E97: 7.24 | F97: =F64 -> 48.43
A98: a3.pneus | B98: VEÍCULO FLEX REPOSIÇÃO DE PNEUS R14 COM BASE NA UTILIZAÇÃO NO O&M PISF (1jg./ano)
B99: VEÍCULO FLEX REPOSIÇÃO DE PNEUS R14 COM BASE NA UTILIZAÇÃO NO O&M PISF (1jg./ano) | C99: H | D99: =(1/(0.35*44*4*12))*(4*500/$E$89) -> 2.968584962e-05 | E99: =$E$89 -> 91142 | F99: =E99*D99 -> 2.705627706 | G99: =F99*44*4*12*0.35 -> 2000
A100: a4.comb. | B100: VEÍCULO FLEX COMBUSTÍVEL ADICIONAL COM BASE NA UTILIZAÇÃO NO O&M PISF
B101: VEÍCULO FLEX COMBUSTÍVEL ADICIONAL COM BASE NA UTILIZAÇÃO NO O&M PISF | C101: L/H | D101: 0 | E101: 6.27 | F101: =D101*E101 -> 0
A102: INSUMOS
A103: CÓD. | B103: DESCRICAO DO INSUMO | C103: UND | D103: COEF. | E103: P. UNIT. | F103: CUSTO T.
A104: 1159 | B104: CAMINHONETE COM MOTOR A DIESEL, POTÊNCIA 180 CV, CABINE DUPLA, 4X4 | C104: UN | D104: 1 | E104: 248739.83 | F104: =E104*D104 -> 248739.83
A105: 4221 | B105: ÓLEO DIESEL COMBUSTÍVEL COMUM | C105: L | D105: 1 | E105: 6.85 | F105: =E105*D105 -> 6.85
A106: 13617 | B106: PICAPE SIMPLES MOTOR 1.6 FLEX, MANUAL, POT. MÍNIMA 101/104 CV, 2 PORTAS - SIMILAR A GOL 4 PORTAS | C106: UN | D106: 1 | E106: 91142 | F106: =E106*D106 -> 91142
A107: 4222 | B107: GASOLINA COMUM | C107: L | D107: 1 | E107: 7.24 | F107: =E107*D107 -> 7.24
A108: CÁLCULO HORÁRIO MÉDIO EM CIRCUITO MISTO DO CONSUMO DE COMBUSTÍVEL E CÁLCULO MÉDIO DO KM RODADO POR MÊS MÉDIO* | C108: H | D108: KM | E108: KM/L médio | F108: L/H
A109: I.Rodovia | B109: Cálclo da distância em rodovia mista BR(Federal em boas condições) e PE(Estadual em boas condições) vias asfaltadas e sinalizadas | C109: 1 | D109: 77.4 | E109: 11 | F109: =D109/E109 -> 7.036363636
A110: II.Est.Vic. | B110: Cálclo da distância em Estrada Vicinal em condições medianas | C110: 1 | D110: 35.6 | E110: 10 | F110: =D110/E110 -> 3.56
A111: MÉDIA | B111: Média entre as condições I e II | C111: 1 | D111: =(D109+D110)/2 -> 56.5 | E111: =(E109+E110)/2 -> 10.5 | F111: =D111/E111 -> 5.380952381 | G111: Arredondando
A112: CHP-Flex | B112: Considerando a necessidade de 35% de horas produtivas mês e que o mês médio nos dá 176 horas (44 hs/sem. x 4 = 176 hs)-FLEX | C112: 176 | D112: 0.35 | E112: =C112*D112 -> 61.6 | F112: =E112*$D$111 -> 3480.4 | G112: 3.500 km
A113: CHP-Diesel | B113: Considerando a necessidade de 45% de horas produtivas mês e que o mês médio nos dá 176 horas (44 hs/sem. x 4 = 176 hs)-DIESEL | C113: 176 | D113: 0.45 | E113: =C113*D113 -> 79.2 | F113: =E113*$D$111 -> 4474.8 | G113: 4.500 km
A114: OBSERVAÇÃO: O mês médio leva em consideração que há meses de 28 dias, outros com 30 dias e outros com 31 dias. Há meses que têm mais feriados e outros não, incluindo recessos e paradas técnicas.
A115: Outra observação importante é que se trata do quilômetro rodado médio de todos os veículos de cada categoria de combustível, servindo tanto para os veículos à diesel quanto aos à Gaolina/Flex.
A117: Consumo de pneus - Motocicleta | C117: UND | D117: COEF. | E117: P. UNIT. | F117: CUSTO T. | G117: % item
B118: NXR 160 BROS ESDD FLEXONE | C118: UN | D118: 1 | E118: 19585 | F118: =E118*D118 -> 19585
B119: NXR 160 BROS REPOSIÇÃO DE PNEUS ARO 17 COM BASE NA UTILIZAÇÃO NO O&M PISF (1jg./ano) | C119: H | D119: =(1/(0.45*44*4*12))*(2*250/$E$118) -> 2.686210243e-05 | E119: =$E$118 -> 19585 | F119: =E119*D119 -> 0.5260942761
B120: NXR 160 BROS REPOSIÇÃO DE PNEUS ARO 17 COM BASE NA UTILIZAÇÃO NO O&M PISF (1jg./ano) | C120: MÊS | D120: 176 | E120: =F119 -> 0.5260942761 | F120: =E120*D120 -> 92.59259259
A122: Miniônibus com capacidade para 30 passageiros - 111 kW | C122: UND | D122: COEF. | E122: P. UNIT. | F122: CUSTO T. | G122: % item
A123: SICRO - E9134 | B123: Miniônibus com capacidade para 30 passageiros - 111 k | C123: UN | D123: 1 | E123: 469139.7065 | F123: =E123*D123 -> 469139.7065
B124: Ônibus REPOSIÇÃO DE PNEUS ARO 22.5 COM BASE NA UTILIZAÇÃO NO O&M PISF (1jg./ano) | C124: H | D124: =(1/(0.45*44*4*12))*(2*3000/$E$123) -> 1.345682581e-05 | E124: 469139.7065 | F124: =E124*D124 -> 6.313131313
B125: Ônibus REPOSIÇÃO DE PNEUS ARO 22.5 COM BASE NA UTILIZAÇÃO NO O&M PISF (1jg./ano) | C125: MÊS | D125: 176 | E125: =F124 -> 6.313131313 | F125: =E125*D125 -> 1111.111111
A127: *Observações
A128: - SICRO 01/2022
A129: -SINAPI 04/2022
J144: SINAPI 04/2022 - NÃO DESONERADO
J145: SICRO 01/2022 - NÃO DESONERADO

Sheet Equipamentos
C1: Ministério do Desenvolvimento Regional - MDR
C2: Companhia de Desenvolvimento dos Vales do São Francisco e do Parnaíba
C3: Gerência de Operação do PISF - Centro de Controle e Operação (AD / GOI / CCO)
A5: =Mem_Calculo_VEICULOS!A5 -> TERMO DE REFERÊNCIA PARA CONTRATAÇÃO DOS RECURSOS NECESSÁRIOS À OPERAÇÃO E MANUTENÇÃO DAS INFRAESTRUTURAS DO EIXO LESTE DO PISF - PROJETO DE INTEGRAÇÃO DO SÃO FRANCISCO COM AS BACIAS HIDROGRÁFICAS DO NORDESTE SETENTRIONAL
A8: EQUIPAMENTOS
A12: ITEM | B12: CÓDIGO | C12: DESCRIÇÃO | D12: UNIDADE | E12: QUANTIDADE | F12: VALOR (R$)
F13: UNITARIO | G13: TOTAL
C14: =A8 -> EQUIPAMENTOS
A16: 1. | C16: EQUIPAMENTOS - MECÂNICA | K16: 12 | L16: ='ORCAMENTO_CONSOLIDADO (2)'!$K$1 -> 6
A17: 1.1 | B17: COT_AFER | C17: Aferidor de manômetro de 0 a 150 bar | D17: un x mês | E17: =L17 -> 6 | F17: =CPU_EQUIPAMENTOS_!E1128 -> 33.3325 | G17: =ROUND(E17*F17,2) -> 200 | I17: 12 | K17: =I17/$K$16 -> 1 | L17: =ROUNDUP(K17*$L$16,0) -> 6
A18: 1.2 | B18: COT_ALMO_FLEX | C18: Almotolia de bico flexível 500ml | D18: un x mês | E18: =L18 -> 18 | F18: =CPU_EQUIPAMENTOS_!I1128 -> 0.811875 | G18: =ROUND(E18*F18,2) -> 14.61 | I18: 36 | K18: =I18/$K$16 -> 3 | L18: =ROUNDUP(K18*$L$16,0) -> 18
A19: 1.3 | B19: COT_ALMO_RIG | C19: Almotolia de bico rígido 500ml | D19: un x mês | E19: 18 | F19: =CPU_EQUIPAMENTOS_!M1128 -> 1.146875 | G19: 20.64 | I19: 36 | K19: 3 | L19: =ROUNDUP(K19*$L$16,0) -> 18
A20: 1.4 | B20: 4154/ORSE | C20: Andaime metálico tipo fachadeiro Dim: Largura= 1,20m / Altura por peça= 2,00m. (Altura Total=10m - 5 peças por conjunto) | D20: m² x mês | E20: 864 | F20: =2/1.2*5.29 -> 8.816666667 | G20: 7617.6 | I20: 1728 | K20: 144 | L20: 864
A21: 1.5 | B21: COT_BANC_OFIC | C21: Bancada para oficina (Dim: 1,2m x 2,5m) | D21: un x mês | E21: 36 | F21: =CPU_EQUIPAMENTOS_!E1146 -> 42.156875 | G21: 1517.65 | I21: 72 | K21: 6 | L21: 36
A22: 1.6 | B22: COT_BOMB_GRAX | C22: Bomba de graxa manual 5kg | D22: un x mês | E22: 18 | F22: =CPU_EQUIPAMENTOS_!I1146 -> 5.705 | G22: 102.69 | I22: 36 | K22: 3 | L22: 18
A23: 1.7 | B23: 13914 - SINAPI/PE | C23: Talha Manual de Corrente com Alavanca 1,5 t Elevação 1,5m (Catraca 1,5 ton) | D23: un x mês | E23: 6 | F23: =CPU_EQUIPAMENTOS_!E1092 -> 16.124375 | G23: 96.75 | I23: 12 | K23: 1 | L23: 6
A24: 1.8 | B24: COT_CHAV_46 | C24: Chave de impacto 46mm boca/estria | D24: un x mês | E24: 12 | F24: =CPU_EQUIPAMENTOS_!M1146 -> 2.636041667 | G24: 31.63 | I24: 24 | K24: 2 | L24: 12
A25: 1.9 | B25: COT_CHAV_55 | C25: Chave de impacto 55mm boca/estria | D25: un x mês | E25: 12 | F25: =CPU_EQUIPAMENTOS_!E1164 -> 5.5 | G25: 66 | I25: 24 | K25: 2 | L25: 12
A26: 1.10 | B26: COT_CHAV_60 | C26: Chave de impacto 60mm boca/estria | D26: un x mês | E26: 12 | F26: =CPU_EQUIPAMENTOS_!I1164 -> 3.463986111 | G26: 41.57 | I26: 24 | K26: 2 | L26: 12
A27: 1.11 | B27: COT_CHAV_65 | C27: Chave de impacto 65mm boca/estria | D27: un x mês | E27: 12 | F27: =CPU_EQUIPAMENTOS_!M1164 -> 3.616041667 | G27: 43.39 | I27: 24 | K27: 2 | L27: 12
A28: 1.12 | B28: COT_CHAV_70 | C28: Chave de impacto 70mm boca/estria | D28: un x mês | E28: 12 | F28: =CPU_EQUIPAMENTOS_!E1182 -> 6.67125 | G28: 80.06 | I28: 24 | K28: 2 | L28: 12
A29: 1.13 | B29: COT_CHAV_75 | C29: Chave de impacto 75mm boca/estria | D29: un x mês | E29: 24 | F29: =CPU_EQUIPAMENTOS_!I1182 -> 5.9000625 | G29: 141.6 | I29: 48 | K29: 4 | L29: 24
A30: 1.14 | B30: COT_CHAV_85 | C30: Chave de impacto 85mm boca/estria | D30: un x mês | E30: 24 | F30: =CPU_EQUIPAMENTOS_!M1182 -> 10.08938194 | G30: 242.15 | I30: 48 | K30: 4 | L30: 24
A31: 1.15 | B31: COT_CINT_3T | C31: Cinta para elevação de carga (comprimento: 3m / capacidade de carga: 3t) | D31: un x mês | E31: 12 | F31: =CPU_EQUIPAMENTOS_!E1200 -> 2.305208333 | G31: 27.66 | I31: 24 | K31: 2 | L31: 12
A32: 1.16 | B32: COT_CINT_20T | C32: Cinta para elevação de carga (comprimento: 6m / capacidade de carga: 20t) | D32: un x mês | E32: 12 | F32: =CPU_EQUIPAMENTOS_!I1200 -> 27.415625 | G32: 328.99 | I32: 24 | K32: 2 | L32: 12
A33: 1.17 | B33: COT_CORT | C33: Cortador a frio para tubos - Cortador Tubo Ferro Ferrari 1/8" - 2" | D33: un x mês | E33: 12 | F33: =CPU_EQUIPAMENTOS_!M1200 -> 21.44166667 | G33: 257.3 | I33: 24 | K33: 2 | L33: 12
A34: 1.18 | B34: COT_CURV | C34: Curvador de tubos (Até 1”) - Curvador e Dobrador De Tubos Manual | D34: un x mês | E34: 12 | F34: =CPU_EQUIPAMENTOS_!E1218 -> 46.57458333 | G34: 558.9 | I34: 24 | K34: 2 | L34: 12
A35: 1.19 | B35: 38476 - SINAPI/PE | C35: Escada de abrir com 2 x 8 degraus (2,40m) em alumínio | D35: un x mês | E35: 24 | F35: =CPU_EQUIPAMENTOS_!I1092 -> 5.231277778 | G35: 125.55 | I35: 48 | K35: 4 | L35: 24
A36: 1.20 | B36: 38477 - SINAPI/PE | C36: Escada de marinheiro extensível em duraluníno com 10 x 20 degraus (3,00m / 6,00m) | D36: un x mês | E36: 18 | F36: =CPU_EQUIPAMENTOS_!M1092 -> 16.50613889 | G36: 297.11 | I36: 36 | K36: 3 | L36: 18
A37: 1.21 | B37: COT_ESCA_07 | C37: Escada metálica de 07 degraus | D37: un x mês | E37: 18 | F37: =CPU_EQUIPAMENTOS_!I1218 -> 7.610208333 | G37: 136.98 | I37: 36 | K37: 3 | L37: 18
A38: 1.22 | B38: COT_ESCA_16 | C38: Escada articulada multifuncional 4x4 16 degraus | D38: un x mês | E38: 6 | F38: =CPU_EQUIPAMENTOS_!M1218 -> 18.89416667 | G38: 113.37 | I38: 12 | K38: 1 | L38: 6
A39: 1.23 | B39: COT_ESME | C39: Esmerilhadeira angular de 4 ½” | D39: un x mês | E39: 12 | F39: =CPU_EQUIPAMENTOS_!E1236 -> 7.271875 | G39: 87.26 | I39: 24 | K39: 2 | L39: 12
A40: 1.24 | B40: 11359 - SINAPI/PE | C40: Esmerilhadeira angular de 7” | D40: un x mês | E40: 12 | F40: =CPU_EQUIPAMENTOS_!E1110 -> 14.22916667 | G40: 170.75 | I40: 24 | K40: 2 | L40: 12
A41: 1.25 | B41: I9376 - SEINFRA/CE | C41: Furadeira Manual 650W 1050 – 1450 RPM 220V Ø 13mm | D41: un x mês | E41: 12 | F41: =CPU_EQUIPAMENTOS_!I1348 -> 18.8125 | G41: 225.75 | I41: 24 | K41: 2 | L41: 12
A42: 1.26 | B42: COT_INDU | C42: Indutor elétrico para aquecimento de rolamentos (JM 500) | D42: un x mês | E42: 6 | F42: =CPU_EQUIPAMENTOS_!M1236 -> 356.9339583 | G42: 2141.6 | I42: 12 | K42: 1 | L42: 6
A43: 1.27 | B43: COT_LIXA | C43: Lixadeira 4 1/2" | D43: un x mês | E43: 12 | F43: =CPU_EQUIPAMENTOS_!E1254 -> 9.020833333 | G43: 108.25 | I43: 24 | K43: 2 | L43: 12
A44: 1.28 | B44: COT_MACA_20T | C44: Macaco de comando a distância 20 t - Macaco Hidráulico 20 Toneladas Tipo Garrafa | D44: un x mês | E44: 12 | F44: =CPU_EQUIPAMENTOS_!I1254 -> 16.82583333 | G44: 201.91 | I44: 24 | K44: 2 | L44: 12
A45: 1.29 | B45: COT_MACA_50T | C45: Macaco de comando a distância 50 t - Macaco Hidráulico 50 Toneladas Tipo Garrafa | D45: un x mês | E45: 12 | F45: =CPU_EQUIPAMENTOS_!M1254 -> 33.685 | G45: 404.22 | I45: 24 | K45: 2 | L45: 12
A46: 1.30 | B46: COT_MACA_2T | C46: Macaco tipo elevador capacidade de 2 t - Macaco Hidráulico 2 Toneladas tipo Garrafa | D46: un x mês | E46: 12 | F46: =CPU_EQUIPAMENTOS_!E1272 -> 4.084166667 | G46: 49.01 | I46: 24 | K46: 2 | L46: 12
A47: 1.31 | B47: COT_MACA_GIR | C47: Macaco tipo girafa de 2 t - Guincho Hidráulico 2 Toneladas com Prolongador | D47: un x mês | E47: 12 | F47: =CPU_EQUIPAMENTOS_!I1272 -> 93.25125 | G47: 1119.02 | I47: 24 | K47: 2 | L47: 12
A48: 1.32 | B48: 40403 - SINAPI/PE | C48: Máquina de solda elétrica de 250 A com kit. | D48: un x mês | E48: 12 | F48: =CPU_EQUIPAMENTOS_!E973 -> 9.504375 | G48: 114.05 | I48: 24 | K48: 2 | L48: 12
A49: 1.33 | B49: COT_MORS | C49: Morsa para bancada nº 08 | D49: un x mês | E49: 36 | F49: =CPU_EQUIPAMENTOS_!M1272 -> 9.299375 | G49: 334.78 | I49: 72 | K49: 6 | L49: 36
A50: 1.34 | B50: E9630-DNIT/PE | C50: Conjunto Motor bomba 7,5 CV, 380 V, Q=75,6 m3/h e H=17 mca. (Poço de rebaixamento da EBV-3) | D50: un x mês | E50: 6 | F50: =CPU_EQUIPAMENTOS_!E906 -> 121.5728 | G50: 729.44 | I50: 12 | K50: 1 | L50: 6
A51: 1.35 | B51: COT_BOMB_SUB | C51: Bomba Submersível 5 Cv Trifásica 380V, Q=2 - 52 m3/h e H= 3-25 mca.(Poço de rebaixamento do Res. de areias (Estrutura de Controle) | D51: un x mês | E51: 6 | F51: =CPU_EQUIPAMENTOS_!E1290 -> 294.8447917 | G51: 1769.07 | I51: 12 | K51: 1 | L51: 6
A52: 1.36 | B52: COT_MOTO_ESMER | C52: Motoesmeril de 1cv - 3.500 RPM | D52: un x mês | E52: 36 | F52: =CPU_EQUIPAMENTOS_!I1290 -> 22.24729167 | G52: 800.9 | I52: 72 | K52: 6 | L52: 36
A53: 1.37 | B53: COT_MULT | C53: Multiplicador de Torque Manual 2700 N.m/2000 lb.ft CDI GA190 | D53: un x mês | E53: 6 | F53: =CPU_EQUIPAMENTOS_!M1290 -> 66.74083333 | G53: 400.45 | I53: 12 | K53: 1 | L53: 6
A54: 1.38 | B54: E9552 - DNIT/PE | C54: Nível de precisão | D54: un x mês | E54: 6 | F54: =CPU_EQUIPAMENTOS_!E873 -> 314.9448 | G54: 1889.67 | I54: 12 | K54: 1 | L54: 6
A55: 1.39 | B55: COT_PARA | C55: Parafusadeira elétrica a bateria | D55: un x mês | E55: 12 | F55: =CPU_EQUIPAMENTOS_!E1308 -> 19.77041667 | G55: 237.25 | I55: 24 | K55: 2 | L55: 12
A56: 1.40 | B56: COT_PREN | C56: Prensa hidráulica de 10 ton | D56: un x mês | E56: 12 | F56: =CPU_EQUIPAMENTOS_!I1308 -> 30.559375 | G56: 366.71 | I56: 24 | K56: 2 | L56: 12
A57: 1.41 | B57: E9207-DNIT/PE | C57: Retífica elétrica | D57: un x mês | E57: 12 | F57: =CPU_EQUIPAMENTOS_!I906 -> 128.9968 | G57: 1547.96 | I57: 24 | K57: 2 | L57: 12
A58: 1.42 | B58: E9748-DNIT/PE | C58: Rosqueadeira ( para tubos de ½” a 4”) -Rosqueadeira Elétrica 1/2 A 4 Pol. 750w 220v-Br Motors-Brr124bsp | D58: un x mês | E58: 6 | F58: =CPU_EQUIPAMENTOS_!M906 -> 115.9728 | G58: 695.84 | I58: 12 | K58: 1 | L58: 6
A59: 1.43 | B59: 10740 - SINAPI/PE | C59: Talha capacidade 3t | D59: un x mês | E59: 12 | F59: =CPU_EQUIPAMENTOS_!I1110 -> 126.2847361 | G59: 1515.42 | I59: 24 | K59: 2 | L59: 12
A60: 1.44 | B60: COT_TIFO | C60: Tifor 3t | D60: un x mês | E60: 12 | F60: =CPU_EQUIPAMENTOS_!M1308 -> 96.02958333 | G60: 1152.36 | I60: 24 | K60: 2 | L60: 12
A61: ="TOTAL - "&C16&":" -> TOTAL - EQUIPAMENTOS - MECÂNICA: | G61: =SUBTOTAL(9,G16:G60) -> 28123.87 | K61: 0 | L61: 0
K62: 0 | L62: 0
A63: 2. | C63: EQUIPAMENTOS - ELÉTRICA | K63: 0 | L63: 0
A64: 2.1 | B64: COT_ANAL | C64: Analisador de grandezas elétricas trifásico, display LCD colorido 5,6", TRMS 1.000 V, corrente 3.000A | D64: un x mês | E64: =L64 -> 6 | F64: =CPU_EQUIPAMENTOS_!E1366 -> 730.6870833 | G64: =ROUND(E64*F64,2) -> 4384.12 | I64: 12 | K64: 1 | L64: 6
A65: 2.2 | B65: COT_BANC_TESTE | C65: Bancada de teste, amperimetro 150A, voltímetro 40V | D65: un x mês | E65: 6 | F65: =CPU_EQUIPAMENTOS_!I1366 -> 125.45375 | G65: 752.72 | I65: 12 | K65: 1 | L65: 6
A66: 2.3 | B66: COT_BANC_PROT | C66: Bancada protegida contra eletricidade estática | D66: un x mês | E66: 6 | F66: =CPU_EQUIPAMENTOS_!M1366 -> 67.10833333 | G66: 402.65 | I66: 12 | K66: 1 | L66: 6
A67: 2.4 | B67: COT_DATA | C67: Data Logger de 4 a 20 mA (verificação de intermitência em instrumentação) | D67: un x mês | E67: 6 | F67: =CPU_EQUIPAMENTOS_!E1384 -> 23.01104167 | G67: 138.07 | I67: 12 | K67: 1 | L67: 6
A68: 2.5 | B68: 13761 - SINAPI/PE | C68: Estação de solda com temperatura ajustável e proteção antiestático | D68: un x mês | E68: 6 | F68: =CPU_EQUIPAMENTOS_!E943 -> 317.96 | G68: 1907.76 | I68: 12 | K68: 1 | L68: 6
A69: 2.6 | B69: 10236 - ORSE/SE | C69: Fonte de alimentação com tensão variável de 0 a 30Vcc de 3 A | D69: un x mês | E69: 6 | F69: =CPU_EQUIPAMENTOS_!E1348 -> 4.020833333 | G69: 24.13 | I69: 12 | K69: 1 | L69: 6
A70: 2.7 | B70: COT_FONT | C70: Fonte de bancada 12 V | D70: un x mês | E70: 6 | F70: =CPU_EQUIPAMENTOS_!I1384 -> 15.29041667 | G70: 91.74 | I70: 12 | K70: 1 | L70: 6
A71: 2.8 | B71: I9376 - SEINFRA/CE | C71: Furadeira Manual 650W 1050 – 1450 RPM 220V Ø 13mm | D71: un x mês | E71: 6 | F71: =CPU_EQUIPAMENTOS_!I1348 -> 18.8125 | G71: 112.88 | I71: 12 | K71: 1 | L71: 6
A72: 2.9 | B72: COT_GERA | C72: Gerador de corrente e tensão de 0 a 20 mA e 0 a 10V, precisão de 0,1% | D72: un x mês | E72: 6 | F72: =CPU_EQUIPAMENTOS_!M1384 -> 3.464791667 | G72: 20.79 | I72: 12 | K72: 1 | L72: 6
A73: 2.10 | B73: COT_TTR | C73: TTR - medidor digital de relação de espiras, escala de medição 0,8000:1 a 8.000,0: 1 | D73: un x mês | E73: 6 | F73: =CPU_EQUIPAMENTOS_!I1402 -> 509.1891667 | G73: 3055.14 | I73: 12 | K73: 1 | L73: 6
A74: ="TOTAL - "&C63&":" -> TOTAL - EQUIPAMENTOS - ELÉTRICA: | G74: =SUBTOTAL(9,G63:G73) -> 10890 | K74: 0 | L74: 0
K75: 0 | L75: 0
A76: 3. | C76: EQUIPAMENTOS - CIVIL | K76: 0 | L76: 0
